Workbook

Sheet Übersicht
D1: Kreisrundenwettkampf | J1: Saison | K1: 2023/2024 | M1: 2. Kreisklasse | P1: Schützen
C3: Wettkampftag: | D3: 03.09. | E3: 17.09. | F3: 01.10. | G3: 15.10. | H3: 29.10. | I3: 19.11. | J3: Hinrunde | L3: 14.01. | M3: 28.01. | N3: 11.02. | O3: 25.02. | P3: 10.03. | Q3: 07.04. | R3: Rückrunde | T3: Serie komplett
A4: Pos. | B4: Verein / Gruppe | D4: Börgerwald | E4: Neuvrees | F4: Börger | G4: Börger | H4: Lahn | I4: Neuvrees | J4: Schnitt | K4: Gesamt | L4: Neuvrees | M4: =E4 -> Neuvrees | N4: Börger | O4: Börger | P4: Lahn | Q4: Börgerwald | R4: Schnitt | S4: Gesamt | T4: Schnitt | U4: Gesamt | V4: Differenz
A6: 1 | B6: ='Übersicht Gruppen'!B2 -> Neuvrees II | D6: ='Übersicht Gruppen'!C2 -> 932.5 | E6: ='Übersicht Gruppen'!D2 -> 931.4 | F6: ='Übersicht Gruppen'!E2 -> 938.0 | G6: ='Übersicht Gruppen'!F2 -> 931.6 | H6: ='Übersicht Gruppen'!G2 -> 935.9 | I6: ='Übersicht Gruppen'!H2 -> 933.7 | J6: ='Übersicht Gruppen'!I2 -> 933.85 | K6: =SUM(D6:I6) -> 5,603.1 | L6: ='Übersicht Gruppen'!K2 -> 0.0 | M6: ='Übersicht Gruppen'!L2 -> 0.0 | N6: ='Übersicht Gruppen'!M2 -> 0.0 | O6: ='Übersicht Gruppen'!N2 -> 0.0 | P6: ='Übersicht Gruppen'!O2 -> 0.0 | Q6: ='Übersicht Gruppen'!P2 -> 0.0 | R6: ='Übersicht Gruppen'!Q2 -> 0.00 | S6: =SUM(L6:Q6) -> 0.0 | T6: ='Übersicht Gruppen'!S2 -> 933.85 | U6: =SUM(S6+K6) -> 5,603.1
A7: 2 | B7: ='Übersicht Gruppen'!B3 -> Lahn IV | D7: ='Übersicht Gruppen'!C3 -> 929.5 | E7: ='Übersicht Gruppen'!D3 -> 935.3 | F7: ='Übersicht Gruppen'!E3 -> 933.0 | G7: ='Übersicht Gruppen'!F3 -> 940.1 | H7: ='Übersicht Gruppen'!G3 -> 933.4 | I7: ='Übersicht Gruppen'!H3 -> 928.5 | J7: ='Übersicht Gruppen'!I3 -> 933.30 | K7: 5,599.8 | L7: ='Übersicht Gruppen'!K3 -> 0.0 | M7: ='Übersicht Gruppen'!L3 -> 0.0 | N7: ='Übersicht Gruppen'!M3 -> 0.0 | O7: ='Übersicht Gruppen'!N3 -> 0.0 | P7: ='Übersicht Gruppen'!O3 -> 0.0 | Q7: ='Übersicht Gruppen'!P3 -> 0.0 | R7: ='Übersicht Gruppen'!Q3 -> 0.00 | S7: 0.0 | T7: ='Übersicht Gruppen'!S3 -> 933.30 | U7: =SUM(S7+K7) -> 5,599.8 | V7: =(U6-U7)*-1 -> -3.3
A8: 3 | B8: ='Übersicht Gruppen'!B4 -> Börgerwald II | D8: ='Übersicht Gruppen'!C4 -> 932.9 | E8: ='Übersicht Gruppen'!D4 -> 935.1 | F8: ='Übersicht Gruppen'!E4 -> 931.1 | G8: ='Übersicht Gruppen'!F4 -> 936.7 | H8: ='Übersicht Gruppen'!G4 -> 935.1 | I8: ='Übersicht Gruppen'!H4 -> 927.8 | J8: ='Übersicht Gruppen'!I4 -> 933.12 | K8: 5,598.7 | L8: ='Übersicht Gruppen'!K4 -> 0.0 | M8: ='Übersicht Gruppen'!L4 -> 0.0 | N8: ='Übersicht Gruppen'!M4 -> 0.0 | O8: ='Übersicht Gruppen'!N4 -> 0.0 | P8: ='Übersicht Gruppen'!O4 -> 0.0 | Q8: ='Übersicht Gruppen'!P4 -> 0.0 | R8: ='Übersicht Gruppen'!Q4 -> 0.00 | S8: 0.0 | T8: ='Übersicht Gruppen'!S4 -> 933.12 | U8: 5,598.7 | V8: =(U7-U8)*-1 -> -1.1
A9: 4 | B9: ='Übersicht Gruppen'!B5 -> Neuvrees I | D9: ='Übersicht Gruppen'!C5 -> 933.2 | E9: ='Übersicht Gruppen'!D5 -> 929.1 | F9: ='Übersicht Gruppen'!E5 -> 926.2 | G9: ='Übersicht Gruppen'!F5 -> 931.7 | H9: ='Übersicht Gruppen'!G5 -> 932.2 | I9: ='Übersicht Gruppen'!H5 -> 932.9 | J9: ='Übersicht Gruppen'!I5 -> 930.88 | K9: 5,585.3 | L9: ='Übersicht Gruppen'!K5 -> 0.0 | M9: ='Übersicht Gruppen'!L5 -> 0.0 | N9: ='Übersicht Gruppen'!M5 -> 0.0 | O9: ='Übersicht Gruppen'!N5 -> 0.0 | P9: ='Übersicht Gruppen'!O5 -> 0.0 | Q9: ='Übersicht Gruppen'!P5 -> 0.0 | R9: ='Übersicht Gruppen'!Q5 -> 0.00 | S9: 0.0 | T9: ='Übersicht Gruppen'!S5 -> 930.88 | U9: 5,585.3 | V9: -13.4
A10: 5 | B10: ='Übersicht Gruppen'!B6 -> Börger II | D10: ='Übersicht Gruppen'!C6 -> 934.4 | E10: ='Übersicht Gruppen'!D6 -> 934.2 | F10: ='Übersicht Gruppen'!E6 -> 925.6 | G10: ='Übersicht Gruppen'!F6 -> 934.0 | H10: ='Übersicht Gruppen'!G6 -> 921.6 | I10: ='Übersicht Gruppen'!H6 -> 929.2 | J10: ='Übersicht Gruppen'!I6 -> 929.83 | K10: 5,579.0 | L10: ='Übersicht Gruppen'!K6 -> 0.0 | M10: ='Übersicht Gruppen'!L6 -> 0.0 | N10: ='Übersicht Gruppen'!M6 -> 0.0 | O10: ='Übersicht Gruppen'!N6 -> 0.0 | P10: ='Übersicht Gruppen'!O6 -> 0.0 | Q10: ='Übersicht Gruppen'!P6 -> 0.0 | R10: ='Übersicht Gruppen'!Q6 -> 0.00 | S10: 0.0 | T10: ='Übersicht Gruppen'!S6 -> 929.83 | U10: 5,579.0 | V10: -6.3
A11: 6 | B11: ='Übersicht Gruppen'!B7 -> Börger III | D11: ='Übersicht Gruppen'!C7 -> 923.6 | E11: ='Übersicht Gruppen'!D7 -> 926.3 | F11: ='Übersicht Gruppen'!E7 -> 927.2 | G11: ='Übersicht Gruppen'!F7 -> 934.7 | H11: ='Übersicht Gruppen'!G7 -> 931.9 | I11: ='Übersicht Gruppen'!H7 -> 933.3 | J11: ='Übersicht Gruppen'!I7 -> 929.50 | K11: 5,577.0 | L11: ='Übersicht Gruppen'!K7 -> 0.0 | M11: ='Übersicht Gruppen'!L7 -> 0.0 | N11: ='Übersicht Gruppen'!M7 -> 0.0 | O11: ='Übersicht Gruppen'!N7 -> 0.0 | P11: ='Übersicht Gruppen'!O7 -> 0.0 | Q11: ='Übersicht Gruppen'!P7 -> 0.0 | R11: ='Übersicht Gruppen'!Q7 -> 0.00 | S11: 0.0 | T11: ='Übersicht Gruppen'!S7 -> 929.50 | U11: 5,577.0 | V11: -2.0
C13: Schnitt: | D13: =AVERAGE(D6:D11) -> 931.0 | E13: =AVERAGE(E6:E11) -> 931.9 | F13: 930.2 | G13: 934.8 | H13: 931.7 | I13: 930.9 | J13: 931.75 | K13: =SUM(K6:K11)/6 -> 5,590.5 | L13: 0.0 | M13: 0.0 | N13: 0.0 | O13: 0.0 | P13: 0.0 | Q13: 0.0 | R13: 0.00 | S13: 0.0 | T13: 931.75 | U13: 5,590.5
J15: Hinrunde | R15: Rückrunde | T15: Serie komplett | V15: Differenz
A16: Pos. | B16: Vorname Name | C16: Verein / Gruppe | J16: Schnitt | K16: Gesamt | R16: Schnitt | S16: Gesamt | T16: Schnitt | U16: Gesamt
A17: 1 | B17: ='Übersicht Schützen'!A2 -> Ingo Zdralik | C17: ='Übersicht Schützen'!B2 -> Börger II | D17: ='Übersicht Schützen'!C2 -> 316.1 | E17: ='Übersicht Schützen'!D2 -> 316.2 | F17: ='Übersicht Schützen'!E2 -> 312.9 | G17: ='Übersicht Schützen'!F2 -> 316.6 | H17: ='Übersicht Schützen'!G2 -> 314.1 | I17: ='Übersicht Schützen'!H2 -> 317.8 | J17: ='Übersicht Schützen'!I2 -> 315.62 | K17: =SUM(D17:I17) -> 1,893.7 | L17: ='Übersicht Schützen'!L2 -> 0.0 | M17: ='Übersicht Schützen'!M2 -> 0.0 | N17: ='Übersicht Schützen'!N2 -> 0.0 | O17: ='Übersicht Schützen'!O2 -> 0.0 | P17: ='Übersicht Schützen'!P2 -> 0.0 | Q17: ='Übersicht Schützen'!Q2 -> 0.0 | R17: ='Übersicht Schützen'!R2 -> 0.00 | S17: =SUM(L17:Q17) -> 0.0 | T17: ='Übersicht Schützen'!U2 -> 315.62 | U17: =SUM(K17+S17) -> 1,893.7
A18: 2 | B18: ='Übersicht Schützen'!A3 -> Johannes Thesing | C18: ='Übersicht Schützen'!B3 -> Lahn IV | D18: ='Übersicht Schützen'!C3 -> 313.1 | E18: ='Übersicht Schützen'!D3 -> 313.8 | F18: ='Übersicht Schützen'!E3 -> 312.5 | G18: ='Übersicht Schützen'!F3 -> 316.2 | H18: ='Übersicht Schützen'!G3 -> 317.3 | I18: ='Übersicht Schützen'!H3 -> 312.1 | J18: ='Übersicht Schützen'!I3 -> 314.17 | K18: =SUM(D18:I18) -> 1,885.0 | L18: ='Übersicht Schützen'!L3 -> 0.0 | M18: ='Übersicht Schützen'!M3 -> 0.0 | N18: ='Übersicht Schützen'!N3 -> 0.0 | O18: ='Übersicht Schützen'!O3 -> 0.0 | P18: ='Übersicht Schützen'!P3 -> 0.0 | Q18: ='Übersicht Schützen'!Q3 -> 0.0 | R18: ='Übersicht Schützen'!R3 -> 0.00 | S18: =SUM(L18:Q18) -> 0.0 | T18: ='Übersicht Schützen'!U3 -> 314.17 | U18: =SUM(K18+S18) -> 1,885.0 | V18: =(U17-U18)*-1 -> -8.7
A19: 3 | B19: ='Übersicht Schützen'!A4 -> Bernd Witting | C19: ='Übersicht Schützen'!B4 -> Neuvrees II | D19: ='Übersicht Schützen'!C4 -> 315.0 | E19: ='Übersicht Schützen'!D4 -> 311.8 | F19: ='Übersicht Schützen'!E4 -> 313.8 | G19: ='Übersicht Schützen'!F4 -> 309.6 | H19: ='Übersicht Schützen'!G4 -> 310.3 | I19: ='Übersicht Schützen'!H4 -> 311.1 | J19: ='Übersicht Schützen'!I4 -> 311.93 | K19: =SUM(D19:I19) -> 1,871.6 | L19: ='Übersicht Schützen'!L4 -> 0.0 | M19: ='Übersicht Schützen'!M4 -> 0.0 | N19: ='Übersicht Schützen'!N4 -> 0.0 | O19: ='Übersicht Schützen'!O4 -> 0.0 | P19: ='Übersicht Schützen'!P4 -> 0.0 | Q19: ='Übersicht Schützen'!Q4 -> 0.0 | R19: ='Übersicht Schützen'!R4 -> 0.00 | S19: 0.0 | T19: ='Übersicht Schützen'!U4 -> 311.93 | U19: 1,871.6 | V19: =(U18-U19)*-1 -> -13.4
A20: 4 | B20: ='Übersicht Schützen'!A5 -> Dirk Thunert | C20: ='Übersicht Schützen'!B5 -> Neuvrees II | D20: ='Übersicht Schützen'!C5 -> 310.0 | E20: ='Übersicht Schützen'!D5 -> 310.9 | F20: ='Übersicht Schützen'!E5 -> 311.7 | G20: ='Übersicht Schützen'!F5 -> 310.9 | H20: ='Übersicht Schützen'!G5 -> 312.5 | I20: ='Übersicht Schützen'!H5 -> 313.0 | J20: ='Übersicht Schützen'!I5 -> 311.50 | K20: 1,869.0 | L20: ='Übersicht Schützen'!L5 -> 0.0 | M20: ='Übersicht Schützen'!M5 -> 0.0 | N20: ='Übersicht Schützen'!N5 -> 0.0 | O20: ='Übersicht Schützen'!O5 -> 0.0 | P20: ='Übersicht Schützen'!P5 -> 0.0 | Q20: ='Übersicht Schützen'!Q5 -> 0.0 | R20: ='Übersicht Schützen'!R5 -> 0.00 | S20: 0.0 | T20: ='Übersicht Schützen'!U5 -> 311.50 | U20: 1,869.0 | V20: -2.6
A21: 5 | B21: ='Übersicht Schützen'!A6 -> Simon Schutenbrock | C21: ='Übersicht Schützen'!B6 -> Börger III | D21: ='Übersicht Schützen'!C6 -> 313.8 | E21: ='Übersicht Schützen'!D6 -> 311.1 | F21: ='Übersicht Schützen'!E6 -> 307.6 | G21: ='Übersicht Schützen'!F6 -> 314.4 | H21: ='Übersicht Schützen'!G6 -> 309.6 | I21: ='Übersicht Schützen'!H6 -> 311.0 | J21: ='Übersicht Schützen'!I6 -> 311.25 | K21: 1,867.5 | L21: ='Übersicht Schützen'!L6 -> 0.0 | M21: ='Übersicht Schützen'!M6 -> 0.0 | N21: ='Übersicht Schützen'!N6 -> 0.0 | O21: ='Übersicht Schützen'!O6 -> 0.0 | P21: ='Übersicht Schützen'!P6 -> 0.0 | Q21: ='Übersicht Schützen'!Q6 -> 0.0 | R21: ='Übersicht Schützen'!R6 -> 0.00 | S21: 0.0 | T21: ='Übersicht Schützen'!U6 -> 311.25 | U21: 1,867.5 | V21: -1.5
A22: 6 | B22: ='Übersicht Schützen'!A7 -> Willi Rolfes | C22: ='Übersicht Schützen'!B7 -> Neuvrees I | D22: ='Übersicht Schützen'!C7 -> 310.7 | E22: ='Übersicht Schützen'!D7 -> 312.8 | F22: ='Übersicht Schützen'!E7 -> 308.5 | G22: ='Übersicht Schützen'!F7 -> 311.1 | H22: ='Übersicht Schützen'!G7 -> 309.9 | I22: ='Übersicht Schützen'!H7 -> 313.8 | J22: ='Übersicht Schützen'!I7 -> 311.13 | K22: 1,866.8 | L22: ='Übersicht Schützen'!L7 -> 0.0 | M22: ='Übersicht Schützen'!M7 -> 0.0 | N22: ='Übersicht Schützen'!N7 -> 0.0 | O22: ='Übersicht Schützen'!O7 -> 0.0 | P22: ='Übersicht Schützen'!P7 -> 0.0 | Q22: ='Übersicht Schützen'!Q7 -> 0.0 | R22: ='Übersicht Schützen'!R7 -> 0.00 | S22: 0.0 | T22: ='Übersicht Schützen'!U7 -> 311.13 | U22: 1,866.8 | V22: -0.7
A23: 7 | B23: ='Übersicht Schützen'!A8 -> Andre Hanenkamp | C23: ='Übersicht Schützen'!B8 -> Börgerwald II | D23: ='Übersicht Schützen'!C8 -> 306.5 | E23: ='Übersicht Schützen'!D8 -> 311.8 | F23: ='Übersicht Schützen'!E8 -> 307.1 | G23: ='Übersicht Schützen'!F8 -> 311.4 | H23: ='Übersicht Schützen'!G8 -> 314.9 | I23: ='Übersicht Schützen'!H8 -> 310.8 | J23: ='Übersicht Schützen'!I8 -> 310.42 | K23: 1,862.5 | L23: ='Übersicht Schützen'!L8 -> 0.0 | M23: ='Übersicht Schützen'!M8 -> 0.0 | N23: ='Übersicht Schützen'!N8 -> 0.0 | O23: ='Übersicht Schützen'!O8 -> 0.0 | P23: ='Übersicht Schützen'!P8 -> 0.0 | Q23: ='Übersicht Schützen'!Q8 -> 0.0 | R23: ='Übersicht Schützen'!R8 -> 0.00 | S23: 0.0 | T23: ='Übersicht Schützen'!U8 -> 310.42 | U23: 1,862.5 | V23: -4.3
A24: 8 | B24: ='Übersicht Schützen'!A9 -> Horst Sabel | C24: ='Übersicht Schützen'!B9 -> Börgerwald II | D24: ='Übersicht Schützen'!C9 -> 311.8 | E24: ='Übersicht Schützen'!D9 -> 314.7 | F24: ='Übersicht Schützen'!E9 -> 308.9 | G24: ='Übersicht Schützen'!F9 -> 309.0 | H24: ='Übersicht Schützen'!G9 -> 309.4 | I24: ='Übersicht Schützen'!H9 -> 308.0 | J24: ='Übersicht Schützen'!I9 -> 310.30 | K24: 1,861.8 | L24: ='Übersicht Schützen'!L9 -> 0.0 | M24: ='Übersicht Schützen'!M9 -> 0.0 | N24: ='Übersicht Schützen'!N9 -> 0.0 | O24: ='Übersicht Schützen'!O9 -> 0.0 | P24: ='Übersicht Schützen'!P9 -> 0.0 | Q24: ='Übersicht Schützen'!Q9 -> 0.0 | R24: ='Übersicht Schützen'!R9 -> 0.00 | S24: 0.0 | T24: ='Übersicht Schützen'!U9 -> 310.30 | U24: 1,861.8 | V24: -0.7
A25: 9 | B25: ='Übersicht Schützen'!A10 -> Markus Janßen | C25: ='Übersicht Schützen'!B10 -> Neuvrees I | D25: ='Übersicht Schützen'!C10 -> 310.0 | E25: ='Übersicht Schützen'!D10 -> 311.6 | F25: ='Übersicht Schützen'!E10 -> 308.0 | G25: ='Übersicht Schützen'!F10 -> 309.9 | H25: ='Übersicht Schützen'!G10 -> 310.2 | I25: ='Übersicht Schützen'!H10 -> 310.9 | J25: ='Übersicht Schützen'!I10 -> 310.10 | K25: 1,860.6 | L25: ='Übersicht Schützen'!L10 -> 0.0 | M25: ='Übersicht Schützen'!M10 -> 0.0 | N25: ='Übersicht Schützen'!N10 -> 0.0 | O25: ='Übersicht Schützen'!O10 -> 0.0 | P25: ='Übersicht Schützen'!P10 -> 0.0 | Q25: ='Übersicht Schützen'!Q10 -> 0.0 | R25: ='Übersicht Schützen'!R10 -> 0.00 | S25: 0.0 | T25: ='Übersicht Schützen'!U10 -> 310.10 | U25: 1,860.6 | V25: -1.2
A26: 10 | B26: ='Übersicht Schützen'!A11 -> Karl-Heinz Schrand | C26: ='Übersicht Schützen'!B11 -> Neuvrees II | D26: ='Übersicht Schützen'!C11 -> 307.5 | E26: ='Übersicht Schützen'!D11 -> 308.7 | F26: ='Übersicht Schützen'!E11 -> 312.5 | G26: ='Übersicht Schützen'!F11 -> 311.1 | H26: ='Übersicht Schützen'!G11 -> 313.1 | I26: ='Übersicht Schützen'!H11 -> 307.6 | J26: ='Übersicht Schützen'!I11 -> 310.08 | K26: 1,860.5 | L26: ='Übersicht Schützen'!L11 -> 0.0 | M26: ='Übersicht Schützen'!M11 -> 0.0 | N26: ='Übersicht Schützen'!N11 -> 0.0 | O26: ='Übersicht Schützen'!O11 -> 0.0 | P26: ='Übersicht Schützen'!P11 -> 0.0 | Q26: ='Übersicht Schützen'!Q11 -> 0.0 | R26: ='Übersicht Schützen'!R11 -> 0.00 | S26: 0.0 | T26: ='Übersicht Schützen'!U11 -> 310.08 | U26: 1,860.5 | V26: -0.1
A27: 11 | B27: ='Übersicht Schützen'!A12 -> Vitalij Schmidt | C27: ='Übersicht Schützen'!B12 -> Lahn IV | D27: ='Übersicht Schützen'!C12 -> 308.8 | E27: ='Übersicht Schützen'!D12 -> 307.8 | F27: ='Übersicht Schützen'!E12 -> 310.4 | G27: ='Übersicht Schützen'!F12 -> 314.5 | H27: ='Übersicht Schützen'!G12 -> 306.7 | I27: ='Übersicht Schützen'!H12 -> 311.8 | J27: ='Übersicht Schützen'!I12 -> 310.00 | K27: 1,860.0 | L27: ='Übersicht Schützen'!L12 -> 0.0 | M27: ='Übersicht Schützen'!M12 -> 0.0 | N27: ='Übersicht Schützen'!N12 -> 0.0 | O27: ='Übersicht Schützen'!O12 -> 0.0 | P27: ='Übersicht Schützen'!P12 -> 0.0 | Q27: ='Übersicht Schützen'!Q12 -> 0.0 | R27: ='Übersicht Schützen'!R12 -> 0.00 | S27: 0.0 | T27: ='Übersicht Schützen'!U12 -> 310.00 | U27: 1,860.0 | V27: -0.5
A28: 12 | B28: ='Übersicht Schützen'!A13 -> Jens Henzen | C28: ='Übersicht Schützen'!B13 -> Börger III | D28: ='Übersicht Schützen'!C13 -> 305.6 | E28: ='Übersicht Schützen'!D13 -> 304.2 | F28: ='Übersicht Schützen'!E13 -> 309.7 | G28: ='Übersicht Schützen'!F13 -> 308.3 | H28: ='Übersicht Schützen'!G13 -> 313.1 | I28: ='Übersicht Schützen'!H13 -> 313.6 | J28: ='Übersicht Schützen'!I13 -> 309.08 | K28: 1,854.5 | L28: ='Übersicht Schützen'!L13 -> 0.0 | M28: ='Übersicht Schützen'!M13 -> 0.0 | N28: ='Übersicht Schützen'!N13 -> 0.0 | O28: ='Übersicht Schützen'!O13 -> 0.0 | P28: ='Übersicht Schützen'!P13 -> 0.0 | Q28: ='Übersicht Schützen'!Q13 -> 0.0 | R28: ='Übersicht Schützen'!R13 -> 0.00 | S28: 0.0 | T28: ='Übersicht Schützen'!U13 -> 309.08 | U28: 1,854.5 | V28: -5.5
A29: 13 | B29: ='Übersicht Schützen'!A14 -> Hermann Benten | C29: ='Übersicht Schützen'!B14 -> Lahn IV | D29: ='Übersicht Schützen'!C14 -> 307.6 | E29: ='Übersicht Schützen'!D14 -> 311.2 | F29: ='Übersicht Schützen'!E14 -> 310.1 | G29: ='Übersicht Schützen'!F14 -> 309.4 | H29: ='Übersicht Schützen'!G14 -> 309.4 | I29: ='Übersicht Schützen'!H14 -> 304.1 | J29: ='Übersicht Schützen'!I14 -> 308.63 | K29: 1,851.8 | L29: ='Übersicht Schützen'!L14 -> 0.0 | M29: ='Übersicht Schützen'!M14 -> 0.0 | N29: ='Übersicht Schützen'!N14 -> 0.0 | O29: ='Übersicht Schützen'!O14 -> 0.0 | P29: ='Übersicht Schützen'!P14 -> 0.0 | Q29: ='Übersicht Schützen'!Q14 -> 0.0 | R29: ='Übersicht Schützen'!R14 -> 0.00 | S29: 0.0 | T29: ='Übersicht Schützen'!U14 -> 308.63 | U29: 1,851.8 | V29: -2.7
A30: 14 | B30: ='Übersicht Schützen'!A15 -> Friedhelm Schroer | C30: ='Übersicht Schützen'!B15 -> Börgerwald II | D30: ='Übersicht Schützen'!C15 -> 307.0 | E30: ='Übersicht Schützen'!D15 -> 307.4 | F30: ='Übersicht Schützen'!E15 -> 311.3 | G30: ='Übersicht Schützen'!F15 -> 310.7 | H30: ='Übersicht Schützen'!G15 -> 305.4 | I30: ='Übersicht Schützen'!H15 -> 309.0 | J30: ='Übersicht Schützen'!I15 -> 308.47 | K30: 1,850.8 | L30: ='Übersicht Schützen'!L15 -> 0.0 | M30: ='Übersicht Schützen'!M15 -> 0.0 | N30: ='Übersicht Schützen'!N15 -> 0.0 | O30: ='Übersicht Schützen'!O15 -> 0.0 | P30: ='Übersicht Schützen'!P15 -> 0.0 | Q30: ='Übersicht Schützen'!Q15 -> 0.0 | R30: ='Übersicht Schützen'!R15 -> 0.00 | S30: 0.0 | T30: ='Übersicht Schützen'!U15 -> 308.47 | U30: 1,850.8 | V30: -1.0
A31: 15 | B31: ='Übersicht Schützen'!A16 -> Holger Szczepanski | C31: ='Übersicht Schützen'!B16 -> Neuvrees II | D31: ='Übersicht Schützen'!C16 -> 303.2 | E31: ='Übersicht Schützen'!D16 -> 311.6 | F31: ='Übersicht Schützen'!E16 -> 305.9 | G31: ='Übersicht Schützen'!F16 -> 309.2 | H31: ='Übersicht Schützen'!G16 -> 310.2 | I31: ='Übersicht Schützen'!H16 -> 309.6 | J31: ='Übersicht Schützen'!I16 -> 308.28 | K31: 1,849.7 | L31: ='Übersicht Schützen'!L16 -> 0.0 | M31: ='Übersicht Schützen'!M16 -> 0.0 | N31: ='Übersicht Schützen'!N16 -> 0.0 | O31: ='Übersicht Schützen'!O16 -> 0.0 | P31: ='Übersicht Schützen'!P16 -> 0.0 | Q31: ='Übersicht Schützen'!Q16 -> 0.0 | R31: ='Übersicht Schützen'!R16 -> 0.00 | S31: 0.0 | T31: ='Übersicht Schützen'!U16 -> 308.28 | U31: 1,849.7 | V31: -1.1
A32: 16 | B32: ='Übersicht Schützen'!A17 -> Jürgen Schroer | C32: ='Übersicht Schützen'!B17 -> Börger III | D32: ='Übersicht Schützen'!C17 -> 307.2 | E32: ='Übersicht Schützen'!D17 -> 310.3 | F32: ='Übersicht Schützen'!E17 -> 307.6 | G32: ='Übersicht Schützen'!F17 -> 307.1 | H32: ='Übersicht Schützen'!G17 -> 314.1 | I32: ='Übersicht Schützen'!H17 -> 303.3 | J32: ='Übersicht Schützen'!I17 -> 308.27 | K32: 1,849.6 | L32: ='Übersicht Schützen'!L17 -> 0.0 | M32: ='Übersicht Schützen'!M17 -> 0.0 | N32: ='Übersicht Schützen'!N17 -> 0.0 | O32: ='Übersicht Schützen'!O17 -> 0.0 | P32: ='Übersicht Schützen'!P17 -> 0.0 | Q32: ='Übersicht Schützen'!Q17 -> 0.0 | R32: ='Übersicht Schützen'!R17 -> 0.00 | S32: 0.0 | T32: ='Übersicht Schützen'!U17 -> 308.27 | U32: 1,849.6 | V32: -0.1
A33: 17 | B33: ='Übersicht Schützen'!A18 -> Klaus Steenken | C33: ='Übersicht Schützen'!B18 -> Neuvrees I | D33: ='Übersicht Schützen'!C18 -> 308.9 | E33: ='Übersicht Schützen'!D18 -> 305.0 | F33: ='Übersicht Schützen'!E18 -> 308.3 | G33: ='Übersicht Schützen'!F18 -> 309.2 | H33: ='Übersicht Schützen'!G18 -> 309.4 | I33: ='Übersicht Schützen'!H18 -> 308.2 | J33: ='Übersicht Schützen'!I18 -> 308.17 | K33: 1,849.0 | L33: ='Übersicht Schützen'!L18 -> 0.0 | M33: ='Übersicht Schützen'!M18 -> 0.0 | N33: ='Übersicht Schützen'!N18 -> 0.0 | O33: ='Übersicht Schützen'!O18 -> 0.0 | P33: ='Übersicht Schützen'!P18 -> 0.0 | Q33: ='Übersicht Schützen'!Q18 -> 0.0 | R33: ='Übersicht Schützen'!R18 -> 0.00 | S33: 0.0 | T33: ='Übersicht Schützen'!U18 -> 308.17 | U33: 1,849.0 | V33: -0.6
A34: 18 | B34: ='Übersicht Schützen'!A19 -> Wilfried Breyer | C34: ='Übersicht Schützen'!B19 -> Neuvrees I | D34: ='Übersicht Schützen'!C19 -> 311.3 | E34: ='Übersicht Schützen'!D19 -> 302.6 | F34: ='Übersicht Schützen'!E19 -> 308.6 | G34: ='Übersicht Schützen'!F19 -> 310.7 | H34: ='Übersicht Schützen'!G19 -> 312.1 | I34: ='Übersicht Schützen'!H19 -> 302.6 | J34: ='Übersicht Schützen'!I19 -> 307.98 | K34: 1,847.9 | L34: ='Übersicht Schützen'!L19 -> 0.0 | M34: ='Übersicht Schützen'!M19 -> 0.0 | N34: ='Übersicht Schützen'!N19 -> 0.0 | O34: ='Übersicht Schützen'!O19 -> 0.0 | P34: ='Übersicht Schützen'!P19 -> 0.0 | Q34: ='Übersicht Schützen'!Q19 -> 0.0 | R34: ='Übersicht Schützen'!R19 -> 0.00 | S34: 0.0 | T34: ='Übersicht Schützen'!U19 -> 307.98 | U34: 1,847.9 | V34: -1.1
A35: 19 | B35: ='Übersicht Schützen'!A20 -> Markus Jungsthöfel | C35: ='Übersicht Schützen'!B20 -> Börger II | D35: ='Übersicht Schützen'!C20 -> 312.5 | E35: ='Übersicht Schützen'!D20 -> 307.3 | F35: ='Übersicht Schützen'!E20 -> 308.1 | G35: ='Übersicht Schützen'!F20 -> 306.7 | H35: ='Übersicht Schützen'!G20 -> 305.4 | I35: ='Übersicht Schützen'!H20 -> 306.9 | J35: ='Übersicht Schützen'!I20 -> 307.82 | K35: 1,846.9 | L35: ='Übersicht Schützen'!L20 -> 0.0 | M35: ='Übersicht Schützen'!M20 -> 0.0 | N35: ='Übersicht Schützen'!N20 -> 0.0 | O35: ='Übersicht Schützen'!O20 -> 0.0 | P35: ='Übersicht Schützen'!P20 -> 0.0 | Q35: ='Übersicht Schützen'!Q20 -> 0.0 | R35: ='Übersicht Schützen'!R20 -> 0.00 | S35: 0.0 | T35: ='Übersicht Schützen'!U20 -> 307.82 | U35: 1,846.9 | V35: -1.0
A36: 20 | B36: ='Übersicht Schützen'!A21 -> Daniel Sebers | C36: ='Übersicht Schützen'!B21 -> Börger III | D36: ='Übersicht Schützen'!C21 -> 303.3 | E36: ='Übersicht Schützen'!D21 -> 307.4 | F36: ='Übersicht Schützen'!E21 -> 309.5 | G36: ='Übersicht Schützen'!F21 -> 312.0 | H36: ='Übersicht Schützen'!G21 -> 307.2 | I36: ='Übersicht Schützen'!H21 -> 306.4 | J36: ='Übersicht Schützen'!I21 -> 307.63 | K36: 1,845.8 | L36: ='Übersicht Schützen'!L21 -> 0.0 | M36: ='Übersicht Schützen'!M21 -> 0.0 | N36: ='Übersicht Schützen'!N21 -> 0.0 | O36: ='Übersicht Schützen'!O21 -> 0.0 | P36: ='Übersicht Schützen'!P21 -> 0.0 | Q36: ='Übersicht Schützen'!Q21 -> 0.0 | R36: ='Übersicht Schützen'!R21 -> 0.00 | S36: 0.0 | T36: ='Übersicht Schützen'!U21 -> 307.63 | U36: 1,845.8 | V36: -1.1
A37: 21 | B37: ='Übersicht Schützen'!A22 -> Bernd Rode | C37: ='Übersicht Schützen'!B22 -> Börger III | D37: ='Übersicht Schützen'!C22 -> 304.2 | E37: ='Übersicht Schützen'!D22 -> 304.9 | F37: ='Übersicht Schützen'!E22 -> 308.0 | G37: ='Übersicht Schützen'!F22 -> 308.2 | H37: ='Übersicht Schützen'!G22 -> 309.2 | I37: ='Übersicht Schützen'!H22 -> 308.7 | J37: ='Übersicht Schützen'!I22 -> 307.20 | K37: 1,843.2 | L37: ='Übersicht Schützen'!L22 -> 0.0 | M37: ='Übersicht Schützen'!M22 -> 0.0 | N37: ='Übersicht Schützen'!N22 -> 0.0 | O37: ='Übersicht Schützen'!O22 -> 0.0 | P37: ='Übersicht Schützen'!P22 -> 0.0 | Q37: ='Übersicht Schützen'!Q22 -> 0.0 | R37: ='Übersicht Schützen'!R22 -> 0.00 | S37: 0.0 | T37: ='Übersicht Schützen'!U22 -> 307.20 | U37: 1,843.2 | V37: -2.6
A38: 22 | B38: ='Übersicht Schützen'!A23 -> Werner Thyen | C38: ='Übersicht Schützen'!B23 -> Neuvrees I | D38: ='Übersicht Schützen'!C23 -> 311.2 | E38: ='Übersicht Schützen'!D23 -> 304.7 | F38: ='Übersicht Schützen'!E23 -> 309.1 | G38: ='Übersicht Schützen'!F23 -> 302.1 | H38: ='Übersicht Schützen'!G23 -> 308.9 | I38: ='Übersicht Schützen'!H23 -> 302.4 | J38: ='Übersicht Schützen'!I23 -> 306.40 | K38: 1,838.4 | L38: ='Übersicht Schützen'!L23 -> 0.0 | M38: ='Übersicht Schützen'!M23 -> 0.0 | N38: ='Übersicht Schützen'!N23 -> 0.0 | O38: ='Übersicht Schützen'!O23 -> 0.0 | P38: ='Übersicht Schützen'!P23 -> 0.0 | Q38: ='Übersicht Schützen'!Q23 -> 0.0 | R38: ='Übersicht Schützen'!R23 -> 0.00 | S38: 0.0 | T38: ='Übersicht Schützen'!U23 -> 306.40 | U38: 1,838.4 | V38: -4.8
A39: 23 | B39: ='Übersicht Schützen'!A24 -> Oliver Reinelt | C39: ='Übersicht Schützen'!B24 -> Lahn IV | D39: ='Übersicht Schützen'!C24 -> 302.3 | E39: ='Übersicht Schützen'!D24 -> 310.3 | F39: ='Übersicht Schützen'!E24 -> 307.2 | G39: ='Übersicht Schützen'!F24 -> 305.2 | H39: ='Übersicht Schützen'!G24 -> 304.6 | I39: ='Übersicht Schützen'!H24 -> 304.6 | J39: ='Übersicht Schützen'!I24 -> 305.70 | K39: 1,834.2 | L39: ='Übersicht Schützen'!L24 -> 0.0 | M39: ='Übersicht Schützen'!M24 -> 0.0 | N39: ='Übersicht Schützen'!N24 -> 0.0 | O39: ='Übersicht Schützen'!O24 -> 0.0 | P39: ='Übersicht Schützen'!P24 -> 0.0 | Q39: ='Übersicht Schützen'!Q24 -> 0.0 | R39: ='Übersicht Schützen'!R24 -> 0.00 | S39: 0.0 | T39: ='Übersicht Schützen'!U24 -> 305.70 | U39: 1,834.2 | V39: -4.2
A40: 24 | B40: ='Übersicht Schützen'!A25 -> Uwe Goldenstein | C40: ='Übersicht Schützen'!B25 -> Börger II | D40: ='Übersicht Schützen'!C25 -> 304.5 | E40: ='Übersicht Schützen'!D25 -> 304.0 | F40: ='Übersicht Schützen'!E25 -> 304.6 | G40: ='Übersicht Schützen'!F25 -> 302.8 | H40: ='Übersicht Schützen'!G25 -> 306.2 | I40: ='Übersicht Schützen'!H25 -> 299.0 | J40: ='Übersicht Schützen'!I25 -> 303.52 | K40: 1,821.1 | L40: ='Übersicht Schützen'!L25 -> 0.0 | M40: ='Übersicht Schützen'!M25 -> 0.0 | N40: ='Übersicht Schützen'!N25 -> 0.0 | O40: ='Übersicht Schützen'!O25 -> 0.0 | P40: ='Übersicht Schützen'!P25 -> 0.0 | Q40: ='Übersicht Schützen'!Q25 -> 0.0 | R40: ='Übersicht Schützen'!R25 -> 0.00 | S40: 0.0 | T40: ='Übersicht Schützen'!U25 -> 303.52 | U40: 1,821.1 | V40: -13.1
A41: 25 | B41: ='Übersicht Schützen'!A26 -> Mathis Antons | C41: ='Übersicht Schützen'!B26 -> Börgerwald II | D41: ='Übersicht Schützen'!C26 -> 314.1 | E41: ='Übersicht Schützen'!D26 -> 308.6 | F41: ='Übersicht Schützen'!E26 -> 310.9 | G41: ='Übersicht Schützen'!F26 -> 314.6 | H41: ='Übersicht Schützen'!G26 -> 310.8 | I41: ='Übersicht Schützen'!H26 -> 0.0 | J41: ='Übersicht Schützen'!I26 -> 311.80 | K41: 1,559.0 | L41: ='Übersicht Schützen'!L26 -> 0.0 | M41: ='Übersicht Schützen'!M26 -> 0.0 | N41: ='Übersicht Schützen'!N26 -> 0.0 | O41: ='Übersicht Schützen'!O26 -> 0.0 | P41: ='Übersicht Schützen'!P26 -> 0.0 | Q41: ='Übersicht Schützen'!Q26 -> 0.0 | R41: ='Übersicht Schützen'!R26 -> 0.00 | S41: 0.0 | T41: ='Übersicht Schützen'!U26 -> 311.80 | U41: 1,559.0 | V41: -262.1
A42: 26 | B42: ='Übersicht Schützen'!A27 -> Hermann Schwarte | C42: ='Übersicht Schützen'!B27 -> Börger II | D42: ='Übersicht Schützen'!C27 -> 305.8 | E42: ='Übersicht Schützen'!D27 -> 310.7 | F42: ='Übersicht Schützen'!E27 -> 304.4 | G42: ='Übersicht Schützen'!F27 -> 310.7 | H42: ='Übersicht Schützen'!G27 -> 302.1 | I42: ='Übersicht Schützen'!H27 -> 0.0 | J42: ='Übersicht Schützen'!I27 -> 306.74 | K42: 1,533.7 | L42: ='Übersicht Schützen'!L27 -> 0.0 | M42: ='Übersicht Schützen'!M27 -> 0.0 | N42: ='Übersicht Schützen'!N27 -> 0.0 | O42: ='Übersicht Schützen'!O27 -> 0.0 | P42: ='Übersicht Schützen'!P27 -> 0.0 | Q42: ='Übersicht Schützen'!Q27 -> 0.0 | R42: ='Übersicht Schützen'!R27 -> 0.00 | S42: 0.0 | T42: ='Übersicht Schützen'!U27 -> 306.74 | U42: 1,533.7 | V42: -25.3
A43: 27 | B43: ='Übersicht Schützen'!A28 -> Marc Eckmann | C43: ='Übersicht Schützen'!B28 -> Börger II | D43: ='Übersicht Schützen'!C28 -> 290.2 | E43: ='Übersicht Schützen'!D28 -> 303.8 | F43: ='Übersicht Schützen'!E28 -> 0.0 | G43: ='Übersicht Schützen'!F28 -> 304.4 | H43: ='Übersicht Schützen'!G28 -> 299.4 | I43: ='Übersicht Schützen'!H28 -> 304.5 | J43: ='Übersicht Schützen'!I28 -> 300.46 | K43: 1,502.3 | L43: ='Übersicht Schützen'!L28 -> 0.0 | M43: ='Übersicht Schützen'!M28 -> 0.0 | N43: ='Übersicht Schützen'!N28 -> 0.0 | O43: ='Übersicht Schützen'!O28 -> 0.0 | P43: ='Übersicht Schützen'!P28 -> 0.0 | Q43: ='Übersicht Schützen'!Q28 -> 0.0 | R43: ='Übersicht Schützen'!R28 -> 0.00 | S43: 0.0 | T43: ='Übersicht Schützen'!U28 -> 300.46 | U43: 1,502.3 | V43: -31.4
A44: 28 | B44: ='Übersicht Schützen'!A29 -> Toni Stahl | C44: ='Übersicht Schützen'!B29 -> Börgerwald II | D44: ='Übersicht Schützen'!C29 -> 296.7 | E44: ='Übersicht Schützen'!D29 -> 291.6 | F44: ='Übersicht Schützen'!E29 -> 277.7 | G44: ='Übersicht Schützen'!F29 -> 295.9 | H44: ='Übersicht Schützen'!G29 -> 0.0 | I44: ='Übersicht Schützen'!H29 -> 296.3 | J44: ='Übersicht Schützen'!I29 -> 291.64 | K44: 1,458.2 | L44: ='Übersicht Schützen'!L29 -> 0.0 | M44: ='Übersicht Schützen'!M29 -> 0.0 | N44: ='Übersicht Schützen'!N29 -> 0.0 | O44: ='Übersicht Schützen'!O29 -> 0.0 | P44: ='Übersicht Schützen'!P29 -> 0.0 | Q44: ='Übersicht Schützen'!Q29 -> 0.0 | R44: ='Übersicht Schützen'!R29 -> 0.00 | S44: 0.0 | T44: ='Übersicht Schützen'!U29 -> 291.64 | U44: 1,458.2 | V44: -44.1
A45: 29 | B45: ='Übersicht Schützen'!A30 -> Carsten Peters | C45: ='Übersicht Schützen'!B30 -> Neuvrees I | D45: ='Übersicht Schützen'!C30 -> 0.0 | E45: ='Übersicht Schützen'!D30 -> 307.9 | F45: ='Übersicht Schützen'!E30 -> 0.0 | G45: ='Übersicht Schützen'!F30 -> 308.3 | H45: ='Übersicht Schützen'!G30 -> 304.1 | I45: ='Übersicht Schützen'!H30 -> 299.1 | J45: ='Übersicht Schützen'!I30 -> 304.85 | K45: 1,219.4 | L45: ='Übersicht Schützen'!L30 -> 0.0 | M45: ='Übersicht Schützen'!M30 -> 0.0 | N45: ='Übersicht Schützen'!N30 -> 0.0 | O45: ='Übersicht Schützen'!O30 -> 0.0 | P45: ='Übersicht Schützen'!P30 -> 0.0 | Q45: ='Übersicht Schützen'!Q30 -> 0.0 | R45: ='Übersicht Schützen'!R30 -> 0.00 | S45: 0.0 | T45: ='Übersicht Schützen'!U30 -> 304.85 | U45: 1,219.4 | V45: 0.0
A46: 30 | B46: ='Übersicht Schützen'!A31 -> Tobias Sebers | C46: ='Übersicht Schützen'!B31 -> Börgerwald II | D46: ='Übersicht Schützen'!C31 -> 0.0 | E46: ='Übersicht Schützen'!D31 -> 300.8 | F46: ='Übersicht Schützen'!E31 -> 295.0 | G46: ='Übersicht Schützen'!F31 -> 0.0 | H46: ='Übersicht Schützen'!G31 -> 304.6 | I46: ='Übersicht Schützen'!H31 -> 298.6 | J46: ='Übersicht Schützen'!I31 -> 299.75 | K46: 1,199.0 | L46: ='Übersicht Schützen'!L31 -> 0.0 | M46: ='Übersicht Schützen'!M31 -> 0.0 | N46: ='Übersicht Schützen'!N31 -> 0.0 | O46: ='Übersicht Schützen'!O31 -> 0.0 | P46: ='Übersicht Schützen'!P31 -> 0.0 | Q46: ='Übersicht Schützen'!Q31 -> 0.0 | R46: ='Übersicht Schützen'!R31 -> 0.00 | S46: 0.0 | T46: ='Übersicht Schützen'!U31 -> 299.75 | U46: 1,199.0 | V46: -20.4
A47: 31 | B47: ='Übersicht Schützen'!A32 -> Christian Robben | C47: ='Übersicht Schützen'!B32 -> Börgerwald II | D47: ='Übersicht Schützen'!C32 -> 282.8 | E47: ='Übersicht Schützen'!D32 -> 0.0 | F47: ='Übersicht Schützen'!E32 -> 0.0 | G47: ='Übersicht Schützen'!F32 -> 296.8 | H47: ='Übersicht Schützen'!G32 -> 296.6 | I47: ='Übersicht Schützen'!H32 -> 301.6 | J47: ='Übersicht Schützen'!I32 -> 294.45 | K47: 1,177.8 | L47: ='Übersicht Schützen'!L32 -> 0.0 | M47: ='Übersicht Schützen'!M32 -> 0.0 | N47: ='Übersicht Schützen'!N32 -> 0.0 | O47: ='Übersicht Schützen'!O32 -> 0.0 | P47: ='Übersicht Schützen'!P32 -> 0.0 | Q47: ='Übersicht Schützen'!Q32 -> 0.0 | R47: ='Übersicht Schützen'!R32 -> 0.00 | S47: 0.0 | T47: ='Übersicht Schützen'!U32 -> 294.45 | U47: 1,177.8 | V47: =(U46-U47)*-1 -> -21.2
A48: 32 | B48: ='Übersicht Schützen'!A33 -> Hans Preuth | C48: ='Übersicht Schützen'!B33 -> Neuvrees II | D48: ='Übersicht Schützen'!C33 -> 307.6 | E48: ='Übersicht Schützen'!D33 -> 308.1 | F48: ='Übersicht Schützen'!E33 -> 0.0 | G48: ='Übersicht Schützen'!F33 -> 0.0 | H48: ='Übersicht Schützen'!G33 -> 0.0 | I48: ='Übersicht Schützen'!H33 -> 0.0 | J48: ='Übersicht Schützen'!I33 -> 307.85 | K48: 615.7 | L48: ='Übersicht Schützen'!L33 -> 0.0 | M48: ='Übersicht Schützen'!M33 -> 0.0 | N48: ='Übersicht Schützen'!N33 -> 0.0 | O48: ='Übersicht Schützen'!O33 -> 0.0 | P48: ='Übersicht Schützen'!P33 -> 0.0 | Q48: ='Übersicht Schützen'!Q33 -> 0.0 | R48: ='Übersicht Schützen'!R33 -> 0.00 | S48: 0.0 | T48: ='Übersicht Schützen'!U33 -> 307.85 | U48: 615.7 | V48: -562.1
A49: 33 | B49: ='Übersicht Schützen'!A34 -> Dietmar Spekker | C49: ='Übersicht Schützen'!B34 -> Neuvrees I | D49: ='Übersicht Schützen'!C34 -> 0.0 | E49: ='Übersicht Schützen'!D34 -> 0.0 | F49: ='Übersicht Schützen'!E34 -> 293.4 | G49: ='Übersicht Schützen'!F34 -> 300.4 | H49: ='Übersicht Schützen'!G34 -> 0.0 | I49: ='Übersicht Schützen'!H34 -> 0.0 | J49: ='Übersicht Schützen'!I34 -> 296.90 | K49: 593.8 | L49: ='Übersicht Schützen'!L34 -> 0.0 | M49: ='Übersicht Schützen'!M34 -> 0.0 | N49: ='Übersicht Schützen'!N34 -> 0.0 | O49: ='Übersicht Schützen'!O34 -> 0.0 | P49: ='Übersicht Schützen'!P34 -> 0.0 | Q49: ='Übersicht Schützen'!Q34 -> 0.0 | R49: ='Übersicht Schützen'!R34 -> 0.00 | S49: 0.0 | T49: ='Übersicht Schützen'!U34 -> 296.90 | U49: 593.8 | V49: -21.9
A50: 34 | B50: ='Übersicht Schützen'!A35 -> Martin Hinrichs | C50: ='Übersicht Schützen'!B35 -> Börgerwald II | D50: ='Übersicht Schützen'!C35 -> 270.5 | E50: ='Übersicht Schützen'!D35 -> 0.0 | F50: ='Übersicht Schützen'!E35 -> 0.0 | G50: ='Übersicht Schützen'!F35 -> 0.0 | H50: ='Übersicht Schützen'!G35 -> 0.0 | I50: ='Übersicht Schützen'!H35 -> 0.0 | J50: ='Übersicht Schützen'!I35 -> 270.50 | K50: 270.5 | L50: ='Übersicht Schützen'!L35 -> 0.0 | M50: ='Übersicht Schützen'!M35 -> 0.0 | N50: ='Übersicht Schützen'!N35 -> 0.0 | O50: ='Übersicht Schützen'!O35 -> 0.0 | P50: ='Übersicht Schützen'!P35 -> 0.0 | Q50: ='Übersicht Schützen'!Q35 -> 0.0 | R50: ='Übersicht Schützen'!R35 -> 0.00 | S50: 0.0 | T50: ='Übersicht Schützen'!U35 -> 270.50 | U50: 270.5 | V50: -323.3
A51: 35 | B51: ='Übersicht Schützen'!A36 -> Schütze 24 | C51: ='Übersicht Schützen'!B36 -> Börger II | D51: ='Übersicht Schützen'!C36 -> 0.0 | E51: ='Übersicht Schützen'!D36 -> 0.0 | F51: ='Übersicht Schützen'!E36 -> 0.0 | G51: ='Übersicht Schützen'!F36 -> 0.0 | H51: ='Übersicht Schützen'!G36 -> 0.0 | I51: ='Übersicht Schützen'!H36 -> 0.0 | J51: ='Übersicht Schützen'!I36 -> 0.00 | K51: 0.0 | L51: ='Übersicht Schützen'!L36 -> 0.0 | M51: ='Übersicht Schützen'!M36 -> 0.0 | N51: ='Übersicht Schützen'!N36 -> 0.0 | O51: ='Übersicht Schützen'!O36 -> 0.0 | P51: ='Übersicht Schützen'!P36 -> 0.0 | Q51: ='Übersicht Schützen'!Q36 -> 0.0 | R51: ='Übersicht Schützen'!R36 -> 0.00 | S51: 0.0 | T51: ='Übersicht Schützen'!U36 -> 0.00 | U51: 0.0 | V51: =(U50-U51)*-1 -> -270.5
A52: 36 | B52: ='Übersicht Schützen'!A37 -> Schütze 29 | C52: ='Übersicht Schützen'!B37 -> Lahn IV | D52: ='Übersicht Schützen'!C37 -> 0.0 | E52: ='Übersicht Schützen'!D37 -> 0.0 | F52: ='Übersicht Schützen'!E37 -> 0.0 | G52: ='Übersicht Schützen'!F37 -> 0.0 | H52: ='Übersicht Schützen'!G37 -> 0.0 | I52: ='Übersicht Schützen'!H37 -> 0.0 | J52: ='Übersicht Schützen'!I37 -> 0.00 | K52: 0.0 | L52: ='Übersicht Schützen'!L37 -> 0.0 | M52: ='Übersicht Schützen'!M37 -> 0.0 | N52: ='Übersicht Schützen'!N37 -> 0.0 | O52: ='Übersicht Schützen'!O37 -> 0.0 | P52: ='Übersicht Schützen'!P37 -> 0.0 | Q52: ='Übersicht Schützen'!Q37 -> 0.0 | R52: ='Übersicht Schützen'!R37 -> 0.00 | S52: 0.0 | T52: ='Übersicht Schützen'!U37 -> 0.00 | U52: 0.0 | V52: 0.0
C54: Schnitt: | D54: =IF(Formelhilfe!B45 > 0, SUM(D17:D52)/Formelhilfe!B45, 0) -> 305.8 | E54: =IF(Formelhilfe!C45 > 0, SUM(E17:E52)/Formelhilfe!C45, 0) -> 308.2 | F54: =IF(Formelhilfe!D45 > 0, SUM(F17:F52)/Formelhilfe!D45, 0) -> 307.0 | G54: =IF(Formelhilfe!E45 > 0, SUM(G17:G52)/Formelhilfe!E45, 0) -> 308.6 | H54: =IF(Formelhilfe!F45 > 0, SUM(H17:H52)/Formelhilfe!F45, 0) -> 308.7 | I54: =IF(Formelhilfe!G45 > 0, SUM(I17:I52)/Formelhilfe!G45, 0) -> 307.1 | J54: =IF(SUM(J17:J52)<>0,AVERAGEIF(J17:J52,"<>0"),0) -> 306.14 | K54: =IF(SUM(K17:K52)<>0,AVERAGEIF(K17:K52,"<>0"),0) -> 1637.39 | L54: =IF(Formelhilfe!I45 > 0, SUM(L17:L52)/Formelhilfe!I45, 0) -> 0.0 | M54: =IF(Formelhilfe!J45 > 0, SUM(M17:M52)/Formelhilfe!J45, 0) -> 0.0 | N54: =IF(Formelhilfe!K45 > 0, SUM(N17:N52)/Formelhilfe!K45, 0) -> 0.0 | O54: =IF(Formelhilfe!L45 > 0, SUM(O17:O52)/Formelhilfe!L45, 0) -> 0.0 | P54: =IF(Formelhilfe!M45 > 0, SUM(P17:P52)/Formelhilfe!M45, 0) -> 0.0 | Q54: =IF(Formelhilfe!N45 > 0, SUM(Q17:Q52)/Formelhilfe!N45, 0) -> 0.0 | R54: =IF(SUM(R17:R52)<>0,AVERAGEIF(R17:R52,"<>0"),0) -> 0.00 | S54: =IF(SUM(S17:S52)<>0,AVERAGEIF(S17:S52,"<>0"),0) -> 0.00 | T54: 306.14 | U54: =(K54+S54) -> 1,637.39

Sheet Wettkampf 1
B1: Verein / Gruppe | D1: Ergebnisse | X1: Austragungsort: | Y1: =Übersicht!D4 -> Börgerwald
A2: 1 | B2: Börgerwald II | D2: =G46 -> 932.9 | E2: =IF(H46>4,"Es sind zu viele Schützen in Wertung!"," ") ->  | X2: Wettkampftag: | Y2: =Übersicht!D3 -> 03.09.
A3: 2 | B3: Neuvrees II | D3: =I46 -> 932.5 | E3: =IF(J46>4,"Es sind zu viele Schützen in Wertung!"," ") -> 
A4: 3 | B4: Börger III | D4: =K46 -> 923.6 | E4: =IF(L46>4,"Es sind zu viele Schützen in Wertung!"," ") ->  | Z4: Ansprechpartner für Rückfragen:
A5: 4 | B5: Börger II | D5: =M46 -> 934.4 | E5: =IF(N46>4,"Es sind zu viele Schützen in Wertung!"," ") -> Es sind zu viele Schützen in Wertung! | X5: Name: | Y5: Horst Sabel
A6: 5 | B6: Lahn IV | D6: =O46 -> 929.5 | E6: =IF(P46>4,"Es sind zu viele Schützen in Wertung!"," ") -> Es sind zu viele Schützen in Wertung! | X6: Tel: | Y6: 04965-1697
A7: 6 | B7: Neuvrees I | D7: =Q46 -> 933.2 | E7: =IF(R46>4,"Es sind zu viele Schützen in Wertung!"," ") -> Es sind zu viele Schützen in Wertung! | X7: Standaufsicht: | Y7: Horst Sabel
B9: Einzelergebnisse: | C9: Verein/Gruppe (per Dropdown-Feld einzutragen) | D9: Ergebnisse | E9: AW? Dann x eintippen | G9: Verein 1 | I9: Verein 2 | K9: Verein 3 | M9: Verein 4 | O9: Verein 5 | Q9: Verein 6 | U9: Geburtsdatum | W9: Proberechnung bei Streifen:
A10: 1 | B10: Andre Hanenkamp | C10: =B2 -> Börgerwald II | D10: 306.5 | F10: =IF(E10="x","0",D10) -> 306.5 | G10: =IF(C10=$B$2,F10,0) -> 306.5 | H10: =(IF(AND($E10="",$C10=$B$2),1,0)) -> 1 | I10: =IF($C10=$B$3,F10,0) -> 0 | J10: =(IF(AND($E10="",$C10=$B$3),1,0)) -> 0 | K10: =IF($C10=$B$4,F10,0) -> 0 | L10: =(IF(AND($E10="",$C10=$B$4),1,0)) -> 0 | M10: =IF($C10=$B$5,F10,0) -> 0 | N10: =(IF(AND($E10="",$C10=$B$5),1,0)) -> 0 | O10: =IF($C10=$B$6,F10,0) -> 0 | P10: =(IF(AND($E10="",$C10=$B$6),1,0)) -> 0 | Q10: =IF($C10=$B$7,F10,0) -> 0 | R10: =(IF(AND($E10="",$C10=$B$7),1,0)) -> 0 | W10: 102.2 | X10: 102.8 | Y10: 101.5 | Z10: =W10+X10+Y10 -> 306.5 | AA10: =IF(Z10=D10,1,0) -> 1 | AB10: =IF(Z10=0,0,1) -> 1 | AC10: =IF(AA10+AB10=2,"Korrekt","") -> Korrekt
A11: 2 | B11: Horst Sabel | C11: =B2 -> Börgerwald II | D11: 311.8 | F11: =IF(E11="x","0",D11) -> 311.8 | G11: =IF(C11=$B$2,F11,0) -> 311.8 | H11: =(IF(AND($E11="",$C11=$B$2),1,0)) -> 1 | I11: =IF($C11=$B$3,F11,0) -> 0 | J11: =(IF(AND($E11="",$C11=$B$3),1,0)) -> 0 | K11: =IF($C11=$B$4,F11,0) -> 0 | L11: =(IF(AND($E11="",$C11=$B$4),1,0)) -> 0 | M11: =IF($C11=$B$5,F11,0) -> 0 | N11: =(IF(AND($E11="",$C11=$B$5),1,0)) -> 0 | O11: =IF($C11=$B$6,F11,0) -> 0 | P11: =(IF(AND($E11="",$C11=$B$6),1,0)) -> 0 | Q11: =IF($C11=$B$7,F11,0) -> 0 | R11: =(IF(AND($E11="",$C11=$B$7),1,0)) -> 0 | W11: 103.5 | X11: 102.4 | Y11: 105.9 | Z11: =W11+X11+Y11 -> 311.8 | AA11: =IF(Z11=D11,1,0) -> 1 | AB11: =IF(Z11=0,0,1) -> 1 | AC11: =IF(AA11+AB11=2,"Korrekt","") -> Korrekt
A12: 3 | B12: Christian Robben | C12: =B2 -> Börgerwald II | D12: 282.8 | E12: x | F12: 0 | G12: 0 | H12: 0 | I12: 0 | J12: 0 | K12: 0 | L12: 0 | M12: 0 | N12: 0 | O12: 0 | P12: 0 | Q12: 0 | R12: 0 | W12: 94.9 | X12: 91.6 | Y12: 96.3 | Z12: 282.8 | AA12: 1 | AB12: 1 | AC12: Korrekt
A13: 4 | B13: Mathis Antons | C13: =B2 -> Börgerwald II | D13: 314.1 | F13: 314.1 | G13: 314.1 | H13: 1 | I13: 0 | J13: 0 | K13: 0 | L13: 0 | M13: 0 | N13: 0 | O13: 0 | P13: 0 | Q13: 0 | R13: 0 | W13: 103.9 | X13: 106.2 | Y13: 104.0 | Z13: 314.1 | AA13: 1 | AB13: 1 | AC13: Korrekt
A14: 5 | B14: Tobias Sebers | C14: =B2 -> Börgerwald II | E14: x | F14: 0 | G14: 0 | H14: 0 | I14: 0 | J14: 0 | K14: 0 | L14: 0 | M14: 0 | N14: 0 | O14: 0 | P14: 0 | Q14: 0 | R14: 0 | W14: 0.0 | X14: 0.0 | Y14: 0.0 | Z14: 0.0 | AA14: 1 | AB14: 0
A15: 6 | B15: Friedhelm Schroer | C15: =B2 -> Börgerwald II | D15: 307.0 | F15: 307 | G15: 307 | H15: 1 | I15: 0 | J15: 0 | K15: 0 | L15: 0 | M15: 0 | N15: 0 | O15: 0 | P15: 0 | Q15: 0 | R15: 0 | W15: 99.9 | X15: 104.0 | Y15: 103.1 | Z15: 307.0 | AA15: 1 | AB15: 1 | AC15: Korrekt
A16: 7 | B16: Toni Stahl | C16: Börgerwald II | D16: 296.7 | E16: x | F16: 0 | G16: 0 | H16: 0 | I16: 0 | J16: 0 | K16: 0 | L16: 0 | M16: 0 | N16: 0 | O16: 0 | P16: 0 | Q16: 0 | R16: 0 | W16: 96.7 | X16: 100.1 | Y16: 99.9 | Z16: 296.7 | AA16: 1 | AB16: 1 | AC16: Korrekt
A17: 8 | B17: Martin Hinrichs | C17: Börgerwald II | D17: 270.5 | E17: x | F17: 0 | G17: 0 | H17: 0 | I17: 0 | J17: 0 | K17: 0 | L17: 0 | M17: 0 | N17: 0 | O17: 0 | P17: 0 | Q17: 0 | R17: 0 | W17: 90.4 | X17: 90.6 | Y17: 89.5 | Z17: 270.5 | AA17: 1 | AB17: 1 | AC17: Korrekt
A18: 9 | B18: Dirk Thunert | C18: =B3 -> Neuvrees II | D18: 310.0 | F18: 310 | G18: 0 | H18: 0 | I18: 310 | J18: 1 | K18: 0 | L18: 0 | M18: 0 | N18: 0 | O18: 0 | P18: 0 | Q18: 0 | R18: 0 | W18: 104.2 | X18: 101.4 | Y18: 104.4 | Z18: 310.0 | AA18: 1 | AB18: 1 | AC18: Korrekt
A19: 10 | B19: Hans Preuth | C19: =B3 -> Neuvrees II | D19: 307.6 | E19: x | F19: 0 | G19: 0 | H19: 0 | I19: 0 | J19: 0 | K19: 0 | L19: 0 | M19: 0 | N19: 0 | O19: 0 | P19: 0 | Q19: 0 | R19: 0 | W19: 102.9 | X19: 100.9 | Y19: 103.8 | Z19: 307.6 | AA19: 1 | AB19: 1 | AC19: Korrekt
A20: 11 | B20: Karl-Heinz Schrand | C20: =B3 -> Neuvrees II | D20: 307.5 | F20: 307.5 | G20: 0 | H20: 0 | I20: 307.5 | J20: 1 | K20: 0 | L20: 0 | M20: 0 | N20: 0 | O20: 0 | P20: 0 | Q20: 0 | R20: 0 | W20: 99.4 | X20: 104.7 | Y20: 103.4 | Z20: 307.5 | AA20: 1 | AB20: 1 | AC20: Korrekt
A21: 12 | B21: Holger Szczepanski | C21: =B3 -> Neuvrees II | D21: 303.2 | F21: 303.2 | G21: 0 | H21: 0 | I21: 303.2 | J21: 1 | K21: 0 | L21: 0 | M21: 0 | N21: 0 | O21: 0 | P21: 0 | Q21: 0 | R21: 0 | W21: 101.0 | X21: 102.4 | Y21: 99.8 | Z21: 303.2 | AA21: 1 | AB21: 1 | AC21: Korrekt
A22: 13 | B22: Bernd Witting | C22: Neuvrees II | D22: 315.0 | F22: 315 | G22: 0 | H22: 0 | I22: 315 | J22: 1 | K22: 0 | L22: 0 | M22: 0 | N22: 0 | O22: 0 | P22: 0 | Q22: 0 | R22: 0 | W22: 103.8 | X22: 105.4 | Y22: 105.8 | Z22: 315.0 | AA22: 1 | AB22: 1 | AC22: Korrekt
A23: 14 | B23: Hermann Schwarte | C23: Börger II | D23: 305.8 | F23: 305.8 | G23: 0 | H23: 0 | I23: 0 | J23: 0 | K23: 0 | L23: 0 | M23: 305.8 | N23: 1 | O23: 0 | P23: 0 | Q23: 0 | R23: 0 | W23: 103.8 | X23: 100.9 | Y23: 101.1 | Z23: 305.8 | AA23: 1 | AB23: 1 | AC23: Korrekt
A24: 15 | B24: Bernd Rode | C24: =B4 -> Börger III | D24: 304.2 | F24: 304.2 | G24: 0 | H24: 0 | I24: 0 | J24: 0 | K24: 304.2 | L24: 1 | M24: 0 | N24: 0 | O24: 0 | P24: 0 | Q24: 0 | R24: 0 | W24: 99.9 | X24: 101.3 | Y24: 103.0 | Z24: 304.2 | AA24: 1 | AB24: 1 | AC24: Korrekt
A25: 16 | B25: Daniel Sebers | C25: =B4 -> Börger III | D25: 303.3 | F25: 303.3 | G25: 0 | H25: 0 | I25: 0 | J25: 0 | K25: 303.3 | L25: 1 | M25: 0 | N25: 0 | O25: 0 | P25: 0 | Q25: 0 | R25: 0 | W25: 98.3 | X25: 102.5 | Y25: 102.5 | Z25: 303.3 | AA25: 1 | AB25: 1 | AC25: Korrekt
A26: 17 | B26: Simon Schutenbrock | C26: =B4 -> Börger III | D26: 313.8 | F26: 313.8 | G26: 0 | H26: 0 | I26: 0 | J26: 0 | K26: 313.8 | L26: 1 | M26: 0 | N26: 0 | O26: 0 | P26: 0 | Q26: 0 | R26: 0 | W26: 105.0 | X26: 104.5 | Y26: 104.3 | Z26: 313.8 | AA26: 1 | AB26: 1 | AC26: Korrekt
A27: 18 | B27: Jürgen Schroer | C27: =B4 -> Börger III | D27: 307.2 | E27: x | F27: 0 | G27: 0 | H27: 0 | I27: 0 | J27: 0 | K27: 0 | L27: 0 | M27: 0 | N27: 0 | O27: 0 | P27: 0 | Q27: 0 | R27: 0 | W27: 100.8 | X27: 101.7 | Y27: 104.7 | Z27: 307.2 | AA27: 1 | AB27: 1 | AC27: Korrekt
A28: 19 | B28: Marc Eckmann | C28: =B5 -> Börger II | D28: 290.2 | E28: x | F28: 0 | G28: 0 | H28: 0 | I28: 0 | J28: 0 | K28: 0 | L28: 0 | M28: 0 | N28: 0 | O28: 0 | P28: 0 | Q28: 0 | R28: 0 | W28: 101.1 | X28: 97.9 | Y28: 91.2 | Z28: 290.2 | AA28: 1 | AB28: 1 | AC28: Korrekt
A29: 20 | B29: Markus Jungsthöfel | C29: =B5 -> Börger II | D29: 312.5 | F29: 312.5 | G29: 0 | H29: 0 | I29: 0 | J29: 0 | K29: 0 | L29: 0 | M29: 312.5 | N29: 1 | O29: 0 | P29: 0 | Q29: 0 | R29: 0 | W29: 103.0 | X29: 104.1 | Y29: 105.4 | Z29: 312.5 | AA29: 1 | AB29: 1 | AC29: Korrekt
A30: 21 | B30: Jens Henzen | C30: Börger III | D30: 305.6 | F30: 305.6 | G30: 0 | H30: 0 | I30: 0 | J30: 0 | K30: 305.6 | L30: 1 | M30: 0 | N30: 0 | O30: 0 | P30: 0 | Q30: 0 | R30: 0 | W30: 101.5 | X30: 100.3 | Y30: 103.8 | Z30: 305.6 | AA30: 1 | AB30: 1 | AC30: Korrekt
A31: 22 | B31: Uwe Goldenstein | C31: =B5 -> Börger II | D31: 304.5 | F31: 304.5 | G31: 0 | H31: 0 | I31: 0 | J31: 0 | K31: 0 | L31: 0 | M31: 304.5 | N31: 1 | O31: 0 | P31: 0 | Q31: 0 | R31: 0 | W31: 102.3 | X31: 101.1 | Y31: 101.1 | Z31: 304.5 | AA31: 1 | AB31: 1 | AC31: Korrekt
A32: 23 | B32: Ingo Zdralik | C32: =B5 -> Börger II | D32: 316.1 | F32: 316.1 | G32: 0 | H32: 0 | I32: 0 | J32: 0 | K32: 0 | L32: 0 | M32: 316.1 | N32: 1 | O32: 0 | P32: 0 | Q32: 0 | R32: 0 | W32: 104.8 | X32: 104.7 | Y32: 106.6 | Z32: 316.1 | AA32: 1 | AB32: 1 | AC32: Korrekt
A33: 24 | B33: Schütze 24 | C33: =B5 -> Börger II | F33: 0 | G33: 0 | H33: 0 | I33: 0 | J33: 0 | K33: 0 | L33: 0 | M33: 0 | N33: 1 | O33: 0 | P33: 0 | Q33: 0 | R33: 0 | Z33: 0.0 | AA33: 1 | AB33: 0
A34: 25 | B34: Oliver Reinelt | C34: =B6 -> Lahn IV | D34: 302.3 | F34: 302.3 | G34: 0 | H34: 0 | I34: 0 | J34: 0 | K34: 0 | L34: 0 | M34: 0 | N34: 0 | O34: 302.3 | P34: 1 | Q34: 0 | R34: 0 | W34: 100.6 | X34: 100.4 | Y34: 101.3 | Z34: 302.3 | AA34: 1 | AB34: 1 | AC34: Korrekt
A35: 26 | B35: Vitalij Schmidt | C35: =B6 -> Lahn IV | D35: 308.8 | F35: 308.8 | G35: 0 | H35: 0 | I35: 0 | J35: 0 | K35: 0 | L35: 0 | M35: 0 | N35: 0 | O35: 308.8 | P35: 1 | Q35: 0 | R35: 0 | W35: 103.9 | X35: 101.0 | Y35: 103.9 | Z35: 308.8 | AA35: 1 | AB35: 1 | AC35: Korrekt
A36: 27 | B36: Hermann Benten | C36: =B6 -> Lahn IV | D36: 307.6 | F36: 307.6 | G36: 0 | H36: 0 | I36: 0 | J36: 0 | K36: 0 | L36: 0 | M36: 0 | N36: 0 | O36: 307.6 | P36: 1 | Q36: 0 | R36: 0 | W36: 103.1 | X36: 100.5 | Y36: 104.0 | Z36: 307.6 | AA36: 1 | AB36: 1 | AC36: Korrekt
A37: 28 | B37: Johannes Thesing | C37: =B6 -> Lahn IV | D37: 313.1 | F37: 313.1 | G37: 0 | H37: 0 | I37: 0 | J37: 0 | K37: 0 | L37: 0 | M37: 0 | N37: 0 | O37: 313.1 | P37: 1 | Q37: 0 | R37: 0 | W37: 104.8 | X37: 103.9 | Y37: 104.4 | Z37: 313.1 | AA37: 1 | AB37: 1 | AC37: Korrekt
A38: 29 | B38: Schütze 29 | C38: =B6 -> Lahn IV | F38: 0 | G38: 0 | H38: 0 | I38: 0 | J38: 0 | K38: 0 | L38: 0 | M38: 0 | N38: 0 | O38: 0 | P38: 1 | Q38: 0 | R38: 0 | Z38: 0.0 | AA38: 1 | AB38: 0
A39: 30 | B39: Willi Rolfes | C39: Neuvrees I | D39: 310.7 | F39: 310.7 | G39: 0 | H39: 0 | I39: 0 | J39: 0 | K39: 0 | L39: 0 | M39: 0 | N39: 0 | O39: 0 | P39: 0 | Q39: 310.7 | R39: 1 | W39: 104.2 | X39: 102.3 | Y39: 104.2 | Z39: 310.7 | AA39: 1 | AB39: 1 | AC39: Korrekt
A40: 31 | B40: Werner Thyen | C40: =B7 -> Neuvrees I | D40: 311.2 | F40: 311.2 | G40: 0 | H40: 0 | I40: 0 | J40: 0 | K40: 0 | L40: 0 | M40: 0 | N40: 0 | O40: 0 | P40: 0 | Q40: 311.2 | R40: 1 | W40: 104.2 | X40: 103.8 | Y40: 103.2 | Z40: =W40+X40+Y40 -> 311.2 | AA40: =IF(Z40=D40,1,0) -> 1 | AB40: =IF(Z40=0,0,1) -> 1 | AC40: =IF(AA40+AB40=2,"Korrekt","") -> Korrekt
A41: 32 | B41: Wilfried Breyer | C41: =B7 -> Neuvrees I | D41: 311.3 | F41: 311.3 | G41: 0 | H41: 0 | I41: 0 | J41: 0 | K41: 0 | L41: 0 | M41: 0 | N41: 0 | O41: 0 | P41: 0 | Q41: 311.3 | R41: 1 | W41: 102.8 | X41: 104.8 | Y41: 103.7 | Z41: 311.3 | AA41: 1 | AB41: 1 | AC41: Korrekt
A42: 33 | B42: Klaus Steenken | C42: =B7 -> Neuvrees I | D42: 308.9 | E42: x | F42: 0 | G42: 0 | H42: 0 | I42: 0 | J42: 0 | K42: 0 | L42: 0 | M42: 0 | N42: 0 | O42: 0 | P42: 0 | Q42: 0 | R42: 0 | W42: 103.7 | X42: 102.4 | Y42: 102.8 | Z42: 308.9 | AA42: 1 | AB42: 1 | AC42: Korrekt
A43: 34 | B43: Markus Janßen | C43: =B7 -> Neuvrees I | D43: 310.0 | F43: 310 | G43: 0 | H43: 0 | I43: 0 | J43: 0 | K43: 0 | L43: 0 | M43: 0 | N43: 0 | O43: 0 | P43: 0 | Q43: 310 | R43: 1 | W43: 103.6 | X43: 103.6 | Y43: 102.8 | Z43: 310.0 | AA43: 1 | AB43: 1 | AC43: Korrekt
A44: 35 | B44: Carsten Peters | C44: =B7 -> Neuvrees I | F44: 0 | G44: 0 | H44: 0 | I44: 0 | J44: 0 | K44: 0 | L44: 0 | M44: 0 | N44: 0 | O44: 0 | P44: 0 | Q44: 0 | R44: 1 | Z44: 0.0 | AA44: 1 | AB44: 0
A45: 36 | B45: Dietmar Spekker | C45: =B7 -> Neuvrees I | F45: 0 | G45: 0 | H45: 0 | I45: 0 | J45: 0 | K45: 0 | L45: 0 | M45: 0 | N45: 0 | O45: 0 | P45: 0 | Q45: 0 | R45: 1 | Z45: =W45+X45+Y45 -> 0.0 | AA45: =IF(Z45=D45,1,0) -> 1 | AB45: =IF(Z45=0,0,1) -> 0 | AC45: =IF(AA45+AB45=2,"Korrekt","") -> 
G46: =LARGE(G10:G45,1)+LARGE(G10:G45,2)+LARGE(G10:G45,3) -> 932.9 | H46: =SUM(H10:H45) -> 4 | I46: =LARGE(I10:I45,1)+LARGE(I10:I45,2)+LARGE(I10:I45,3) -> 932.5 | J46: =SUM(J10:J45) -> 4 | K46: =LARGE(K10:K45,1)+LARGE(K10:K45,2)+LARGE(K10:K45,3) -> 923.6 | L46: =SUM(L10:L45) -> 4 | M46: =LARGE(M10:M45,1)+LARGE(M10:M45,2)+LARGE(M10:M45,3) -> 934.4 | N46: =SUM(N10:N45) -> 5 | O46: =LARGE(O10:O45,1)+LARGE(O10:O45,2)+LARGE(O10:O45,3) -> 929.5 | P46: =SUM(P10:P45) -> 5 | Q46: =LARGE(Q10:Q45,1)+LARGE(Q10:Q45,2)+LARGE(Q10:Q45,3) -> 933.2 | R46: =SUM(R10:S45) -> 6
C47: per Email an: sk-huemmling@gmx.de

Sheet 2
B1: Verein / Gruppe | D1: Ergebnisse | V1: Austragungsort: | W1: =Übersicht!E4 -> Neuvrees
A2: 1 | B2: ='Wettkampf 1'!B2 -> Börgerwald II | D2: =G46 -> 935.1 | E2: =IF(H46>4,"Es sind zu viele Schützen in Wertung!"," ") ->  | V2: Wettkampftag: | W2: =Übersicht!E3 -> 17.09.
A3: 2 | B3: ='Wettkampf 1'!B3 -> Neuvrees II | D3: =I46 -> 931.4 | E3: =IF(J46>4,"Es sind zu viele Schützen in Wertung!"," ") -> 
A4: 3 | B4: ='Wettkampf 1'!B4 -> Börger III | D4: =K46 -> 926.3 | E4: =IF(L46>4,"Es sind zu viele Schützen in Wertung!"," ") ->  | X4: Ansprechpartner für Rückfragen:
A5: 4 | B5: ='Wettkampf 1'!B5 -> Börger II | D5: =M46 -> 934.2 | E5: =IF(N46>4,"Es sind zu viele Schützen in Wertung!"," ") ->  | V5: Name: | W5: Dirk Thunert
A6: 5 | B6: ='Wettkampf 1'!B6 -> Lahn IV | D6: =O46 -> 935.3 | E6: =IF(P46>4,"Es sind zu viele Schützen in Wertung!"," ") ->  | V6: Tel: | W6: 04493-998686
A7: 6 | B7: ='Wettkampf 1'!B7 -> Neuvrees I | D7: =Q46 -> 929.1 | E7: =IF(R46>4,"Es sind zu viele Schützen in Wertung!"," ") ->  | V7: Standaufsicht: | W7: Dirk Thunert
B9: Einzelergebnisse: | C9: Verein / Gruppe | D9: Ergebnisse (mindestens 0 eintragen) | E9: AW? Dann x eintippen | G9: Verein 1 | I9: Verein 2 | K9: Verein 3 | M9: Verein 4 | O9: Verein 5 | Q9: Verein 6 | U9: Proberechnung bei Streifen:
A10: 1 | B10: ='Wettkampf 1'!B10 -> Andre Hanenkamp | C10: ='Wettkampf 1'!C10 -> Börgerwald II | D10: 311.8 | F10: =IF(E10="x","0",D10) -> 311.8 | G10: =IF(C10=$B$2,F10,0) -> 311.8 | H10: =(IF(AND($E10="",$C10=$B$2),1,0)) -> 1 | I10: =IF($C10=$B$3,F10,0) -> 0 | J10: =(IF(AND($E10="",$C10=$B$3),1,0)) -> 0 | K10: =IF($C10=$B$4,F10,0) -> 0 | L10: =(IF(AND($E10="",$C10=$B$4),1,0)) -> 0 | M10: =IF($C10=$B$5,F10,0) -> 0 | N10: =(IF(AND($E10="",$C10=$B$5),1,0)) -> 0 | O10: =IF($C10=$B$6,F10,0) -> 0 | P10: =(IF(AND($E10="",$C10=$B$6),1,0)) -> 0 | Q10: =IF($C10=$B$7,F10,0) -> 0 | R10: =(IF(AND($E10="",$C10=$B$7),1,0)) -> 0 | U10: 103.6 | V10: 104.0 | W10: 104.2 | X10: =U10+V10+W10 -> 311.8 | Y10: =IF(X10=D10,1,0) -> 1 | Z10: =IF(X10=0,0,1) -> 1 | AA10: =IF(Y10+Z10=2,"Korrekt","") -> Korrekt
A11: 2 | B11: ='Wettkampf 1'!B11 -> Horst Sabel | C11: ='Wettkampf 1'!C11 -> Börgerwald II | D11: 314.7 | F11: =IF(E11="x","0",D11) -> 314.7 | G11: =IF(C11=$B$2,F11,0) -> 314.7 | H11: =(IF(AND($E11="",$C11=$B$2),1,0)) -> 1 | I11: =IF($C11=$B$3,F11,0) -> 0 | J11: =(IF(AND($E11="",$C11=$B$3),1,0)) -> 0 | K11: =IF($C11=$B$4,F11,0) -> 0 | L11: =(IF(AND($E11="",$C11=$B$4),1,0)) -> 0 | M11: =IF($C11=$B$5,F11,0) -> 0 | N11: =(IF(AND($E11="",$C11=$B$5),1,0)) -> 0 | O11: =IF($C11=$B$6,F11,0) -> 0 | P11: =(IF(AND($E11="",$C11=$B$6),1,0)) -> 0 | Q11: =IF($C11=$B$7,F11,0) -> 0 | R11: =(IF(AND($E11="",$C11=$B$7),1,0)) -> 0 | U11: 104.0 | V11: 105.1 | W11: 105.6 | X11: =U11+V11+W11 -> 314.7 | Y11: =IF(X11=D11,1,0) -> 1 | Z11: =IF(X11=0,0,1) -> 1 | AA11: =IF(Y11+Z11=2,"Korrekt","") -> Korrekt
A12: 3 | B12: ='Wettkampf 1'!B12 -> Christian Robben | C12: ='Wettkampf 1'!C12 -> Börgerwald II | D12: 0.0 | E12: x | F12: 0 | G12: 0 | H12: 0 | I12: 0 | J12: 0 | K12: 0 | L12: 0 | M12: 0 | N12: 0 | O12: 0 | P12: 0 | Q12: 0 | R12: 0 | U12: 0.0 | V12: 0.0 | W12: 0.0 | X12: 0.0 | Y12: 1 | Z12: 0
A13: 4 | B13: ='Wettkampf 1'!B13 -> Mathis Antons | C13: ='Wettkampf 1'!C13 -> Börgerwald II | D13: 308.6 | F13: 308.6 | G13: 308.6 | H13: 1 | I13: 0 | J13: 0 | K13: 0 | L13: 0 | M13: 0 | N13: 0 | O13: 0 | P13: 0 | Q13: 0 | R13: 0 | U13: 104.6 | V13: 103.5 | W13: 100.5 | X13: 308.6 | Y13: 1 | Z13: 1 | AA13: Korrekt
A14: 5 | B14: ='Wettkampf 1'!B14 -> Tobias Sebers | C14: ='Wettkampf 1'!C14 -> Börgerwald II | D14: 300.8 | E14: x | F14: 0 | G14: 0 | H14: 0 | I14: 0 | J14: 0 | K14: 0 | L14: 0 | M14: 0 | N14: 0 | O14: 0 | P14: 0 | Q14: 0 | R14: 0 | U14: 102.2 | V14: 99.6 | W14: 99.0 | X14: 300.8 | Y14: 1 | Z14: 1 | AA14: Korrekt
A15: 6 | B15: ='Wettkampf 1'!B15 -> Friedhelm Schroer | C15: ='Wettkampf 1'!C15 -> Börgerwald II | D15: 307.4 | F15: 307.4 | G15: 307.4 | H15: 1 | I15: 0 | J15: 0 | K15: 0 | L15: 0 | M15: 0 | N15: 0 | O15: 0 | P15: 0 | Q15: 0 | R15: 0 | U15: 102.9 | V15: 102.3 | W15: 102.2 | X15: 307.4 | Y15: 1 | Z15: 1 | AA15: Korrekt
A16: 7 | B16: ='Wettkampf 1'!B16 -> Toni Stahl | C16: ='Wettkampf 1'!C16 -> Börgerwald II | D16: 291.6 | E16: x | F16: 0 | G16: 0 | H16: 0 | I16: 0 | J16: 0 | K16: 0 | L16: 0 | M16: 0 | N16: 0 | O16: 0 | P16: 0 | Q16: 0 | R16: 0 | U16: 95.1 | V16: 95.3 | W16: 101.2 | X16: 291.6 | Y16: 1 | Z16: 1 | AA16: Korrekt
A17: 8 | B17: ='Wettkampf 1'!B17 -> Martin Hinrichs | C17: ='Wettkampf 1'!C17 -> Börgerwald II | D17: 0.0 | E17: x | F17: 0 | G17: 0 | H17: 0 | I17: 0 | J17: 0 | K17: 0 | L17: 0 | M17: 0 | N17: 0 | O17: 0 | P17: 0 | Q17: 0 | R17: 0 | U17: 0.0 | V17: 0.0 | W17: 0.0 | X17: 0.0 | Y17: 1 | Z17: 0
A18: 9 | B18: ='Wettkampf 1'!B18 -> Dirk Thunert | C18: ='Wettkampf 1'!C18 -> Neuvrees II | D18: 310.9 | F18: 310.9 | G18: 0 | H18: 0 | I18: 310.9 | J18: 1 | K18: 0 | L18: 0 | M18: 0 | N18: 0 | O18: 0 | P18: 0 | Q18: 0 | R18: 0 | U18: 103.8 | V18: 102.6 | W18: 104.5 | X18: 310.9 | Y18: 1 | Z18: 1 | AA18: Korrekt
A19: 10 | B19: ='Wettkampf 1'!B19 -> Hans Preuth | C19: ='Wettkampf 1'!C19 -> Neuvrees II | D19: 308.1 | F19: 308.1 | G19: 0 | H19: 0 | I19: 308.1 | J19: 1 | K19: 0 | L19: 0 | M19: 0 | N19: 0 | O19: 0 | P19: 0 | Q19: 0 | R19: 0 | U19: 102.6 | V19: 102.3 | W19: 103.2 | X19: 308.1 | Y19: 1 | Z19: 1 | AA19: Korrekt
A20: 11 | B20: ='Wettkampf 1'!B20 -> Karl-Heinz Schrand | C20: ='Wettkampf 1'!C20 -> Neuvrees II | D20: 308.7 | F20: 308.7 | G20: 0 | H20: 0 | I20: 308.7 | J20: 1 | K20: 0 | L20: 0 | M20: 0 | N20: 0 | O20: 0 | P20: 0 | Q20: 0 | R20: 0 | U20: 104.3 | V20: 100.3 | W20: 104.1 | X20: 308.7 | Y20: 1 | Z20: 1 | AA20: Korrekt
A21: 12 | B21: ='Wettkampf 1'!B21 -> Holger Szczepanski | C21: ='Wettkampf 1'!C21 -> Neuvrees II | D21: 311.6 | E21: x | F21: 0 | G21: 0 | H21: 0 | I21: 0 | J21: 0 | K21: 0 | L21: 0 | M21: 0 | N21: 0 | O21: 0 | P21: 0 | Q21: 0 | R21: 0 | U21: 104.4 | V21: 102.6 | W21: 104.6 | X21: 311.6 | Y21: 1 | Z21: 1 | AA21: Korrekt
A22: 13 | B22: ='Wettkampf 1'!B22 -> Bernd Witting | C22: ='Wettkampf 1'!C22 -> Neuvrees II | D22: 311.8 | F22: 311.8 | G22: 0 | H22: 0 | I22: 311.8 | J22: 1 | K22: 0 | L22: 0 | M22: 0 | N22: 0 | O22: 0 | P22: 0 | Q22: 0 | R22: 0 | U22: 101.9 | V22: 104.8 | W22: 105.1 | X22: 311.8 | Y22: 1 | Z22: 1 | AA22: Korrekt
A23: 14 | B23: ='Wettkampf 1'!B23 -> Hermann Schwarte | C23: ='Wettkampf 1'!C23 -> Börger II | D23: 310.7 | F23: 310.7 | G23: 0 | H23: 0 | I23: 0 | J23: 0 | K23: 0 | L23: 0 | M23: 310.7 | N23: 1 | O23: 0 | P23: 0 | Q23: 0 | R23: 0 | U23: 105.3 | V23: 103.2 | W23: 102.2 | X23: 310.7 | Y23: 1 | Z23: 1 | AA23: Korrekt
A24: 15 | B24: ='Wettkampf 1'!B24 -> Bernd Rode | C24: ='Wettkampf 1'!C24 -> Börger III | D24: 304.9 | F24: 304.9 | G24: 0 | H24: 0 | I24: 0 | J24: 0 | K24: 304.9 | L24: 1 | M24: 0 | N24: 0 | O24: 0 | P24: 0 | Q24: 0 | R24: 0 | U24: 100.4 | V24: 102.8 | W24: 101.7 | X24: 304.9 | Y24: 1 | Z24: 1 | AA24: Korrekt
A25: 16 | B25: ='Wettkampf 1'!B25 -> Daniel Sebers | C25: ='Wettkampf 1'!C25 -> Börger III | D25: 307.4 | E25: x | F25: 0 | G25: 0 | H25: 0 | I25: 0 | J25: 0 | K25: 0 | L25: 0 | M25: 0 | N25: 0 | O25: 0 | P25: 0 | Q25: 0 | R25: 0 | U25: 103.5 | V25: 102.6 | W25: 101.3 | X25: 307.4 | Y25: 1 | Z25: 1 | AA25: Korrekt
A26: 17 | B26: ='Wettkampf 1'!B26 -> Simon Schutenbrock | C26: ='Wettkampf 1'!C26 -> Börger III | D26: 311.1 | F26: 311.1 | G26: 0 | H26: 0 | I26: 0 | J26: 0 | K26: 311.1 | L26: 1 | M26: 0 | N26: 0 | O26: 0 | P26: 0 | Q26: 0 | R26: 0 | U26: 104.0 | V26: 101.9 | W26: 105.2 | X26: 311.1 | Y26: 1 | Z26: 1 | AA26: Korrekt
A27: 18 | B27: ='Wettkampf 1'!B27 -> Jürgen Schroer | C27: ='Wettkampf 1'!C27 -> Börger III | D27: 310.3 | F27: 310.3 | G27: 0 | H27: 0 | I27: 0 | J27: 0 | K27: 310.3 | L27: 1 | M27: 0 | N27: 0 | O27: 0 | P27: 0 | Q27: 0 | R27: 0 | U27: 104.2 | V27: 103.8 | W27: 102.3 | X27: 310.3 | Y27: 1 | Z27: 1 | AA27: Korrekt
A28: 19 | B28: ='Wettkampf 1'!B28 -> Marc Eckmann | C28: ='Wettkampf 1'!C28 -> Börger II | D28: 303.8 | E28: x | F28: 0 | G28: 0 | H28: 0 | I28: 0 | J28: 0 | K28: 0 | L28: 0 | M28: 0 | N28: 0 | O28: 0 | P28: 0 | Q28: 0 | R28: 0 | U28: 100.1 | V28: 101.5 | W28: 102.2 | X28: 303.8 | Y28: 1 | Z28: 1 | AA28: Korrekt
A29: 20 | B29: ='Wettkampf 1'!B29 -> Markus Jungsthöfel | C29: ='Wettkampf 1'!C29 -> Börger II | D29: 307.3 | F29: 307.3 | G29: 0 | H29: 0 | I29: 0 | J29: 0 | K29: 0 | L29: 0 | M29: 307.3 | N29: 1 | O29: 0 | P29: 0 | Q29: 0 | R29: 0 | U29: 100.4 | V29: 103.7 | W29: 103.2 | X29: 307.3 | Y29: 1 | Z29: 1 | AA29: Korrekt
A30: 21 | B30: ='Wettkampf 1'!B30 -> Jens Henzen | C30: ='Wettkampf 1'!C30 -> Börger III | D30: 304.2 | F30: 304.2 | G30: 0 | H30: 0 | I30: 0 | J30: 0 | K30: 304.2 | L30: 1 | M30: 0 | N30: 0 | O30: 0 | P30: 0 | Q30: 0 | R30: 0 | U30: 103.0 | V30: 100.9 | W30: 100.3 | X30: 304.2 | Y30: 1 | Z30: 1 | AA30: Korrekt
A31: 22 | B31: ='Wettkampf 1'!B31 -> Uwe Goldenstein | C31: ='Wettkampf 1'!C31 -> Börger II | D31: 304.0 | F31: 304.0 | G31: 0 | H31: 0 | I31: 0 | J31: 0 | K31: 0 | L31: 0 | M31: 304 | N31: 1 | O31: 0 | P31: 0 | Q31: 0 | R31: 0 | U31: 102.1 | V31: 100.5 | W31: 101.4 | X31: 304.0 | Y31: 1 | Z31: 1 | AA31: Korrekt
A32: 23 | B32: ='Wettkampf 1'!B32 -> Ingo Zdralik | C32: ='Wettkampf 1'!C32 -> Börger II | D32: 316.2 | F32: 316.2 | G32: 0 | H32: 0 | I32: 0 | J32: 0 | K32: 0 | L32: 0 | M32: 316.2 | N32: 1 | O32: 0 | P32: 0 | Q32: 0 | R32: 0 | U32: 104.8 | V32: 106.6 | W32: 104.8 | X32: 316.2 | Y32: 1 | Z32: 1 | AA32: Korrekt
A33: 24 | B33: ='Wettkampf 1'!B33 -> Schütze 24 | C33: ='Wettkampf 1'!C33 -> Börger II | E33: x | F33: 0 | G33: 0 | H33: 0 | I33: 0 | J33: 0 | K33: 0 | L33: 0 | M33: 0 | N33: 0 | O33: 0 | P33: 0 | Q33: 0 | R33: 0 | X33: 0.0 | Y33: 1 | Z33: 0
A34: 25 | B34: ='Wettkampf 1'!B34 -> Oliver Reinelt | C34: ='Wettkampf 1'!C34 -> Lahn IV | D34: 310.3 | F34: 310.3 | G34: 0 | H34: 0 | I34: 0 | J34: 0 | K34: 0 | L34: 0 | M34: 0 | N34: 0 | O34: 310.3 | P34: 1 | Q34: 0 | R34: 0 | U34: 101.8 | V34: 104.0 | W34: 104.5 | X34: 310.3 | Y34: 1 | Z34: 1 | AA34: Korrekt
A35: 26 | B35: ='Wettkampf 1'!B35 -> Vitalij Schmidt | C35: ='Wettkampf 1'!C35 -> Lahn IV | D35: 307.8 | F35: 307.8 | G35: 0 | H35: 0 | I35: 0 | J35: 0 | K35: 0 | L35: 0 | M35: 0 | N35: 0 | O35: 307.8 | P35: 1 | Q35: 0 | R35: 0 | U35: 103.4 | V35: 102.7 | W35: 101.7 | X35: 307.8 | Y35: 1 | Z35: 1 | AA35: Korrekt
A36: 27 | B36: ='Wettkampf 1'!B36 -> Hermann Benten | C36: ='Wettkampf 1'!C36 -> Lahn IV | D36: 311.2 | F36: 311.2 | G36: 0 | H36: 0 | I36: 0 | J36: 0 | K36: 0 | L36: 0 | M36: 0 | N36: 0 | O36: 311.2 | P36: 1 | Q36: 0 | R36: 0 | U36: 103.7 | V36: 102.8 | W36: 104.7 | X36: 311.2 | Y36: 1 | Z36: 1 | AA36: Korrekt
A37: 28 | B37: ='Wettkampf 1'!B37 -> Johannes Thesing | C37: ='Wettkampf 1'!C37 -> Lahn IV | D37: 313.8 | F37: 313.8 | G37: 0 | H37: 0 | I37: 0 | J37: 0 | K37: 0 | L37: 0 | M37: 0 | N37: 0 | O37: 313.8 | P37: 1 | Q37: 0 | R37: 0 | U37: 103.8 | V37: 103.9 | W37: 106.1 | X37: 313.8 | Y37: 1 | Z37: 1 | AA37: Korrekt
A38: 29 | B38: ='Wettkampf 1'!B38 -> Schütze 29 | C38: ='Wettkampf 1'!C38 -> Lahn IV | E38: x | F38: 0 | G38: 0 | H38: 0 | I38: 0 | J38: 0 | K38: 0 | L38: 0 | M38: 0 | N38: 0 | O38: 0 | P38: 0 | Q38: 0 | R38: 0 | X38: 0.0 | Y38: 1 | Z38: 0
A39: 30 | B39: ='Wettkampf 1'!B39 -> Willi Rolfes | C39: ='Wettkampf 1'!C39 -> Neuvrees I | D39: 312.8 | F39: 312.8 | G39: 0 | H39: 0 | I39: 0 | J39: 0 | K39: 0 | L39: 0 | M39: 0 | N39: 0 | O39: 0 | P39: 0 | Q39: 312.8 | R39: 1 | U39: 103.7 | V39: 104.2 | W39: 104.9 | X39: 312.8 | Y39: 1 | Z39: 1 | AA39: Korrekt
A40: 31 | B40: ='Wettkampf 1'!B40 -> Werner Thyen | C40: ='Wettkampf 1'!C40 -> Neuvrees I | D40: 304.7 | F40: 304.7 | G40: 0 | H40: 0 | I40: 0 | J40: 0 | K40: 0 | L40: 0 | M40: 0 | N40: 0 | O40: 0 | P40: 0 | Q40: 304.7 | R40: 1 | U40: 101.6 | V40: 99.8 | W40: 103.3 | X40: =U40+V40+W40 -> 304.7 | Y40: =IF(X40=D40,1,0) -> 1 | Z40: =IF(X40=0,0,1) -> 1 | AA40: =IF(Y40+Z40=2,"Korrekt","") -> Korrekt
A41: 32 | B41: ='Wettkampf 1'!B41 -> Wilfried Breyer | C41: ='Wettkampf 1'!C41 -> Neuvrees I | D41: 302.6 | F41: 302.6 | G41: 0 | H41: 0 | I41: 0 | J41: 0 | K41: 0 | L41: 0 | M41: 0 | N41: 0 | O41: 0 | P41: 0 | Q41: 302.6 | R41: 1 | U41: 98.9 | V41: 101.7 | W41: 102.0 | X41: 302.6 | Y41: 1 | Z41: 1 | AA41: Korrekt
A42: 33 | B42: ='Wettkampf 1'!B42 -> Klaus Steenken | C42: ='Wettkampf 1'!C42 -> Neuvrees I | D42: 305.0 | E42: x | F42: 0 | G42: 0 | H42: 0 | I42: 0 | J42: 0 | K42: 0 | L42: 0 | M42: 0 | N42: 0 | O42: 0 | P42: 0 | Q42: 0 | R42: 0 | U42: 101.9 | V42: 100.5 | W42: 102.6 | X42: 305.0 | Y42: 1 | Z42: 1 | AA42: Korrekt
A43: 34 | B43: ='Wettkampf 1'!B43 -> Markus Janßen | C43: ='Wettkampf 1'!C43 -> Neuvrees I | D43: 311.6 | F43: 311.6 | G43: 0 | H43: 0 | I43: 0 | J43: 0 | K43: 0 | L43: 0 | M43: 0 | N43: 0 | O43: 0 | P43: 0 | Q43: 311.6 | R43: 1 | U43: 103.3 | V43: 104.2 | W43: 104.1 | X43: 311.6 | Y43: 1 | Z43: 1 | AA43: Korrekt
A44: 35 | B44: ='Wettkampf 1'!B44 -> Carsten Peters | C44: ='Wettkampf 1'!C44 -> Neuvrees I | D44: 307.9 | E44: x | F44: 0 | G44: 0 | H44: 0 | I44: 0 | J44: 0 | K44: 0 | L44: 0 | M44: 0 | N44: 0 | O44: 0 | P44: 0 | Q44: 0 | R44: 0 | U44: 103.5 | V44: 102.9 | W44: 101.5 | X44: 307.9 | Y44: 1 | Z44: 1 | AA44: Korrekt
A45: 36 | B45: ='Wettkampf 1'!B45 -> Dietmar Spekker | C45: ='Wettkampf 1'!C45 -> Neuvrees I | E45: x | F45: 0 | G45: 0 | H45: 0 | I45: 0 | J45: 0 | K45: 0 | L45: 0 | M45: 0 | N45: 0 | O45: 0 | P45: 0 | Q45: 0 | R45: 0 | X45: =U45+V45+W45 -> 0.0 | Y45: =IF(X45=D45,1,0) -> 1 | Z45: =IF(X45=0,0,1) -> 0 | AA45: =IF(Y45+Z45=2,"Korrekt","") -> 
G46: =LARGE(G10:G45,1)+LARGE(G10:G45,2)+LARGE(G10:G45,3) -> 935.1 | H46: =SUM(H10:H45) -> 4 | I46: =LARGE(I10:I45,1)+LARGE(I10:I45,2)+LARGE(I10:I45,3) -> 931.4 | J46: =SUM(J10:J45) -> 4 | K46: =LARGE(K10:K45,1)+LARGE(K10:K45,2)+LARGE(K10:K45,3) -> 926.3 | L46: =SUM(L10:L45) -> 4 | M46: =LARGE(M10:M45,1)+LARGE(M10:M45,2)+LARGE(M10:M45,3) -> 934.2 | N46: =SUM(N10:N45) -> 4 | O46: =LARGE(O10:O45,1)+LARGE(O10:O45,2)+LARGE(O10:O45,3) -> 935.3 | P46: =SUM(P10:P45) -> 4 | Q46: =LARGE(Q10:Q45,1)+LARGE(Q10:Q45,2)+LARGE(Q10:Q45,3) -> 929.1 | R46: =SUM(R10:S45) -> 4
C47: per Email an: sk-huemmling@gmx.de

Sheet 3
B1: Verein / Gruppe | D1: Ergebnisse | V1: Austragungsort: | W1: =Übersicht!F4 -> Börger
A2: 1 | B2: ='Wettkampf 1'!B2 -> Börgerwald II | D2: =G46 -> 931.1 | E2: =IF(H46>4,"Es sind zu viele Schützen in Wertung!"," ") ->  | V2: Wettkampftag: | W2: =Übersicht!F3 -> 01.10.
A3: 2 | B3: ='Wettkampf 1'!B3 -> Neuvrees II | D3: =I46 -> 938.0 | E3: =IF(J46>4,"Es sind zu viele Schützen in Wertung!"," ") -> 
A4: 3 | B4: ='Wettkampf 1'!B4 -> Börger III | D4: =K46 -> 927.2 | E4: =IF(L46>4,"Es sind zu viele Schützen in Wertung!"," ") ->  | X4: Ansprechpartner für Rückfragen:
A5: 4 | B5: ='Wettkampf 1'!B5 -> Börger II | D5: =M46 -> 925.6 | E5: =IF(N46>4,"Es sind zu viele Schützen in Wertung!"," ") ->  | V5: Name: | W5: Simon Schuckenbrock
A6: 5 | B6: ='Wettkampf 1'!B6 -> Lahn IV | D6: =O46 -> 933.0 | E6: =IF(P46>4,"Es sind zu viele Schützen in Wertung!"," ") ->  | V6: Tel: | W6: 0174-9528559
A7: 6 | B7: ='Wettkampf 1'!B7 -> Neuvrees I | D7: =Q46 -> 926.2 | E7: =IF(R46>4,"Es sind zu viele Schützen in Wertung!"," ") ->  | V7: Standaufsicht: | W7: Jens Henzen
B9: Einzelergebnisse: | C9: Verein / Gruppe | D9: Ergebnisse (mindestens 0 eintragen) | E9: AW? Dann x eintippen | G9: Verein 1 | I9: Verein 2 | K9: Verein 3 | M9: Verein 4 | O9: Verein 5 | Q9: Verein 6 | U9: Proberechnung bei Streifen:
A10: 1 | B10: ='Wettkampf 1'!B10 -> Andre Hanenkamp | C10: ='Wettkampf 1'!C10 -> Börgerwald II | D10: 307.1 | F10: =IF(E10="x","0",D10) -> 307.1 | G10: =IF(C10=$B$2,F10,0) -> 307.1 | H10: =(IF(AND($E10="",$C10=$B$2),1,0)) -> 1 | I10: =IF($C10=$B$3,F10,0) -> 0 | J10: =(IF(AND($E10="",$C10=$B$3),1,0)) -> 0 | K10: =IF($C10=$B$4,F10,0) -> 0 | L10: =(IF(AND($E10="",$C10=$B$4),1,0)) -> 0 | M10: =IF($C10=$B$5,F10,0) -> 0 | N10: =(IF(AND($E10="",$C10=$B$5),1,0)) -> 0 | O10: =IF($C10=$B$6,F10,0) -> 0 | P10: =(IF(AND($E10="",$C10=$B$6),1,0)) -> 0 | Q10: =IF($C10=$B$7,F10,0) -> 0 | R10: =(IF(AND($E10="",$C10=$B$7),1,0)) -> 0 | U10: 103.6 | V10: 100.8 | W10: 102.7 | X10: =U10+V10+W10 -> 307.1 | Y10: =IF(X10=D10,1,0) -> 1 | Z10: =IF(X10=0,0,1) -> 1 | AA10: =IF(Y10+Z10=2,"Korrekt","") -> Korrekt
A11: 2 | B11: ='Wettkampf 1'!B11 -> Horst Sabel | C11: ='Wettkampf 1'!C11 -> Börgerwald II | D11: 308.9 | F11: =IF(E11="x","0",D11) -> 308.9 | G11: =IF(C11=$B$2,F11,0) -> 308.9 | H11: =(IF(AND($E11="",$C11=$B$2),1,0)) -> 1 | I11: =IF($C11=$B$3,F11,0) -> 0 | J11: =(IF(AND($E11="",$C11=$B$3),1,0)) -> 0 | K11: =IF($C11=$B$4,F11,0) -> 0 | L11: =(IF(AND($E11="",$C11=$B$4),1,0)) -> 0 | M11: =IF($C11=$B$5,F11,0) -> 0 | N11: =(IF(AND($E11="",$C11=$B$5),1,0)) -> 0 | O11: =IF($C11=$B$6,F11,0) -> 0 | P11: =(IF(AND($E11="",$C11=$B$6),1,0)) -> 0 | Q11: =IF($C11=$B$7,F11,0) -> 0 | R11: =(IF(AND($E11="",$C11=$B$7),1,0)) -> 0 | U11: 104.1 | V11: 102.4 | W11: 102.4 | X11: =U11+V11+W11 -> 308.9 | Y11: =IF(X11=D11,1,0) -> 1 | Z11: =IF(X11=0,0,1) -> 1 | AA11: =IF(Y11+Z11=2,"Korrekt","") -> Korrekt
A12: 3 | B12: ='Wettkampf 1'!B12 -> Christian Robben | C12: ='Wettkampf 1'!C12 -> Börgerwald II | D12: 0.0 | E12: x | F12: 0 | G12: 0 | H12: 0 | I12: 0 | J12: 0 | K12: 0 | L12: 0 | M12: 0 | N12: 0 | O12: 0 | P12: 0 | Q12: 0 | R12: 0 | X12: 0.0 | Y12: 1 | Z12: 0
A13: 4 | B13: ='Wettkampf 1'!B13 -> Mathis Antons | C13: ='Wettkampf 1'!C13 -> Börgerwald II | D13: 310.9 | F13: 310.9 | G13: 310.9 | H13: 1 | I13: 0 | J13: 0 | K13: 0 | L13: 0 | M13: 0 | N13: 0 | O13: 0 | P13: 0 | Q13: 0 | R13: 0 | U13: 103.7 | V13: 103.5 | W13: 103.7 | X13: 310.9 | Y13: 1 | Z13: 1 | AA13: Korrekt
A14: 5 | B14: ='Wettkampf 1'!B14 -> Tobias Sebers | C14: ='Wettkampf 1'!C14 -> Börgerwald II | D14: 295.0 | E14: x | F14: 0 | G14: 0 | H14: 0 | I14: 0 | J14: 0 | K14: 0 | L14: 0 | M14: 0 | N14: 0 | O14: 0 | P14: 0 | Q14: 0 | R14: 0 | U14: 96.9 | V14: 98.1 | W14: 100.0 | X14: 295.0 | Y14: 1 | Z14: 1 | AA14: Korrekt
A15: 6 | B15: ='Wettkampf 1'!B15 -> Friedhelm Schroer | C15: ='Wettkampf 1'!C15 -> Börgerwald II | D15: 311.3 | F15: 311.3 | G15: 311.3 | H15: 1 | I15: 0 | J15: 0 | K15: 0 | L15: 0 | M15: 0 | N15: 0 | O15: 0 | P15: 0 | Q15: 0 | R15: 0 | U15: 104.1 | V15: 103.2 | W15: 104.0 | X15: 311.3 | Y15: 1 | Z15: 1 | AA15: Korrekt
A16: 7 | B16: ='Wettkampf 1'!B16 -> Toni Stahl | C16: ='Wettkampf 1'!C16 -> Börgerwald II | D16: 277.7 | E16: x | F16: 0 | G16: 0 | H16: 0 | I16: 0 | J16: 0 | K16: 0 | L16: 0 | M16: 0 | N16: 0 | O16: 0 | P16: 0 | Q16: 0 | R16: 0 | U16: 95.7 | V16: 89.2 | W16: 92.8 | X16: 277.7 | Y16: 1 | Z16: 1 | AA16: Korrekt
A17: 8 | B17: ='Wettkampf 1'!B17 -> Martin Hinrichs | C17: ='Wettkampf 1'!C17 -> Börgerwald II | D17: 0.0 | E17: x | F17: 0 | G17: 0 | H17: 0 | I17: 0 | J17: 0 | K17: 0 | L17: 0 | M17: 0 | N17: 0 | O17: 0 | P17: 0 | Q17: 0 | R17: 0 | X17: 0.0 | Y17: 1 | Z17: 0
A18: 9 | B18: ='Wettkampf 1'!B18 -> Dirk Thunert | C18: ='Wettkampf 1'!C18 -> Neuvrees II | D18: 311.7 | F18: 311.7 | G18: 0 | H18: 0 | I18: 311.7 | J18: 1 | K18: 0 | L18: 0 | M18: 0 | N18: 0 | O18: 0 | P18: 0 | Q18: 0 | R18: 0 | U18: 102.9 | V18: 105.2 | W18: 103.6 | X18: 311.7 | Y18: 1 | Z18: 1 | AA18: Korrekt
A19: 10 | B19: ='Wettkampf 1'!B19 -> Hans Preuth | C19: ='Wettkampf 1'!C19 -> Neuvrees II | D19: 0.0 | E19: x | F19: 0 | G19: 0 | H19: 0 | I19: 0 | J19: 0 | K19: 0 | L19: 0 | M19: 0 | N19: 0 | O19: 0 | P19: 0 | Q19: 0 | R19: 0 | X19: 0.0 | Y19: 1 | Z19: 0
A20: 11 | B20: ='Wettkampf 1'!B20 -> Karl-Heinz Schrand | C20: ='Wettkampf 1'!C20 -> Neuvrees II | D20: 312.5 | F20: 312.5 | G20: 0 | H20: 0 | I20: 312.5 | J20: 1 | K20: 0 | L20: 0 | M20: 0 | N20: 0 | O20: 0 | P20: 0 | Q20: 0 | R20: 0 | U20: 104.3 | V20: 104.4 | W20: 103.8 | X20: 312.5 | Y20: 1 | Z20: 1 | AA20: Korrekt
A21: 12 | B21: ='Wettkampf 1'!B21 -> Holger Szczepanski | C21: ='Wettkampf 1'!C21 -> Neuvrees II | D21: 305.9 | F21: 305.9 | G21: 0 | H21: 0 | I21: 305.9 | J21: 1 | K21: 0 | L21: 0 | M21: 0 | N21: 0 | O21: 0 | P21: 0 | Q21: 0 | R21: 0 | U21: 100.9 | V21: 103.5 | W21: 101.5 | X21: 305.9 | Y21: 1 | Z21: 1 | AA21: Korrekt
A22: 13 | B22: ='Wettkampf 1'!B22 -> Bernd Witting | C22: ='Wettkampf 1'!C22 -> Neuvrees II | D22: 313.8 | F22: 313.8 | G22: 0 | H22: 0 | I22: 313.8 | J22: 1 | K22: 0 | L22: 0 | M22: 0 | N22: 0 | O22: 0 | P22: 0 | Q22: 0 | R22: 0 | U22: 104.9 | V22: 105.0 | W22: 103.9 | X22: 313.8 | Y22: 1 | Z22: 1 | AA22: Korrekt
A23: 14 | B23: ='Wettkampf 1'!B23 -> Hermann Schwarte | C23: ='Wettkampf 1'!C23 -> Börger II | D23: 304.4 | F23: 304.4 | G23: 0 | H23: 0 | I23: 0 | J23: 0 | K23: 0 | L23: 0 | M23: 304.4 | N23: 1 | O23: 0 | P23: 0 | Q23: 0 | R23: 0 | U23: 98.5 | V23: 104.5 | W23: 101.4 | X23: 304.4 | Y23: 1 | Z23: 1 | AA23: Korrekt
A24: 15 | B24: ='Wettkampf 1'!B24 -> Bernd Rode | C24: ='Wettkampf 1'!C24 -> Börger III | D24: 308.0 | F24: 308.0 | G24: 0 | H24: 0 | I24: 0 | J24: 0 | K24: 308 | L24: 1 | M24: 0 | N24: 0 | O24: 0 | P24: 0 | Q24: 0 | R24: 0 | U24: 102.4 | V24: 102.4 | W24: 103.2 | X24: 308.0 | Y24: 1 | Z24: 1 | AA24: Korrekt
A25: 16 | B25: ='Wettkampf 1'!B25 -> Daniel Sebers | C25: ='Wettkampf 1'!C25 -> Börger III | D25: 309.5 | F25: 309.5 | G25: 0 | H25: 0 | I25: 0 | J25: 0 | K25: 309.5 | L25: 1 | M25: 0 | N25: 0 | O25: 0 | P25: 0 | Q25: 0 | R25: 0 | U25: 103.2 | V25: 101.8 | W25: 104.5 | X25: 309.5 | Y25: 1 | Z25: 1 | AA25: Korrekt
A26: 17 | B26: ='Wettkampf 1'!B26 -> Simon Schutenbrock | C26: ='Wettkampf 1'!C26 -> Börger III | D26: 307.6 | F26: 307.6 | G26: 0 | H26: 0 | I26: 0 | J26: 0 | K26: 307.6 | L26: 1 | M26: 0 | N26: 0 | O26: 0 | P26: 0 | Q26: 0 | R26: 0 | U26: 103.0 | V26: 100.6 | W26: 104.0 | X26: 307.6 | Y26: 1 | Z26: 1 | AA26: Korrekt
A27: 18 | B27: ='Wettkampf 1'!B27 -> Jürgen Schroer | C27: ='Wettkampf 1'!C27 -> Börger III | D27: 307.6 | E27: x | F27: 0 | G27: 0 | H27: 0 | I27: 0 | J27: 0 | K27: 0 | L27: 0 | M27: 0 | N27: 0 | O27: 0 | P27: 0 | Q27: 0 | R27: 0 | U27: 102.6 | V27: 102.6 | W27: 102.4 | X27: 307.6 | Y27: 1 | Z27: 1 | AA27: Korrekt
A28: 19 | B28: ='Wettkampf 1'!B28 -> Marc Eckmann | C28: ='Wettkampf 1'!C28 -> Börger II | D28: 0.0 | E28: x | F28: 0 | G28: 0 | H28: 0 | I28: 0 | J28: 0 | K28: 0 | L28: 0 | M28: 0 | N28: 0 | O28: 0 | P28: 0 | Q28: 0 | R28: 0 | X28: 0.0 | Y28: 1 | Z28: 0
A29: 20 | B29: ='Wettkampf 1'!B29 -> Markus Jungsthöfel | C29: ='Wettkampf 1'!C29 -> Börger II | D29: 308.1 | F29: 308.1 | G29: 0 | H29: 0 | I29: 0 | J29: 0 | K29: 0 | L29: 0 | M29: 308.1 | N29: 1 | O29: 0 | P29: 0 | Q29: 0 | R29: 0 | U29: 102.1 | V29: 102.2 | W29: 103.8 | X29: 308.1 | Y29: 1 | Z29: 1 | AA29: Korrekt
A30: 21 | B30: ='Wettkampf 1'!B30 -> Jens Henzen | C30: ='Wettkampf 1'!C30 -> Börger III | D30: 309.7 | F30: 309.7 | G30: 0 | H30: 0 | I30: 0 | J30: 0 | K30: 309.7 | L30: 1 | M30: 0 | N30: 0 | O30: 0 | P30: 0 | Q30: 0 | R30: 0 | U30: 103.7 | V30: 104.0 | W30: 102.0 | X30: 309.7 | Y30: 1 | Z30: 1 | AA30: Korrekt
A31: 22 | B31: ='Wettkampf 1'!B31 -> Uwe Goldenstein | C31: ='Wettkampf 1'!C31 -> Börger II | D31: 304.6 | F31: 304.6 | G31: 0 | H31: 0 | I31: 0 | J31: 0 | K31: 0 | L31: 0 | M31: 304.6 | N31: 1 | O31: 0 | P31: 0 | Q31: 0 | R31: 0 | U31: 100.0 | V31: 102.8 | W31: 101.8 | X31: 304.6 | Y31: 1 | Z31: 1 | AA31: Korrekt
A32: 23 | B32: ='Wettkampf 1'!B32 -> Ingo Zdralik | C32: ='Wettkampf 1'!C32 -> Börger II | D32: 312.9 | F32: 312.9 | G32: 0 | H32: 0 | I32: 0 | J32: 0 | K32: 0 | L32: 0 | M32: 312.9 | N32: 1 | O32: 0 | P32: 0 | Q32: 0 | R32: 0 | U32: 104.4 | V32: 104.2 | W32: 104.3 | X32: 312.9 | Y32: 1 | Z32: 1 | AA32: Korrekt
A33: 24 | B33: ='Wettkampf 1'!B33 -> Schütze 24 | C33: ='Wettkampf 1'!C33 -> Börger II | D33: 0.0 | E33: x | F33: 0 | G33: 0 | H33: 0 | I33: 0 | J33: 0 | K33: 0 | L33: 0 | M33: 0 | N33: 0 | O33: 0 | P33: 0 | Q33: 0 | R33: 0 | X33: 0.0 | Y33: 1 | Z33: 0
A34: 25 | B34: ='Wettkampf 1'!B34 -> Oliver Reinelt | C34: ='Wettkampf 1'!C34 -> Lahn IV | D34: 307.2 | F34: 307.2 | G34: 0 | H34: 0 | I34: 0 | J34: 0 | K34: 0 | L34: 0 | M34: 0 | N34: 0 | O34: 307.2 | P34: 1 | Q34: 0 | R34: 0 | U34: 101.7 | V34: 102.7 | W34: 102.8 | X34: 307.2 | Y34: 1 | Z34: 1 | AA34: Korrekt
A35: 26 | B35: ='Wettkampf 1'!B35 -> Vitalij Schmidt | C35: ='Wettkampf 1'!C35 -> Lahn IV | D35: 310.4 | F35: 310.4 | G35: 0 | H35: 0 | I35: 0 | J35: 0 | K35: 0 | L35: 0 | M35: 0 | N35: 0 | O35: 310.4 | P35: 1 | Q35: 0 | R35: 0 | U35: 104.3 | V35: 102.8 | W35: 103.3 | X35: 310.4 | Y35: 1 | Z35: 1 | AA35: Korrekt
A36: 27 | B36: ='Wettkampf 1'!B36 -> Hermann Benten | C36: ='Wettkampf 1'!C36 -> Lahn IV | D36: 310.1 | F36: 310.1 | G36: 0 | H36: 0 | I36: 0 | J36: 0 | K36: 0 | L36: 0 | M36: 0 | N36: 0 | O36: 310.1 | P36: 1 | Q36: 0 | R36: 0 | U36: 102.5 | V36: 104.1 | W36: 103.5 | X36: 310.1 | Y36: 1 | Z36: 1 | AA36: Korrekt
A37: 28 | B37: ='Wettkampf 1'!B37 -> Johannes Thesing | C37: ='Wettkampf 1'!C37 -> Lahn IV | D37: 312.5 | F37: 312.5 | G37: 0 | H37: 0 | I37: 0 | J37: 0 | K37: 0 | L37: 0 | M37: 0 | N37: 0 | O37: 312.5 | P37: 1 | Q37: 0 | R37: 0 | U37: 103.3 | V37: 105.3 | W37: 103.9 | X37: 312.5 | Y37: 1 | Z37: 1 | AA37: Korrekt
A38: 29 | B38: ='Wettkampf 1'!B38 -> Schütze 29 | C38: ='Wettkampf 1'!C38 -> Lahn IV | D38: 0.0 | E38: x | F38: 0 | G38: 0 | H38: 0 | I38: 0 | J38: 0 | K38: 0 | L38: 0 | M38: 0 | N38: 0 | O38: 0 | P38: 0 | Q38: 0 | R38: 0 | X38: 0.0 | Y38: 1 | Z38: 0
A39: 30 | B39: ='Wettkampf 1'!B39 -> Willi Rolfes | C39: ='Wettkampf 1'!C39 -> Neuvrees I | D39: 308.5 | F39: 308.5 | G39: 0 | H39: 0 | I39: 0 | J39: 0 | K39: 0 | L39: 0 | M39: 0 | N39: 0 | O39: 0 | P39: 0 | Q39: 308.5 | R39: 1 | U39: 103.4 | V39: 102.8 | W39: 102.3 | X39: 308.5 | Y39: 1 | Z39: 1 | AA39: Korrekt
A40: 31 | B40: ='Wettkampf 1'!B40 -> Werner Thyen | C40: ='Wettkampf 1'!C40 -> Neuvrees I | D40: 309.1 | F40: 309.1 | G40: 0 | H40: 0 | I40: 0 | J40: 0 | K40: 0 | L40: 0 | M40: 0 | N40: 0 | O40: 0 | P40: 0 | Q40: 309.1 | R40: 1 | U40: 102.6 | V40: 103.2 | W40: 103.3 | X40: 309.1 | Y40: 1 | Z40: 1 | AA40: Korrekt
A41: 32 | B41: ='Wettkampf 1'!B41 -> Wilfried Breyer | C41: ='Wettkampf 1'!C41 -> Neuvrees I | D41: 308.6 | F41: 308.6 | G41: 0 | H41: 0 | I41: 0 | J41: 0 | K41: 0 | L41: 0 | M41: 0 | N41: 0 | O41: 0 | P41: 0 | Q41: 308.6 | R41: 1 | U41: 103.0 | V41: 102.6 | W41: 103.0 | X41: 308.6 | Y41: 1 | Z41: 1 | AA41: Korrekt
A42: 33 | B42: ='Wettkampf 1'!B42 -> Klaus Steenken | C42: ='Wettkampf 1'!C42 -> Neuvrees I | D42: 308.3 | F42: 308.3 | G42: 0 | H42: 0 | I42: 0 | J42: 0 | K42: 0 | L42: 0 | M42: 0 | N42: 0 | O42: 0 | P42: 0 | Q42: 308.3 | R42: 1 | U42: 102.3 | V42: 103.5 | W42: 102.5 | X42: 308.3 | Y42: 1 | Z42: 1 | AA42: Korrekt
A43: 34 | B43: ='Wettkampf 1'!B43 -> Markus Janßen | C43: ='Wettkampf 1'!C43 -> Neuvrees I | D43: 308.0 | E43: x | F43: 0 | G43: 0 | H43: 0 | I43: 0 | J43: 0 | K43: 0 | L43: 0 | M43: 0 | N43: 0 | O43: 0 | P43: 0 | Q43: 0 | R43: 0 | U43: 102.8 | V43: 102.5 | W43: 102.7 | X43: 308.0 | Y43: 1 | Z43: 1 | AA43: Korrekt
A44: 35 | B44: ='Wettkampf 1'!B44 -> Carsten Peters | C44: ='Wettkampf 1'!C44 -> Neuvrees I | D44: 0.0 | E44: x | F44: 0 | G44: 0 | H44: 0 | I44: 0 | J44: 0 | K44: 0 | L44: 0 | M44: 0 | N44: 0 | O44: 0 | P44: 0 | Q44: 0 | R44: 0 | X44: 0.0 | Y44: 1 | Z44: 0
A45: 36 | B45: ='Wettkampf 1'!B45 -> Dietmar Spekker | C45: ='Wettkampf 1'!C45 -> Neuvrees I | D45: 293.4 | E45: x | F45: 0 | G45: 0 | H45: 0 | I45: 0 | J45: 0 | K45: 0 | L45: 0 | M45: 0 | N45: 0 | O45: 0 | P45: 0 | Q45: 0 | R45: 0 | U45: 99.9 | V45: 98.7 | W45: 94.8 | X45: 293.4 | Y45: 1 | Z45: 1 | AA45: Korrekt
G46: =LARGE(G10:G45,1)+LARGE(G10:G45,2)+LARGE(G10:G45,3) -> 931.1 | H46: =SUM(H10:H45) -> 4 | I46: =LARGE(I10:I45,1)+LARGE(I10:I45,2)+LARGE(I10:I45,3) -> 938 | J46: =SUM(J10:J45) -> 4 | K46: =LARGE(K10:K45,1)+LARGE(K10:K45,2)+LARGE(K10:K45,3) -> 927.2 | L46: =SUM(L10:L45) -> 4 | M46: =LARGE(M10:M45,1)+LARGE(M10:M45,2)+LARGE(M10:M45,3) -> 925.6 | N46: =SUM(N10:N45) -> 4 | O46: =LARGE(O10:O45,1)+LARGE(O10:O45,2)+LARGE(O10:O45,3) -> 933 | P46: =SUM(P10:P45) -> 4 | Q46: =LARGE(Q10:Q45,1)+LARGE(Q10:Q45,2)+LARGE(Q10:Q45,3) -> 926.2 | R46: =SUM(R10:S45) -> 4
C47: per Email an: sk-huemmling@gmx.de

Sheet 4
B1: Verein / Gruppe | D1: Ergebnisse | V1: Austragungsort: | W1: =Übersicht!G4 -> Börger
A2: 1 | B2: ='Wettkampf 1'!B2 -> Börgerwald II | D2: =G46 -> 936.7 | E2: =IF(H46>4,"Es sind zu viele Schützen in Wertung!"," ") -> Es sind zu viele Schützen in Wertung! | V2: Wettkampftag: | W2: =Übersicht!G3 -> 15.10.
A3: 2 | B3: ='Wettkampf 1'!B3 -> Neuvrees II | D3: =I46 -> 931.6 | E3: =IF(J46>4,"Es sind zu viele Schützen in Wertung!"," ") -> Es sind zu viele Schützen in Wertung!
A4: 3 | B4: ='Wettkampf 1'!B4 -> Börger III | D4: =K46 -> 934.7 | E4: =IF(L46>4,"Es sind zu viele Schützen in Wertung!"," ") ->  | X4: Ansprechpartner für Rückfragen:
A5: 4 | B5: ='Wettkampf 1'!B5 -> Börger II | D5: =M46 -> 934.0 | E5: =IF(N46>4,"Es sind zu viele Schützen in Wertung!"," ") -> Es sind zu viele Schützen in Wertung! | V5: Name: | W5: Zdralik
A6: 5 | B6: ='Wettkampf 1'!B6 -> Lahn IV | D6: =O46 -> 940.1 | E6: =IF(P46>4,"Es sind zu viele Schützen in Wertung!"," ") -> Es sind zu viele Schützen in Wertung! | V6: Tel: | W6: 01713283862
A7: 6 | B7: ='Wettkampf 1'!B7 -> Neuvrees I | D7: =Q46 -> 931.7 | E7: =IF(R46>4,"Es sind zu viele Schützen in Wertung!"," ") ->  | V7: Standaufsicht: | W7: Zdralik
B9: Einzelergebnisse: | C9: Verein / Gruppe | D9: Ergebnisse (mindestens 0 eintragen) | E9: AW? Dann x eintippen | G9: Verein 1 | I9: Verein 2 | K9: Verein 3 | M9: Verein 4 | O9: Verein 5 | Q9: Verein 6 | U9: Proberechnung bei Streifen:
A10: 1 | B10: ='Wettkampf 1'!B10 -> Andre Hanenkamp | C10: ='Wettkampf 1'!C10 -> Börgerwald II | D10: 311.4 | F10: =IF(E10="x","0",D10) -> 311.4 | G10: =IF(C10=$B$2,F10,0) -> 311.4 | H10: =(IF(AND($E10="",$C10=$B$2),1,0)) -> 1 | I10: =IF($C10=$B$3,F10,0) -> 0 | J10: =(IF(AND($E10="",$C10=$B$3),1,0)) -> 0 | K10: =IF($C10=$B$4,F10,0) -> 0 | L10: =(IF(AND($E10="",$C10=$B$4),1,0)) -> 0 | M10: =IF($C10=$B$5,F10,0) -> 0 | N10: =(IF(AND($E10="",$C10=$B$5),1,0)) -> 0 | O10: =IF($C10=$B$6,F10,0) -> 0 | P10: =(IF(AND($E10="",$C10=$B$6),1,0)) -> 0 | Q10: =IF($C10=$B$7,F10,0) -> 0 | R10: =(IF(AND($E10="",$C10=$B$7),1,0)) -> 0 | X10: =U10+V10+W10 -> 0.0 | Y10: =IF(X10=D10,1,0) -> 0 | Z10: =IF(X10=0,0,1) -> 0 | AA10: =IF(Y10+Z10=2,"Korrekt","") -> 
A11: 2 | B11: ='Wettkampf 1'!B11 -> Horst Sabel | C11: ='Wettkampf 1'!C11 -> Börgerwald II | D11: 309.0 | F11: =IF(E11="x","0",D11) -> 309.0 | G11: =IF(C11=$B$2,F11,0) -> 309 | H11: =(IF(AND($E11="",$C11=$B$2),1,0)) -> 1 | I11: =IF($C11=$B$3,F11,0) -> 0 | J11: =(IF(AND($E11="",$C11=$B$3),1,0)) -> 0 | K11: =IF($C11=$B$4,F11,0) -> 0 | L11: =(IF(AND($E11="",$C11=$B$4),1,0)) -> 0 | M11: =IF($C11=$B$5,F11,0) -> 0 | N11: =(IF(AND($E11="",$C11=$B$5),1,0)) -> 0 | O11: =IF($C11=$B$6,F11,0) -> 0 | P11: =(IF(AND($E11="",$C11=$B$6),1,0)) -> 0 | Q11: =IF($C11=$B$7,F11,0) -> 0 | R11: =(IF(AND($E11="",$C11=$B$7),1,0)) -> 0 | X11: =U11+V11+W11 -> 0.0 | Y11: =IF(X11=D11,1,0) -> 0 | Z11: =IF(X11=0,0,1) -> 0 | AA11: =IF(Y11+Z11=2,"Korrekt","") -> 
A12: 3 | B12: ='Wettkampf 1'!B12 -> Christian Robben | C12: ='Wettkampf 1'!C12 -> Börgerwald II | D12: 296.8 | E12: x | F12: 0 | G12: 0 | H12: 0 | I12: 0 | J12: 0 | K12: 0 | L12: 0 | M12: 0 | N12: 0 | O12: 0 | P12: 0 | Q12: 0 | R12: 0 | X12: 0.0 | Y12: 0 | Z12: 0
A13: 4 | B13: ='Wettkampf 1'!B13 -> Mathis Antons | C13: ='Wettkampf 1'!C13 -> Börgerwald II | D13: 314.6 | F13: 314.6 | G13: 314.6 | H13: 1 | I13: 0 | J13: 0 | K13: 0 | L13: 0 | M13: 0 | N13: 0 | O13: 0 | P13: 0 | Q13: 0 | R13: 0 | X13: 0.0 | Y13: 0 | Z13: 0
A14: 5 | B14: ='Wettkampf 1'!B14 -> Tobias Sebers | C14: ='Wettkampf 1'!C14 -> Börgerwald II | F14: 0.0 | G14: 0 | H14: 1 | I14: 0 | J14: 0 | K14: 0 | L14: 0 | M14: 0 | N14: 0 | O14: 0 | P14: 0 | Q14: 0 | R14: 0 | X14: 0.0 | Y14: 1 | Z14: 0
A15: 6 | B15: ='Wettkampf 1'!B15 -> Friedhelm Schroer | C15: ='Wettkampf 1'!C15 -> Börgerwald II | D15: 310.7 | F15: 310.7 | G15: 310.7 | H15: 1 | I15: 0 | J15: 0 | K15: 0 | L15: 0 | M15: 0 | N15: 0 | O15: 0 | P15: 0 | Q15: 0 | R15: 0 | X15: 0.0 | Y15: 0 | Z15: 0
A16: 7 | B16: ='Wettkampf 1'!B16 -> Toni Stahl | C16: ='Wettkampf 1'!C16 -> Börgerwald II | D16: 295.9 | E16: x | F16: 0 | G16: 0 | H16: 0 | I16: 0 | J16: 0 | K16: 0 | L16: 0 | M16: 0 | N16: 0 | O16: 0 | P16: 0 | Q16: 0 | R16: 0 | X16: 0.0 | Y16: 0 | Z16: 0
A17: 8 | B17: ='Wettkampf 1'!B17 -> Martin Hinrichs | C17: ='Wettkampf 1'!C17 -> Börgerwald II | E17: x | F17: 0 | G17: 0 | H17: 0 | I17: 0 | J17: 0 | K17: 0 | L17: 0 | M17: 0 | N17: 0 | O17: 0 | P17: 0 | Q17: 0 | R17: 0 | X17: 0.0 | Y17: 1 | Z17: 0
A18: 9 | B18: ='Wettkampf 1'!B18 -> Dirk Thunert | C18: ='Wettkampf 1'!C18 -> Neuvrees II | D18: 310.9 | F18: 310.9 | G18: 0 | H18: 0 | I18: 310.9 | J18: 1 | K18: 0 | L18: 0 | M18: 0 | N18: 0 | O18: 0 | P18: 0 | Q18: 0 | R18: 0 | X18: 0.0 | Y18: 0 | Z18: 0
A19: 10 | B19: ='Wettkampf 1'!B19 -> Hans Preuth | C19: ='Wettkampf 1'!C19 -> Neuvrees II | F19: 0.0 | G19: 0 | H19: 0 | I19: 0 | J19: 1 | K19: 0 | L19: 0 | M19: 0 | N19: 0 | O19: 0 | P19: 0 | Q19: 0 | R19: 0 | X19: 0.0 | Y19: 1 | Z19: 0
A20: 11 | B20: ='Wettkampf 1'!B20 -> Karl-Heinz Schrand | C20: ='Wettkampf 1'!C20 -> Neuvrees II | D20: 311.1 | F20: 311.1 | G20: 0 | H20: 0 | I20: 311.1 | J20: 1 | K20: 0 | L20: 0 | M20: 0 | N20: 0 | O20: 0 | P20: 0 | Q20: 0 | R20: 0 | X20: 0.0 | Y20: 0 | Z20: 0
A21: 12 | B21: ='Wettkampf 1'!B21 -> Holger Szczepanski | C21: ='Wettkampf 1'!C21 -> Neuvrees II | D21: 309.2 | F21: 309.2 | G21: 0 | H21: 0 | I21: 309.2 | J21: 1 | K21: 0 | L21: 0 | M21: 0 | N21: 0 | O21: 0 | P21: 0 | Q21: 0 | R21: 0 | X21: 0.0 | Y21: 0 | Z21: 0
A22: 13 | B22: ='Wettkampf 1'!B22 -> Bernd Witting | C22: ='Wettkampf 1'!C22 -> Neuvrees II | D22: 309.6 | F22: 309.6 | G22: 0 | H22: 0 | I22: 309.6 | J22: 1 | K22: 0 | L22: 0 | M22: 0 | N22: 0 | O22: 0 | P22: 0 | Q22: 0 | R22: 0 | X22: 0.0 | Y22: 0 | Z22: 0
A23: 14 | B23: ='Wettkampf 1'!B23 -> Hermann Schwarte | C23: ='Wettkampf 1'!C23 -> Börger II | D23: 310.7 | F23: 310.7 | G23: 0 | H23: 0 | I23: 0 | J23: 0 | K23: 0 | L23: 0 | M23: 310.7 | N23: 1 | O23: 0 | P23: 0 | Q23: 0 | R23: 0 | X23: 0.0 | Y23: 0 | Z23: 0
A24: 15 | B24: ='Wettkampf 1'!B24 -> Bernd Rode | C24: ='Wettkampf 1'!C24 -> Börger III | D24: 308.2 | E24: x | F24: 0 | G24: 0 | H24: 0 | I24: 0 | J24: 0 | K24: 0 | L24: 0 | M24: 0 | N24: 0 | O24: 0 | P24: 0 | Q24: 0 | R24: 0 | X24: 0.0 | Y24: 0 | Z24: 0
A25: 16 | B25: ='Wettkampf 1'!B25 -> Daniel Sebers | C25: ='Wettkampf 1'!C25 -> Börger III | D25: 312.0 | F25: 312.0 | G25: 0 | H25: 0 | I25: 0 | J25: 0 | K25: 312 | L25: 1 | M25: 0 | N25: 0 | O25: 0 | P25: 0 | Q25: 0 | R25: 0 | X25: 0.0 | Y25: 0 | Z25: 0
A26: 17 | B26: ='Wettkampf 1'!B26 -> Simon Schutenbrock | C26: ='Wettkampf 1'!C26 -> Börger III | D26: 314.4 | F26: 314.4 | G26: 0 | H26: 0 | I26: 0 | J26: 0 | K26: 314.4 | L26: 1 | M26: 0 | N26: 0 | O26: 0 | P26: 0 | Q26: 0 | R26: 0 | X26: 0.0 | Y26: 0 | Z26: 0
A27: 18 | B27: ='Wettkampf 1'!B27 -> Jürgen Schroer | C27: ='Wettkampf 1'!C27 -> Börger III | D27: 307.1 | F27: 307.1 | G27: 0 | H27: 0 | I27: 0 | J27: 0 | K27: 307.1 | L27: 1 | M27: 0 | N27: 0 | O27: 0 | P27: 0 | Q27: 0 | R27: 0 | X27: 0.0 | Y27: 0 | Z27: 0
A28: 19 | B28: ='Wettkampf 1'!B28 -> Marc Eckmann | C28: ='Wettkampf 1'!C28 -> Börger II | D28: 304.4 | E28: x | F28: 0 | G28: 0 | H28: 0 | I28: 0 | J28: 0 | K28: 0 | L28: 0 | M28: 0 | N28: 0 | O28: 0 | P28: 0 | Q28: 0 | R28: 0 | X28: 0.0 | Y28: 0 | Z28: 0
A29: 20 | B29: ='Wettkampf 1'!B29 -> Markus Jungsthöfel | C29: ='Wettkampf 1'!C29 -> Börger II | D29: 306.7 | F29: 306.7 | G29: 0 | H29: 0 | I29: 0 | J29: 0 | K29: 0 | L29: 0 | M29: 306.7 | N29: 1 | O29: 0 | P29: 0 | Q29: 0 | R29: 0 | X29: 0.0 | Y29: 0 | Z29: 0
A30: 21 | B30: ='Wettkampf 1'!B30 -> Jens Henzen | C30: ='Wettkampf 1'!C30 -> Börger III | D30: 308.3 | F30: 308.3 | G30: 0 | H30: 0 | I30: 0 | J30: 0 | K30: 308.3 | L30: 1 | M30: 0 | N30: 0 | O30: 0 | P30: 0 | Q30: 0 | R30: 0 | X30: 0.0 | Y30: 0 | Z30: 0
A31: 22 | B31: ='Wettkampf 1'!B31 -> Uwe Goldenstein | C31: ='Wettkampf 1'!C31 -> Börger II | D31: 302.8 | F31: 302.8 | G31: 0 | H31: 0 | I31: 0 | J31: 0 | K31: 0 | L31: 0 | M31: 302.8 | N31: 1 | O31: 0 | P31: 0 | Q31: 0 | R31: 0 | X31: 0.0 | Y31: 0 | Z31: 0
A32: 23 | B32: ='Wettkampf 1'!B32 -> Ingo Zdralik | C32: ='Wettkampf 1'!C32 -> Börger II | D32: 316.6 | F32: 316.6 | G32: 0 | H32: 0 | I32: 0 | J32: 0 | K32: 0 | L32: 0 | M32: 316.6 | N32: 1 | O32: 0 | P32: 0 | Q32: 0 | R32: 0 | X32: 0.0 | Y32: 0 | Z32: 0
A33: 24 | B33: ='Wettkampf 1'!B33 -> Schütze 24 | C33: ='Wettkampf 1'!C33 -> Börger II | F33: 0.0 | G33: 0 | H33: 0 | I33: 0 | J33: 0 | K33: 0 | L33: 0 | M33: 0 | N33: 1 | O33: 0 | P33: 0 | Q33: 0 | R33: 0 | X33: 0.0 | Y33: 1 | Z33: 0
A34: 25 | B34: ='Wettkampf 1'!B34 -> Oliver Reinelt | C34: ='Wettkampf 1'!C34 -> Lahn IV | D34: 305.2 | F34: 305.2 | G34: 0 | H34: 0 | I34: 0 | J34: 0 | K34: 0 | L34: 0 | M34: 0 | N34: 0 | O34: 305.2 | P34: 1 | Q34: 0 | R34: 0 | X34: 0.0 | Y34: 0 | Z34: 0
A35: 26 | B35: ='Wettkampf 1'!B35 -> Vitalij Schmidt | C35: ='Wettkampf 1'!C35 -> Lahn IV | D35: 314.5 | F35: 314.5 | G35: 0 | H35: 0 | I35: 0 | J35: 0 | K35: 0 | L35: 0 | M35: 0 | N35: 0 | O35: 314.5 | P35: 1 | Q35: 0 | R35: 0 | X35: 0.0 | Y35: 0 | Z35: 0
A36: 27 | B36: ='Wettkampf 1'!B36 -> Hermann Benten | C36: ='Wettkampf 1'!C36 -> Lahn IV | D36: 309.4 | F36: 309.4 | G36: 0 | H36: 0 | I36: 0 | J36: 0 | K36: 0 | L36: 0 | M36: 0 | N36: 0 | O36: 309.4 | P36: 1 | Q36: 0 | R36: 0 | X36: 0.0 | Y36: 0 | Z36: 0
A37: 28 | B37: ='Wettkampf 1'!B37 -> Johannes Thesing | C37: ='Wettkampf 1'!C37 -> Lahn IV | D37: 316.2 | F37: 316.2 | G37: 0 | H37: 0 | I37: 0 | J37: 0 | K37: 0 | L37: 0 | M37: 0 | N37: 0 | O37: 316.2 | P37: 1 | Q37: 0 | R37: 0 | X37: 0.0 | Y37: 0 | Z37: 0
A38: 29 | B38: ='Wettkampf 1'!B38 -> Schütze 29 | C38: ='Wettkampf 1'!C38 -> Lahn IV | F38: 0.0 | G38: 0 | H38: 0 | I38: 0 | J38: 0 | K38: 0 | L38: 0 | M38: 0 | N38: 0 | O38: 0 | P38: 1 | Q38: 0 | R38: 0 | X38: 0.0 | Y38: 1 | Z38: 0
A39: 30 | B39: ='Wettkampf 1'!B39 -> Willi Rolfes | C39: ='Wettkampf 1'!C39 -> Neuvrees I | D39: 311.1 | F39: 311.1 | G39: 0 | H39: 0 | I39: 0 | J39: 0 | K39: 0 | L39: 0 | M39: 0 | N39: 0 | O39: 0 | P39: 0 | Q39: 311.1 | R39: 1 | X39: 0.0 | Y39: 0 | Z39: 0
A40: 31 | B40: ='Wettkampf 1'!B40 -> Werner Thyen | C40: ='Wettkampf 1'!C40 -> Neuvrees I | D40: 302.1 | E40: x | F40: 0 | G40: 0 | H40: 0 | I40: 0 | J40: 0 | K40: 0 | L40: 0 | M40: 0 | N40: 0 | O40: 0 | P40: 0 | Q40: 0 | R40: 0 | X40: 0.0 | Y40: 0 | Z40: 0
A41: 32 | B41: ='Wettkampf 1'!B41 -> Wilfried Breyer | C41: ='Wettkampf 1'!C41 -> Neuvrees I | D41: 310.7 | F41: 310.7 | G41: 0 | H41: 0 | I41: 0 | J41: 0 | K41: 0 | L41: 0 | M41: 0 | N41: 0 | O41: 0 | P41: 0 | Q41: 310.7 | R41: 1 | X41: 0.0 | Y41: 0 | Z41: 0
A42: 33 | B42: ='Wettkampf 1'!B42 -> Klaus Steenken | C42: ='Wettkampf 1'!C42 -> Neuvrees I | D42: 309.2 | E42: x | F42: 0 | G42: 0 | H42: 0 | I42: 0 | J42: 0 | K42: 0 | L42: 0 | M42: 0 | N42: 0 | O42: 0 | P42: 0 | Q42: 0 | R42: 0 | X42: 0.0 | Y42: 0 | Z42: 0
A43: 34 | B43: ='Wettkampf 1'!B43 -> Markus Janßen | C43: ='Wettkampf 1'!C43 -> Neuvrees I | D43: 309.9 | F43: 309.9 | G43: 0 | H43: 0 | I43: 0 | J43: 0 | K43: 0 | L43: 0 | M43: 0 | N43: 0 | O43: 0 | P43: 0 | Q43: 309.9 | R43: 1 | X43: 0.0 | Y43: 0 | Z43: 0
A44: 35 | B44: ='Wettkampf 1'!B44 -> Carsten Peters | C44: ='Wettkampf 1'!C44 -> Neuvrees I | D44: 308.3 | F44: 308.3 | G44: 0 | H44: 0 | I44: 0 | J44: 0 | K44: 0 | L44: 0 | M44: 0 | N44: 0 | O44: 0 | P44: 0 | Q44: 308.3 | R44: 1 | X44: 0.0 | Y44: 0 | Z44: 0
A45: 36 | B45: ='Wettkampf 1'!B45 -> Dietmar Spekker | C45: ='Wettkampf 1'!C45 -> Neuvrees I | D45: 300.4 | E45: x | F45: 0 | G45: 0 | H45: 0 | I45: 0 | J45: 0 | K45: 0 | L45: 0 | M45: 0 | N45: 0 | O45: 0 | P45: 0 | Q45: 0 | R45: 0 | X45: 0.0 | Y45: 0 | Z45: 0
G46: =LARGE(G10:G45,1)+LARGE(G10:G45,2)+LARGE(G10:G45,3) -> 936.7 | H46: =SUM(H10:H45) -> 5 | I46: =LARGE(I10:I45,1)+LARGE(I10:I45,2)+LARGE(I10:I45,3) -> 931.6 | J46: =SUM(J10:J45) -> 5 | K46: =LARGE(K10:K45,1)+LARGE(K10:K45,2)+LARGE(K10:K45,3) -> 934.7 | L46: =SUM(L10:L45) -> 4 | M46: =LARGE(M10:M45,1)+LARGE(M10:M45,2)+LARGE(M10:M45,3) -> 934 | N46: =SUM(N10:N45) -> 5 | O46: =LARGE(O10:O45,1)+LARGE(O10:O45,2)+LARGE(O10:O45,3) -> 940.1 | P46: =SUM(P10:P45) -> 5 | Q46: =LARGE(Q10:Q45,1)+LARGE(Q10:Q45,2)+LARGE(Q10:Q45,3) -> 931.7 | R46: =SUM(R10:S45) -> 4
C47: per Email an: sk-huemmling@gmx.de

Sheet 5
B1: Verein / Gruppe | D1: Ergebnisse | V1: Austragungsort: | W1: =Übersicht!H4 -> Lahn
A2: 1 | B2: ='Wettkampf 1'!B2 -> Börgerwald II | D2: =G46 -> 935.1 | E2: =IF(H46>4,"Es sind zu viele Schützen in Wertung!"," ") ->  | V2: Wettkampftag: | W2: =Übersicht!H3 -> 29.10.
A3: 2 | B3: ='Wettkampf 1'!B3 -> Neuvrees II | D3: =I46 -> 935.9 | E3: =IF(J46>4,"Es sind zu viele Schützen in Wertung!"," ") -> 
A4: 3 | B4: ='Wettkampf 1'!B4 -> Börger III | D4: =K46 -> 931.9 | E4: =IF(L46>4,"Es sind zu viele Schützen in Wertung!"," ") ->  | X4: Ansprechpartner für Rückfragen:
A5: 4 | B5: ='Wettkampf 1'!B5 -> Börger II | D5: =M46 -> 921.6 | E5: =IF(N46>4,"Es sind zu viele Schützen in Wertung!"," ") ->  | V5: Name: | W5: Johannes Thesing
A6: 5 | B6: ='Wettkampf 1'!B6 -> Lahn IV | D6: =O46 -> 933.4 | E6: =IF(P46>4,"Es sind zu viele Schützen in Wertung!"," ") ->  | V6: Tel: | W6: 0151/21065967
A7: 6 | B7: ='Wettkampf 1'!B7 -> Neuvrees I | D7: =Q46 -> 932.2 | E7: =IF(R46>4,"Es sind zu viele Schützen in Wertung!"," ") ->  | V7: Standaufsicht: | W7: eintragen
B9: Einzelergebnisse: | C9: Verein / Gruppe | D9: Ergebnisse (mindestens 0 eintragen) | E9: AW? Dann x eintippen | G9: Verein 1 | I9: Verein 2 | K9: Verein 3 | M9: Verein 4 | O9: Verein 5 | Q9: Verein 6 | U9: Proberechnung bei Streifen:
A10: 1 | B10: ='Wettkampf 1'!B10 -> Andre Hanenkamp | C10: ='Wettkampf 1'!C10 -> Börgerwald II | D10: 314.9 | F10: =IF(E10="x","0",D10) -> 314.9 | G10: =IF(C10=$B$2,F10,0) -> 314.9 | H10: =(IF(AND($E10="",$C10=$B$2),1,0)) -> 1 | I10: =IF($C10=$B$3,F10,0) -> 0 | J10: =(IF(AND($E10="",$C10=$B$3),1,0)) -> 0 | K10: =IF($C10=$B$4,F10,0) -> 0 | L10: =(IF(AND($E10="",$C10=$B$4),1,0)) -> 0 | M10: =IF($C10=$B$5,F10,0) -> 0 | N10: =(IF(AND($E10="",$C10=$B$5),1,0)) -> 0 | O10: =IF($C10=$B$6,F10,0) -> 0 | P10: =(IF(AND($E10="",$C10=$B$6),1,0)) -> 0 | Q10: =IF($C10=$B$7,F10,0) -> 0 | R10: =(IF(AND($E10="",$C10=$B$7),1,0)) -> 0 | U10: 104.7 | V10: 104.9 | W10: 105.3 | X10: =U10+V10+W10 -> 314.9 | Y10: =IF(X10=D10,1,0) -> 1 | Z10: =IF(X10=0,0,1) -> 1 | AA10: =IF(Y10+Z10=2,"Korrekt","") -> Korrekt
A11: 2 | B11: ='Wettkampf 1'!B11 -> Horst Sabel | C11: ='Wettkampf 1'!C11 -> Börgerwald II | D11: 309.4 | F11: =IF(E11="x","0",D11) -> 309.4 | G11: =IF(C11=$B$2,F11,0) -> 309.4 | H11: =(IF(AND($E11="",$C11=$B$2),1,0)) -> 1 | I11: =IF($C11=$B$3,F11,0) -> 0 | J11: =(IF(AND($E11="",$C11=$B$3),1,0)) -> 0 | K11: =IF($C11=$B$4,F11,0) -> 0 | L11: =(IF(AND($E11="",$C11=$B$4),1,0)) -> 0 | M11: =IF($C11=$B$5,F11,0) -> 0 | N11: =(IF(AND($E11="",$C11=$B$5),1,0)) -> 0 | O11: =IF($C11=$B$6,F11,0) -> 0 | P11: =(IF(AND($E11="",$C11=$B$6),1,0)) -> 0 | Q11: =IF($C11=$B$7,F11,0) -> 0 | R11: =(IF(AND($E11="",$C11=$B$7),1,0)) -> 0 | U11: 103.8 | V11: 103.5 | W11: 102.1 | X11: =U11+V11+W11 -> 309.4 | Y11: =IF(X11=D11,1,0) -> 1 | Z11: =IF(X11=0,0,1) -> 1 | AA11: =IF(Y11+Z11=2,"Korrekt","") -> Korrekt
A12: 3 | B12: ='Wettkampf 1'!B12 -> Christian Robben | C12: ='Wettkampf 1'!C12 -> Börgerwald II | D12: 296.6 | E12: X | F12: 0 | G12: 0 | H12: 0 | I12: 0 | J12: 0 | K12: 0 | L12: 0 | M12: 0 | N12: 0 | O12: 0 | P12: 0 | Q12: 0 | R12: 0 | U12: 99.4 | V12: 98.9 | W12: 98.3 | X12: 296.6 | Y12: 1 | Z12: 1 | AA12: Korrekt
A13: 4 | B13: ='Wettkampf 1'!B13 -> Mathis Antons | C13: ='Wettkampf 1'!C13 -> Börgerwald II | D13: 310.8 | F13: 310.8 | G13: 310.8 | H13: 1 | I13: 0 | J13: 0 | K13: 0 | L13: 0 | M13: 0 | N13: 0 | O13: 0 | P13: 0 | Q13: 0 | R13: 0 | U13: 103.3 | V13: 104.4 | W13: 103.1 | X13: 310.8 | Y13: 1 | Z13: 1 | AA13: Korrekt
A14: 5 | B14: ='Wettkampf 1'!B14 -> Tobias Sebers | C14: ='Wettkampf 1'!C14 -> Börgerwald II | D14: 304.6 | E14: X | F14: 0 | G14: 0 | H14: 0 | I14: 0 | J14: 0 | K14: 0 | L14: 0 | M14: 0 | N14: 0 | O14: 0 | P14: 0 | Q14: 0 | R14: 0 | U14: 102.5 | V14: 101.9 | W14: 100.2 | X14: 304.6 | Y14: 1 | Z14: 1 | AA14: Korrekt
A15: 6 | B15: ='Wettkampf 1'!B15 -> Friedhelm Schroer | C15: ='Wettkampf 1'!C15 -> Börgerwald II | D15: 305.4 | F15: 305.4 | G15: 305.4 | H15: 1 | I15: 0 | J15: 0 | K15: 0 | L15: 0 | M15: 0 | N15: 0 | O15: 0 | P15: 0 | Q15: 0 | R15: 0 | U15: 104.0 | V15: 101.1 | W15: 100.3 | X15: 305.4 | Y15: 1 | Z15: 1 | AA15: Korrekt
A16: 7 | B16: ='Wettkampf 1'!B16 -> Toni Stahl | C16: ='Wettkampf 1'!C16 -> Börgerwald II | E16: X | F16: 0 | G16: 0 | H16: 0 | I16: 0 | J16: 0 | K16: 0 | L16: 0 | M16: 0 | N16: 0 | O16: 0 | P16: 0 | Q16: 0 | R16: 0 | X16: 0.0 | Y16: 1 | Z16: 0
A17: 8 | B17: ='Wettkampf 1'!B17 -> Martin Hinrichs | C17: ='Wettkampf 1'!C17 -> Börgerwald II | E17: X | F17: 0 | G17: 0 | H17: 0 | I17: 0 | J17: 0 | K17: 0 | L17: 0 | M17: 0 | N17: 0 | O17: 0 | P17: 0 | Q17: 0 | R17: 0 | X17: 0.0 | Y17: 1 | Z17: 0
A18: 9 | B18: ='Wettkampf 1'!B18 -> Dirk Thunert | C18: ='Wettkampf 1'!C18 -> Neuvrees II | D18: 312.5 | F18: 312.5 | G18: 0 | H18: 0 | I18: 312.5 | J18: 1 | K18: 0 | L18: 0 | M18: 0 | N18: 0 | O18: 0 | P18: 0 | Q18: 0 | R18: 0 | U18: 104.3 | V18: 104.6 | W18: 103.6 | X18: 312.5 | Y18: 1 | Z18: 1 | AA18: Korrekt
A19: 10 | B19: ='Wettkampf 1'!B19 -> Hans Preuth | C19: ='Wettkampf 1'!C19 -> Neuvrees II | E19: X | F19: 0 | G19: 0 | H19: 0 | I19: 0 | J19: 0 | K19: 0 | L19: 0 | M19: 0 | N19: 0 | O19: 0 | P19: 0 | Q19: 0 | R19: 0 | X19: 0.0 | Y19: 1 | Z19: 0
A20: 11 | B20: ='Wettkampf 1'!B20 -> Karl-Heinz Schrand | C20: ='Wettkampf 1'!C20 -> Neuvrees II | D20: 313.1 | F20: 313.1 | G20: 0 | H20: 0 | I20: 313.1 | J20: 1 | K20: 0 | L20: 0 | M20: 0 | N20: 0 | O20: 0 | P20: 0 | Q20: 0 | R20: 0 | U20: 104.4 | V20: 104.1 | W20: 104.6 | X20: 313.1 | Y20: 1 | Z20: 1 | AA20: Korrekt
A21: 12 | B21: ='Wettkampf 1'!B21 -> Holger Szczepanski | C21: ='Wettkampf 1'!C21 -> Neuvrees II | D21: 310.2 | F21: 310.2 | G21: 0 | H21: 0 | I21: 310.2 | J21: 1 | K21: 0 | L21: 0 | M21: 0 | N21: 0 | O21: 0 | P21: 0 | Q21: 0 | R21: 0 | U21: 103.1 | V21: 104.2 | W21: 102.9 | X21: 310.2 | Y21: 1 | Z21: 1 | AA21: Korrekt
A22: 13 | B22: ='Wettkampf 1'!B22 -> Bernd Witting | C22: ='Wettkampf 1'!C22 -> Neuvrees II | D22: 310.3 | F22: 310.3 | G22: 0 | H22: 0 | I22: 310.3 | J22: 1 | K22: 0 | L22: 0 | M22: 0 | N22: 0 | O22: 0 | P22: 0 | Q22: 0 | R22: 0 | U22: 105.1 | V22: 102.1 | W22: 103.1 | X22: 310.3 | Y22: 1 | Z22: 1 | AA22: Korrekt
A23: 14 | B23: ='Wettkampf 1'!B23 -> Hermann Schwarte | C23: ='Wettkampf 1'!C23 -> Börger II | D23: 302.1 | F23: 302.1 | G23: 0 | H23: 0 | I23: 0 | J23: 0 | K23: 0 | L23: 0 | M23: 302.1 | N23: 1 | O23: 0 | P23: 0 | Q23: 0 | R23: 0 | U23: 101.2 | V23: 102.3 | W23: 98.6 | X23: 302.1 | Y23: 1 | Z23: 1 | AA23: Korrekt
A24: 15 | B24: ='Wettkampf 1'!B24 -> Bernd Rode | C24: ='Wettkampf 1'!C24 -> Börger III | D24: 309.2 | F24: 309.2 | G24: 0 | H24: 0 | I24: 0 | J24: 0 | K24: 309.2 | L24: 1 | M24: 0 | N24: 0 | O24: 0 | P24: 0 | Q24: 0 | R24: 0 | U24: 103.9 | V24: 102.1 | W24: 103.2 | X24: 309.2 | Y24: 1 | Z24: 1 | AA24: Korrekt
A25: 16 | B25: ='Wettkampf 1'!B25 -> Daniel Sebers | C25: ='Wettkampf 1'!C25 -> Börger III | D25: 307.2 | F25: 307.2 | G25: 0 | H25: 0 | I25: 0 | J25: 0 | K25: 307.2 | L25: 1 | M25: 0 | N25: 0 | O25: 0 | P25: 0 | Q25: 0 | R25: 0 | U25: 101.9 | V25: 103.0 | W25: 102.3 | X25: 307.2 | Y25: 1 | Z25: 1 | AA25: Korrekt
A26: 17 | B26: ='Wettkampf 1'!B26 -> Simon Schutenbrock | C26: ='Wettkampf 1'!C26 -> Börger III | D26: 309.6 | F26: 309.6 | G26: 0 | H26: 0 | I26: 0 | J26: 0 | K26: 309.6 | L26: 1 | M26: 0 | N26: 0 | O26: 0 | P26: 0 | Q26: 0 | R26: 0 | U26: 101.6 | V26: 104.3 | W26: 103.7 | X26: 309.6 | Y26: 1 | Z26: 1 | AA26: Korrekt
A27: 18 | B27: ='Wettkampf 1'!B27 -> Jürgen Schroer | C27: ='Wettkampf 1'!C27 -> Börger III | D27: 314.1 | E27: X | F27: 0 | G27: 0 | H27: 0 | I27: 0 | J27: 0 | K27: 0 | L27: 0 | M27: 0 | N27: 0 | O27: 0 | P27: 0 | Q27: 0 | R27: 0 | U27: 104.9 | V27: 103.8 | W27: 105.4 | X27: 314.1 | Y27: 1 | Z27: 1 | AA27: Korrekt
A28: 19 | B28: ='Wettkampf 1'!B28 -> Marc Eckmann | C28: ='Wettkampf 1'!C28 -> Börger II | D28: 299.4 | F28: 299.4 | G28: 0 | H28: 0 | I28: 0 | J28: 0 | K28: 0 | L28: 0 | M28: 299.4 | N28: 1 | O28: 0 | P28: 0 | Q28: 0 | R28: 0 | U28: 99.2 | V28: 99.7 | W28: 100.5 | X28: 299.4 | Y28: 1 | Z28: 1 | AA28: Korrekt
A29: 20 | B29: ='Wettkampf 1'!B29 -> Markus Jungsthöfel | C29: ='Wettkampf 1'!C29 -> Börger II | D29: 305.4 | F29: 305.4 | G29: 0 | H29: 0 | I29: 0 | J29: 0 | K29: 0 | L29: 0 | M29: 305.4 | N29: 1 | O29: 0 | P29: 0 | Q29: 0 | R29: 0 | U29: 102.3 | V29: 101.2 | W29: 101.9 | X29: 305.4 | Y29: 1 | Z29: 1 | AA29: Korrekt
A30: 21 | B30: ='Wettkampf 1'!B30 -> Jens Henzen | C30: ='Wettkampf 1'!C30 -> Börger III | D30: 313.1 | F30: 313.1 | G30: 0 | H30: 0 | I30: 0 | J30: 0 | K30: 313.1 | L30: 1 | M30: 0 | N30: 0 | O30: 0 | P30: 0 | Q30: 0 | R30: 0 | U30: 104.3 | V30: 105.2 | W30: 103.6 | X30: 313.1 | Y30: 1 | Z30: 1 | AA30: Korrekt
A31: 22 | B31: ='Wettkampf 1'!B31 -> Uwe Goldenstein | C31: ='Wettkampf 1'!C31 -> Börger II | D31: 306.2 | E31: X | F31: 0 | G31: 0 | H31: 0 | I31: 0 | J31: 0 | K31: 0 | L31: 0 | M31: 0 | N31: 0 | O31: 0 | P31: 0 | Q31: 0 | R31: 0 | U31: 102.3 | V31: 100.4 | W31: 103.5 | X31: 306.2 | Y31: 1 | Z31: 1 | AA31: Korrekt
A32: 23 | B32: ='Wettkampf 1'!B32 -> Ingo Zdralik | C32: ='Wettkampf 1'!C32 -> Börger II | D32: 314.1 | F32: 314.1 | G32: 0 | H32: 0 | I32: 0 | J32: 0 | K32: 0 | L32: 0 | M32: 314.1 | N32: 1 | O32: 0 | P32: 0 | Q32: 0 | R32: 0 | U32: 104.3 | V32: 105.6 | W32: 104.2 | X32: 314.1 | Y32: 1 | Z32: 1 | AA32: Korrekt
A33: 24 | B33: ='Wettkampf 1'!B33 -> Schütze 24 | C33: ='Wettkampf 1'!C33 -> Börger II | E33: X | F33: 0 | G33: 0 | H33: 0 | I33: 0 | J33: 0 | K33: 0 | L33: 0 | M33: 0 | N33: 0 | O33: 0 | P33: 0 | Q33: 0 | R33: 0 | X33: 0.0 | Y33: 1 | Z33: 0
A34: 25 | B34: ='Wettkampf 1'!B34 -> Oliver Reinelt | C34: ='Wettkampf 1'!C34 -> Lahn IV | D34: 304.6 | F34: 304.6 | G34: 0 | H34: 0 | I34: 0 | J34: 0 | K34: 0 | L34: 0 | M34: 0 | N34: 0 | O34: 304.6 | P34: 1 | Q34: 0 | R34: 0 | U34: 101.1 | V34: 101.6 | W34: 101.9 | X34: 304.6 | Y34: 1 | Z34: 1 | AA34: Korrekt
A35: 26 | B35: ='Wettkampf 1'!B35 -> Vitalij Schmidt | C35: ='Wettkampf 1'!C35 -> Lahn IV | D35: 306.7 | F35: 306.7 | G35: 0 | H35: 0 | I35: 0 | J35: 0 | K35: 0 | L35: 0 | M35: 0 | N35: 0 | O35: 306.7 | P35: 1 | Q35: 0 | R35: 0 | U35: 101.9 | V35: 103.4 | W35: 101.4 | X35: 306.7 | Y35: 1 | Z35: 1 | AA35: Korrekt
A36: 27 | B36: ='Wettkampf 1'!B36 -> Hermann Benten | C36: ='Wettkampf 1'!C36 -> Lahn IV | D36: 309.4 | F36: 309.4 | G36: 0 | H36: 0 | I36: 0 | J36: 0 | K36: 0 | L36: 0 | M36: 0 | N36: 0 | O36: 309.4 | P36: 1 | Q36: 0 | R36: 0 | U36: 105.4 | V36: 102.5 | W36: 101.5 | X36: 309.4 | Y36: 1 | Z36: 1 | AA36: Korrekt
A37: 28 | B37: ='Wettkampf 1'!B37 -> Johannes Thesing | C37: ='Wettkampf 1'!C37 -> Lahn IV | D37: 317.3 | F37: 317.3 | G37: 0 | H37: 0 | I37: 0 | J37: 0 | K37: 0 | L37: 0 | M37: 0 | N37: 0 | O37: 317.3 | P37: 1 | Q37: 0 | R37: 0 | U37: 106.3 | V37: 105.3 | W37: 105.7 | X37: 317.3 | Y37: 1 | Z37: 1 | AA37: Korrekt
A38: 29 | B38: ='Wettkampf 1'!B38 -> Schütze 29 | C38: ='Wettkampf 1'!C38 -> Lahn IV | E38: X | F38: 0 | G38: 0 | H38: 0 | I38: 0 | J38: 0 | K38: 0 | L38: 0 | M38: 0 | N38: 0 | O38: 0 | P38: 0 | Q38: 0 | R38: 0 | X38: 0.0 | Y38: 1 | Z38: 0
A39: 30 | B39: ='Wettkampf 1'!B39 -> Willi Rolfes | C39: ='Wettkampf 1'!C39 -> Neuvrees I | D39: 309.9 | F39: 309.9 | G39: 0 | H39: 0 | I39: 0 | J39: 0 | K39: 0 | L39: 0 | M39: 0 | N39: 0 | O39: 0 | P39: 0 | Q39: 309.9 | R39: 1 | U39: 102.9 | V39: 101.8 | W39: 105.2 | X39: 309.9 | Y39: 1 | Z39: 1 | AA39: Korrekt
A40: 31 | B40: ='Wettkampf 1'!B40 -> Werner Thyen | C40: ='Wettkampf 1'!C40 -> Neuvrees I | D40: 308.9 | E40: X | F40: 0 | G40: 0 | H40: 0 | I40: 0 | J40: 0 | K40: 0 | L40: 0 | M40: 0 | N40: 0 | O40: 0 | P40: 0 | Q40: 0 | R40: 0 | U40: 102.6 | V40: 102.8 | W40: 103.5 | X40: 308.9 | Y40: 1 | Z40: 1 | AA40: Korrekt
A41: 32 | B41: ='Wettkampf 1'!B41 -> Wilfried Breyer | C41: ='Wettkampf 1'!C41 -> Neuvrees I | D41: 312.1 | F41: 312.1 | G41: 0 | H41: 0 | I41: 0 | J41: 0 | K41: 0 | L41: 0 | M41: 0 | N41: 0 | O41: 0 | P41: 0 | Q41: 312.1 | R41: 1 | U41: 102.3 | V41: 105.3 | W41: 104.5 | X41: 312.1 | Y41: 1 | Z41: 1 | AA41: Korrekt
A42: 33 | B42: ='Wettkampf 1'!B42 -> Klaus Steenken | C42: ='Wettkampf 1'!C42 -> Neuvrees I | D42: 309.4 | F42: 309.4 | G42: 0 | H42: 0 | I42: 0 | J42: 0 | K42: 0 | L42: 0 | M42: 0 | N42: 0 | O42: 0 | P42: 0 | Q42: 309.4 | R42: 1 | U42: 104.6 | V42: 100.3 | W42: 104.5 | X42: 309.4 | Y42: 1 | Z42: 1 | AA42: Korrekt
A43: 34 | B43: ='Wettkampf 1'!B43 -> Markus Janßen | C43: ='Wettkampf 1'!C43 -> Neuvrees I | D43: 310.2 | F43: 310.2 | G43: 0 | H43: 0 | I43: 0 | J43: 0 | K43: 0 | L43: 0 | M43: 0 | N43: 0 | O43: 0 | P43: 0 | Q43: 310.2 | R43: 1 | U43: 103.5 | V43: 103.8 | W43: 102.9 | X43: 310.2 | Y43: 1 | Z43: 1 | AA43: Korrekt
A44: 35 | B44: ='Wettkampf 1'!B44 -> Carsten Peters | C44: ='Wettkampf 1'!C44 -> Neuvrees I | D44: 304.1 | E44: X | F44: 0 | G44: 0 | H44: 0 | I44: 0 | J44: 0 | K44: 0 | L44: 0 | M44: 0 | N44: 0 | O44: 0 | P44: 0 | Q44: 0 | R44: 0 | U44: 102.0 | V44: 101.0 | W44: 101.1 | X44: 304.1 | Y44: 1 | Z44: 1 | AA44: Korrekt
A45: 36 | B45: ='Wettkampf 1'!B45 -> Dietmar Spekker | C45: ='Wettkampf 1'!C45 -> Neuvrees I | E45: X | F45: 0 | G45: 0 | H45: 0 | I45: 0 | J45: 0 | K45: 0 | L45: 0 | M45: 0 | N45: 0 | O45: 0 | P45: 0 | Q45: 0 | R45: 0 | X45: 0.0 | Y45: 1 | Z45: 0
G46: =LARGE(G10:G45,1)+LARGE(G10:G45,2)+LARGE(G10:G45,3) -> 935.1 | H46: =SUM(H10:H45) -> 4 | I46: =LARGE(I10:I45,1)+LARGE(I10:I45,2)+LARGE(I10:I45,3) -> 935.9 | J46: =SUM(J10:J45) -> 4 | K46: =LARGE(K10:K45,1)+LARGE(K10:K45,2)+LARGE(K10:K45,3) -> 931.9 | L46: =SUM(L10:L45) -> 4 | M46: =LARGE(M10:M45,1)+LARGE(M10:M45,2)+LARGE(M10:M45,3) -> 921.6 | N46: =SUM(N10:N45) -> 4 | O46: =LARGE(O10:O45,1)+LARGE(O10:O45,2)+LARGE(O10:O45,3) -> 933.4 | P46: =SUM(P10:P45) -> 4 | Q46: =LARGE(Q10:Q45,1)+LARGE(Q10:Q45,2)+LARGE(Q10:Q45,3) -> 932.2 | R46: =SUM(R10:S45) -> 4
C47: per Email an: sk-huemmling@gmx.de

Sheet 6
B1: Verein / Gruppe | D1: Ergebnisse | V1: Austragungsort: | W1: =Übersicht!I4 -> Neuvrees
A2: 1 | B2: ='Wettkampf 1'!B2 -> Börgerwald II | D2: =G46 -> 927.8 | E2: =IF(H46>4,"Es sind zu viele Schützen in Wertung!"," ") ->  | V2: Wettkampftag: | W2: =Übersicht!I3 -> 19.11.
A3: 2 | B3: ='Wettkampf 1'!B3 -> Neuvrees II | D3: =I46 -> 933.7 | E3: =IF(J46>4,"Es sind zu viele Schützen in Wertung!"," ") -> 
A4: 3 | B4: ='Wettkampf 1'!B4 -> Börger III | D4: =K46 -> 933.3 | E4: =IF(L46>4,"Es sind zu viele Schützen in Wertung!"," ") ->  | X4: Ansprechpartner für Rückfragen:
A5: 4 | B5: ='Wettkampf 1'!B5 -> Börger II | D5: =M46 -> 929.2 | E5: =IF(N46>4,"Es sind zu viele Schützen in Wertung!"," ") ->  | V5: Name: | W5: Werner Thyen
A6: 5 | B6: ='Wettkampf 1'!B6 -> Lahn IV | D6: =O46 -> 928.5 | E6: =IF(P46>4,"Es sind zu viele Schützen in Wertung!"," ") ->  | V6: Tel: | W6: 015206834657
A7: 6 | B7: ='Wettkampf 1'!B7 -> Neuvrees I | D7: =Q46 -> 932.9 | E7: =IF(R46>4,"Es sind zu viele Schützen in Wertung!"," ") ->  | V7: Standaufsicht: | W7: Markus Janßen
B9: Einzelergebnisse: | C9: Verein / Gruppe | D9: Ergebnisse (mindestens 0 eintragen) | E9: AW? Dann x eintippen | G9: Verein 1 | I9: Verein 2 | K9: Verein 3 | M9: Verein 4 | O9: Verein 5 | Q9: Verein 6 | U9: Proberechnung bei Streifen:
A10: 1 | B10: ='Wettkampf 1'!B10 -> Andre Hanenkamp | C10: ='Wettkampf 1'!C10 -> Börgerwald II | D10: 310.8 | F10: =IF(E10="x","0",D10) -> 310.8 | G10: =IF(C10=$B$2,F10,0) -> 310.8 | H10: =(IF(AND($E10="",$C10=$B$2),1,0)) -> 1 | I10: =IF($C10=$B$3,F10,0) -> 0 | J10: =(IF(AND($E10="",$C10=$B$3),1,0)) -> 0 | K10: =IF($C10=$B$4,F10,0) -> 0 | L10: =(IF(AND($E10="",$C10=$B$4),1,0)) -> 0 | M10: =IF($C10=$B$5,F10,0) -> 0 | N10: =(IF(AND($E10="",$C10=$B$5),1,0)) -> 0 | O10: =IF($C10=$B$6,F10,0) -> 0 | P10: =(IF(AND($E10="",$C10=$B$6),1,0)) -> 0 | Q10: =IF($C10=$B$7,F10,0) -> 0 | R10: =(IF(AND($E10="",$C10=$B$7),1,0)) -> 0 | U10: 103.3 | V10: 103.7 | W10: 103.8 | X10: =U10+V10+W10 -> 310.8 | Y10: =IF(X10=D10,1,0) -> 1 | Z10: =IF(X10=0,0,1) -> 1 | AA10: =IF(Y10+Z10=2,"Korrekt","") -> Korrekt
A11: 2 | B11: ='Wettkampf 1'!B11 -> Horst Sabel | C11: ='Wettkampf 1'!C11 -> Börgerwald II | D11: 308.0 | F11: =IF(E11="x","0",D11) -> 308.0 | G11: =IF(C11=$B$2,F11,0) -> 308 | H11: =(IF(AND($E11="",$C11=$B$2),1,0)) -> 1 | I11: =IF($C11=$B$3,F11,0) -> 0 | J11: =(IF(AND($E11="",$C11=$B$3),1,0)) -> 0 | K11: =IF($C11=$B$4,F11,0) -> 0 | L11: =(IF(AND($E11="",$C11=$B$4),1,0)) -> 0 | M11: =IF($C11=$B$5,F11,0) -> 0 | N11: =(IF(AND($E11="",$C11=$B$5),1,0)) -> 0 | O11: =IF($C11=$B$6,F11,0) -> 0 | P11: =(IF(AND($E11="",$C11=$B$6),1,0)) -> 0 | Q11: =IF($C11=$B$7,F11,0) -> 0 | R11: =(IF(AND($E11="",$C11=$B$7),1,0)) -> 0 | U11: 100.8 | V11: 103.5 | W11: 103.7 | X11: =U11+V11+W11 -> 308.0 | Y11: =IF(X11=D11,1,0) -> 1 | Z11: =IF(X11=0,0,1) -> 1 | AA11: =IF(Y11+Z11=2,"Korrekt","") -> Korrekt
A12: 3 | B12: ='Wettkampf 1'!B12 -> Christian Robben | C12: ='Wettkampf 1'!C12 -> Börgerwald II | D12: 301.6 | E12: x | F12: 0 | G12: 0 | H12: 0 | I12: 0 | J12: 0 | K12: 0 | L12: 0 | M12: 0 | N12: 0 | O12: 0 | P12: 0 | Q12: 0 | R12: 0 | U12: 101.3 | V12: 102.5 | W12: 97.8 | X12: 301.6 | Y12: 1 | Z12: 1 | AA12: Korrekt
A13: 4 | B13: ='Wettkampf 1'!B13 -> Mathis Antons | C13: ='Wettkampf 1'!C13 -> Börgerwald II | D13: 0.0 | E13: x | F13: 0 | G13: 0 | H13: 0 | I13: 0 | J13: 0 | K13: 0 | L13: 0 | M13: 0 | N13: 0 | O13: 0 | P13: 0 | Q13: 0 | R13: 0 | X13: 0.0 | Y13: 1 | Z13: 0
A14: 5 | B14: ='Wettkampf 1'!B14 -> Tobias Sebers | C14: ='Wettkampf 1'!C14 -> Börgerwald II | D14: 298.6 | F14: 298.6 | G14: 298.6 | H14: 1 | I14: 0 | J14: 0 | K14: 0 | L14: 0 | M14: 0 | N14: 0 | O14: 0 | P14: 0 | Q14: 0 | R14: 0 | U14: 100.9 | V14: 100.7 | W14: 97.0 | X14: 298.6 | Y14: 1 | Z14: 1 | AA14: Korrekt
A15: 6 | B15: ='Wettkampf 1'!B15 -> Friedhelm Schroer | C15: ='Wettkampf 1'!C15 -> Börgerwald II | D15: 309.0 | F15: 309.0 | G15: 309 | H15: 1 | I15: 0 | J15: 0 | K15: 0 | L15: 0 | M15: 0 | N15: 0 | O15: 0 | P15: 0 | Q15: 0 | R15: 0 | U15: 105.1 | V15: 100.3 | W15: 103.6 | X15: 309.0 | Y15: 1 | Z15: 1 | AA15: Korrekt
A16: 7 | B16: ='Wettkampf 1'!B16 -> Toni Stahl | C16: ='Wettkampf 1'!C16 -> Börgerwald II | D16: 296.3 | E16: x | F16: 0 | G16: 0 | H16: 0 | I16: 0 | J16: 0 | K16: 0 | L16: 0 | M16: 0 | N16: 0 | O16: 0 | P16: 0 | Q16: 0 | R16: 0 | U16: 98.3 | V16: 98.7 | W16: 99.3 | X16: 296.3 | Y16: 1 | Z16: 1 | AA16: Korrekt
A17: 8 | B17: ='Wettkampf 1'!B17 -> Martin Hinrichs | C17: ='Wettkampf 1'!C17 -> Börgerwald II | D17: 0.0 | E17: x | F17: 0 | G17: 0 | H17: 0 | I17: 0 | J17: 0 | K17: 0 | L17: 0 | M17: 0 | N17: 0 | O17: 0 | P17: 0 | Q17: 0 | R17: 0 | X17: 0.0 | Y17: 1 | Z17: 0
A18: 9 | B18: ='Wettkampf 1'!B18 -> Dirk Thunert | C18: ='Wettkampf 1'!C18 -> Neuvrees II | D18: 313.0 | F18: 313.0 | G18: 0 | H18: 0 | I18: 313 | J18: 1 | K18: 0 | L18: 0 | M18: 0 | N18: 0 | O18: 0 | P18: 0 | Q18: 0 | R18: 0 | U18: 104.7 | V18: 104.4 | W18: 103.9 | X18: 313.0 | Y18: 1 | Z18: 1 | AA18: Korrekt
A19: 10 | B19: ='Wettkampf 1'!B19 -> Hans Preuth | C19: ='Wettkampf 1'!C19 -> Neuvrees II | D19: 0.0 | E19: x | F19: 0 | G19: 0 | H19: 0 | I19: 0 | J19: 0 | K19: 0 | L19: 0 | M19: 0 | N19: 0 | O19: 0 | P19: 0 | Q19: 0 | R19: 0 | X19: 0.0 | Y19: 1 | Z19: 0
A20: 11 | B20: ='Wettkampf 1'!B20 -> Karl-Heinz Schrand | C20: ='Wettkampf 1'!C20 -> Neuvrees II | D20: 307.6 | F20: 307.6 | G20: 0 | H20: 0 | I20: 307.6 | J20: 1 | K20: 0 | L20: 0 | M20: 0 | N20: 0 | O20: 0 | P20: 0 | Q20: 0 | R20: 0 | U20: 103.8 | V20: 101.6 | W20: 102.2 | X20: 307.6 | Y20: 1 | Z20: 1 | AA20: Korrekt
A21: 12 | B21: ='Wettkampf 1'!B21 -> Holger Szczepanski | C21: ='Wettkampf 1'!C21 -> Neuvrees II | D21: 309.6 | F21: 309.6 | G21: 0 | H21: 0 | I21: 309.6 | J21: 1 | K21: 0 | L21: 0 | M21: 0 | N21: 0 | O21: 0 | P21: 0 | Q21: 0 | R21: 0 | U21: 101.9 | V21: 103.5 | W21: 104.2 | X21: 309.6 | Y21: 1 | Z21: 1 | AA21: Korrekt
A22: 13 | B22: ='Wettkampf 1'!B22 -> Bernd Witting | C22: ='Wettkampf 1'!C22 -> Neuvrees II | D22: 311.1 | F22: 311.1 | G22: 0 | H22: 0 | I22: 311.1 | J22: 1 | K22: 0 | L22: 0 | M22: 0 | N22: 0 | O22: 0 | P22: 0 | Q22: 0 | R22: 0 | U22: 103.6 | V22: 103.8 | W22: 103.7 | X22: 311.1 | Y22: 1 | Z22: 1 | AA22: Korrekt
A23: 14 | B23: ='Wettkampf 1'!B23 -> Hermann Schwarte | C23: ='Wettkampf 1'!C23 -> Börger II | D23: 0.0 | E23: x | F23: 0 | G23: 0 | H23: 0 | I23: 0 | J23: 0 | K23: 0 | L23: 0 | M23: 0 | N23: 0 | O23: 0 | P23: 0 | Q23: 0 | R23: 0 | X23: 0.0 | Y23: 1 | Z23: 0
A24: 15 | B24: ='Wettkampf 1'!B24 -> Bernd Rode | C24: ='Wettkampf 1'!C24 -> Börger III | D24: 308.7 | F24: 308.7 | G24: 0 | H24: 0 | I24: 0 | J24: 0 | K24: 308.7 | L24: 1 | M24: 0 | N24: 0 | O24: 0 | P24: 0 | Q24: 0 | R24: 0 | U24: 102.9 | V24: 101.8 | W24: 104.0 | X24: 308.7 | Y24: 1 | Z24: 1 | AA24: Korrekt
A25: 16 | B25: ='Wettkampf 1'!B25 -> Daniel Sebers | C25: ='Wettkampf 1'!C25 -> Börger III | D25: 306.4 | F25: 306.4 | G25: 0 | H25: 0 | I25: 0 | J25: 0 | K25: 306.4 | L25: 1 | M25: 0 | N25: 0 | O25: 0 | P25: 0 | Q25: 0 | R25: 0 | U25: 103.4 | V25: 100.9 | W25: 102.1 | X25: 306.4 | Y25: 1 | Z25: 1 | AA25: Korrekt
A26: 17 | B26: ='Wettkampf 1'!B26 -> Simon Schutenbrock | C26: ='Wettkampf 1'!C26 -> Börger III | D26: 311.0 | F26: 311.0 | G26: 0 | H26: 0 | I26: 0 | J26: 0 | K26: 311 | L26: 1 | M26: 0 | N26: 0 | O26: 0 | P26: 0 | Q26: 0 | R26: 0 | U26: 104.0 | V26: 102.2 | W26: 104.8 | X26: 311.0 | Y26: 1 | Z26: 1 | AA26: Korrekt
A27: 18 | B27: ='Wettkampf 1'!B27 -> Jürgen Schroer | C27: ='Wettkampf 1'!C27 -> Börger III | D27: 303.3 | E27: x | F27: 0 | G27: 0 | H27: 0 | I27: 0 | J27: 0 | K27: 0 | L27: 0 | M27: 0 | N27: 0 | O27: 0 | P27: 0 | Q27: 0 | R27: 0 | U27: 99.4 | V27: 100.2 | W27: 103.7 | X27: 303.3 | Y27: 1 | Z27: 1 | AA27: Korrekt
A28: 19 | B28: ='Wettkampf 1'!B28 -> Marc Eckmann | C28: ='Wettkampf 1'!C28 -> Börger II | D28: 304.5 | F28: 304.5 | G28: 0 | H28: 0 | I28: 0 | J28: 0 | K28: 0 | L28: 0 | M28: 304.5 | N28: 1 | O28: 0 | P28: 0 | Q28: 0 | R28: 0 | U28: 100.6 | V28: 102.0 | W28: 101.9 | X28: 304.5 | Y28: 1 | Z28: 1 | AA28: Korrekt
A29: 20 | B29: ='Wettkampf 1'!B29 -> Markus Jungsthöfel | C29: ='Wettkampf 1'!C29 -> Börger II | D29: 306.9 | F29: 306.9 | G29: 0 | H29: 0 | I29: 0 | J29: 0 | K29: 0 | L29: 0 | M29: 306.9 | N29: 1 | O29: 0 | P29: 0 | Q29: 0 | R29: 0 | U29: 103.7 | V29: 100.9 | W29: 102.3 | X29: 306.9 | Y29: 1 | Z29: 1 | AA29: Korrekt
A30: 21 | B30: ='Wettkampf 1'!B30 -> Jens Henzen | C30: ='Wettkampf 1'!C30 -> Börger III | D30: 313.6 | F30: 313.6 | G30: 0 | H30: 0 | I30: 0 | J30: 0 | K30: 313.6 | L30: 1 | M30: 0 | N30: 0 | O30: 0 | P30: 0 | Q30: 0 | R30: 0 | U30: 104.9 | V30: 105.1 | W30: 103.6 | X30: 313.6 | Y30: 1 | Z30: 1 | AA30: Korrekt
A31: 22 | B31: ='Wettkampf 1'!B31 -> Uwe Goldenstein | C31: ='Wettkampf 1'!C31 -> Börger II | D31: 299.0 | F31: 299.0 | G31: 0 | H31: 0 | I31: 0 | J31: 0 | K31: 0 | L31: 0 | M31: 299 | N31: 1 | O31: 0 | P31: 0 | Q31: 0 | R31: 0 | U31: 99.1 | V31: 101.2 | W31: 98.7 | X31: 299.0 | Y31: 1 | Z31: 1 | AA31: Korrekt
A32: 23 | B32: ='Wettkampf 1'!B32 -> Ingo Zdralik | C32: ='Wettkampf 1'!C32 -> Börger II | D32: 317.8 | F32: 317.8 | G32: 0 | H32: 0 | I32: 0 | J32: 0 | K32: 0 | L32: 0 | M32: 317.8 | N32: 1 | O32: 0 | P32: 0 | Q32: 0 | R32: 0 | U32: 106.5 | V32: 105.2 | W32: 106.1 | X32: 317.8 | Y32: 1 | Z32: 1 | AA32: Korrekt
A33: 24 | B33: ='Wettkampf 1'!B33 -> Schütze 24 | C33: ='Wettkampf 1'!C33 -> Börger II | E33: x | F33: 0 | G33: 0 | H33: 0 | I33: 0 | J33: 0 | K33: 0 | L33: 0 | M33: 0 | N33: 0 | O33: 0 | P33: 0 | Q33: 0 | R33: 0 | X33: 0.0 | Y33: 1 | Z33: 0
A34: 25 | B34: ='Wettkampf 1'!B34 -> Oliver Reinelt | C34: ='Wettkampf 1'!C34 -> Lahn IV | D34: 304.6 | F34: 304.6 | G34: 0 | H34: 0 | I34: 0 | J34: 0 | K34: 0 | L34: 0 | M34: 0 | N34: 0 | O34: 304.6 | P34: 1 | Q34: 0 | R34: 0 | U34: 100.0 | V34: 102.5 | W34: 102.1 | X34: 304.6 | Y34: 1 | Z34: 1 | AA34: Korrekt
A35: 26 | B35: ='Wettkampf 1'!B35 -> Vitalij Schmidt | C35: ='Wettkampf 1'!C35 -> Lahn IV | D35: 311.8 | F35: 311.8 | G35: 0 | H35: 0 | I35: 0 | J35: 0 | K35: 0 | L35: 0 | M35: 0 | N35: 0 | O35: 311.8 | P35: 1 | Q35: 0 | R35: 0 | U35: 104.8 | V35: 102.5 | W35: 104.5 | X35: 311.8 | Y35: 1 | Z35: 1 | AA35: Korrekt
A36: 27 | B36: ='Wettkampf 1'!B36 -> Hermann Benten | C36: ='Wettkampf 1'!C36 -> Lahn IV | D36: 304.1 | F36: 304.1 | G36: 0 | H36: 0 | I36: 0 | J36: 0 | K36: 0 | L36: 0 | M36: 0 | N36: 0 | O36: 304.1 | P36: 1 | Q36: 0 | R36: 0 | U36: 101.8 | V36: 100.5 | W36: 101.8 | X36: 304.1 | Y36: 1 | Z36: 1 | AA36: Korrekt
A37: 28 | B37: ='Wettkampf 1'!B37 -> Johannes Thesing | C37: ='Wettkampf 1'!C37 -> Lahn IV | D37: 312.1 | F37: 312.1 | G37: 0 | H37: 0 | I37: 0 | J37: 0 | K37: 0 | L37: 0 | M37: 0 | N37: 0 | O37: 312.1 | P37: 1 | Q37: 0 | R37: 0 | U37: 103.0 | V37: 106.0 | W37: 103.1 | X37: 312.1 | Y37: 1 | Z37: 1 | AA37: Korrekt
A38: 29 | B38: ='Wettkampf 1'!B38 -> Schütze 29 | C38: ='Wettkampf 1'!C38 -> Lahn IV | E38: x | F38: 0 | G38: 0 | H38: 0 | I38: 0 | J38: 0 | K38: 0 | L38: 0 | M38: 0 | N38: 0 | O38: 0 | P38: 0 | Q38: 0 | R38: 0 | X38: 0.0 | Y38: 1 | Z38: 0
A39: 30 | B39: ='Wettkampf 1'!B39 -> Willi Rolfes | C39: ='Wettkampf 1'!C39 -> Neuvrees I | D39: 313.8 | F39: 313.8 | G39: 0 | H39: 0 | I39: 0 | J39: 0 | K39: 0 | L39: 0 | M39: 0 | N39: 0 | O39: 0 | P39: 0 | Q39: 313.8 | R39: 1 | U39: 104.9 | V39: 104.3 | W39: 104.6 | X39: 313.8 | Y39: 1 | Z39: 1 | AA39: Korrekt
A40: 31 | B40: ='Wettkampf 1'!B40 -> Werner Thyen | C40: ='Wettkampf 1'!C40 -> Neuvrees I | D40: 302.4 | E40: x | F40: 0 | G40: 0 | H40: 0 | I40: 0 | J40: 0 | K40: 0 | L40: 0 | M40: 0 | N40: 0 | O40: 0 | P40: 0 | Q40: 0 | R40: 0 | U40: 101.3 | V40: 99.7 | W40: 101.4 | X40: 302.4 | Y40: 1 | Z40: 1 | AA40: Korrekt
A41: 32 | B41: ='Wettkampf 1'!B41 -> Wilfried Breyer | C41: ='Wettkampf 1'!C41 -> Neuvrees I | D41: 302.6 | E41: x | F41: 0 | G41: 0 | H41: 0 | I41: 0 | J41: 0 | K41: 0 | L41: 0 | M41: 0 | N41: 0 | O41: 0 | P41: 0 | Q41: 0 | R41: 0 | U41: 99.2 | V41: 101.6 | W41: 101.8 | X41: 302.6 | Y41: 1 | Z41: 1 | AA41: Korrekt
A42: 33 | B42: ='Wettkampf 1'!B42 -> Klaus Steenken | C42: ='Wettkampf 1'!C42 -> Neuvrees I | D42: 308.2 | F42: 308.2 | G42: 0 | H42: 0 | I42: 0 | J42: 0 | K42: 0 | L42: 0 | M42: 0 | N42: 0 | O42: 0 | P42: 0 | Q42: 308.2 | R42: 1 | U42: 102.1 | V42: 102.9 | W42: 103.2 | X42: 308.2 | Y42: 1 | Z42: 1 | AA42: Korrekt
A43: 34 | B43: ='Wettkampf 1'!B43 -> Markus Janßen | C43: ='Wettkampf 1'!C43 -> Neuvrees I | D43: 310.9 | F43: 310.9 | G43: 0 | H43: 0 | I43: 0 | J43: 0 | K43: 0 | L43: 0 | M43: 0 | N43: 0 | O43: 0 | P43: 0 | Q43: 310.9 | R43: 1 | U43: 104.2 | V43: 102.0 | W43: 104.7 | X43: 310.9 | Y43: 1 | Z43: 1 | AA43: Korrekt
A44: 35 | B44: ='Wettkampf 1'!B44 -> Carsten Peters | C44: ='Wettkampf 1'!C44 -> Neuvrees I | D44: 299.1 | E44: x | F44: 0 | G44: 0 | H44: 0 | I44: 0 | J44: 0 | K44: 0 | L44: 0 | M44: 0 | N44: 0 | O44: 0 | P44: 0 | Q44: 0 | R44: 0 | U44: 96.4 | V44: 101.2 | W44: 101.5 | X44: 299.1 | Y44: 1 | Z44: 1 | AA44: Korrekt
A45: 36 | B45: ='Wettkampf 1'!B45 -> Dietmar Spekker | C45: ='Wettkampf 1'!C45 -> Neuvrees I | F45: 0.0 | G45: 0 | H45: 0 | I45: 0 | J45: 0 | K45: 0 | L45: 0 | M45: 0 | N45: 0 | O45: 0 | P45: 0 | Q45: 0 | R45: 1 | X45: 0.0 | Y45: 1 | Z45: 0
G46: =LARGE(G10:G45,1)+LARGE(G10:G45,2)+LARGE(G10:G45,3) -> 927.8 | H46: =SUM(H10:H45) -> 4 | I46: =LARGE(I10:I45,1)+LARGE(I10:I45,2)+LARGE(I10:I45,3) -> 933.7 | J46: =SUM(J10:J45) -> 4 | K46: =LARGE(K10:K45,1)+LARGE(K10:K45,2)+LARGE(K10:K45,3) -> 933.3 | L46: =SUM(L10:L45) -> 4 | M46: =LARGE(M10:M45,1)+LARGE(M10:M45,2)+LARGE(M10:M45,3) -> 929.2 | N46: =SUM(N10:N45) -> 4 | O46: =LARGE(O10:O45,1)+LARGE(O10:O45,2)+LARGE(O10:O45,3) -> 928.5 | P46: =SUM(P10:P45) -> 4 | Q46: =LARGE(Q10:Q45,1)+LARGE(Q10:Q45,2)+LARGE(Q10:Q45,3) -> 932.9 | R46: =SUM(R10:S45) -> 4
C47: per Email an: sk-huemmling@gmx.de

Sheet 7
B1: Verein / Gruppe | D1: Ergebnisse | V1: Austragungsort: | W1: =Übersicht!L4 -> Neuvrees
A2: 1 | B2: ='Wettkampf 1'!B2 -> Börgerwald II | D2: =G46 -> 0.0 | E2: =IF(H46>4,"Es sind zu viele Schützen in Wertung!"," ") -> Es sind zu viele Schützen in Wertung! | V2: Wettkampftag: | W2: =Übersicht!L3 -> 14.01.
A3: 2 | B3: ='Wettkampf 1'!B3 -> Neuvrees II | D3: =I46 -> 0.0 | E3: =IF(J46>4,"Es sind zu viele Schützen in Wertung!"," ") -> Es sind zu viele Schützen in Wertung!
A4: 3 | B4: ='Wettkampf 1'!B4 -> Börger III | D4: =K46 -> 0.0 | E4: =IF(L46>4,"Es sind zu viele Schützen in Wertung!"," ") -> Es sind zu viele Schützen in Wertung! | X4: Ansprechpartner für Rückfragen:
A5: 4 | B5: ='Wettkampf 1'!B5 -> Börger II | D5: =M46 -> 0.0 | E5: =IF(N46>4,"Es sind zu viele Schützen in Wertung!"," ") -> Es sind zu viele Schützen in Wertung! | V5: Name:
A6: 5 | B6: ='Wettkampf 1'!B6 -> Lahn IV | D6: =O46 -> 0.0 | E6: =IF(P46>4,"Es sind zu viele Schützen in Wertung!"," ") -> Es sind zu viele Schützen in Wertung! | V6: Tel:
A7: 6 | B7: ='Wettkampf 1'!B7 -> Neuvrees I | D7: =Q46 -> 0.0 | E7: =IF(R46>4,"Es sind zu viele Schützen in Wertung!"," ") -> Es sind zu viele Schützen in Wertung! | V7: Standaufsicht: | W7: eintragen
B9: Einzelergebnisse: | C9: Verein / Gruppe | D9: Ergebnisse (mindestens 0 eintragen) | E9: AW? Dann x eintippen | G9: Verein 1 | I9: Verein 2 | K9: Verein 3 | M9: Verein 4 | O9: Verein 5 | Q9: Verein 6 | U9: Proberechnung bei Streifen:
A10: 1 | B10: ='Wettkampf 1'!B10 -> Andre Hanenkamp | C10: ='Wettkampf 1'!C10 -> Börgerwald II | F10: =IF(E10="x","0",D10) -> 0.0 | G10: =IF(C10=$B$2,F10,0) -> 0 | H10: =(IF(AND($E10="",$C10=$B$2),1,0)) -> 1 | I10: =IF($C10=$B$3,F10,0) -> 0 | J10: =(IF(AND($E10="",$C10=$B$3),1,0)) -> 0 | K10: =IF($C10=$B$4,F10,0) -> 0 | L10: =(IF(AND($E10="",$C10=$B$4),1,0)) -> 0 | M10: =IF($C10=$B$5,F10,0) -> 0 | N10: =(IF(AND($E10="",$C10=$B$5),1,0)) -> 0 | O10: =IF($C10=$B$6,F10,0) -> 0 | P10: =(IF(AND($E10="",$C10=$B$6),1,0)) -> 0 | Q10: =IF($C10=$B$7,F10,0) -> 0 | R10: =(IF(AND($E10="",$C10=$B$7),1,0)) -> 0 | X10: =U10+V10+W10 -> 0.0 | Y10: =IF(X10=D10,1,0) -> 1 | Z10: =IF(X10=0,0,1) -> 0 | AA10: =IF(Y10+Z10=2,"Korrekt","") -> 
A11: 2 | B11: ='Wettkampf 1'!B11 -> Horst Sabel | C11: ='Wettkampf 1'!C11 -> Börgerwald II | F11: =IF(E11="x","0",D11) -> 0.0 | G11: =IF(C11=$B$2,F11,0) -> 0 | H11: =(IF(AND($E11="",$C11=$B$2),1,0)) -> 1 | I11: =IF($C11=$B$3,F11,0) -> 0 | J11: =(IF(AND($E11="",$C11=$B$3),1,0)) -> 0 | K11: =IF($C11=$B$4,F11,0) -> 0 | L11: =(IF(AND($E11="",$C11=$B$4),1,0)) -> 0 | M11: =IF($C11=$B$5,F11,0) -> 0 | N11: =(IF(AND($E11="",$C11=$B$5),1,0)) -> 0 | O11: =IF($C11=$B$6,F11,0) -> 0 | P11: =(IF(AND($E11="",$C11=$B$6),1,0)) -> 0 | Q11: =IF($C11=$B$7,F11,0) -> 0 | R11: =(IF(AND($E11="",$C11=$B$7),1,0)) -> 0 | X11: =U11+V11+W11 -> 0.0 | Y11: =IF(X11=D11,1,0) -> 1 | Z11: =IF(X11=0,0,1) -> 0 | AA11: =IF(Y11+Z11=2,"Korrekt","") -> 
A12: 3 | B12: ='Wettkampf 1'!B12 -> Christian Robben | C12: ='Wettkampf 1'!C12 -> Börgerwald II | F12: 0.0 | G12: 0 | H12: 1 | I12: 0 | J12: 0 | K12: 0 | L12: 0 | M12: 0 | N12: 0 | O12: 0 | P12: 0 | Q12: 0 | R12: 0 | X12: 0.0 | Y12: 1 | Z12: 0
A13: 4 | B13: ='Wettkampf 1'!B13 -> Mathis Antons | C13: ='Wettkampf 1'!C13 -> Börgerwald II | F13: 0.0 | G13: 0 | H13: 1 | I13: 0 | J13: 0 | K13: 0 | L13: 0 | M13: 0 | N13: 0 | O13: 0 | P13: 0 | Q13: 0 | R13: 0 | X13: 0.0 | Y13: 1 | Z13: 0
A14: 5 | B14: ='Wettkampf 1'!B14 -> Tobias Sebers | C14: ='Wettkampf 1'!C14 -> Börgerwald II | F14: 0.0 | G14: 0 | H14: 1 | I14: 0 | J14: 0 | K14: 0 | L14: 0 | M14: 0 | N14: 0 | O14: 0 | P14: 0 | Q14: 0 | R14: 0 | X14: 0.0 | Y14: 1 | Z14: 0
A15: 6 | B15: ='Wettkampf 1'!B15 -> Friedhelm Schroer | C15: ='Wettkampf 1'!C15 -> Börgerwald II | F15: 0.0 | G15: 0 | H15: 1 | I15: 0 | J15: 0 | K15: 0 | L15: 0 | M15: 0 | N15: 0 | O15: 0 | P15: 0 | Q15: 0 | R15: 0 | X15: 0.0 | Y15: 1 | Z15: 0
A16: 7 | B16: ='Wettkampf 1'!B16 -> Toni Stahl | C16: ='Wettkampf 1'!C16 -> Börgerwald II | F16: 0.0 | G16: 0 | H16: 1 | I16: 0 | J16: 0 | K16: 0 | L16: 0 | M16: 0 | N16: 0 | O16: 0 | P16: 0 | Q16: 0 | R16: 0 | X16: 0.0 | Y16: 1 | Z16: 0
A17: 8 | B17: ='Wettkampf 1'!B17 -> Martin Hinrichs | C17: ='Wettkampf 1'!C17 -> Börgerwald II | F17: 0.0 | G17: 0 | H17: 1 | I17: 0 | J17: 0 | K17: 0 | L17: 0 | M17: 0 | N17: 0 | O17: 0 | P17: 0 | Q17: 0 | R17: 0 | X17: 0.0 | Y17: 1 | Z17: 0
A18: 9 | B18: ='Wettkampf 1'!B18 -> Dirk Thunert | C18: ='Wettkampf 1'!C18 -> Neuvrees II | F18: 0.0 | G18: 0 | H18: 0 | I18: 0 | J18: 1 | K18: 0 | L18: 0 | M18: 0 | N18: 0 | O18: 0 | P18: 0 | Q18: 0 | R18: 0 | X18: 0.0 | Y18: 1 | Z18: 0
A19: 10 | B19: ='Wettkampf 1'!B19 -> Hans Preuth | C19: ='Wettkampf 1'!C19 -> Neuvrees II | F19: 0.0 | G19: 0 | H19: 0 | I19: 0 | J19: 1 | K19: 0 | L19: 0 | M19: 0 | N19: 0 | O19: 0 | P19: 0 | Q19: 0 | R19: 0 | X19: 0.0 | Y19: 1 | Z19: 0
A20: 11 | B20: ='Wettkampf 1'!B20 -> Karl-Heinz Schrand | C20: ='Wettkampf 1'!C20 -> Neuvrees II | F20: 0.0 | G20: 0 | H20: 0 | I20: 0 | J20: 1 | K20: 0 | L20: 0 | M20: 0 | N20: 0 | O20: 0 | P20: 0 | Q20: 0 | R20: 0 | X20: 0.0 | Y20: 1 | Z20: 0
A21: 12 | B21: ='Wettkampf 1'!B21 -> Holger Szczepanski | C21: ='Wettkampf 1'!C21 -> Neuvrees II | F21: 0.0 | G21: 0 | H21: 0 | I21: 0 | J21: 1 | K21: 0 | L21: 0 | M21: 0 | N21: 0 | O21: 0 | P21: 0 | Q21: 0 | R21: 0 | X21: 0.0 | Y21: 1 | Z21: 0
A22: 13 | B22: ='Wettkampf 1'!B22 -> Bernd Witting | C22: ='Wettkampf 1'!C22 -> Neuvrees II | F22: 0.0 | G22: 0 | H22: 0 | I22: 0 | J22: 1 | K22: 0 | L22: 0 | M22: 0 | N22: 0 | O22: 0 | P22: 0 | Q22: 0 | R22: 0 | X22: 0.0 | Y22: 1 | Z22: 0
A23: 14 | B23: ='Wettkampf 1'!B23 -> Hermann Schwarte | C23: ='Wettkampf 1'!C23 -> Börger II | F23: 0.0 | G23: 0 | H23: 0 | I23: 0 | J23: 0 | K23: 0 | L23: 0 | M23: 0 | N23: 1 | O23: 0 | P23: 0 | Q23: 0 | R23: 0 | X23: 0.0 | Y23: 1 | Z23: 0
A24: 15 | B24: ='Wettkampf 1'!B24 -> Bernd Rode | C24: ='Wettkampf 1'!C24 -> Börger III | F24: 0.0 | G24: 0 | H24: 0 | I24: 0 | J24: 0 | K24: 0 | L24: 1 | M24: 0 | N24: 0 | O24: 0 | P24: 0 | Q24: 0 | R24: 0 | X24: 0.0 | Y24: 1 | Z24: 0
A25: 16 | B25: ='Wettkampf 1'!B25 -> Daniel Sebers | C25: ='Wettkampf 1'!C25 -> Börger III | F25: 0.0 | G25: 0 | H25: 0 | I25: 0 | J25: 0 | K25: 0 | L25: 1 | M25: 0 | N25: 0 | O25: 0 | P25: 0 | Q25: 0 | R25: 0 | X25: 0.0 | Y25: 1 | Z25: 0
A26: 17 | B26: ='Wettkampf 1'!B26 -> Simon Schutenbrock | C26: ='Wettkampf 1'!C26 -> Börger III | F26: 0.0 | G26: 0 | H26: 0 | I26: 0 | J26: 0 | K26: 0 | L26: 1 | M26: 0 | N26: 0 | O26: 0 | P26: 0 | Q26: 0 | R26: 0 | X26: 0.0 | Y26: 1 | Z26: 0
A27: 18 | B27: ='Wettkampf 1'!B27 -> Jürgen Schroer | C27: ='Wettkampf 1'!C27 -> Börger III | F27: 0.0 | G27: 0 | H27: 0 | I27: 0 | J27: 0 | K27: 0 | L27: 1 | M27: 0 | N27: 0 | O27: 0 | P27: 0 | Q27: 0 | R27: 0 | X27: 0.0 | Y27: 1 | Z27: 0
A28: 19 | B28: ='Wettkampf 1'!B28 -> Marc Eckmann | C28: ='Wettkampf 1'!C28 -> Börger II | F28: 0.0 | G28: 0 | H28: 0 | I28: 0 | J28: 0 | K28: 0 | L28: 0 | M28: 0 | N28: 1 | O28: 0 | P28: 0 | Q28: 0 | R28: 0 | X28: 0.0 | Y28: 1 | Z28: 0
A29: 20 | B29: ='Wettkampf 1'!B29 -> Markus Jungsthöfel | C29: ='Wettkampf 1'!C29 -> Börger II | F29: 0.0 | G29: 0 | H29: 0 | I29: 0 | J29: 0 | K29: 0 | L29: 0 | M29: 0 | N29: 1 | O29: 0 | P29: 0 | Q29: 0 | R29: 0 | X29: 0.0 | Y29: 1 | Z29: 0
A30: 21 | B30: ='Wettkampf 1'!B30 -> Jens Henzen | C30: ='Wettkampf 1'!C30 -> Börger III | F30: 0.0 | G30: 0 | H30: 0 | I30: 0 | J30: 0 | K30: 0 | L30: 1 | M30: 0 | N30: 0 | O30: 0 | P30: 0 | Q30: 0 | R30: 0 | X30: 0.0 | Y30: 1 | Z30: 0
A31: 22 | B31: ='Wettkampf 1'!B31 -> Uwe Goldenstein | C31: ='Wettkampf 1'!C31 -> Börger II | F31: 0.0 | G31: 0 | H31: 0 | I31: 0 | J31: 0 | K31: 0 | L31: 0 | M31: 0 | N31: 1 | O31: 0 | P31: 0 | Q31: 0 | R31: 0 | X31: 0.0 | Y31: 1 | Z31: 0
A32: 23 | B32: ='Wettkampf 1'!B32 -> Ingo Zdralik | C32: ='Wettkampf 1'!C32 -> Börger II | F32: 0.0 | G32: 0 | H32: 0 | I32: 0 | J32: 0 | K32: 0 | L32: 0 | M32: 0 | N32: 1 | O32: 0 | P32: 0 | Q32: 0 | R32: 0 | X32: 0.0 | Y32: 1 | Z32: 0
A33: 24 | B33: ='Wettkampf 1'!B33 -> Schütze 24 | C33: ='Wettkampf 1'!C33 -> Börger II | F33: 0.0 | G33: 0 | H33: 0 | I33: 0 | J33: 0 | K33: 0 | L33: 0 | M33: 0 | N33: 1 | O33: 0 | P33: 0 | Q33: 0 | R33: 0 | X33: 0.0 | Y33: 1 | Z33: 0
A34: 25 | B34: ='Wettkampf 1'!B34 -> Oliver Reinelt | C34: ='Wettkampf 1'!C34 -> Lahn IV | F34: 0.0 | G34: 0 | H34: 0 | I34: 0 | J34: 0 | K34: 0 | L34: 0 | M34: 0 | N34: 0 | O34: 0 | P34: 1 | Q34: 0 | R34: 0 | X34: 0.0 | Y34: 1 | Z34: 0
A35: 26 | B35: ='Wettkampf 1'!B35 -> Vitalij Schmidt | C35: ='Wettkampf 1'!C35 -> Lahn IV | F35: 0.0 | G35: 0 | H35: 0 | I35: 0 | J35: 0 | K35: 0 | L35: 0 | M35: 0 | N35: 0 | O35: 0 | P35: 1 | Q35: 0 | R35: 0 | X35: 0.0 | Y35: 1 | Z35: 0
A36: 27 | B36: ='Wettkampf 1'!B36 -> Hermann Benten | C36: ='Wettkampf 1'!C36 -> Lahn IV | F36: 0.0 | G36: 0 | H36: 0 | I36: 0 | J36: 0 | K36: 0 | L36: 0 | M36: 0 | N36: 0 | O36: 0 | P36: 1 | Q36: 0 | R36: 0 | X36: 0.0 | Y36: 1 | Z36: 0
A37: 28 | B37: ='Wettkampf 1'!B37 -> Johannes Thesing | C37: ='Wettkampf 1'!C37 -> Lahn IV | F37: 0.0 | G37: 0 | H37: 0 | I37: 0 | J37: 0 | K37: 0 | L37: 0 | M37: 0 | N37: 0 | O37: 0 | P37: 1 | Q37: 0 | R37: 0 | X37: 0.0 | Y37: 1 | Z37: 0
A38: 29 | B38: ='Wettkampf 1'!B38 -> Schütze 29 | C38: ='Wettkampf 1'!C38 -> Lahn IV | F38: 0.0 | G38: 0 | H38: 0 | I38: 0 | J38: 0 | K38: 0 | L38: 0 | M38: 0 | N38: 0 | O38: 0 | P38: 1 | Q38: 0 | R38: 0 | X38: 0.0 | Y38: 1 | Z38: 0
A39: 30 | B39: ='Wettkampf 1'!B39 -> Willi Rolfes | C39: ='Wettkampf 1'!C39 -> Neuvrees I | F39: 0.0 | G39: 0 | H39: 0 | I39: 0 | J39: 0 | K39: 0 | L39: 0 | M39: 0 | N39: 0 | O39: 0 | P39: 0 | Q39: 0 | R39: 1 | X39: 0.0 | Y39: 1 | Z39: 0
A40: 31 | B40: ='Wettkampf 1'!B40 -> Werner Thyen | C40: ='Wettkampf 1'!C40 -> Neuvrees I | F40: 0.0 | G40: 0 | H40: 0 | I40: 0 | J40: 0 | K40: 0 | L40: 0 | M40: 0 | N40: 0 | O40: 0 | P40: 0 | Q40: 0 | R40: 1 | X40: 0.0 | Y40: 1 | Z40: 0
A41: 32 | B41: ='Wettkampf 1'!B41 -> Wilfried Breyer | C41: ='Wettkampf 1'!C41 -> Neuvrees I | F41: 0.0 | G41: 0 | H41: 0 | I41: 0 | J41: 0 | K41: 0 | L41: 0 | M41: 0 | N41: 0 | O41: 0 | P41: 0 | Q41: 0 | R41: 1 | X41: 0.0 | Y41: 1 | Z41: 0
A42: 33 | B42: ='Wettkampf 1'!B42 -> Klaus Steenken | C42: ='Wettkampf 1'!C42 -> Neuvrees I | F42: 0.0 | G42: 0 | H42: 0 | I42: 0 | J42: 0 | K42: 0 | L42: 0 | M42: 0 | N42: 0 | O42: 0 | P42: 0 | Q42: 0 | R42: 1 | X42: 0.0 | Y42: 1 | Z42: 0
A43: 34 | B43: ='Wettkampf 1'!B43 -> Markus Janßen | C43: ='Wettkampf 1'!C43 -> Neuvrees I | F43: 0.0 | G43: 0 | H43: 0 | I43: 0 | J43: 0 | K43: 0 | L43: 0 | M43: 0 | N43: 0 | O43: 0 | P43: 0 | Q43: 0 | R43: 1 | X43: 0.0 | Y43: 1 | Z43: 0
A44: 35 | B44: ='Wettkampf 1'!B44 -> Carsten Peters | C44: ='Wettkampf 1'!C44 -> Neuvrees I | F44: 0.0 | G44: 0 | H44: 0 | I44: 0 | J44: 0 | K44: 0 | L44: 0 | M44: 0 | N44: 0 | O44: 0 | P44: 0 | Q44: 0 | R44: 1 | X44: 0.0 | Y44: 1 | Z44: 0
A45: 36 | B45: ='Wettkampf 1'!B45 -> Dietmar Spekker | C45: ='Wettkampf 1'!C45 -> Neuvrees I | F45: 0.0 | G45: 0 | H45: 0 | I45: 0 | J45: 0 | K45: 0 | L45: 0 | M45: 0 | N45: 0 | O45: 0 | P45: 0 | Q45: 0 | R45: 1 | X45: 0.0 | Y45: 1 | Z45: 0
G46: =LARGE(G10:G45,1)+LARGE(G10:G45,2)+LARGE(G10:G45,3) -> 0 | H46: =SUM(H10:H45) -> 8 | I46: =LARGE(I10:I45,1)+LARGE(I10:I45,2)+LARGE(I10:I45,3) -> 0 | J46: =SUM(J10:J45) -> 5 | K46: =LARGE(K10:K45,1)+LARGE(K10:K45,2)+LARGE(K10:K45,3) -> 0 | L46: =SUM(L10:L45) -> 5 | M46: =LARGE(M10:M45,1)+LARGE(M10:M45,2)+LARGE(M10:M45,3) -> 0 | N46: =SUM(N10:N45) -> 6 | O46: =LARGE(O10:O45,1)+LARGE(O10:O45,2)+LARGE(O10:O45,3) -> 0 | P46: =SUM(P10:P45) -> 5 | Q46: =LARGE(Q10:Q45,1)+LARGE(Q10:Q45,2)+LARGE(Q10:Q45,3) -> 0 | R46: =SUM(R10:S45) -> 7
C47: per Email an: sk-huemmling@gmx.de

Sheet 8
B1: Verein / Gruppe | D1: Ergebnisse | V1: Austragungsort: | W1: =Übersicht!M4 -> Neuvrees
A2: 1 | B2: ='Wettkampf 1'!B2 -> Börgerwald II | D2: =G46 -> 0.0 | E2: =IF(H46>4,"Es sind zu viele Schützen in Wertung!"," ") -> Es sind zu viele Schützen in Wertung! | V2: Wettkampftag: | W2: =Übersicht!M3 -> 28.01.
A3: 2 | B3: ='Wettkampf 1'!B3 -> Neuvrees II | D3: =I46 -> 0.0 | E3: =IF(J46>4,"Es sind zu viele Schützen in Wertung!"," ") -> Es sind zu viele Schützen in Wertung!
A4: 3 | B4: ='Wettkampf 1'!B4 -> Börger III | D4: =K46 -> 0.0 | E4: =IF(L46>4,"Es sind zu viele Schützen in Wertung!"," ") -> Es sind zu viele Schützen in Wertung! | X4: Ansprechpartner für Rückfragen:
A5: 4 | B5: ='Wettkampf 1'!B5 -> Börger II | D5: =M46 -> 0.0 | E5: =IF(N46>4,"Es sind zu viele Schützen in Wertung!"," ") -> Es sind zu viele Schützen in Wertung! | V5: Name:
A6: 5 | B6: ='Wettkampf 1'!B6 -> Lahn IV | D6: =O46 -> 0.0 | E6: =IF(P46>4,"Es sind zu viele Schützen in Wertung!"," ") -> Es sind zu viele Schützen in Wertung! | V6: Tel:
A7: 6 | B7: ='Wettkampf 1'!B7 -> Neuvrees I | D7: =Q46 -> 0.0 | E7: =IF(R46>4,"Es sind zu viele Schützen in Wertung!"," ") -> Es sind zu viele Schützen in Wertung! | V7: Standaufsicht: | W7: eintragen
B9: Einzelergebnisse: | C9: Verein / Gruppe | D9: Ergebnisse (mindestens 0 eintragen) | E9: AW? Dann x eintippen | G9: Verein 1 | I9: Verein 2 | K9: Verein 3 | M9: Verein 4 | O9: Verein 5 | Q9: Verein 6 | U9: Proberechnung bei Streifen:
A10: 1 | B10: ='Wettkampf 1'!B10 -> Andre Hanenkamp | C10: ='Wettkampf 1'!C10 -> Börgerwald II | F10: =IF(E10="x","0",D10) -> 0.0 | G10: =IF(C10=$B$2,F10,0) -> 0 | H10: =(IF(AND($E10="",$C10=$B$2),1,0)) -> 1 | I10: =IF($C10=$B$3,F10,0) -> 0 | J10: =(IF(AND($E10="",$C10=$B$3),1,0)) -> 0 | K10: =IF($C10=$B$4,F10,0) -> 0 | L10: =(IF(AND($E10="",$C10=$B$4),1,0)) -> 0 | M10: =IF($C10=$B$5,F10,0) -> 0 | N10: =(IF(AND($E10="",$C10=$B$5),1,0)) -> 0 | O10: =IF($C10=$B$6,F10,0) -> 0 | P10: =(IF(AND($E10="",$C10=$B$6),1,0)) -> 0 | Q10: =IF($C10=$B$7,F10,0) -> 0 | R10: =(IF(AND($E10="",$C10=$B$7),1,0)) -> 0 | X10: =U10+V10+W10 -> 0.0 | Y10: =IF(X10=D10,1,0) -> 1 | Z10: =IF(X10=0,0,1) -> 0 | AA10: =IF(Y10+Z10=2,"Korrekt","") -> 
A11: 2 | B11: ='Wettkampf 1'!B11 -> Horst Sabel | C11: ='Wettkampf 1'!C11 -> Börgerwald II | F11: =IF(E11="x","0",D11) -> 0.0 | G11: =IF(C11=$B$2,F11,0) -> 0 | H11: =(IF(AND($E11="",$C11=$B$2),1,0)) -> 1 | I11: =IF($C11=$B$3,F11,0) -> 0 | J11: =(IF(AND($E11="",$C11=$B$3),1,0)) -> 0 | K11: =IF($C11=$B$4,F11,0) -> 0 | L11: =(IF(AND($E11="",$C11=$B$4),1,0)) -> 0 | M11: =IF($C11=$B$5,F11,0) -> 0 | N11: =(IF(AND($E11="",$C11=$B$5),1,0)) -> 0 | O11: =IF($C11=$B$6,F11,0) -> 0 | P11: =(IF(AND($E11="",$C11=$B$6),1,0)) -> 0 | Q11: =IF($C11=$B$7,F11,0) -> 0 | R11: =(IF(AND($E11="",$C11=$B$7),1,0)) -> 0 | X11: =U11+V11+W11 -> 0.0 | Y11: =IF(X11=D11,1,0) -> 1 | Z11: =IF(X11=0,0,1) -> 0 | AA11: =IF(Y11+Z11=2,"Korrekt","") -> 
A12: 3 | B12: ='Wettkampf 1'!B12 -> Christian Robben | C12: ='Wettkampf 1'!C12 -> Börgerwald II | F12: 0.0 | G12: 0 | H12: 1 | I12: 0 | J12: 0 | K12: 0 | L12: 0 | M12: 0 | N12: 0 | O12: 0 | P12: 0 | Q12: 0 | R12: 0 | X12: 0.0 | Y12: 1 | Z12: 0
A13: 4 | B13: ='Wettkampf 1'!B13 -> Mathis Antons | C13: ='Wettkampf 1'!C13 -> Börgerwald II | F13: 0.0 | G13: 0 | H13: 1 | I13: 0 | J13: 0 | K13: 0 | L13: 0 | M13: 0 | N13: 0 | O13: 0 | P13: 0 | Q13: 0 | R13: 0 | X13: 0.0 | Y13: 1 | Z13: 0
A14: 5 | B14: ='Wettkampf 1'!B14 -> Tobias Sebers | C14: ='Wettkampf 1'!C14 -> Börgerwald II | F14: 0.0 | G14: 0 | H14: 1 | I14: 0 | J14: 0 | K14: 0 | L14: 0 | M14: 0 | N14: 0 | O14: 0 | P14: 0 | Q14: 0 | R14: 0 | X14: 0.0 | Y14: 1 | Z14: 0
A15: 6 | B15: ='Wettkampf 1'!B15 -> Friedhelm Schroer | C15: ='Wettkampf 1'!C15 -> Börgerwald II | F15: 0.0 | G15: 0 | H15: 1 | I15: 0 | J15: 0 | K15: 0 | L15: 0 | M15: 0 | N15: 0 | O15: 0 | P15: 0 | Q15: 0 | R15: 0 | X15: 0.0 | Y15: 1 | Z15: 0
A16: 7 | B16: ='Wettkampf 1'!B16 -> Toni Stahl | C16: ='Wettkampf 1'!C16 -> Börgerwald II | F16: 0.0 | G16: 0 | H16: 1 | I16: 0 | J16: 0 | K16: 0 | L16: 0 | M16: 0 | N16: 0 | O16: 0 | P16: 0 | Q16: 0 | R16: 0 | X16: 0.0 | Y16: 1 | Z16: 0
A17: 8 | B17: ='Wettkampf 1'!B17 -> Martin Hinrichs | C17: ='Wettkampf 1'!C17 -> Börgerwald II | F17: 0.0 | G17: 0 | H17: 1 | I17: 0 | J17: 0 | K17: 0 | L17: 0 | M17: 0 | N17: 0 | O17: 0 | P17: 0 | Q17: 0 | R17: 0 | X17: 0.0 | Y17: 1 | Z17: 0
A18: 9 | B18: ='Wettkampf 1'!B18 -> Dirk Thunert | C18: ='Wettkampf 1'!C18 -> Neuvrees II | F18: 0.0 | G18: 0 | H18: 0 | I18: 0 | J18: 1 | K18: 0 | L18: 0 | M18: 0 | N18: 0 | O18: 0 | P18: 0 | Q18: 0 | R18: 0 | X18: 0.0 | Y18: 1 | Z18: 0
A19: 10 | B19: ='Wettkampf 1'!B19 -> Hans Preuth | C19: ='Wettkampf 1'!C19 -> Neuvrees II | F19: 0.0 | G19: 0 | H19: 0 | I19: 0 | J19: 1 | K19: 0 | L19: 0 | M19: 0 | N19: 0 | O19: 0 | P19: 0 | Q19: 0 | R19: 0 | X19: 0.0 | Y19: 1 | Z19: 0
A20: 11 | B20: ='Wettkampf 1'!B20 -> Karl-Heinz Schrand | C20: ='Wettkampf 1'!C20 -> Neuvrees II | F20: 0.0 | G20: 0 | H20: 0 | I20: 0 | J20: 1 | K20: 0 | L20: 0 | M20: 0 | N20: 0 | O20: 0 | P20: 0 | Q20: 0 | R20: 0 | X20: 0.0 | Y20: 1 | Z20: 0
A21: 12 | B21: ='Wettkampf 1'!B21 -> Holger Szczepanski | C21: ='Wettkampf 1'!C21 -> Neuvrees II | F21: 0.0 | G21: 0 | H21: 0 | I21: 0 | J21: 1 | K21: 0 | L21: 0 | M21: 0 | N21: 0 | O21: 0 | P21: 0 | Q21: 0 | R21: 0 | X21: 0.0 | Y21: 1 | Z21: 0
A22: 13 | B22: ='Wettkampf 1'!B22 -> Bernd Witting | C22: ='Wettkampf 1'!C22 -> Neuvrees II | F22: 0.0 | G22: 0 | H22: 0 | I22: 0 | J22: 1 | K22: 0 | L22: 0 | M22: 0 | N22: 0 | O22: 0 | P22: 0 | Q22: 0 | R22: 0 | X22: 0.0 | Y22: 1 | Z22: 0
A23: 14 | B23: ='Wettkampf 1'!B23 -> Hermann Schwarte | C23: ='Wettkampf 1'!C23 -> Börger II | F23: 0.0 | G23: 0 | H23: 0 | I23: 0 | J23: 0 | K23: 0 | L23: 0 | M23: 0 | N23: 1 | O23: 0 | P23: 0 | Q23: 0 | R23: 0 | X23: 0.0 | Y23: 1 | Z23: 0
A24: 15 | B24: ='Wettkampf 1'!B24 -> Bernd Rode | C24: ='Wettkampf 1'!C24 -> Börger III | F24: 0.0 | G24: 0 | H24: 0 | I24: 0 | J24: 0 | K24: 0 | L24: 1 | M24: 0 | N24: 0 | O24: 0 | P24: 0 | Q24: 0 | R24: 0 | X24: 0.0 | Y24: 1 | Z24: 0
A25: 16 | B25: ='Wettkampf 1'!B25 -> Daniel Sebers | C25: ='Wettkampf 1'!C25 -> Börger III | F25: 0.0 | G25: 0 | H25: 0 | I25: 0 | J25: 0 | K25: 0 | L25: 1 | M25: 0 | N25: 0 | O25: 0 | P25: 0 | Q25: 0 | R25: 0 | X25: 0.0 | Y25: 1 | Z25: 0
A26: 17 | B26: ='Wettkampf 1'!B26 -> Simon Schutenbrock | C26: ='Wettkampf 1'!C26 -> Börger III | F26: 0.0 | G26: 0 | H26: 0 | I26: 0 | J26: 0 | K26: 0 | L26: 1 | M26: 0 | N26: 0 | O26: 0 | P26: 0 | Q26: 0 | R26: 0 | X26: 0.0 | Y26: 1 | Z26: 0
A27: 18 | B27: ='Wettkampf 1'!B27 -> Jürgen Schroer | C27: ='Wettkampf 1'!C27 -> Börger III | F27: 0.0 | G27: 0 | H27: 0 | I27: 0 | J27: 0 | K27: 0 | L27: 1 | M27: 0 | N27: 0 | O27: 0 | P27: 0 | Q27: 0 | R27: 0 | X27: 0.0 | Y27: 1 | Z27: 0
A28: 19 | B28: ='Wettkampf 1'!B28 -> Marc Eckmann | C28: ='Wettkampf 1'!C28 -> Börger II | F28: 0.0 | G28: 0 | H28: 0 | I28: 0 | J28: 0 | K28: 0 | L28: 0 | M28: 0 | N28: 1 | O28: 0 | P28: 0 | Q28: 0 | R28: 0 | X28: 0.0 | Y28: 1 | Z28: 0
A29: 20 | B29: ='Wettkampf 1'!B29 -> Markus Jungsthöfel | C29: ='Wettkampf 1'!C29 -> Börger II | F29: 0.0 | G29: 0 | H29: 0 | I29: 0 | J29: 0 | K29: 0 | L29: 0 | M29: 0 | N29: 1 | O29: 0 | P29: 0 | Q29: 0 | R29: 0 | X29: 0.0 | Y29: 1 | Z29: 0
A30: 21 | B30: ='Wettkampf 1'!B30 -> Jens Henzen | C30: ='Wettkampf 1'!C30 -> Börger III | F30: 0.0 | G30: 0 | H30: 0 | I30: 0 | J30: 0 | K30: 0 | L30: 1 | M30: 0 | N30: 0 | O30: 0 | P30: 0 | Q30: 0 | R30: 0 | X30: 0.0 | Y30: 1 | Z30: 0
A31: 22 | B31: ='Wettkampf 1'!B31 -> Uwe Goldenstein | C31: ='Wettkampf 1'!C31 -> Börger II | F31: 0.0 | G31: 0 | H31: 0 | I31: 0 | J31: 0 | K31: 0 | L31: 0 | M31: 0 | N31: 1 | O31: 0 | P31: 0 | Q31: 0 | R31: 0 | X31: 0.0 | Y31: 1 | Z31: 0
A32: 23 | B32: ='Wettkampf 1'!B32 -> Ingo Zdralik | C32: ='Wettkampf 1'!C32 -> Börger II | F32: 0.0 | G32: 0 | H32: 0 | I32: 0 | J32: 0 | K32: 0 | L32: 0 | M32: 0 | N32: 1 | O32: 0 | P32: 0 | Q32: 0 | R32: 0 | X32: 0.0 | Y32: 1 | Z32: 0
A33: 24 | B33: ='Wettkampf 1'!B33 -> Schütze 24 | C33: ='Wettkampf 1'!C33 -> Börger II | F33: 0.0 | G33: 0 | H33: 0 | I33: 0 | J33: 0 | K33: 0 | L33: 0 | M33: 0 | N33: 1 | O33: 0 | P33: 0 | Q33: 0 | R33: 0 | X33: 0.0 | Y33: 1 | Z33: 0
A34: 25 | B34: ='Wettkampf 1'!B34 -> Oliver Reinelt | C34: ='Wettkampf 1'!C34 -> Lahn IV | F34: 0.0 | G34: 0 | H34: 0 | I34: 0 | J34: 0 | K34: 0 | L34: 0 | M34: 0 | N34: 0 | O34: 0 | P34: 1 | Q34: 0 | R34: 0 | X34: 0.0 | Y34: 1 | Z34: 0
A35: 26 | B35: ='Wettkampf 1'!B35 -> Vitalij Schmidt | C35: ='Wettkampf 1'!C35 -> Lahn IV | F35: 0.0 | G35: 0 | H35: 0 | I35: 0 | J35: 0 | K35: 0 | L35: 0 | M35: 0 | N35: 0 | O35: 0 | P35: 1 | Q35: 0 | R35: 0 | X35: 0.0 | Y35: 1 | Z35: 0
A36: 27 | B36: ='Wettkampf 1'!B36 -> Hermann Benten | C36: ='Wettkampf 1'!C36 -> Lahn IV | F36: 0.0 | G36: 0 | H36: 0 | I36: 0 | J36: 0 | K36: 0 | L36: 0 | M36: 0 | N36: 0 | O36: 0 | P36: 1 | Q36: 0 | R36: 0 | X36: 0.0 | Y36: 1 | Z36: 0
A37: 28 | B37: ='Wettkampf 1'!B37 -> Johannes Thesing | C37: ='Wettkampf 1'!C37 -> Lahn IV | F37: 0.0 | G37: 0 | H37: 0 | I37: 0 | J37: 0 | K37: 0 | L37: 0 | M37: 0 | N37: 0 | O37: 0 | P37: 1 | Q37: 0 | R37: 0 | X37: 0.0 | Y37: 1 | Z37: 0
A38: 29 | B38: ='Wettkampf 1'!B38 -> Schütze 29 | C38: ='Wettkampf 1'!C38 -> Lahn IV | F38: 0.0 | G38: 0 | H38: 0 | I38: 0 | J38: 0 | K38: 0 | L38: 0 | M38: 0 | N38: 0 | O38: 0 | P38: 1 | Q38: 0 | R38: 0 | X38: 0.0 | Y38: 1 | Z38: 0
A39: 30 | B39: ='Wettkampf 1'!B39 -> Willi Rolfes | C39: ='Wettkampf 1'!C39 -> Neuvrees I | F39: 0.0 | G39: 0 | H39: 0 | I39: 0 | J39: 0 | K39: 0 | L39: 0 | M39: 0 | N39: 0 | O39: 0 | P39: 0 | Q39: 0 | R39: 1 | X39: 0.0 | Y39: 1 | Z39: 0
A40: 31 | B40: ='Wettkampf 1'!B40 -> Werner Thyen | C40: ='Wettkampf 1'!C40 -> Neuvrees I | F40: 0.0 | G40: 0 | H40: 0 | I40: 0 | J40: 0 | K40: 0 | L40: 0 | M40: 0 | N40: 0 | O40: 0 | P40: 0 | Q40: 0 | R40: 1 | X40: 0.0 | Y40: 1 | Z40: 0
A41: 32 | B41: ='Wettkampf 1'!B41 -> Wilfried Breyer | C41: ='Wettkampf 1'!C41 -> Neuvrees I | F41: 0.0 | G41: 0 | H41: 0 | I41: 0 | J41: 0 | K41: 0 | L41: 0 | M41: 0 | N41: 0 | O41: 0 | P41: 0 | Q41: 0 | R41: 1 | X41: 0.0 | Y41: 1 | Z41: 0
A42: 33 | B42: ='Wettkampf 1'!B42 -> Klaus Steenken | C42: ='Wettkampf 1'!C42 -> Neuvrees I | F42: 0.0 | G42: 0 | H42: 0 | I42: 0 | J42: 0 | K42: 0 | L42: 0 | M42: 0 | N42: 0 | O42: 0 | P42: 0 | Q42: 0 | R42: 1 | X42: 0.0 | Y42: 1 | Z42: 0
A43: 34 | B43: ='Wettkampf 1'!B43 -> Markus Janßen | C43: ='Wettkampf 1'!C43 -> Neuvrees I | F43: 0.0 | G43: 0 | H43: 0 | I43: 0 | J43: 0 | K43: 0 | L43: 0 | M43: 0 | N43: 0 | O43: 0 | P43: 0 | Q43: 0 | R43: 1 | X43: 0.0 | Y43: 1 | Z43: 0
A44: 35 | B44: ='Wettkampf 1'!B44 -> Carsten Peters | C44: ='Wettkampf 1'!C44 -> Neuvrees I | F44: 0.0 | G44: 0 | H44: 0 | I44: 0 | J44: 0 | K44: 0 | L44: 0 | M44: 0 | N44: 0 | O44: 0 | P44: 0 | Q44: 0 | R44: 1 | X44: 0.0 | Y44: 1 | Z44: 0
A45: 36 | B45: ='Wettkampf 1'!B45 -> Dietmar Spekker | C45: ='Wettkampf 1'!C45 -> Neuvrees I | F45: 0.0 | G45: 0 | H45: 0 | I45: 0 | J45: 0 | K45: 0 | L45: 0 | M45: 0 | N45: 0 | O45: 0 | P45: 0 | Q45: 0 | R45: 1 | X45: 0.0 | Y45: 1 | Z45: 0
G46: =LARGE(G10:G45,1)+LARGE(G10:G45,2)+LARGE(G10:G45,3) -> 0 | H46: =SUM(H10:H45) -> 8 | I46: =LARGE(I10:I45,1)+LARGE(I10:I45,2)+LARGE(I10:I45,3) -> 0 | J46: =SUM(J10:J45) -> 5 | K46: =LARGE(K10:K45,1)+LARGE(K10:K45,2)+LARGE(K10:K45,3) -> 0 | L46: =SUM(L10:L45) -> 5 | M46: =LARGE(M10:M45,1)+LARGE(M10:M45,2)+LARGE(M10:M45,3) -> 0 | N46: =SUM(N10:N45) -> 6 | O46: =LARGE(O10:O45,1)+LARGE(O10:O45,2)+LARGE(O10:O45,3) -> 0 | P46: =SUM(P10:P45) -> 5 | Q46: =LARGE(Q10:Q45,1)+LARGE(Q10:Q45,2)+LARGE(Q10:Q45,3) -> 0 | R46: =SUM(R10:S45) -> 7
C47: per Email an: sk-huemmling@gmx.de

Sheet 9
B1: Verein / Gruppe | D1: Ergebnisse | V1: Austragungsort: | W1: =Übersicht!N4 -> Börger
A2: 1 | B2: ='Wettkampf 1'!B2 -> Börgerwald II | D2: =G46 -> 0.0 | E2: =IF(H46>4,"Es sind zu viele Schützen in Wertung!"," ") -> Es sind zu viele Schützen in Wertung! | V2: Wettkampftag: | W2: =Übersicht!N3 -> 11.02.
A3: 2 | B3: ='Wettkampf 1'!B3 -> Neuvrees II | D3: =I46 -> 0.0 | E3: =IF(J46>4,"Es sind zu viele Schützen in Wertung!"," ") -> Es sind zu viele Schützen in Wertung!
A4: 3 | B4: ='Wettkampf 1'!B4 -> Börger III | D4: =K46 -> 0.0 | E4: =IF(L46>4,"Es sind zu viele Schützen in Wertung!"," ") -> Es sind zu viele Schützen in Wertung! | X4: Ansprechpartner für Rückfragen:
A5: 4 | B5: ='Wettkampf 1'!B5 -> Börger II | D5: =M46 -> 0.0 | E5: =IF(N46>4,"Es sind zu viele Schützen in Wertung!"," ") -> Es sind zu viele Schützen in Wertung! | V5: Name:
A6: 5 | B6: ='Wettkampf 1'!B6 -> Lahn IV | D6: =O46 -> 0.0 | E6: =IF(P46>4,"Es sind zu viele Schützen in Wertung!"," ") -> Es sind zu viele Schützen in Wertung! | V6: Tel:
A7: 6 | B7: ='Wettkampf 1'!B7 -> Neuvrees I | D7: =Q46 -> 0.0 | E7: =IF(R46>4,"Es sind zu viele Schützen in Wertung!"," ") -> Es sind zu viele Schützen in Wertung! | V7: Standaufsicht: | W7: eintragen
B9: Einzelergebnisse: | C9: Verein / Gruppe | D9: Ergebnisse (mindestens 0 eintragen) | E9: AW? Dann x eintippen | G9: Verein 1 | I9: Verein 2 | K9: Verein 3 | M9: Verein 4 | O9: Verein 5 | Q9: Verein 6 | U9: Proberechnung bei Streifen:
A10: 1 | B10: ='Wettkampf 1'!B10 -> Andre Hanenkamp | C10: ='Wettkampf 1'!C10 -> Börgerwald II | F10: =IF(E10="x","0",D10) -> 0.0 | G10: =IF(C10=$B$2,F10,0) -> 0 | H10: =(IF(AND($E10="",$C10=$B$2),1,0)) -> 1 | I10: =IF($C10=$B$3,F10,0) -> 0 | J10: =(IF(AND($E10="",$C10=$B$3),1,0)) -> 0 | K10: =IF($C10=$B$4,F10,0) -> 0 | L10: =(IF(AND($E10="",$C10=$B$4),1,0)) -> 0 | M10: =IF($C10=$B$5,F10,0) -> 0 | N10: =(IF(AND($E10="",$C10=$B$5),1,0)) -> 0 | O10: =IF($C10=$B$6,F10,0) -> 0 | P10: =(IF(AND($E10="",$C10=$B$6),1,0)) -> 0 | Q10: =IF($C10=$B$7,F10,0) -> 0 | R10: =(IF(AND($E10="",$C10=$B$7),1,0)) -> 0 | X10: =U10+V10+W10 -> 0.0 | Y10: =IF(X10=D10,1,0) -> 1 | Z10: =IF(X10=0,0,1) -> 0 | AA10: =IF(Y10+Z10=2,"Korrekt","") -> 
A11: 2 | B11: ='Wettkampf 1'!B11 -> Horst Sabel | C11: ='Wettkampf 1'!C11 -> Börgerwald II | F11: =IF(E11="x","0",D11) -> 0.0 | G11: =IF(C11=$B$2,F11,0) -> 0 | H11: =(IF(AND($E11="",$C11=$B$2),1,0)) -> 1 | I11: =IF($C11=$B$3,F11,0) -> 0 | J11: =(IF(AND($E11="",$C11=$B$3),1,0)) -> 0 | K11: =IF($C11=$B$4,F11,0) -> 0 | L11: =(IF(AND($E11="",$C11=$B$4),1,0)) -> 0 | M11: =IF($C11=$B$5,F11,0) -> 0 | N11: =(IF(AND($E11="",$C11=$B$5),1,0)) -> 0 | O11: =IF($C11=$B$6,F11,0) -> 0 | P11: =(IF(AND($E11="",$C11=$B$6),1,0)) -> 0 | Q11: =IF($C11=$B$7,F11,0) -> 0 | R11: =(IF(AND($E11="",$C11=$B$7),1,0)) -> 0 | X11: =U11+V11+W11 -> 0.0 | Y11: =IF(X11=D11,1,0) -> 1 | Z11: =IF(X11=0,0,1) -> 0 | AA11: =IF(Y11+Z11=2,"Korrekt","") -> 
A12: 3 | B12: ='Wettkampf 1'!B12 -> Christian Robben | C12: ='Wettkampf 1'!C12 -> Börgerwald II | F12: 0.0 | G12: 0 | H12: 1 | I12: 0 | J12: 0 | K12: 0 | L12: 0 | M12: 0 | N12: 0 | O12: 0 | P12: 0 | Q12: 0 | R12: 0 | X12: 0.0 | Y12: 1 | Z12: 0
A13: 4 | B13: ='Wettkampf 1'!B13 -> Mathis Antons | C13: ='Wettkampf 1'!C13 -> Börgerwald II | F13: 0.0 | G13: 0 | H13: 1 | I13: 0 | J13: 0 | K13: 0 | L13: 0 | M13: 0 | N13: 0 | O13: 0 | P13: 0 | Q13: 0 | R13: 0 | X13: 0.0 | Y13: 1 | Z13: 0
A14: 5 | B14: ='Wettkampf 1'!B14 -> Tobias Sebers | C14: ='Wettkampf 1'!C14 -> Börgerwald II | F14: 0.0 | G14: 0 | H14: 1 | I14: 0 | J14: 0 | K14: 0 | L14: 0 | M14: 0 | N14: 0 | O14: 0 | P14: 0 | Q14: 0 | R14: 0 | X14: 0.0 | Y14: 1 | Z14: 0
A15: 6 | B15: ='Wettkampf 1'!B15 -> Friedhelm Schroer | C15: ='Wettkampf 1'!C15 -> Börgerwald II | F15: 0.0 | G15: 0 | H15: 1 | I15: 0 | J15: 0 | K15: 0 | L15: 0 | M15: 0 | N15: 0 | O15: 0 | P15: 0 | Q15: 0 | R15: 0 | X15: 0.0 | Y15: 1 | Z15: 0
A16: 7 | B16: ='Wettkampf 1'!B16 -> Toni Stahl | C16: ='Wettkampf 1'!C16 -> Börgerwald II | F16: 0.0 | G16: 0 | H16: 1 | I16: 0 | J16: 0 | K16: 0 | L16: 0 | M16: 0 | N16: 0 | O16: 0 | P16: 0 | Q16: 0 | R16: 0 | X16: 0.0 | Y16: 1 | Z16: 0
A17: 8 | B17: ='Wettkampf 1'!B17 -> Martin Hinrichs | C17: ='Wettkampf 1'!C17 -> Börgerwald II | F17: 0.0 | G17: 0 | H17: 1 | I17: 0 | J17: 0 | K17: 0 | L17: 0 | M17: 0 | N17: 0 | O17: 0 | P17: 0 | Q17: 0 | R17: 0 | X17: 0.0 | Y17: 1 | Z17: 0
A18: 9 | B18: ='Wettkampf 1'!B18 -> Dirk Thunert | C18: ='Wettkampf 1'!C18 -> Neuvrees II | F18: 0.0 | G18: 0 | H18: 0 | I18: 0 | J18: 1 | K18: 0 | L18: 0 | M18: 0 | N18: 0 | O18: 0 | P18: 0 | Q18: 0 | R18: 0 | X18: 0.0 | Y18: 1 | Z18: 0
A19: 10 | B19: ='Wettkampf 1'!B19 -> Hans Preuth | C19: ='Wettkampf 1'!C19 -> Neuvrees II | F19: 0.0 | G19: 0 | H19: 0 | I19: 0 | J19: 1 | K19: 0 | L19: 0 | M19: 0 | N19: 0 | O19: 0 | P19: 0 | Q19: 0 | R19: 0 | X19: 0.0 | Y19: 1 | Z19: 0
A20: 11 | B20: ='Wettkampf 1'!B20 -> Karl-Heinz Schrand | C20: ='Wettkampf 1'!C20 -> Neuvrees II | F20: 0.0 | G20: 0 | H20: 0 | I20: 0 | J20: 1 | K20: 0 | L20: 0 | M20: 0 | N20: 0 | O20: 0 | P20: 0 | Q20: 0 | R20: 0 | X20: 0.0 | Y20: 1 | Z20: 0
A21: 12 | B21: ='Wettkampf 1'!B21 -> Holger Szczepanski | C21: ='Wettkampf 1'!C21 -> Neuvrees II | F21: 0.0 | G21: 0 | H21: 0 | I21: 0 | J21: 1 | K21: 0 | L21: 0 | M21: 0 | N21: 0 | O21: 0 | P21: 0 | Q21: 0 | R21: 0 | X21: 0.0 | Y21: 1 | Z21: 0
A22: 13 | B22: ='Wettkampf 1'!B22 -> Bernd Witting | C22: ='Wettkampf 1'!C22 -> Neuvrees II | F22: 0.0 | G22: 0 | H22: 0 | I22: 0 | J22: 1 | K22: 0 | L22: 0 | M22: 0 | N22: 0 | O22: 0 | P22: 0 | Q22: 0 | R22: 0 | X22: 0.0 | Y22: 1 | Z22: 0
A23: 14 | B23: ='Wettkampf 1'!B23 -> Hermann Schwarte | C23: ='Wettkampf 1'!C23 -> Börger II | F23: 0.0 | G23: 0 | H23: 0 | I23: 0 | J23: 0 | K23: 0 | L23: 0 | M23: 0 | N23: 1 | O23: 0 | P23: 0 | Q23: 0 | R23: 0 | X23: 0.0 | Y23: 1 | Z23: 0
A24: 15 | B24: ='Wettkampf 1'!B24 -> Bernd Rode | C24: ='Wettkampf 1'!C24 -> Börger III | F24: 0.0 | G24: 0 | H24: 0 | I24: 0 | J24: 0 | K24: 0 | L24: 1 | M24: 0 | N24: 0 | O24: 0 | P24: 0 | Q24: 0 | R24: 0 | X24: 0.0 | Y24: 1 | Z24: 0
A25: 16 | B25: ='Wettkampf 1'!B25 -> Daniel Sebers | C25: ='Wettkampf 1'!C25 -> Börger III | F25: 0.0 | G25: 0 | H25: 0 | I25: 0 | J25: 0 | K25: 0 | L25: 1 | M25: 0 | N25: 0 | O25: 0 | P25: 0 | Q25: 0 | R25: 0 | X25: 0.0 | Y25: 1 | Z25: 0
A26: 17 | B26: ='Wettkampf 1'!B26 -> Simon Schutenbrock | C26: ='Wettkampf 1'!C26 -> Börger III | F26: 0.0 | G26: 0 | H26: 0 | I26: 0 | J26: 0 | K26: 0 | L26: 1 | M26: 0 | N26: 0 | O26: 0 | P26: 0 | Q26: 0 | R26: 0 | X26: 0.0 | Y26: 1 | Z26: 0
A27: 18 | B27: ='Wettkampf 1'!B27 -> Jürgen Schroer | C27: ='Wettkampf 1'!C27 -> Börger III | F27: 0.0 | G27: 0 | H27: 0 | I27: 0 | J27: 0 | K27: 0 | L27: 1 | M27: 0 | N27: 0 | O27: 0 | P27: 0 | Q27: 0 | R27: 0 | X27: 0.0 | Y27: 1 | Z27: 0
A28: 19 | B28: ='Wettkampf 1'!B28 -> Marc Eckmann | C28: ='Wettkampf 1'!C28 -> Börger II | F28: 0.0 | G28: 0 | H28: 0 | I28: 0 | J28: 0 | K28: 0 | L28: 0 | M28: 0 | N28: 1 | O28: 0 | P28: 0 | Q28: 0 | R28: 0 | X28: 0.0 | Y28: 1 | Z28: 0
A29: 20 | B29: ='Wettkampf 1'!B29 -> Markus Jungsthöfel | C29: ='Wettkampf 1'!C29 -> Börger II | F29: 0.0 | G29: 0 | H29: 0 | I29: 0 | J29: 0 | K29: 0 | L29: 0 | M29: 0 | N29: 1 | O29: 0 | P29: 0 | Q29: 0 | R29: 0 | X29: 0.0 | Y29: 1 | Z29: 0
A30: 21 | B30: ='Wettkampf 1'!B30 -> Jens Henzen | C30: ='Wettkampf 1'!C30 -> Börger III | F30: 0.0 | G30: 0 | H30: 0 | I30: 0 | J30: 0 | K30: 0 | L30: 1 | M30: 0 | N30: 0 | O30: 0 | P30: 0 | Q30: 0 | R30: 0 | X30: 0.0 | Y30: 1 | Z30: 0
A31: 22 | B31: ='Wettkampf 1'!B31 -> Uwe Goldenstein | C31: ='Wettkampf 1'!C31 -> Börger II | F31: 0.0 | G31: 0 | H31: 0 | I31: 0 | J31: 0 | K31: 0 | L31: 0 | M31: 0 | N31: 1 | O31: 0 | P31: 0 | Q31: 0 | R31: 0 | X31: 0.0 | Y31: 1 | Z31: 0
A32: 23 | B32: ='Wettkampf 1'!B32 -> Ingo Zdralik | C32: ='Wettkampf 1'!C32 -> Börger II | F32: 0.0 | G32: 0 | H32: 0 | I32: 0 | J32: 0 | K32: 0 | L32: 0 | M32: 0 | N32: 1 | O32: 0 | P32: 0 | Q32: 0 | R32: 0 | X32: 0.0 | Y32: 1 | Z32: 0
A33: 24 | B33: ='Wettkampf 1'!B33 -> Schütze 24 | C33: ='Wettkampf 1'!C33 -> Börger II | F33: 0.0 | G33: 0 | H33: 0 | I33: 0 | J33: 0 | K33: 0 | L33: 0 | M33: 0 | N33: 1 | O33: 0 | P33: 0 | Q33: 0 | R33: 0 | X33: 0.0 | Y33: 1 | Z33: 0
A34: 25 | B34: ='Wettkampf 1'!B34 -> Oliver Reinelt | C34: ='Wettkampf 1'!C34 -> Lahn IV | F34: 0.0 | G34: 0 | H34: 0 | I34: 0 | J34: 0 | K34: 0 | L34: 0 | M34: 0 | N34: 0 | O34: 0 | P34: 1 | Q34: 0 | R34: 0 | X34: 0.0 | Y34: 1 | Z34: 0
A35: 26 | B35: ='Wettkampf 1'!B35 -> Vitalij Schmidt | C35: ='Wettkampf 1'!C35 -> Lahn IV | F35: 0.0 | G35: 0 | H35: 0 | I35: 0 | J35: 0 | K35: 0 | L35: 0 | M35: 0 | N35: 0 | O35: 0 | P35: 1 | Q35: 0 | R35: 0 | X35: 0.0 | Y35: 1 | Z35: 0
A36: 27 | B36: ='Wettkampf 1'!B36 -> Hermann Benten | C36: ='Wettkampf 1'!C36 -> Lahn IV | F36: 0.0 | G36: 0 | H36: 0 | I36: 0 | J36: 0 | K36: 0 | L36: 0 | M36: 0 | N36: 0 | O36: 0 | P36: 1 | Q36: 0 | R36: 0 | X36: 0.0 | Y36: 1 | Z36: 0
A37: 28 | B37: ='Wettkampf 1'!B37 -> Johannes Thesing | C37: ='Wettkampf 1'!C37 -> Lahn IV | F37: 0.0 | G37: 0 | H37: 0 | I37: 0 | J37: 0 | K37: 0 | L37: 0 | M37: 0 | N37: 0 | O37: 0 | P37: 1 | Q37: 0 | R37: 0 | X37: 0.0 | Y37: 1 | Z37: 0
A38: 29 | B38: ='Wettkampf 1'!B38 -> Schütze 29 | C38: ='Wettkampf 1'!C38 -> Lahn IV | F38: 0.0 | G38: 0 | H38: 0 | I38: 0 | J38: 0 | K38: 0 | L38: 0 | M38: 0 | N38: 0 | O38: 0 | P38: 1 | Q38: 0 | R38: 0 | X38: 0.0 | Y38: 1 | Z38: 0
A39: 30 | B39: ='Wettkampf 1'!B39 -> Willi Rolfes | C39: ='Wettkampf 1'!C39 -> Neuvrees I | F39: 0.0 | G39: 0 | H39: 0 | I39: 0 | J39: 0 | K39: 0 | L39: 0 | M39: 0 | N39: 0 | O39: 0 | P39: 0 | Q39: 0 | R39: 1 | X39: 0.0 | Y39: 1 | Z39: 0
A40: 31 | B40: ='Wettkampf 1'!B40 -> Werner Thyen | C40: ='Wettkampf 1'!C40 -> Neuvrees I | F40: 0.0 | G40: 0 | H40: 0 | I40: 0 | J40: 0 | K40: 0 | L40: 0 | M40: 0 | N40: 0 | O40: 0 | P40: 0 | Q40: 0 | R40: 1 | X40: 0.0 | Y40: 1 | Z40: 0
A41: 32 | B41: ='Wettkampf 1'!B41 -> Wilfried Breyer | C41: ='Wettkampf 1'!C41 -> Neuvrees I | F41: 0.0 | G41: 0 | H41: 0 | I41: 0 | J41: 0 | K41: 0 | L41: 0 | M41: 0 | N41: 0 | O41: 0 | P41: 0 | Q41: 0 | R41: 1 | X41: 0.0 | Y41: 1 | Z41: 0
A42: 33 | B42: ='Wettkampf 1'!B42 -> Klaus Steenken | C42: ='Wettkampf 1'!C42 -> Neuvrees I | F42: 0.0 | G42: 0 | H42: 0 | I42: 0 | J42: 0 | K42: 0 | L42: 0 | M42: 0 | N42: 0 | O42: 0 | P42: 0 | Q42: 0 | R42: 1 | X42: 0.0 | Y42: 1 | Z42: 0
A43: 34 | B43: ='Wettkampf 1'!B43 -> Markus Janßen | C43: ='Wettkampf 1'!C43 -> Neuvrees I | F43: 0.0 | G43: 0 | H43: 0 | I43: 0 | J43: 0 | K43: 0 | L43: 0 | M43: 0 | N43: 0 | O43: 0 | P43: 0 | Q43: 0 | R43: 1 | X43: 0.0 | Y43: 1 | Z43: 0
A44: 35 | B44: ='Wettkampf 1'!B44 -> Carsten Peters | C44: ='Wettkampf 1'!C44 -> Neuvrees I | F44: 0.0 | G44: 0 | H44: 0 | I44: 0 | J44: 0 | K44: 0 | L44: 0 | M44: 0 | N44: 0 | O44: 0 | P44: 0 | Q44: 0 | R44: 1 | X44: 0.0 | Y44: 1 | Z44: 0
A45: 36 | B45: ='Wettkampf 1'!B45 -> Dietmar Spekker | C45: ='Wettkampf 1'!C45 -> Neuvrees I | F45: 0.0 | G45: 0 | H45: 0 | I45: 0 | J45: 0 | K45: 0 | L45: 0 | M45: 0 | N45: 0 | O45: 0 | P45: 0 | Q45: 0 | R45: 1 | X45: 0.0 | Y45: 1 | Z45: 0
G46: =LARGE(G10:G45,1)+LARGE(G10:G45,2)+LARGE(G10:G45,3) -> 0 | H46: =SUM(H10:H45) -> 8 | I46: =LARGE(I10:I45,1)+LARGE(I10:I45,2)+LARGE(I10:I45,3) -> 0 | J46: =SUM(J10:J45) -> 5 | K46: =LARGE(K10:K45,1)+LARGE(K10:K45,2)+LARGE(K10:K45,3) -> 0 | L46: =SUM(L10:L45) -> 5 | M46: =LARGE(M10:M45,1)+LARGE(M10:M45,2)+LARGE(M10:M45,3) -> 0 | N46: =SUM(N10:N45) -> 6 | O46: =LARGE(O10:O45,1)+LARGE(O10:O45,2)+LARGE(O10:O45,3) -> 0 | P46: =SUM(P10:P45) -> 5 | Q46: =LARGE(Q10:Q45,1)+LARGE(Q10:Q45,2)+LARGE(Q10:Q45,3) -> 0 | R46: =SUM(R10:S45) -> 7
C47: per Email an: sk-huemmling@gmx.de

Sheet 10
B1: Verein / Gruppe | D1: Ergebnisse | V1: Austragungsort: | W1: =Übersicht!O4 -> Börger
A2: 1 | B2: ='Wettkampf 1'!B2 -> Börgerwald II | D2: =G46 -> 0.0 | E2: =IF(H46>4,"Es sind zu viele Schützen in Wertung!"," ") -> Es sind zu viele Schützen in Wertung! | V2: Wettkampftag: | W2: =Übersicht!O3 -> 25.02.
A3: 2 | B3: ='Wettkampf 1'!B3 -> Neuvrees II | D3: =I46 -> 0.0 | E3: =IF(J46>4,"Es sind zu viele Schützen in Wertung!"," ") -> Es sind zu viele Schützen in Wertung!
A4: 3 | B4: ='Wettkampf 1'!B4 -> Börger III | D4: =K46 -> 0.0 | E4: =IF(L46>4,"Es sind zu viele Schützen in Wertung!"," ") -> Es sind zu viele Schützen in Wertung! | X4: Ansprechpartner für Rückfragen:
A5: 4 | B5: ='Wettkampf 1'!B5 -> Börger II | D5: =M46 -> 0.0 | E5: =IF(N46>4,"Es sind zu viele Schützen in Wertung!"," ") -> Es sind zu viele Schützen in Wertung! | V5: Name:
A6: 5 | B6: ='Wettkampf 1'!B6 -> Lahn IV | D6: =O46 -> 0.0 | E6: =IF(P46>4,"Es sind zu viele Schützen in Wertung!"," ") -> Es sind zu viele Schützen in Wertung! | V6: Tel:
A7: 6 | B7: ='Wettkampf 1'!B7 -> Neuvrees I | D7: =Q46 -> 0.0 | E7: =IF(R46>4,"Es sind zu viele Schützen in Wertung!"," ") -> Es sind zu viele Schützen in Wertung! | V7: Standaufsicht: | W7: eintragen
B9: Einzelergebnisse: | C9: Verein / Gruppe | D9: Ergebnisse (mindestens 0 eintragen) | E9: AW? Dann x eintippen | G9: Verein 1 | I9: Verein 2 | K9: Verein 3 | M9: Verein 4 | O9: Verein 5 | Q9: Verein 6 | U9: Proberechnung bei Streifen:
A10: 1 | B10: ='Wettkampf 1'!B10 -> Andre Hanenkamp | C10: ='Wettkampf 1'!C10 -> Börgerwald II | F10: =IF(E10="x","0",D10) -> 0.0 | G10: =IF(C10=$B$2,F10,0) -> 0 | H10: =(IF(AND($E10="",$C10=$B$2),1,0)) -> 1 | I10: =IF($C10=$B$3,F10,0) -> 0 | J10: =(IF(AND($E10="",$C10=$B$3),1,0)) -> 0 | K10: =IF($C10=$B$4,F10,0) -> 0 | L10: =(IF(AND($E10="",$C10=$B$4),1,0)) -> 0 | M10: =IF($C10=$B$5,F10,0) -> 0 | N10: =(IF(AND($E10="",$C10=$B$5),1,0)) -> 0 | O10: =IF($C10=$B$6,F10,0) -> 0 | P10: =(IF(AND($E10="",$C10=$B$6),1,0)) -> 0 | Q10: =IF($C10=$B$7,F10,0) -> 0 | R10: =(IF(AND($E10="",$C10=$B$7),1,0)) -> 0 | X10: =U10+V10+W10 -> 0.0 | Y10: =IF(X10=D10,1,0) -> 1 | Z10: =IF(X10=0,0,1) -> 0 | AA10: =IF(Y10+Z10=2,"Korrekt","") -> 
A11: 2 | B11: ='Wettkampf 1'!B11 -> Horst Sabel | C11: ='Wettkampf 1'!C11 -> Börgerwald II | F11: =IF(E11="x","0",D11) -> 0.0 | G11: =IF(C11=$B$2,F11,0) -> 0 | H11: =(IF(AND($E11="",$C11=$B$2),1,0)) -> 1 | I11: =IF($C11=$B$3,F11,0) -> 0 | J11: =(IF(AND($E11="",$C11=$B$3),1,0)) -> 0 | K11: =IF($C11=$B$4,F11,0) -> 0 | L11: =(IF(AND($E11="",$C11=$B$4),1,0)) -> 0 | M11: =IF($C11=$B$5,F11,0) -> 0 | N11: =(IF(AND($E11="",$C11=$B$5),1,0)) -> 0 | O11: =IF($C11=$B$6,F11,0) -> 0 | P11: =(IF(AND($E11="",$C11=$B$6),1,0)) -> 0 | Q11: =IF($C11=$B$7,F11,0) -> 0 | R11: =(IF(AND($E11="",$C11=$B$7),1,0)) -> 0 | X11: =U11+V11+W11 -> 0.0 | Y11: =IF(X11=D11,1,0) -> 1 | Z11: =IF(X11=0,0,1) -> 0 | AA11: =IF(Y11+Z11=2,"Korrekt","") -> 
A12: 3 | B12: ='Wettkampf 1'!B12 -> Christian Robben | C12: ='Wettkampf 1'!C12 -> Börgerwald II | F12: 0.0 | G12: 0 | H12: 1 | I12: 0 | J12: 0 | K12: 0 | L12: 0 | M12: 0 | N12: 0 | O12: 0 | P12: 0 | Q12: 0 | R12: 0 | X12: 0.0 | Y12: 1 | Z12: 0
A13: 4 | B13: ='Wettkampf 1'!B13 -> Mathis Antons | C13: ='Wettkampf 1'!C13 -> Börgerwald II | F13: 0.0 | G13: 0 | H13: 1 | I13: 0 | J13: 0 | K13: 0 | L13: 0 | M13: 0 | N13: 0 | O13: 0 | P13: 0 | Q13: 0 | R13: 0 | X13: 0.0 | Y13: 1 | Z13: 0
A14: 5 | B14: ='Wettkampf 1'!B14 -> Tobias Sebers | C14: ='Wettkampf 1'!C14 -> Börgerwald II | F14: 0.0 | G14: 0 | H14: 1 | I14: 0 | J14: 0 | K14: 0 | L14: 0 | M14: 0 | N14: 0 | O14: 0 | P14: 0 | Q14: 0 | R14: 0 | X14: 0.0 | Y14: 1 | Z14: 0
A15: 6 | B15: ='Wettkampf 1'!B15 -> Friedhelm Schroer | C15: ='Wettkampf 1'!C15 -> Börgerwald II | F15: 0.0 | G15: 0 | H15: 1 | I15: 0 | J15: 0 | K15: 0 | L15: 0 | M15: 0 | N15: 0 | O15: 0 | P15: 0 | Q15: 0 | R15: 0 | X15: 0.0 | Y15: 1 | Z15: 0
A16: 7 | B16: ='Wettkampf 1'!B16 -> Toni Stahl | C16: ='Wettkampf 1'!C16 -> Börgerwald II | F16: 0.0 | G16: 0 | H16: 1 | I16: 0 | J16: 0 | K16: 0 | L16: 0 | M16: 0 | N16: 0 | O16: 0 | P16: 0 | Q16: 0 | R16: 0 | X16: 0.0 | Y16: 1 | Z16: 0
A17: 8 | B17: ='Wettkampf 1'!B17 -> Martin Hinrichs | C17: ='Wettkampf 1'!C17 -> Börgerwald II | F17: 0.0 | G17: 0 | H17: 1 | I17: 0 | J17: 0 | K17: 0 | L17: 0 | M17: 0 | N17: 0 | O17: 0 | P17: 0 | Q17: 0 | R17: 0 | X17: 0.0 | Y17: 1 | Z17: 0
A18: 9 | B18: ='Wettkampf 1'!B18 -> Dirk Thunert | C18: ='Wettkampf 1'!C18 -> Neuvrees II | F18: 0.0 | G18: 0 | H18: 0 | I18: 0 | J18: 1 | K18: 0 | L18: 0 | M18: 0 | N18: 0 | O18: 0 | P18: 0 | Q18: 0 | R18: 0 | X18: 0.0 | Y18: 1 | Z18: 0
A19: 10 | B19: ='Wettkampf 1'!B19 -> Hans Preuth | C19: ='Wettkampf 1'!C19 -> Neuvrees II | F19: 0.0 | G19: 0 | H19: 0 | I19: 0 | J19: 1 | K19: 0 | L19: 0 | M19: 0 | N19: 0 | O19: 0 | P19: 0 | Q19: 0 | R19: 0 | X19: 0.0 | Y19: 1 | Z19: 0
A20: 11 | B20: ='Wettkampf 1'!B20 -> Karl-Heinz Schrand | C20: ='Wettkampf 1'!C20 -> Neuvrees II | F20: 0.0 | G20: 0 | H20: 0 | I20: 0 | J20: 1 | K20: 0 | L20: 0 | M20: 0 | N20: 0 | O20: 0 | P20: 0 | Q20: 0 | R20: 0 | X20: 0.0 | Y20: 1 | Z20: 0
A21: 12 | B21: ='Wettkampf 1'!B21 -> Holger Szczepanski | C21: ='Wettkampf 1'!C21 -> Neuvrees II | F21: 0.0 | G21: 0 | H21: 0 | I21: 0 | J21: 1 | K21: 0 | L21: 0 | M21: 0 | N21: 0 | O21: 0 | P21: 0 | Q21: 0 | R21: 0 | X21: 0.0 | Y21: 1 | Z21: 0
A22: 13 | B22: ='Wettkampf 1'!B22 -> Bernd Witting | C22: ='Wettkampf 1'!C22 -> Neuvrees II | F22: 0.0 | G22: 0 | H22: 0 | I22: 0 | J22: 1 | K22: 0 | L22: 0 | M22: 0 | N22: 0 | O22: 0 | P22: 0 | Q22: 0 | R22: 0 | X22: 0.0 | Y22: 1 | Z22: 0
A23: 14 | B23: ='Wettkampf 1'!B23 -> Hermann Schwarte | C23: ='Wettkampf 1'!C23 -> Börger II | F23: 0.0 | G23: 0 | H23: 0 | I23: 0 | J23: 0 | K23: 0 | L23: 0 | M23: 0 | N23: 1 | O23: 0 | P23: 0 | Q23: 0 | R23: 0 | X23: 0.0 | Y23: 1 | Z23: 0
A24: 15 | B24: ='Wettkampf 1'!B24 -> Bernd Rode | C24: ='Wettkampf 1'!C24 -> Börger III | F24: 0.0 | G24: 0 | H24: 0 | I24: 0 | J24: 0 | K24: 0 | L24: 1 | M24: 0 | N24: 0 | O24: 0 | P24: 0 | Q24: 0 | R24: 0 | X24: 0.0 | Y24: 1 | Z24: 0
A25: 16 | B25: ='Wettkampf 1'!B25 -> Daniel Sebers | C25: ='Wettkampf 1'!C25 -> Börger III | F25: 0.0 | G25: 0 | H25: 0 | I25: 0 | J25: 0 | K25: 0 | L25: 1 | M25: 0 | N25: 0 | O25: 0 | P25: 0 | Q25: 0 | R25: 0 | X25: 0.0 | Y25: 1 | Z25: 0
A26: 17 | B26: ='Wettkampf 1'!B26 -> Simon Schutenbrock | C26: ='Wettkampf 1'!C26 -> Börger III | F26: 0.0 | G26: 0 | H26: 0 | I26: 0 | J26: 0 | K26: 0 | L26: 1 | M26: 0 | N26: 0 | O26: 0 | P26: 0 | Q26: 0 | R26: 0 | X26: 0.0 | Y26: 1 | Z26: 0
A27: 18 | B27: ='Wettkampf 1'!B27 -> Jürgen Schroer | C27: ='Wettkampf 1'!C27 -> Börger III | F27: 0.0 | G27: 0 | H27: 0 | I27: 0 | J27: 0 | K27: 0 | L27: 1 | M27: 0 | N27: 0 | O27: 0 | P27: 0 | Q27: 0 | R27: 0 | X27: 0.0 | Y27: 1 | Z27: 0
A28: 19 | B28: ='Wettkampf 1'!B28 -> Marc Eckmann | C28: ='Wettkampf 1'!C28 -> Börger II | F28: 0.0 | G28: 0 | H28: 0 | I28: 0 | J28: 0 | K28: 0 | L28: 0 | M28: 0 | N28: 1 | O28: 0 | P28: 0 | Q28: 0 | R28: 0 | X28: 0.0 | Y28: 1 | Z28: 0
A29: 20 | B29: ='Wettkampf 1'!B29 -> Markus Jungsthöfel | C29: ='Wettkampf 1'!C29 -> Börger II | F29: 0.0 | G29: 0 | H29: 0 | I29: 0 | J29: 0 | K29: 0 | L29: 0 | M29: 0 | N29: 1 | O29: 0 | P29: 0 | Q29: 0 | R29: 0 | X29: 0.0 | Y29: 1 | Z29: 0
A30: 21 | B30: ='Wettkampf 1'!B30 -> Jens Henzen | C30: ='Wettkampf 1'!C30 -> Börger III | F30: 0.0 | G30: 0 | H30: 0 | I30: 0 | J30: 0 | K30: 0 | L30: 1 | M30: 0 | N30: 0 | O30: 0 | P30: 0 | Q30: 0 | R30: 0 | X30: 0.0 | Y30: 1 | Z30: 0
A31: 22 | B31: ='Wettkampf 1'!B31 -> Uwe Goldenstein | C31: ='Wettkampf 1'!C31 -> Börger II | F31: 0.0 | G31: 0 | H31: 0 | I31: 0 | J31: 0 | K31: 0 | L31: 0 | M31: 0 | N31: 1 | O31: 0 | P31: 0 | Q31: 0 | R31: 0 | X31: 0.0 | Y31: 1 | Z31: 0
A32: 23 | B32: ='Wettkampf 1'!B32 -> Ingo Zdralik | C32: ='Wettkampf 1'!C32 -> Börger II | F32: 0.0 | G32: 0 | H32: 0 | I32: 0 | J32: 0 | K32: 0 | L32: 0 | M32: 0 | N32: 1 | O32: 0 | P32: 0 | Q32: 0 | R32: 0 | X32: 0.0 | Y32: 1 | Z32: 0
A33: 24 | B33: ='Wettkampf 1'!B33 -> Schütze 24 | C33: ='Wettkampf 1'!C33 -> Börger II | F33: 0.0 | G33: 0 | H33: 0 | I33: 0 | J33: 0 | K33: 0 | L33: 0 | M33: 0 | N33: 1 | O33: 0 | P33: 0 | Q33: 0 | R33: 0 | X33: 0.0 | Y33: 1 | Z33: 0
A34: 25 | B34: ='Wettkampf 1'!B34 -> Oliver Reinelt | C34: ='Wettkampf 1'!C34 -> Lahn IV | F34: 0.0 | G34: 0 | H34: 0 | I34: 0 | J34: 0 | K34: 0 | L34: 0 | M34: 0 | N34: 0 | O34: 0 | P34: 1 | Q34: 0 | R34: 0 | X34: 0.0 | Y34: 1 | Z34: 0
A35: 26 | B35: ='Wettkampf 1'!B35 -> Vitalij Schmidt | C35: ='Wettkampf 1'!C35 -> Lahn IV | F35: 0.0 | G35: 0 | H35: 0 | I35: 0 | J35: 0 | K35: 0 | L35: 0 | M35: 0 | N35: 0 | O35: 0 | P35: 1 | Q35: 0 | R35: 0 | X35: 0.0 | Y35: 1 | Z35: 0
A36: 27 | B36: ='Wettkampf 1'!B36 -> Hermann Benten | C36: ='Wettkampf 1'!C36 -> Lahn IV | F36: 0.0 | G36: 0 | H36: 0 | I36: 0 | J36: 0 | K36: 0 | L36: 0 | M36: 0 | N36: 0 | O36: 0 | P36: 1 | Q36: 0 | R36: 0 | X36: 0.0 | Y36: 1 | Z36: 0
A37: 28 | B37: ='Wettkampf 1'!B37 -> Johannes Thesing | C37: ='Wettkampf 1'!C37 -> Lahn IV | F37: 0.0 | G37: 0 | H37: 0 | I37: 0 | J37: 0 | K37: 0 | L37: 0 | M37: 0 | N37: 0 | O37: 0 | P37: 1 | Q37: 0 | R37: 0 | X37: 0.0 | Y37: 1 | Z37: 0
A38: 29 | B38: ='Wettkampf 1'!B38 -> Schütze 29 | C38: ='Wettkampf 1'!C38 -> Lahn IV | F38: 0.0 | G38: 0 | H38: 0 | I38: 0 | J38: 0 | K38: 0 | L38: 0 | M38: 0 | N38: 0 | O38: 0 | P38: 1 | Q38: 0 | R38: 0 | X38: 0.0 | Y38: 1 | Z38: 0
A39: 30 | B39: ='Wettkampf 1'!B39 -> Willi Rolfes | C39: ='Wettkampf 1'!C39 -> Neuvrees I | F39: 0.0 | G39: 0 | H39: 0 | I39: 0 | J39: 0 | K39: 0 | L39: 0 | M39: 0 | N39: 0 | O39: 0 | P39: 0 | Q39: 0 | R39: 1 | X39: 0.0 | Y39: 1 | Z39: 0
A40: 31 | B40: ='Wettkampf 1'!B40 -> Werner Thyen | C40: ='Wettkampf 1'!C40 -> Neuvrees I | F40: 0.0 | G40: 0 | H40: 0 | I40: 0 | J40: 0 | K40: 0 | L40: 0 | M40: 0 | N40: 0 | O40: 0 | P40: 0 | Q40: 0 | R40: 1 | X40: 0.0 | Y40: 1 | Z40: 0
A41: 32 | B41: ='Wettkampf 1'!B41 -> Wilfried Breyer | C41: ='Wettkampf 1'!C41 -> Neuvrees I | F41: 0.0 | G41: 0 | H41: 0 | I41: 0 | J41: 0 | K41: 0 | L41: 0 | M41: 0 | N41: 0 | O41: 0 | P41: 0 | Q41: 0 | R41: 1 | X41: 0.0 | Y41: 1 | Z41: 0
A42: 33 | B42: ='Wettkampf 1'!B42 -> Klaus Steenken | C42: ='Wettkampf 1'!C42 -> Neuvrees I | F42: 0.0 | G42: 0 | H42: 0 | I42: 0 | J42: 0 | K42: 0 | L42: 0 | M42: 0 | N42: 0 | O42: 0 | P42: 0 | Q42: 0 | R42: 1 | X42: 0.0 | Y42: 1 | Z42: 0
A43: 34 | B43: ='Wettkampf 1'!B43 -> Markus Janßen | C43: ='Wettkampf 1'!C43 -> Neuvrees I | F43: 0.0 | G43: 0 | H43: 0 | I43: 0 | J43: 0 | K43: 0 | L43: 0 | M43: 0 | N43: 0 | O43: 0 | P43: 0 | Q43: 0 | R43: 1 | X43: 0.0 | Y43: 1 | Z43: 0
A44: 35 | B44: ='Wettkampf 1'!B44 -> Carsten Peters | C44: ='Wettkampf 1'!C44 -> Neuvrees I | F44: 0.0 | G44: 0 | H44: 0 | I44: 0 | J44: 0 | K44: 0 | L44: 0 | M44: 0 | N44: 0 | O44: 0 | P44: 0 | Q44: 0 | R44: 1 | X44: 0.0 | Y44: 1 | Z44: 0
A45: 36 | B45: ='Wettkampf 1'!B45 -> Dietmar Spekker | C45: ='Wettkampf 1'!C45 -> Neuvrees I | F45: 0.0 | G45: 0 | H45: 0 | I45: 0 | J45: 0 | K45: 0 | L45: 0 | M45: 0 | N45: 0 | O45: 0 | P45: 0 | Q45: 0 | R45: 1 | X45: 0.0 | Y45: 1 | Z45: 0
G46: =LARGE(G10:G45,1)+LARGE(G10:G45,2)+LARGE(G10:G45,3) -> 0 | H46: =SUM(H10:H45) -> 8 | I46: =LARGE(I10:I45,1)+LARGE(I10:I45,2)+LARGE(I10:I45,3) -> 0 | J46: =SUM(J10:J45) -> 5 | K46: =LARGE(K10:K45,1)+LARGE(K10:K45,2)+LARGE(K10:K45,3) -> 0 | L46: =SUM(L10:L45) -> 5 | M46: =LARGE(M10:M45,1)+LARGE(M10:M45,2)+LARGE(M10:M45,3) -> 0 | N46: =SUM(N10:N45) -> 6 | O46: =LARGE(O10:O45,1)+LARGE(O10:O45,2)+LARGE(O10:O45,3) -> 0 | P46: =SUM(P10:P45) -> 5 | Q46: =LARGE(Q10:Q45,1)+LARGE(Q10:Q45,2)+LARGE(Q10:Q45,3) -> 0 | R46: =SUM(R10:S45) -> 7
C47: per Email an: sk-huemmling@gmx.de

Sheet 11
B1: Verein / Gruppe | D1: Ergebnisse | V1: Austragungsort: | W1: =Übersicht!P4 -> Lahn
A2: 1 | B2: ='Wettkampf 1'!B2 -> Börgerwald II | D2: =G46 -> 0.0 | E2: =IF(H46>4,"Es sind zu viele Schützen in Wertung!"," ") -> Es sind zu viele Schützen in Wertung! | V2: Wettkampftag: | W2: =Übersicht!P3 -> 10.03.
A3: 2 | B3: ='Wettkampf 1'!B3 -> Neuvrees II | D3: =I46 -> 0.0 | E3: =IF(J46>4,"Es sind zu viele Schützen in Wertung!"," ") -> Es sind zu viele Schützen in Wertung!
A4: 3 | B4: ='Wettkampf 1'!B4 -> Börger III | D4: =K46 -> 0.0 | E4: =IF(L46>4,"Es sind zu viele Schützen in Wertung!"," ") -> Es sind zu viele Schützen in Wertung! | X4: Ansprechpartner für Rückfragen:
A5: 4 | B5: ='Wettkampf 1'!B5 -> Börger II | D5: =M46 -> 0.0 | E5: =IF(N46>4,"Es sind zu viele Schützen in Wertung!"," ") -> Es sind zu viele Schützen in Wertung! | V5: Name:
A6: 5 | B6: ='Wettkampf 1'!B6 -> Lahn IV | D6: =O46 -> 0.0 | E6: =IF(P46>4,"Es sind zu viele Schützen in Wertung!"," ") -> Es sind zu viele Schützen in Wertung! | V6: Tel:
A7: 6 | B7: ='Wettkampf 1'!B7 -> Neuvrees I | D7: =Q46 -> 0.0 | E7: =IF(R46>4,"Es sind zu viele Schützen in Wertung!"," ") -> Es sind zu viele Schützen in Wertung! | V7: Standaufsicht: | W7: eintragen
B9: Einzelergebnisse: | C9: Verein / Gruppe | D9: Ergebnisse (mindestens 0 eintragen) | E9: AW? Dann x eintippen | G9: Verein 1 | I9: Verein 2 | K9: Verein 3 | M9: Verein 4 | O9: Verein 5 | Q9: Verein 6 | U9: Proberechnung bei Streifen:
A10: 1 | B10: ='Wettkampf 1'!B10 -> Andre Hanenkamp | C10: ='Wettkampf 1'!C10 -> Börgerwald II | F10: =IF(E10="x","0",D10) -> 0.0 | G10: =IF(C10=$B$2,F10,0) -> 0 | H10: =(IF(AND($E10="",$C10=$B$2),1,0)) -> 1 | I10: =IF($C10=$B$3,F10,0) -> 0 | J10: =(IF(AND($E10="",$C10=$B$3),1,0)) -> 0 | K10: =IF($C10=$B$4,F10,0) -> 0 | L10: =(IF(AND($E10="",$C10=$B$4),1,0)) -> 0 | M10: =IF($C10=$B$5,F10,0) -> 0 | N10: =(IF(AND($E10="",$C10=$B$5),1,0)) -> 0 | O10: =IF($C10=$B$6,F10,0) -> 0 | P10: =(IF(AND($E10="",$C10=$B$6),1,0)) -> 0 | Q10: =IF($C10=$B$7,F10,0) -> 0 | R10: =(IF(AND($E10="",$C10=$B$7),1,0)) -> 0 | X10: =U10+V10+W10 -> 0.0 | Y10: =IF(X10=D10,1,0) -> 1 | Z10: =IF(X10=0,0,1) -> 0 | AA10: =IF(Y10+Z10=2,"Korrekt","") -> 
A11: 2 | B11: ='Wettkampf 1'!B11 -> Horst Sabel | C11: ='Wettkampf 1'!C11 -> Börgerwald II | F11: =IF(E11="x","0",D11) -> 0.0 | G11: =IF(C11=$B$2,F11,0) -> 0 | H11: =(IF(AND($E11="",$C11=$B$2),1,0)) -> 1 | I11: =IF($C11=$B$3,F11,0) -> 0 | J11: =(IF(AND($E11="",$C11=$B$3),1,0)) -> 0 | K11: =IF($C11=$B$4,F11,0) -> 0 | L11: =(IF(AND($E11="",$C11=$B$4),1,0)) -> 0 | M11: =IF($C11=$B$5,F11,0) -> 0 | N11: =(IF(AND($E11="",$C11=$B$5),1,0)) -> 0 | O11: =IF($C11=$B$6,F11,0) -> 0 | P11: =(IF(AND($E11="",$C11=$B$6),1,0)) -> 0 | Q11: =IF($C11=$B$7,F11,0) -> 0 | R11: =(IF(AND($E11="",$C11=$B$7),1,0)) -> 0 | X11: =U11+V11+W11 -> 0.0 | Y11: =IF(X11=D11,1,0) -> 1 | Z11: =IF(X11=0,0,1) -> 0 | AA11: =IF(Y11+Z11=2,"Korrekt","") -> 
A12: 3 | B12: ='Wettkampf 1'!B12 -> Christian Robben | C12: ='Wettkampf 1'!C12 -> Börgerwald II | F12: 0.0 | G12: 0 | H12: 1 | I12: 0 | J12: 0 | K12: 0 | L12: 0 | M12: 0 | N12: 0 | O12: 0 | P12: 0 | Q12: 0 | R12: 0 | X12: 0.0 | Y12: 1 | Z12: 0
A13: 4 | B13: ='Wettkampf 1'!B13 -> Mathis Antons | C13: ='Wettkampf 1'!C13 -> Börgerwald II | F13: 0.0 | G13: 0 | H13: 1 | I13: 0 | J13: 0 | K13: 0 | L13: 0 | M13: 0 | N13: 0 | O13: 0 | P13: 0 | Q13: 0 | R13: 0 | X13: 0.0 | Y13: 1 | Z13: 0
A14: 5 | B14: ='Wettkampf 1'!B14 -> Tobias Sebers | C14: ='Wettkampf 1'!C14 -> Börgerwald II | F14: 0.0 | G14: 0 | H14: 1 | I14: 0 | J14: 0 | K14: 0 | L14: 0 | M14: 0 | N14: 0 | O14: 0 | P14: 0 | Q14: 0 | R14: 0 | X14: 0.0 | Y14: 1 | Z14: 0
A15: 6 | B15: ='Wettkampf 1'!B15 -> Friedhelm Schroer | C15: ='Wettkampf 1'!C15 -> Börgerwald II | F15: 0.0 | G15: 0 | H15: 1 | I15: 0 | J15: 0 | K15: 0 | L15: 0 | M15: 0 | N15: 0 | O15: 0 | P15: 0 | Q15: 0 | R15: 0 | X15: 0.0 | Y15: 1 | Z15: 0
A16: 7 | B16: ='Wettkampf 1'!B16 -> Toni Stahl | C16: ='Wettkampf 1'!C16 -> Börgerwald II | F16: 0.0 | G16: 0 | H16: 1 | I16: 0 | J16: 0 | K16: 0 | L16: 0 | M16: 0 | N16: 0 | O16: 0 | P16: 0 | Q16: 0 | R16: 0 | X16: 0.0 | Y16: 1 | Z16: 0
A17: 8 | B17: ='Wettkampf 1'!B17 -> Martin Hinrichs | C17: ='Wettkampf 1'!C17 -> Börgerwald II | F17: 0.0 | G17: 0 | H17: 1 | I17: 0 | J17: 0 | K17: 0 | L17: 0 | M17: 0 | N17: 0 | O17: 0 | P17: 0 | Q17: 0 | R17: 0 | X17: 0.0 | Y17: 1 | Z17: 0
A18: 9 | B18: ='Wettkampf 1'!B18 -> Dirk Thunert | C18: ='Wettkampf 1'!C18 -> Neuvrees II | F18: 0.0 | G18: 0 | H18: 0 | I18: 0 | J18: 1 | K18: 0 | L18: 0 | M18: 0 | N18: 0 | O18: 0 | P18: 0 | Q18: 0 | R18: 0 | X18: 0.0 | Y18: 1 | Z18: 0
A19: 10 | B19: ='Wettkampf 1'!B19 -> Hans Preuth | C19: ='Wettkampf 1'!C19 -> Neuvrees II | F19: 0.0 | G19: 0 | H19: 0 | I19: 0 | J19: 1 | K19: 0 | L19: 0 | M19: 0 | N19: 0 | O19: 0 | P19: 0 | Q19: 0 | R19: 0 | X19: 0.0 | Y19: 1 | Z19: 0
A20: 11 | B20: ='Wettkampf 1'!B20 -> Karl-Heinz Schrand | C20: ='Wettkampf 1'!C20 -> Neuvrees II | F20: 0.0 | G20: 0 | H20: 0 | I20: 0 | J20: 1 | K20: 0 | L20: 0 | M20: 0 | N20: 0 | O20: 0 | P20: 0 | Q20: 0 | R20: 0 | X20: 0.0 | Y20: 1 | Z20: 0
A21: 12 | B21: ='Wettkampf 1'!B21 -> Holger Szczepanski | C21: ='Wettkampf 1'!C21 -> Neuvrees II | F21: 0.0 | G21: 0 | H21: 0 | I21: 0 | J21: 1 | K21: 0 | L21: 0 | M21: 0 | N21: 0 | O21: 0 | P21: 0 | Q21: 0 | R21: 0 | X21: 0.0 | Y21: 1 | Z21: 0
A22: 13 | B22: ='Wettkampf 1'!B22 -> Bernd Witting | C22: ='Wettkampf 1'!C22 -> Neuvrees II | F22: 0.0 | G22: 0 | H22: 0 | I22: 0 | J22: 1 | K22: 0 | L22: 0 | M22: 0 | N22: 0 | O22: 0 | P22: 0 | Q22: 0 | R22: 0 | X22: 0.0 | Y22: 1 | Z22: 0
A23: 14 | B23: ='Wettkampf 1'!B23 -> Hermann Schwarte | C23: ='Wettkampf 1'!C23 -> Börger II | F23: 0.0 | G23: 0 | H23: 0 | I23: 0 | J23: 0 | K23: 0 | L23: 0 | M23: 0 | N23: 1 | O23: 0 | P23: 0 | Q23: 0 | R23: 0 | X23: 0.0 | Y23: 1 | Z23: 0
A24: 15 | B24: ='Wettkampf 1'!B24 -> Bernd Rode | C24: ='Wettkampf 1'!C24 -> Börger III | F24: 0.0 | G24: 0 | H24: 0 | I24: 0 | J24: 0 | K24: 0 | L24: 1 | M24: 0 | N24: 0 | O24: 0 | P24: 0 | Q24: 0 | R24: 0 | X24: 0.0 | Y24: 1 | Z24: 0
A25: 16 | B25: ='Wettkampf 1'!B25 -> Daniel Sebers | C25: ='Wettkampf 1'!C25 -> Börger III | F25: 0.0 | G25: 0 | H25: 0 | I25: 0 | J25: 0 | K25: 0 | L25: 1 | M25: 0 | N25: 0 | O25: 0 | P25: 0 | Q25: 0 | R25: 0 | X25: 0.0 | Y25: 1 | Z25: 0
A26: 17 | B26: ='Wettkampf 1'!B26 -> Simon Schutenbrock | C26: ='Wettkampf 1'!C26 -> Börger III | F26: 0.0 | G26: 0 | H26: 0 | I26: 0 | J26: 0 | K26: 0 | L26: 1 | M26: 0 | N26: 0 | O26: 0 | P26: 0 | Q26: 0 | R26: 0 | X26: 0.0 | Y26: 1 | Z26: 0
A27: 18 | B27: ='Wettkampf 1'!B27 -> Jürgen Schroer | C27: ='Wettkampf 1'!C27 -> Börger III | F27: 0.0 | G27: 0 | H27: 0 | I27: 0 | J27: 0 | K27: 0 | L27: 1 | M27: 0 | N27: 0 | O27: 0 | P27: 0 | Q27: 0 | R27: 0 | X27: 0.0 | Y27: 1 | Z27: 0
A28: 19 | B28: ='Wettkampf 1'!B28 -> Marc Eckmann | C28: ='Wettkampf 1'!C28 -> Börger II | F28: 0.0 | G28: 0 | H28: 0 | I28: 0 | J28: 0 | K28: 0 | L28: 0 | M28: 0 | N28: 1 | O28: 0 | P28: 0 | Q28: 0 | R28: 0 | X28: 0.0 | Y28: 1 | Z28: 0
A29: 20 | B29: ='Wettkampf 1'!B29 -> Markus Jungsthöfel | C29: ='Wettkampf 1'!C29 -> Börger II | F29: 0.0 | G29: 0 | H29: 0 | I29: 0 | J29: 0 | K29: 0 | L29: 0 | M29: 0 | N29: 1 | O29: 0 | P29: 0 | Q29: 0 | R29: 0 | X29: 0.0 | Y29: 1 | Z29: 0
A30: 21 | B30: ='Wettkampf 1'!B30 -> Jens Henzen | C30: ='Wettkampf 1'!C30 -> Börger III | F30: 0.0 | G30: 0 | H30: 0 | I30: 0 | J30: 0 | K30: 0 | L30: 1 | M30: 0 | N30: 0 | O30: 0 | P30: 0 | Q30: 0 | R30: 0 | X30: 0.0 | Y30: 1 | Z30: 0
A31: 22 | B31: ='Wettkampf 1'!B31 -> Uwe Goldenstein | C31: ='Wettkampf 1'!C31 -> Börger II | F31: 0.0 | G31: 0 | H31: 0 | I31: 0 | J31: 0 | K31: 0 | L31: 0 | M31: 0 | N31: 1 | O31: 0 | P31: 0 | Q31: 0 | R31: 0 | X31: 0.0 | Y31: 1 | Z31: 0
A32: 23 | B32: ='Wettkampf 1'!B32 -> Ingo Zdralik | C32: ='Wettkampf 1'!C32 -> Börger II | F32: 0.0 | G32: 0 | H32: 0 | I32: 0 | J32: 0 | K32: 0 | L32: 0 | M32: 0 | N32: 1 | O32: 0 | P32: 0 | Q32: 0 | R32: 0 | X32: 0.0 | Y32: 1 | Z32: 0
A33: 24 | B33: ='Wettkampf 1'!B33 -> Schütze 24 | C33: ='Wettkampf 1'!C33 -> Börger II | F33: 0.0 | G33: 0 | H33: 0 | I33: 0 | J33: 0 | K33: 0 | L33: 0 | M33: 0 | N33: 1 | O33: 0 | P33: 0 | Q33: 0 | R33: 0 | X33: 0.0 | Y33: 1 | Z33: 0
A34: 25 | B34: ='Wettkampf 1'!B34 -> Oliver Reinelt | C34: ='Wettkampf 1'!C34 -> Lahn IV | F34: 0.0 | G34: 0 | H34: 0 | I34: 0 | J34: 0 | K34: 0 | L34: 0 | M34: 0 | N34: 0 | O34: 0 | P34: 1 | Q34: 0 | R34: 0 | X34: 0.0 | Y34: 1 | Z34: 0
A35: 26 | B35: ='Wettkampf 1'!B35 -> Vitalij Schmidt | C35: ='Wettkampf 1'!C35 -> Lahn IV | F35: 0.0 | G35: 0 | H35: 0 | I35: 0 | J35: 0 | K35: 0 | L35: 0 | M35: 0 | N35: 0 | O35: 0 | P35: 1 | Q35: 0 | R35: 0 | X35: 0.0 | Y35: 1 | Z35: 0
A36: 27 | B36: ='Wettkampf 1'!B36 -> Hermann Benten | C36: ='Wettkampf 1'!C36 -> Lahn IV | F36: 0.0 | G36: 0 | H36: 0 | I36: 0 | J36: 0 | K36: 0 | L36: 0 | M36: 0 | N36: 0 | O36: 0 | P36: 1 | Q36: 0 | R36: 0 | X36: 0.0 | Y36: 1 | Z36: 0
A37: 28 | B37: ='Wettkampf 1'!B37 -> Johannes Thesing | C37: ='Wettkampf 1'!C37 -> Lahn IV | F37: 0.0 | G37: 0 | H37: 0 | I37: 0 | J37: 0 | K37: 0 | L37: 0 | M37: 0 | N37: 0 | O37: 0 | P37: 1 | Q37: 0 | R37: 0 | X37: 0.0 | Y37: 1 | Z37: 0
A38: 29 | B38: ='Wettkampf 1'!B38 -> Schütze 29 | C38: ='Wettkampf 1'!C38 -> Lahn IV | F38: 0.0 | G38: 0 | H38: 0 | I38: 0 | J38: 0 | K38: 0 | L38: 0 | M38: 0 | N38: 0 | O38: 0 | P38: 1 | Q38: 0 | R38: 0 | X38: 0.0 | Y38: 1 | Z38: 0
A39: 30 | B39: ='Wettkampf 1'!B39 -> Willi Rolfes | C39: ='Wettkampf 1'!C39 -> Neuvrees I | F39: 0.0 | G39: 0 | H39: 0 | I39: 0 | J39: 0 | K39: 0 | L39: 0 | M39: 0 | N39: 0 | O39: 0 | P39: 0 | Q39: 0 | R39: 1 | X39: 0.0 | Y39: 1 | Z39: 0
A40: 31 | B40: ='Wettkampf 1'!B40 -> Werner Thyen | C40: ='Wettkampf 1'!C40 -> Neuvrees I | F40: 0.0 | G40: 0 | H40: 0 | I40: 0 | J40: 0 | K40: 0 | L40: 0 | M40: 0 | N40: 0 | O40: 0 | P40: 0 | Q40: 0 | R40: 1 | X40: 0.0 | Y40: 1 | Z40: 0
A41: 32 | B41: ='Wettkampf 1'!B41 -> Wilfried Breyer | C41: ='Wettkampf 1'!C41 -> Neuvrees I | F41: 0.0 | G41: 0 | H41: 0 | I41: 0 | J41: 0 | K41: 0 | L41: 0 | M41: 0 | N41: 0 | O41: 0 | P41: 0 | Q41: 0 | R41: 1 | X41: 0.0 | Y41: 1 | Z41: 0
A42: 33 | B42: ='Wettkampf 1'!B42 -> Klaus Steenken | C42: ='Wettkampf 1'!C42 -> Neuvrees I | F42: 0.0 | G42: 0 | H42: 0 | I42: 0 | J42: 0 | K42: 0 | L42: 0 | M42: 0 | N42: 0 | O42: 0 | P42: 0 | Q42: 0 | R42: 1 | X42: 0.0 | Y42: 1 | Z42: 0
A43: 34 | B43: ='Wettkampf 1'!B43 -> Markus Janßen | C43: ='Wettkampf 1'!C43 -> Neuvrees I | F43: 0.0 | G43: 0 | H43: 0 | I43: 0 | J43: 0 | K43: 0 | L43: 0 | M43: 0 | N43: 0 | O43: 0 | P43: 0 | Q43: 0 | R43: 1 | X43: 0.0 | Y43: 1 | Z43: 0
A44: 35 | B44: ='Wettkampf 1'!B44 -> Carsten Peters | C44: ='Wettkampf 1'!C44 -> Neuvrees I | F44: 0.0 | G44: 0 | H44: 0 | I44: 0 | J44: 0 | K44: 0 | L44: 0 | M44: 0 | N44: 0 | O44: 0 | P44: 0 | Q44: 0 | R44: 1 | X44: 0.0 | Y44: 1 | Z44: 0
A45: 36 | B45: ='Wettkampf 1'!B45 -> Dietmar Spekker | C45: ='Wettkampf 1'!C45 -> Neuvrees I | F45: 0.0 | G45: 0 | H45: 0 | I45: 0 | J45: 0 | K45: 0 | L45: 0 | M45: 0 | N45: 0 | O45: 0 | P45: 0 | Q45: 0 | R45: 1 | X45: 0.0 | Y45: 1 | Z45: 0
G46: =LARGE(G10:G45,1)+LARGE(G10:G45,2)+LARGE(G10:G45,3) -> 0 | H46: =SUM(H10:H45) -> 8 | I46: =LARGE(I10:I45,1)+LARGE(I10:I45,2)+LARGE(I10:I45,3) -> 0 | J46: =SUM(J10:J45) -> 5 | K46: =LARGE(K10:K45,1)+LARGE(K10:K45,2)+LARGE(K10:K45,3) -> 0 | L46: =SUM(L10:L45) -> 5 | M46: =LARGE(M10:M45,1)+LARGE(M10:M45,2)+LARGE(M10:M45,3) -> 0 | N46: =SUM(N10:N45) -> 6 | O46: =LARGE(O10:O45,1)+LARGE(O10:O45,2)+LARGE(O10:O45,3) -> 0 | P46: =SUM(P10:P45) -> 5 | Q46: =LARGE(Q10:Q45,1)+LARGE(Q10:Q45,2)+LARGE(Q10:Q45,3) -> 0 | R46: =SUM(R10:S45) -> 7
C47: per Email an: sk-huemmling@gmx.de

Sheet 12
B1: Verein / Gruppe | D1: Ergebnisse | V1: Austragungsort: | W1: =Übersicht!Q4 -> Börgerwald
A2: 1 | B2: ='Wettkampf 1'!B2 -> Börgerwald II | D2: =G46 -> 0.0 | E2: =IF(H46>4,"Es sind zu viele Schützen in Wertung!"," ") -> Es sind zu viele Schützen in Wertung! | V2: Wettkampftag: | W2: =Übersicht!Q3 -> 07.04.
A3: 2 | B3: ='Wettkampf 1'!B3 -> Neuvrees II | D3: =I46 -> 0.0 | E3: =IF(J46>4,"Es sind zu viele Schützen in Wertung!"," ") -> Es sind zu viele Schützen in Wertung!
A4: 3 | B4: ='Wettkampf 1'!B4 -> Börger III | D4: =K46 -> 0.0 | E4: =IF(L46>4,"Es sind zu viele Schützen in Wertung!"," ") -> Es sind zu viele Schützen in Wertung! | X4: Ansprechpartner für Rückfragen:
A5: 4 | B5: ='Wettkampf 1'!B5 -> Börger II | D5: =M46 -> 0.0 | E5: =IF(N46>4,"Es sind zu viele Schützen in Wertung!"," ") -> Es sind zu viele Schützen in Wertung! | V5: Name:
A6: 5 | B6: ='Wettkampf 1'!B6 -> Lahn IV | D6: =O46 -> 0.0 | E6: =IF(P46>4,"Es sind zu viele Schützen in Wertung!"," ") -> Es sind zu viele Schützen in Wertung! | V6: Tel:
A7: 6 | B7: ='Wettkampf 1'!B7 -> Neuvrees I | D7: =Q46 -> 0.0 | E7: =IF(R46>4,"Es sind zu viele Schützen in Wertung!"," ") -> Es sind zu viele Schützen in Wertung! | V7: Standaufsicht: | W7: eintragen
B9: Einzelergebnisse: | C9: Verein / Gruppe | D9: Ergebnisse (mindestens 0 eintragen) | E9: AW? Dann x eintippen | G9: Verein 1 | I9: Verein 2 | K9: Verein 3 | M9: Verein 4 | O9: Verein 5 | Q9: Verein 6 | U9: Proberechnung bei Streifen:
A10: 1 | B10: ='Wettkampf 1'!B10 -> Andre Hanenkamp | C10: ='Wettkampf 1'!C10 -> Börgerwald II | F10: =IF(E10="x","0",D10) -> 0.0 | G10: =IF(C10=$B$2,F10,0) -> 0 | H10: =(IF(AND($E10="",$C10=$B$2),1,0)) -> 1 | I10: =IF($C10=$B$3,F10,0) -> 0 | J10: =(IF(AND($E10="",$C10=$B$3),1,0)) -> 0 | K10: =IF($C10=$B$4,F10,0) -> 0 | L10: =(IF(AND($E10="",$C10=$B$4),1,0)) -> 0 | M10: =IF($C10=$B$5,F10,0) -> 0 | N10: =(IF(AND($E10="",$C10=$B$5),1,0)) -> 0 | O10: =IF($C10=$B$6,F10,0) -> 0 | P10: =(IF(AND($E10="",$C10=$B$6),1,0)) -> 0 | Q10: =IF($C10=$B$7,F10,0) -> 0 | R10: =(IF(AND($E10="",$C10=$B$7),1,0)) -> 0 | X10: =U10+V10+W10 -> 0.0 | Y10: =IF(X10=D10,1,0) -> 1 | Z10: =IF(X10=0,0,1) -> 0 | AA10: =IF(Y10+Z10=2,"Korrekt","") -> 
A11: 2 | B11: ='Wettkampf 1'!B11 -> Horst Sabel | C11: ='Wettkampf 1'!C11 -> Börgerwald II | F11: =IF(E11="x","0",D11) -> 0.0 | G11: =IF(C11=$B$2,F11,0) -> 0 | H11: =(IF(AND($E11="",$C11=$B$2),1,0)) -> 1 | I11: =IF($C11=$B$3,F11,0) -> 0 | J11: =(IF(AND($E11="",$C11=$B$3),1,0)) -> 0 | K11: =IF($C11=$B$4,F11,0) -> 0 | L11: =(IF(AND($E11="",$C11=$B$4),1,0)) -> 0 | M11: =IF($C11=$B$5,F11,0) -> 0 | N11: =(IF(AND($E11="",$C11=$B$5),1,0)) -> 0 | O11: =IF($C11=$B$6,F11,0) -> 0 | P11: =(IF(AND($E11="",$C11=$B$6),1,0)) -> 0 | Q11: =IF($C11=$B$7,F11,0) -> 0 | R11: =(IF(AND($E11="",$C11=$B$7),1,0)) -> 0 | X11: =U11+V11+W11 -> 0.0 | Y11: =IF(X11=D11,1,0) -> 1 | Z11: =IF(X11=0,0,1) -> 0 | AA11: =IF(Y11+Z11=2,"Korrekt","") -> 
A12: 3 | B12: ='Wettkampf 1'!B12 -> Christian Robben | C12: ='Wettkampf 1'!C12 -> Börgerwald II | F12: 0.0 | G12: 0 | H12: 1 | I12: 0 | J12: 0 | K12: 0 | L12: 0 | M12: 0 | N12: 0 | O12: 0 | P12: 0 | Q12: 0 | R12: 0 | X12: 0.0 | Y12: 1 | Z12: 0
A13: 4 | B13: ='Wettkampf 1'!B13 -> Mathis Antons | C13: ='Wettkampf 1'!C13 -> Börgerwald II | F13: 0.0 | G13: 0 | H13: 1 | I13: 0 | J13: 0 | K13: 0 | L13: 0 | M13: 0 | N13: 0 | O13: 0 | P13: 0 | Q13: 0 | R13: 0 | X13: 0.0 | Y13: 1 | Z13: 0
A14: 5 | B14: ='Wettkampf 1'!B14 -> Tobias Sebers | C14: ='Wettkampf 1'!C14 -> Börgerwald II | F14: 0.0 | G14: 0 | H14: 1 | I14: 0 | J14: 0 | K14: 0 | L14: 0 | M14: 0 | N14: 0 | O14: 0 | P14: 0 | Q14: 0 | R14: 0 | X14: 0.0 | Y14: 1 | Z14: 0
A15: 6 | B15: ='Wettkampf 1'!B15 -> Friedhelm Schroer | C15: ='Wettkampf 1'!C15 -> Börgerwald II | F15: 0.0 | G15: 0 | H15: 1 | I15: 0 | J15: 0 | K15: 0 | L15: 0 | M15: 0 | N15: 0 | O15: 0 | P15: 0 | Q15: 0 | R15: 0 | X15: 0.0 | Y15: 1 | Z15: 0
A16: 7 | B16: ='Wettkampf 1'!B16 -> Toni Stahl | C16: ='Wettkampf 1'!C16 -> Börgerwald II | F16: 0.0 | G16: 0 | H16: 1 | I16: 0 | J16: 0 | K16: 0 | L16: 0 | M16: 0 | N16: 0 | O16: 0 | P16: 0 | Q16: 0 | R16: 0 | X16: 0.0 | Y16: 1 | Z16: 0
A17: 8 | B17: ='Wettkampf 1'!B17 -> Martin Hinrichs | C17: ='Wettkampf 1'!C17 -> Börgerwald II | F17: 0.0 | G17: 0 | H17: 1 | I17: 0 | J17: 0 | K17: 0 | L17: 0 | M17: 0 | N17: 0 | O17: 0 | P17: 0 | Q17: 0 | R17: 0 | X17: 0.0 | Y17: 1 | Z17: 0
A18: 9 | B18: ='Wettkampf 1'!B18 -> Dirk Thunert | C18: ='Wettkampf 1'!C18 -> Neuvrees II | F18: 0.0 | G18: 0 | H18: 0 | I18: 0 | J18: 1 | K18: 0 | L18: 0 | M18: 0 | N18: 0 | O18: 0 | P18: 0 | Q18: 0 | R18: 0 | X18: 0.0 | Y18: 1 | Z18: 0
A19: 10 | B19: ='Wettkampf 1'!B19 -> Hans Preuth | C19: ='Wettkampf 1'!C19 -> Neuvrees II | F19: 0.0 | G19: 0 | H19: 0 | I19: 0 | J19: 1 | K19: 0 | L19: 0 | M19: 0 | N19: 0 | O19: 0 | P19: 0 | Q19: 0 | R19: 0 | X19: 0.0 | Y19: 1 | Z19: 0
A20: 11 | B20: ='Wettkampf 1'!B20 -> Karl-Heinz Schrand | C20: ='Wettkampf 1'!C20 -> Neuvrees II | F20: 0.0 | G20: 0 | H20: 0 | I20: 0 | J20: 1 | K20: 0 | L20: 0 | M20: 0 | N20: 0 | O20: 0 | P20: 0 | Q20: 0 | R20: 0 | X20: 0.0 | Y20: 1 | Z20: 0
A21: 12 | B21: ='Wettkampf 1'!B21 -> Holger Szczepanski | C21: ='Wettkampf 1'!C21 -> Neuvrees II | F21: 0.0 | G21: 0 | H21: 0 | I21: 0 | J21: 1 | K21: 0 | L21: 0 | M21: 0 | N21: 0 | O21: 0 | P21: 0 | Q21: 0 | R21: 0 | X21: 0.0 | Y21: 1 | Z21: 0
A22: 13 | B22: ='Wettkampf 1'!B22 -> Bernd Witting | C22: ='Wettkampf 1'!C22 -> Neuvrees II | F22: 0.0 | G22: 0 | H22: 0 | I22: 0 | J22: 1 | K22: 0 | L22: 0 | M22: 0 | N22: 0 | O22: 0 | P22: 0 | Q22: 0 | R22: 0 | X22: 0.0 | Y22: 1 | Z22: 0
A23: 14 | B23: ='Wettkampf 1'!B23 -> Hermann Schwarte | C23: ='Wettkampf 1'!C23 -> Börger II | F23: 0.0 | G23: 0 | H23: 0 | I23: 0 | J23: 0 | K23: 0 | L23: 0 | M23: 0 | N23: 1 | O23: 0 | P23: 0 | Q23: 0 | R23: 0 | X23: 0.0 | Y23: 1 | Z23: 0
A24: 15 | B24: ='Wettkampf 1'!B24 -> Bernd Rode | C24: ='Wettkampf 1'!C24 -> Börger III | F24: 0.0 | G24: 0 | H24: 0 | I24: 0 | J24: 0 | K24: 0 | L24: 1 | M24: 0 | N24: 0 | O24: 0 | P24: 0 | Q24: 0 | R24: 0 | X24: 0.0 | Y24: 1 | Z24: 0
A25: 16 | B25: ='Wettkampf 1'!B25 -> Daniel Sebers | C25: ='Wettkampf 1'!C25 -> Börger III | F25: 0.0 | G25: 0 | H25: 0 | I25: 0 | J25: 0 | K25: 0 | L25: 1 | M25: 0 | N25: 0 | O25: 0 | P25: 0 | Q25: 0 | R25: 0 | X25: 0.0 | Y25: 1 | Z25: 0
A26: 17 | B26: ='Wettkampf 1'!B26 -> Simon Schutenbrock | C26: ='Wettkampf 1'!C26 -> Börger III | F26: 0.0 | G26: 0 | H26: 0 | I26: 0 | J26: 0 | K26: 0 | L26: 1 | M26: 0 | N26: 0 | O26: 0 | P26: 0 | Q26: 0 | R26: 0 | X26: 0.0 | Y26: 1 | Z26: 0
A27: 18 | B27: ='Wettkampf 1'!B27 -> Jürgen Schroer | C27: ='Wettkampf 1'!C27 -> Börger III | F27: 0.0 | G27: 0 | H27: 0 | I27: 0 | J27: 0 | K27: 0 | L27: 1 | M27: 0 | N27: 0 | O27: 0 | P27: 0 | Q27: 0 | R27: 0 | X27: 0.0 | Y27: 1 | Z27: 0
A28: 19 | B28: ='Wettkampf 1'!B28 -> Marc Eckmann | C28: ='Wettkampf 1'!C28 -> Börger II | F28: 0.0 | G28: 0 | H28: 0 | I28: 0 | J28: 0 | K28: 0 | L28: 0 | M28: 0 | N28: 1 | O28: 0 | P28: 0 | Q28: 0 | R28: 0 | X28: 0.0 | Y28: 1 | Z28: 0
A29: 20 | B29: ='Wettkampf 1'!B29 -> Markus Jungsthöfel | C29: ='Wettkampf 1'!C29 -> Börger II | F29: 0.0 | G29: 0 | H29: 0 | I29: 0 | J29: 0 | K29: 0 | L29: 0 | M29: 0 | N29: 1 | O29: 0 | P29: 0 | Q29: 0 | R29: 0 | X29: 0.0 | Y29: 1 | Z29: 0
A30: 21 | B30: ='Wettkampf 1'!B30 -> Jens Henzen | C30: ='Wettkampf 1'!C30 -> Börger III | F30: 0.0 | G30: 0 | H30: 0 | I30: 0 | J30: 0 | K30: 0 | L30: 1 | M30: 0 | N30: 0 | O30: 0 | P30: 0 | Q30: 0 | R30: 0 | X30: 0.0 | Y30: 1 | Z30: 0
A31: 22 | B31: ='Wettkampf 1'!B31 -> Uwe Goldenstein | C31: ='Wettkampf 1'!C31 -> Börger II | F31: 0.0 | G31: 0 | H31: 0 | I31: 0 | J31: 0 | K31: 0 | L31: 0 | M31: 0 | N31: 1 | O31: 0 | P31: 0 | Q31: 0 | R31: 0 | X31: 0.0 | Y31: 1 | Z31: 0
A32: 23 | B32: ='Wettkampf 1'!B32 -> Ingo Zdralik | C32: ='Wettkampf 1'!C32 -> Börger II | F32: 0.0 | G32: 0 | H32: 0 | I32: 0 | J32: 0 | K32: 0 | L32: 0 | M32: 0 | N32: 1 | O32: 0 | P32: 0 | Q32: 0 | R32: 0 | X32: 0.0 | Y32: 1 | Z32: 0
A33: 24 | B33: ='Wettkampf 1'!B33 -> Schütze 24 | C33: ='Wettkampf 1'!C33 -> Börger II | F33: 0.0 | G33: 0 | H33: 0 | I33: 0 | J33: 0 | K33: 0 | L33: 0 | M33: 0 | N33: 1 | O33: 0 | P33: 0 | Q33: 0 | R33: 0 | X33: 0.0 | Y33: 1 | Z33: 0
A34: 25 | B34: ='Wettkampf 1'!B34 -> Oliver Reinelt | C34: ='Wettkampf 1'!C34 -> Lahn IV | F34: 0.0 | G34: 0 | H34: 0 | I34: 0 | J34: 0 | K34: 0 | L34: 0 | M34: 0 | N34: 0 | O34: 0 | P34: 1 | Q34: 0 | R34: 0 | X34: 0.0 | Y34: 1 | Z34: 0
A35: 26 | B35: ='Wettkampf 1'!B35 -> Vitalij Schmidt | C35: ='Wettkampf 1'!C35 -> Lahn IV | F35: 0.0 | G35: 0 | H35: 0 | I35: 0 | J35: 0 | K35: 0 | L35: 0 | M35: 0 | N35: 0 | O35: 0 | P35: 1 | Q35: 0 | R35: 0 | X35: 0.0 | Y35: 1 | Z35: 0
A36: 27 | B36: ='Wettkampf 1'!B36 -> Hermann Benten | C36: ='Wettkampf 1'!C36 -> Lahn IV | F36: 0.0 | G36: 0 | H36: 0 | I36: 0 | J36: 0 | K36: 0 | L36: 0 | M36: 0 | N36: 0 | O36: 0 | P36: 1 | Q36: 0 | R36: 0 | X36: 0.0 | Y36: 1 | Z36: 0
A37: 28 | B37: ='Wettkampf 1'!B37 -> Johannes Thesing | C37: ='Wettkampf 1'!C37 -> Lahn IV | F37: 0.0 | G37: 0 | H37: 0 | I37: 0 | J37: 0 | K37: 0 | L37: 0 | M37: 0 | N37: 0 | O37: 0 | P37: 1 | Q37: 0 | R37: 0 | X37: 0.0 | Y37: 1 | Z37: 0
A38: 29 | B38: ='Wettkampf 1'!B38 -> Schütze 29 | C38: ='Wettkampf 1'!C38 -> Lahn IV | F38: 0.0 | G38: 0 | H38: 0 | I38: 0 | J38: 0 | K38: 0 | L38: 0 | M38: 0 | N38: 0 | O38: 0 | P38: 1 | Q38: 0 | R38: 0 | X38: 0.0 | Y38: 1 | Z38: 0
A39: 30 | B39: ='Wettkampf 1'!B39 -> Willi Rolfes | C39: ='Wettkampf 1'!C39 -> Neuvrees I | F39: 0.0 | G39: 0 | H39: 0 | I39: 0 | J39: 0 | K39: 0 | L39: 0 | M39: 0 | N39: 0 | O39: 0 | P39: 0 | Q39: 0 | R39: 1 | X39: 0.0 | Y39: 1 | Z39: 0
A40: 31 | B40: ='Wettkampf 1'!B40 -> Werner Thyen | C40: ='Wettkampf 1'!C40 -> Neuvrees I | F40: 0.0 | G40: 0 | H40: 0 | I40: 0 | J40: 0 | K40: 0 | L40: 0 | M40: 0 | N40: 0 | O40: 0 | P40: 0 | Q40: 0 | R40: 1 | X40: 0.0 | Y40: 1 | Z40: 0
A41: 32 | B41: ='Wettkampf 1'!B41 -> Wilfried Breyer | C41: ='Wettkampf 1'!C41 -> Neuvrees I | F41: 0.0 | G41: 0 | H41: 0 | I41: 0 | J41: 0 | K41: 0 | L41: 0 | M41: 0 | N41: 0 | O41: 0 | P41: 0 | Q41: 0 | R41: 1 | X41: 0.0 | Y41: 1 | Z41: 0
A42: 33 | B42: ='Wettkampf 1'!B42 -> Klaus Steenken | C42: ='Wettkampf 1'!C42 -> Neuvrees I | F42: 0.0 | G42: 0 | H42: 0 | I42: 0 | J42: 0 | K42: 0 | L42: 0 | M42: 0 | N42: 0 | O42: 0 | P42: 0 | Q42: 0 | R42: 1 | X42: 0.0 | Y42: 1 | Z42: 0
A43: 34 | B43: ='Wettkampf 1'!B43 -> Markus Janßen | C43: ='Wettkampf 1'!C43 -> Neuvrees I | F43: 0.0 | G43: 0 | H43: 0 | I43: 0 | J43: 0 | K43: 0 | L43: 0 | M43: 0 | N43: 0 | O43: 0 | P43: 0 | Q43: 0 | R43: 1 | X43: 0.0 | Y43: 1 | Z43: 0
A44: 35 | B44: ='Wettkampf 1'!B44 -> Carsten Peters | C44: ='Wettkampf 1'!C44 -> Neuvrees I | F44: 0.0 | G44: 0 | H44: 0 | I44: 0 | J44: 0 | K44: 0 | L44: 0 | M44: 0 | N44: 0 | O44: 0 | P44: 0 | Q44: 0 | R44: 1 | X44: 0.0 | Y44: 1 | Z44: 0
A45: 36 | B45: ='Wettkampf 1'!B45 -> Dietmar Spekker | C45: ='Wettkampf 1'!C45 -> Neuvrees I | F45: 0.0 | G45: 0 | H45: 0 | I45: 0 | J45: 0 | K45: 0 | L45: 0 | M45: 0 | N45: 0 | O45: 0 | P45: 0 | Q45: 0 | R45: 1 | X45: 0.0 | Y45: 1 | Z45: 0
G46: =LARGE(G10:G45,1)+LARGE(G10:G45,2)+LARGE(G10:G45,3) -> 0 | H46: =SUM(H10:H45) -> 8 | I46: =LARGE(I10:I45,1)+LARGE(I10:I45,2)+LARGE(I10:I45,3) -> 0 | J46: =SUM(J10:J45) -> 5 | K46: =LARGE(K10:K45,1)+LARGE(K10:K45,2)+LARGE(K10:K45,3) -> 0 | L46: =SUM(L10:L45) -> 5 | M46: =LARGE(M10:M45,1)+LARGE(M10:M45,2)+LARGE(M10:M45,3) -> 0 | N46: =SUM(N10:N45) -> 6 | O46: =LARGE(O10:O45,1)+LARGE(O10:O45,2)+LARGE(O10:O45,3) -> 0 | P46: =SUM(P10:P45) -> 5 | Q46: =LARGE(Q10:Q45,1)+LARGE(Q10:Q45,2)+LARGE(Q10:Q45,3) -> 0 | R46: =SUM(R10:S45) -> 7
C47: per Email an: sk-huemmling@gmx.de

Sheet Ausdruck
B1: Verein / Gruppe | C1: Ergebnisse | D1: =Übersicht!K1 -> 2023/2024 | X1: Austragungsort:
A2: 1 | B2: ='Wettkampf 1'!B2 -> Börgerwald II | D2: Klasse: | X2: Wettkampftag:
A3: 2 | B3: ='Wettkampf 1'!B3 -> Neuvrees II | D3: =Übersicht!M1 -> 2. Kreisklasse
A4: 3 | B4: ='Wettkampf 1'!B4 -> Börger III | D4: =Übersicht!P1 -> Schützen | Z4: Ansprechpartner für Rückfragen:
A5: 4 | B5: ='Wettkampf 1'!B5 -> Börger II | X5: Name:
A6: 5 | B6: ='Wettkampf 1'!B6 -> Lahn IV | X6: Tel:
A7: 6 | B7: ='Wettkampf 1'!B7 -> Neuvrees I | X7: Standaufsicht:
B9: Name Schütze | C9: Verein/Gruppe | D9: Ergebnis | E9: AW? | G9: Verein 1 | I9: Verein 2 | K9: Verein 3 | M9: Verein 4 | O9: Verein 5 | Q9: Verein 6 | U9: Geburts-datum | W9: Proberechnung bei Streifen:
A10: 1 | B10: ='Wettkampf 1'!B10 -> Andre Hanenkamp | C10: ='Wettkampf 1'!C10 -> Börgerwald II | F10: =IF(E10="x","0",D10) -> 0 | G10: =IF(C10=$B$2,F10,0) -> 0 | H10: =(IF(AND($E10="",$C10=$B$2),1,0)) -> 1 | I10: =IF($C10=$B$3,F10,0) -> 0 | J10: =(IF(AND($E10="",$C10=$B$3),1,0)) -> 0 | K10: =IF($C10=$B$4,F10,0) -> 0 | L10: =(IF(AND($E10="",$C10=$B$4),1,0)) -> 0 | M10: =IF($C10=$B$5,F10,0) -> 0 | N10: =(IF(AND($E10="",$C10=$B$5),1,0)) -> 0 | O10: =IF($C10=$B$6,F10,0) -> 0 | P10: =(IF(AND($E10="",$C10=$B$6),1,0)) -> 0 | Q10: =IF($C10=$B$7,F10,0) -> 0 | R10: =(IF(AND($E10="",$C10=$B$7),1,0)) -> 0 | AA10: =IF(Z10=D10,1,0) -> 1 | AB10: =IF(Z10=0,0,1) -> 0 | AC10: =IF(AA10+AB10=2,"Korrekt","") -> 
A11: 2 | B11: ='Wettkampf 1'!B11 -> Horst Sabel | C11: ='Wettkampf 1'!C11 -> Börgerwald II | F11: =IF(E11="x","0",D11) -> 0 | G11: =IF(C11=$B$2,F11,0) -> 0 | H11: =(IF(AND($E11="",$C11=$B$2),1,0)) -> 1 | I11: =IF($C11=$B$3,F11,0) -> 0 | J11: =(IF(AND($E11="",$C11=$B$3),1,0)) -> 0 | K11: =IF($C11=$B$4,F11,0) -> 0 | L11: =(IF(AND($E11="",$C11=$B$4),1,0)) -> 0 | M11: =IF($C11=$B$5,F11,0) -> 0 | N11: =(IF(AND($E11="",$C11=$B$5),1,0)) -> 0 | O11: =IF($C11=$B$6,F11,0) -> 0 | P11: =(IF(AND($E11="",$C11=$B$6),1,0)) -> 0 | Q11: =IF($C11=$B$7,F11,0) -> 0 | R11: =(IF(AND($E11="",$C11=$B$7),1,0)) -> 0 | AA11: =IF(Z11=D11,1,0) -> 1 | AB11: =IF(Z11=0,0,1) -> 0 | AC11: =IF(AA11+AB11=2,"Korrekt","") -> 
A12: 3 | B12: ='Wettkampf 1'!B12 -> Christian Robben | C12: ='Wettkampf 1'!C12 -> Börgerwald II | F12: 0 | G12: 0 | H12: 1 | I12: 0 | J12: 0 | K12: 0 | L12: 0 | M12: 0 | N12: 0 | O12: 0 | P12: 0 | Q12: 0 | R12: 0 | AA12: 1 | AB12: 0
A13: 4 | B13: ='Wettkampf 1'!B13 -> Mathis Antons | C13: ='Wettkampf 1'!C13 -> Börgerwald II | F13: 0 | G13: 0 | H13: 1 | I13: 0 | J13: 0 | K13: 0 | L13: 0 | M13: 0 | N13: 0 | O13: 0 | P13: 0 | Q13: 0 | R13: 0 | AA13: 1 | AB13: 0
A14: 5 | B14: ='Wettkampf 1'!B14 -> Tobias Sebers | C14: ='Wettkampf 1'!C14 -> Börgerwald II | F14: 0 | G14: 0 | H14: 1 | I14: 0 | J14: 0 | K14: 0 | L14: 0 | M14: 0 | N14: 0 | O14: 0 | P14: 0 | Q14: 0 | R14: 0 | AA14: 1 | AB14: 0
A15: 6 | B15: ='Wettkampf 1'!B15 -> Friedhelm Schroer | C15: ='Wettkampf 1'!C15 -> Börgerwald II | F15: 0 | G15: 0 | H15: 1 | I15: 0 | J15: 0 | K15: 0 | L15: 0 | M15: 0 | N15: 0 | O15: 0 | P15: 0 | Q15: 0 | R15: 0 | AA15: 1 | AB15: 0
A16: 7 | B16: ='Wettkampf 1'!B16 -> Toni Stahl | C16: ='Wettkampf 1'!C16 -> Börgerwald II | F16: 0 | G16: 0 | H16: 1 | I16: 0 | J16: 0 | K16: 0 | L16: 0 | M16: 0 | N16: 0 | O16: 0 | P16: 0 | Q16: 0 | R16: 0 | AA16: 1 | AB16: 0
A17: 8 | B17: ='Wettkampf 1'!B17 -> Martin Hinrichs | C17: ='Wettkampf 1'!C17 -> Börgerwald II | F17: 0 | G17: 0 | H17: 1 | I17: 0 | J17: 0 | K17: 0 | L17: 0 | M17: 0 | N17: 0 | O17: 0 | P17: 0 | Q17: 0 | R17: 0 | AA17: 1 | AB17: 0
A18: 9 | B18: ='Wettkampf 1'!B18 -> Dirk Thunert | C18: ='Wettkampf 1'!C18 -> Neuvrees II | F18: 0 | G18: 0 | H18: 0 | I18: 0 | J18: 1 | K18: 0 | L18: 0 | M18: 0 | N18: 0 | O18: 0 | P18: 0 | Q18: 0 | R18: 0 | AA18: 1 | AB18: 0
A19: 10 | B19: ='Wettkampf 1'!B19 -> Hans Preuth | C19: ='Wettkampf 1'!C19 -> Neuvrees II | F19: 0 | G19: 0 | H19: 0 | I19: 0 | J19: 1 | K19: 0 | L19: 0 | M19: 0 | N19: 0 | O19: 0 | P19: 0 | Q19: 0 | R19: 0 | AA19: 1 | AB19: 0
A20: 11 | B20: ='Wettkampf 1'!B20 -> Karl-Heinz Schrand | C20: ='Wettkampf 1'!C20 -> Neuvrees II | F20: 0 | G20: 0 | H20: 0 | I20: 0 | J20: 1 | K20: 0 | L20: 0 | M20: 0 | N20: 0 | O20: 0 | P20: 0 | Q20: 0 | R20: 0 | AA20: 1 | AB20: 0
A21: 12 | B21: ='Wettkampf 1'!B21 -> Holger Szczepanski | C21: ='Wettkampf 1'!C21 -> Neuvrees II | F21: 0 | G21: 0 | H21: 0 | I21: 0 | J21: 1 | K21: 0 | L21: 0 | M21: 0 | N21: 0 | O21: 0 | P21: 0 | Q21: 0 | R21: 0 | AA21: 1 | AB21: 0
A22: 13 | B22: ='Wettkampf 1'!B22 -> Bernd Witting | C22: ='Wettkampf 1'!C22 -> Neuvrees II | F22: 0 | G22: 0 | H22: 0 | I22: 0 | J22: 1 | K22: 0 | L22: 0 | M22: 0 | N22: 0 | O22: 0 | P22: 0 | Q22: 0 | R22: 0 | AA22: 1 | AB22: 0
A23: 14 | B23: ='Wettkampf 1'!B23 -> Hermann Schwarte | C23: ='Wettkampf 1'!C23 -> Börger II | F23: 0 | G23: 0 | H23: 0 | I23: 0 | J23: 0 | K23: 0 | L23: 0 | M23: 0 | N23: 1 | O23: 0 | P23: 0 | Q23: 0 | R23: 0 | AA23: 1 | AB23: 0
A24: 15 | B24: ='Wettkampf 1'!B24 -> Bernd Rode | C24: ='Wettkampf 1'!C24 -> Börger III | F24: 0 | G24: 0 | H24: 0 | I24: 0 | J24: 0 | K24: 0 | L24: 1 | M24: 0 | N24: 0 | O24: 0 | P24: 0 | Q24: 0 | R24: 0 | AA24: 1 | AB24: 0
A25: 16 | B25: ='Wettkampf 1'!B25 -> Daniel Sebers | C25: ='Wettkampf 1'!C25 -> Börger III | F25: 0 | G25: 0 | H25: 0 | I25: 0 | J25: 0 | K25: 0 | L25: 1 | M25: 0 | N25: 0 | O25: 0 | P25: 0 | Q25: 0 | R25: 0 | AA25: 1 | AB25: 0
A26: 17 | B26: ='Wettkampf 1'!B26 -> Simon Schutenbrock | C26: ='Wettkampf 1'!C26 -> Börger III | F26: 0 | G26: 0 | H26: 0 | I26: 0 | J26: 0 | K26: 0 | L26: 1 | M26: 0 | N26: 0 | O26: 0 | P26: 0 | Q26: 0 | R26: 0 | AA26: 1 | AB26: 0
A27: 18 | B27: ='Wettkampf 1'!B27 -> Jürgen Schroer | C27: ='Wettkampf 1'!C27 -> Börger III | F27: 0 | G27: 0 | H27: 0 | I27: 0 | J27: 0 | K27: 0 | L27: 1 | M27: 0 | N27: 0 | O27: 0 | P27: 0 | Q27: 0 | R27: 0 | AA27: 1 | AB27: 0
A28: 19 | B28: ='Wettkampf 1'!B28 -> Marc Eckmann | C28: ='Wettkampf 1'!C28 -> Börger II | F28: 0 | G28: 0 | H28: 0 | I28: 0 | J28: 0 | K28: 0 | L28: 0 | M28: 0 | N28: 1 | O28: 0 | P28: 0 | Q28: 0 | R28: 0 | AA28: 1 | AB28: 0
A29: 20 | B29: ='Wettkampf 1'!B29 -> Markus Jungsthöfel | C29: ='Wettkampf 1'!C29 -> Börger II | F29: 0 | G29: 0 | H29: 0 | I29: 0 | J29: 0 | K29: 0 | L29: 0 | M29: 0 | N29: 1 | O29: 0 | P29: 0 | Q29: 0 | R29: 0 | AA29: 1 | AB29: 0
A30: 21 | B30: ='Wettkampf 1'!B30 -> Jens Henzen | C30: ='Wettkampf 1'!C30 -> Börger III | F30: 0 | G30: 0 | H30: 0 | I30: 0 | J30: 0 | K30: 0 | L30: 1 | M30: 0 | N30: 0 | O30: 0 | P30: 0 | Q30: 0 | R30: 0 | AA30: 1 | AB30: 0
A31: 22 | B31: ='Wettkampf 1'!B31 -> Uwe Goldenstein | C31: ='Wettkampf 1'!C31 -> Börger II | F31: 0 | G31: 0 | H31: 0 | I31: 0 | J31: 0 | K31: 0 | L31: 0 | M31: 0 | N31: 1 | O31: 0 | P31: 0 | Q31: 0 | R31: 0 | AA31: 1 | AB31: 0
A32: 23 | B32: ='Wettkampf 1'!B32 -> Ingo Zdralik | C32: ='Wettkampf 1'!C32 -> Börger II | F32: 0 | G32: 0 | H32: 0 | I32: 0 | J32: 0 | K32: 0 | L32: 0 | M32: 0 | N32: 1 | O32: 0 | P32: 0 | Q32: 0 | R32: 0 | AA32: 1 | AB32: 0
A33: 24 | B33: ='Wettkampf 1'!B33 -> Schütze 24 | C33: ='Wettkampf 1'!C33 -> Börger II | F33: 0 | G33: 0 | H33: 0 | I33: 0 | J33: 0 | K33: 0 | L33: 0 | M33: 0 | N33: 1 | O33: 0 | P33: 0 | Q33: 0 | R33: 0 | AA33: 1 | AB33: 0
A34: 25 | B34: ='Wettkampf 1'!B34 -> Oliver Reinelt | C34: ='Wettkampf 1'!C34 -> Lahn IV | F34: 0 | G34: 0 | H34: 0 | I34: 0 | J34: 0 | K34: 0 | L34: 0 | M34: 0 | N34: 0 | O34: 0 | P34: 1 | Q34: 0 | R34: 0 | AA34: 1 | AB34: 0
A35: 26 | B35: ='Wettkampf 1'!B35 -> Vitalij Schmidt | C35: ='Wettkampf 1'!C35 -> Lahn IV | F35: 0 | G35: 0 | H35: 0 | I35: 0 | J35: 0 | K35: 0 | L35: 0 | M35: 0 | N35: 0 | O35: 0 | P35: 1 | Q35: 0 | R35: 0 | AA35: 1 | AB35: 0
A36: 27 | B36: ='Wettkampf 1'!B36 -> Hermann Benten | C36: ='Wettkampf 1'!C36 -> Lahn IV | F36: 0 | G36: 0 | H36: 0 | I36: 0 | J36: 0 | K36: 0 | L36: 0 | M36: 0 | N36: 0 | O36: 0 | P36: 1 | Q36: 0 | R36: 0 | AA36: 1 | AB36: 0
A37: 28 | B37: ='Wettkampf 1'!B37 -> Johannes Thesing | C37: ='Wettkampf 1'!C37 -> Lahn IV | F37: 0 | G37: 0 | H37: 0 | I37: 0 | J37: 0 | K37: 0 | L37: 0 | M37: 0 | N37: 0 | O37: 0 | P37: 1 | Q37: 0 | R37: 0 | AA37: 1 | AB37: 0
A38: 29 | B38: ='Wettkampf 1'!B38 -> Schütze 29 | C38: ='Wettkampf 1'!C38 -> Lahn IV | F38: 0 | G38: 0 | H38: 0 | I38: 0 | J38: 0 | K38: 0 | L38: 0 | M38: 0 | N38: 0 | O38: 0 | P38: 1 | Q38: 0 | R38: 0 | AA38: 1 | AB38: 0
A39: 30 | B39: ='Wettkampf 1'!B39 -> Willi Rolfes | C39: ='Wettkampf 1'!C39 -> Neuvrees I | F39: 0 | G39: 0 | H39: 0 | I39: 0 | J39: 0 | K39: 0 | L39: 0 | M39: 0 | N39: 0 | O39: 0 | P39: 0 | Q39: 0 | R39: 1 | AA39: 1 | AB39: 0
A40: 31 | B40: ='Wettkampf 1'!B40 -> Werner Thyen | C40: ='Wettkampf 1'!C40 -> Neuvrees I | F40: 0 | G40: 0 | H40: 0 | I40: 0 | J40: 0 | K40: 0 | L40: 0 | M40: 0 | N40: 0 | O40: 0 | P40: 0 | Q40: 0 | R40: 1 | AA40: 1 | AB40: 0
A41: 32 | B41: ='Wettkampf 1'!B41 -> Wilfried Breyer | C41: ='Wettkampf 1'!C41 -> Neuvrees I | F41: 0 | G41: 0 | H41: 0 | I41: 0 | J41: 0 | K41: 0 | L41: 0 | M41: 0 | N41: 0 | O41: 0 | P41: 0 | Q41: 0 | R41: 1 | AA41: 1 | AB41: 0
A42: 33 | B42: ='Wettkampf 1'!B42 -> Klaus Steenken | C42: ='Wettkampf 1'!C42 -> Neuvrees I | F42: 0 | G42: 0 | H42: 0 | I42: 0 | J42: 0 | K42: 0 | L42: 0 | M42: 0 | N42: 0 | O42: 0 | P42: 0 | Q42: 0 | R42: 1 | AA42: 1 | AB42: 0
A43: 34 | B43: ='Wettkampf 1'!B43 -> Markus Janßen | C43: ='Wettkampf 1'!C43 -> Neuvrees I | F43: 0 | G43: 0 | H43: 0 | I43: 0 | J43: 0 | K43: 0 | L43: 0 | M43: 0 | N43: 0 | O43: 0 | P43: 0 | Q43: 0 | R43: 1 | AA43: 1 | AB43: 0
A44: 35 | B44: ='Wettkampf 1'!B44 -> Carsten Peters | C44: ='Wettkampf 1'!C44 -> Neuvrees I | F44: 0 | G44: 0 | H44: 0 | I44: 0 | J44: 0 | K44: 0 | L44: 0 | M44: 0 | N44: 0 | O44: 0 | P44: 0 | Q44: 0 | R44: 1 | AA44: 1 | AB44: 0
A45: 36 | B45: ='Wettkampf 1'!B45 -> Dietmar Spekker | C45: ='Wettkampf 1'!C45 -> Neuvrees I | F45: 0 | G45: 0 | H45: 0 | I45: 0 | J45: 0 | K45: 0 | L45: 0 | M45: 0 | N45: 0 | O45: 0 | P45: 0 | Q45: 0 | R45: 1 | AA45: 1 | AB45: 0
G46: =LARGE(G10:G45,1)+LARGE(G10:G45,2)+LARGE(G10:G45,3) -> 0 | H46: =SUM(H10:H45) -> 8 | I46: =LARGE(I10:I45,1)+LARGE(I10:I45,2)+LARGE(I10:I45,3) -> 0 | J46: =SUM(J10:J45) -> 5 | K46: =LARGE(K10:K45,1)+LARGE(K10:K45,2)+LARGE(K10:K45,3) -> 0 | L46: =SUM(L10:L45) -> 5 | M46: =LARGE(M10:M45,1)+LARGE(M10:M45,2)+LARGE(M10:M45,3) -> 0 | N46: =SUM(N10:N45) -> 6 | O46: =LARGE(O10:O45,1)+LARGE(O10:O45,2)+LARGE(O10:O45,3) -> 0 | P46: =SUM(P10:P45) -> 5 | Q46: =LARGE(Q10:Q45,1)+LARGE(Q10:Q45,2)+LARGE(Q10:Q45,3) -> 0 | R46: =SUM(R10:S45) -> 7
B48: Bitte beachtet, dass die Standaufsicht benannt werden muss

Sheet Ausdruck blank
B1: Verein / Gruppe | C1: Ergebnisse | D1: =Übersicht!K1 -> 2023/2024 | X1: Austragungsort:
A2: 1 | D2: Klasse: | X2: Wettkampftag:
A3: 2
A4: 3 | Z4: Ansprechpartner für Rückfragen:
A5: 4 | X5: Name:
A6: 5 | X6: Tel:
A7: 6 | X7: Standaufsicht:
B9: Name Schütze | C9: Verein/Gruppe | D9: Ergebnis | E9: AW? | G9: Verein 1 | I9: Verein 2 | K9: Verein 3 | M9: Verein 4 | O9: Verein 5 | Q9: Verein 6 | U9: Geburts-datum | W9: Proberechnung bei Streifen:
A10: 1 | F10: =IF(E10="x","0",D10) -> 0 | G10: =IF(C10=$B$2,F10,0) -> 0 | H10: =(IF(AND($E10="",$C10=$B$2),1,0)) -> 1 | I10: =IF($C10=$B$3,F10,0) -> 0 | J10: =(IF(AND($E10="",$C10=$B$3),1,0)) -> 1 | K10: =IF($C10=$B$4,F10,0) -> 0 | L10: =(IF(AND($E10="",$C10=$B$4),1,0)) -> 1 | M10: =IF($C10=$B$5,F10,0) -> 0 | N10: =(IF(AND($E10="",$C10=$B$5),1,0)) -> 1 | O10: =IF($C10=$B$6,F10,0) -> 0 | P10: =(IF(AND($E10="",$C10=$B$6),1,0)) -> 1 | Q10: =IF($C10=$B$7,F10,0) -> 0 | R10: =(IF(AND($E10="",$C10=$B$7),1,0)) -> 1 | AA10: =IF(Z10=D10,1,0) -> 1 | AB10: =IF(Z10=0,0,1) -> 0 | AC10: =IF(AA10+AB10=2,"Korrekt","") -> 
A11: 2 | F11: =IF(E11="x","0",D11) -> 0 | G11: =IF(C11=$B$2,F11,0) -> 0 | H11: =(IF(AND($E11="",$C11=$B$2),1,0)) -> 1 | I11: =IF($C11=$B$3,F11,0) -> 0 | J11: =(IF(AND($E11="",$C11=$B$3),1,0)) -> 1 | K11: =IF($C11=$B$4,F11,0) -> 0 | L11: =(IF(AND($E11="",$C11=$B$4),1,0)) -> 1 | M11: =IF($C11=$B$5,F11,0) -> 0 | N11: =(IF(AND($E11="",$C11=$B$5),1,0)) -> 1 | O11: =IF($C11=$B$6,F11,0) -> 0 | P11: =(IF(AND($E11="",$C11=$B$6),1,0)) -> 1 | Q11: =IF($C11=$B$7,F11,0) -> 0 | R11: =(IF(AND($E11="",$C11=$B$7),1,0)) -> 1 | AA11: =IF(Z11=D11,1,0) -> 1 | AB11: =IF(Z11=0,0,1) -> 0 | AC11: =IF(AA11+AB11=2,"Korrekt","") -> 
A12: 3 | F12: 0 | G12: 0 | H12: 1 | I12: 0 | J12: 1 | K12: 0 | L12: 1 | M12: 0 | N12: 1 | O12: 0 | P12: 1 | Q12: 0 | R12: 1 | AA12: 1 | AB12: 0
A13: 4 | F13: 0 | G13: 0 | H13: 1 | I13: 0 | J13: 1 | K13: 0 | L13: 1 | M13: 0 | N13: 1 | O13: 0 | P13: 1 | Q13: 0 | R13: 1 | AA13: 1 | AB13: 0
A14: 5 | F14: 0 | G14: 0 | H14: 1 | I14: 0 | J14: 1 | K14: 0 | L14: 1 | M14: 0 | N14: 1 | O14: 0 | P14: 1 | Q14: 0 | R14: 1 | AA14: 1 | AB14: 0
A15: 6 | F15: 0 | G15: 0 | H15: 1 | I15: 0 | J15: 1 | K15: 0 | L15: 1 | M15: 0 | N15: 1 | O15: 0 | P15: 1 | Q15: 0 | R15: 1 | AA15: 1 | AB15: 0
A16: 7 | F16: 0 | G16: 0 | H16: 1 | I16: 0 | J16: 1 | K16: 0 | L16: 1 | M16: 0 | N16: 1 | O16: 0 | P16: 1 | Q16: 0 | R16: 1 | AA16: 1 | AB16: 0
A17: 8 | F17: 0 | G17: 0 | H17: 1 | I17: 0 | J17: 1 | K17: 0 | L17: 1 | M17: 0 | N17: 1 | O17: 0 | P17: 1 | Q17: 0 | R17: 1 | AA17: 1 | AB17: 0
A18: 9 | F18: 0 | G18: 0 | H18: 1 | I18: 0 | J18: 1 | K18: 0 | L18: 1 | M18: 0 | N18: 1 | O18: 0 | P18: 1 | Q18: 0 | R18: 1 | AA18: 1 | AB18: 0
A19: 10 | F19: 0 | G19: 0 | H19: 1 | I19: 0 | J19: 1 | K19: 0 | L19: 1 | M19: 0 | N19: 1 | O19: 0 | P19: 1 | Q19: 0 | R19: 1 | AA19: 1 | AB19: 0
A20: 11 | F20: 0 | G20: 0 | H20: 1 | I20: 0 | J20: 1 | K20: 0 | L20: 1 | M20: 0 | N20: 1 | O20: 0 | P20: 1 | Q20: 0 | R20: 1 | AA20: 1 | AB20: 0
A21: 12 | F21: 0 | G21: 0 | H21: 1 | I21: 0 | J21: 1 | K21: 0 | L21: 1 | M21: 0 | N21: 1 | O21: 0 | P21: 1 | Q21: 0 | R21: 1 | AA21: 1 | AB21: 0
A22: 13 | F22: 0 | G22: 0 | H22: 1 | I22: 0 | J22: 1 | K22: 0 | L22: 1 | M22: 0 | N22: 1 | O22: 0 | P22: 1 | Q22: 0 | R22: 1 | AA22: 1 | AB22: 0
A23: 14 | F23: 0 | G23: 0 | H23: 1 | I23: 0 | J23: 1 | K23: 0 | L23: 1 | M23: 0 | N23: 1 | O23: 0 | P23: 1 | Q23: 0 | R23: 1 | AA23: 1 | AB23: 0
A24: 15 | F24: 0 | G24: 0 | H24: 1 | I24: 0 | J24: 1 | K24: 0 | L24: 1 | M24: 0 | N24: 1 | O24: 0 | P24: 1 | Q24: 0 | R24: 1 | AA24: 1 | AB24: 0
A25: 16 | F25: 0 | G25: 0 | H25: 1 | I25: 0 | J25: 1 | K25: 0 | L25: 1 | M25: 0 | N25: 1 | O25: 0 | P25: 1 | Q25: 0 | R25: 1 | AA25: 1 | AB25: 0
A26: 17 | F26: 0 | G26: 0 | H26: 1 | I26: 0 | J26: 1 | K26: 0 | L26: 1 | M26: 0 | N26: 1 | O26: 0 | P26: 1 | Q26: 0 | R26: 1 | AA26: 1 | AB26: 0
A27: 18 | F27: 0 | G27: 0 | H27: 1 | I27: 0 | J27: 1 | K27: 0 | L27: 1 | M27: 0 | N27: 1 | O27: 0 | P27: 1 | Q27: 0 | R27: 1 | AA27: 1 | AB27: 0
A28: 19 | F28: 0 | G28: 0 | H28: 1 | I28: 0 | J28: 1 | K28: 0 | L28: 1 | M28: 0 | N28: 1 | O28: 0 | P28: 1 | Q28: 0 | R28: 1 | AA28: 1 | AB28: 0
A29: 20 | F29: 0 | G29: 0 | H29: 1 | I29: 0 | J29: 1 | K29: 0 | L29: 1 | M29: 0 | N29: 1 | O29: 0 | P29: 1 | Q29: 0 | R29: 1 | AA29: 1 | AB29: 0
A30: 21 | F30: 0 | G30: 0 | H30: 1 | I30: 0 | J30: 1 | K30: 0 | L30: 1 | M30: 0 | N30: 1 | O30: 0 | P30: 1 | Q30: 0 | R30: 1 | AA30: 1 | AB30: 0
A31: 22 | F31: 0 | G31: 0 | H31: 1 | I31: 0 | J31: 1 | K31: 0 | L31: 1 | M31: 0 | N31: 1 | O31: 0 | P31: 1 | Q31: 0 | R31: 1 | AA31: 1 | AB31: 0
A32: 23 | F32: 0 | G32: 0 | H32: 1 | I32: 0 | J32: 1 | K32: 0 | L32: 1 | M32: 0 | N32: 1 | O32: 0 | P32: 1 | Q32: 0 | R32: 1 | AA32: 1 | AB32: 0
A33: 24 | F33: 0 | G33: 0 | H33: 1 | I33: 0 | J33: 1 | K33: 0 | L33: 1 | M33: 0 | N33: 1 | O33: 0 | P33: 1 | Q33: 0 | R33: 1 | AA33: 1 | AB33: 0
A34: 25 | F34: 0 | G34: 0 | H34: 1 | I34: 0 | J34: 1 | K34: 0 | L34: 1 | M34: 0 | N34: 1 | O34: 0 | P34: 1 | Q34: 0 | R34: 1 | AA34: 1 | AB34: 0
A35: 26 | F35: 0 | G35: 0 | H35: 1 | I35: 0 | J35: 1 | K35: 0 | L35: 1 | M35: 0 | N35: 1 | O35: 0 | P35: 1 | Q35: 0 | R35: 1 | AA35: 1 | AB35: 0
A36: 27 | F36: 0 | G36: 0 | H36: 1 | I36: 0 | J36: 1 | K36: 0 | L36: 1 | M36: 0 | N36: 1 | O36: 0 | P36: 1 | Q36: 0 | R36: 1 | AA36: 1 | AB36: 0
A37: 28 | F37: 0 | G37: 0 | H37: 1 | I37: 0 | J37: 1 | K37: 0 | L37: 1 | M37: 0 | N37: 1 | O37: 0 | P37: 1 | Q37: 0 | R37: 1 | AA37: 1 | AB37: 0
A38: 29 | F38: 0 | G38: 0 | H38: 1 | I38: 0 | J38: 1 | K38: 0 | L38: 1 | M38: 0 | N38: 1 | O38: 0 | P38: 1 | Q38: 0 | R38: 1 | AA38: 1 | AB38: 0
A39: 30 | F39: 0 | G39: 0 | H39: 1 | I39: 0 | J39: 1 | K39: 0 | L39: 1 | M39: 0 | N39: 1 | O39: 0 | P39: 1 | Q39: 0 | R39: 1 | AA39: 1 | AB39: 0
A40: 31 | F40: 0 | G40: 0 | H40: 1 | I40: 0 | J40: 1 | K40: 0 | L40: 1 | M40: 0 | N40: 1 | O40: 0 | P40: 1 | Q40: 0 | R40: 1 | AA40: 1 | AB40: 0
A41: 32 | F41: 0 | G41: 0 | H41: 1 | I41: 0 | J41: 1 | K41: 0 | L41: 1 | M41: 0 | N41: 1 | O41: 0 | P41: 1 | Q41: 0 | R41: 1 | AA41: 1 | AB41: 0
A42: 33 | F42: 0 | G42: 0 | H42: 1 | I42: 0 | J42: 1 | K42: 0 | L42: 1 | M42: 0 | N42: 1 | O42: 0 | P42: 1 | Q42: 0 | R42: 1 | AA42: 1 | AB42: 0
A43: 34 | F43: 0 | G43: 0 | H43: 1 | I43: 0 | J43: 1 | K43: 0 | L43: 1 | M43: 0 | N43: 1 | O43: 0 | P43: 1 | Q43: 0 | R43: 1 | AA43: 1 | AB43: 0
A44: 35 | F44: 0 | G44: 0 | H44: 1 | I44: 0 | J44: 1 | K44: 0 | L44: 1 | M44: 0 | N44: 1 | O44: 0 | P44: 1 | Q44: 0 | R44: 1 | AA44: 1 | AB44: 0
A45: 36 | F45: 0 | G45: 0 | H45: 1 | I45: 0 | J45: 1 | K45: 0 | L45: 1 | M45: 0 | N45: 1 | O45: 0 | P45: 1 | Q45: 0 | R45: 1 | AA45: 1 | AB45: 0
G46: =LARGE(G10:G45,1)+LARGE(G10:G45,2)+LARGE(G10:G45,3) -> 0 | H46: =SUM(H10:H45) -> 36 | I46: =LARGE(I10:I45,1)+LARGE(I10:I45,2)+LARGE(I10:I45,3) -> 0 | J46: =SUM(J10:J45) -> 36 | K46: =LARGE(K10:K45,1)+LARGE(K10:K45,2)+LARGE(K10:K45,3) -> 0 | L46: =SUM(L10:L45) -> 36 | M46: =LARGE(M10:M45,1)+LARGE(M10:M45,2)+LARGE(M10:M45,3) -> 0 | N46: =SUM(N10:N45) -> 36 | O46: =LARGE(O10:O45,1)+LARGE(O10:O45,2)+LARGE(O10:O45,3) -> 0 | P46: =SUM(P10:P45) -> 36 | Q46: =LARGE(Q10:Q45,1)+LARGE(Q10:Q45,2)+LARGE(Q10:Q45,3) -> 0 | R46: =SUM(R10:S45) -> 36
B48: Bitte beachtet, dass die Standaufsicht benannt werden muss

Sheet Übersicht Schützen (hidden)
C1: 1.0 | D1: 2.0 | E1: 3.0 | F1: 4.0 | G1: 5.0 | H1: 6.0 | L1: 7.0 | M1: 8.0 | N1: 9.0 | O1: 10.0 | P1: 11.0 | Q1: 12.0
A2: Ingo Zdralik | B2: =VLOOKUP(A2,'Wettkampf 1'!$B$10:$C$45,2,FALSE) -> Börger II | C2: =VLOOKUP(A2,'Wettkampf 1'!$B$10:$D$45,3,FALSE) -> 316.1 | D2: =VLOOKUP($A2,'2'!$B$10:$D$45,3,FALSE) -> 316.2 | E2: =VLOOKUP($A2,'3'!$B$10:$D$45,3,FALSE) -> 312.9 | F2: =VLOOKUP($A2,'4'!$B$10:$D$45,3,FALSE) -> 316.6 | G2: =VLOOKUP($A2,'5'!$B$10:$D$45,3,FALSE) -> 314.1 | H2: =VLOOKUP($A2,'6'!$B$10:$D$45,3,FALSE) -> 317.8 | I2: =IF(J2 > 0,K2/J2,0) -> 315.6 | J2: =VLOOKUP(A2,Formelhilfe!$A$9:$H$44,8,FALSE) -> 6.0 | K2: =SUM(C2:H2) -> 1,893.7 | L2: =VLOOKUP($A2,'7'!$B$10:$D$45,3,FALSE) -> 0.0 | M2: =VLOOKUP($A2,'8'!$B$10:$D$45,3,FALSE) -> 0.0 | N2: =VLOOKUP($A2,'9'!$B$10:$D$45,3,FALSE) -> 0.0 | O2: =VLOOKUP($A2,'10'!$B$10:$D$45,3,FALSE) -> 0.0 | P2: =VLOOKUP($A2,'11'!$B$10:$D$45,3,FALSE) -> 0.0 | Q2: =VLOOKUP($A2,'12'!$B$10:$D$45,3,FALSE) -> 0.0 | R2: =IF(S2 >0,T2/S2,0) -> 0.0 | S2: =VLOOKUP(A2,Formelhilfe!$A$9:$O$44,15,FALSE) -> 0.0 | T2: =SUM(L2:Q2) -> 0.0 | U2: =IF(V2>0,W2/V2,0) -> 315.6 | V2: =VLOOKUP(A2,Formelhilfe!$A$9:$P$44,16,FALSE) -> 6.0 | W2: =SUM(C2:H2,L2:Q2) -> 1,893.7
A3: Johannes Thesing | B3: =VLOOKUP(A3,'Wettkampf 1'!$B$10:$C$45,2,FALSE) -> Lahn IV | C3: =VLOOKUP(A3,'Wettkampf 1'!$B$10:$D$45,3,FALSE) -> 313.1 | D3: =VLOOKUP($A3,'2'!$B$10:$D$45,3,FALSE) -> 313.8 | E3: =VLOOKUP($A3,'3'!$B$10:$D$45,3,FALSE) -> 312.5 | F3: =VLOOKUP($A3,'4'!$B$10:$D$45,3,FALSE) -> 316.2 | G3: =VLOOKUP($A3,'5'!$B$10:$D$45,3,FALSE) -> 317.3 | H3: =VLOOKUP($A3,'6'!$B$10:$D$45,3,FALSE) -> 312.1 | I3: 314.2 | J3: =VLOOKUP(A3,Formelhilfe!$A$9:$H$44,8,FALSE) -> 6.0 | K3: 1,885.0 | L3: =VLOOKUP($A3,'7'!$B$10:$D$45,3,FALSE) -> 0.0 | M3: =VLOOKUP($A3,'8'!$B$10:$D$45,3,FALSE) -> 0.0 | N3: =VLOOKUP($A3,'9'!$B$10:$D$45,3,FALSE) -> 0.0 | O3: =VLOOKUP($A3,'10'!$B$10:$D$45,3,FALSE) -> 0.0 | P3: =VLOOKUP($A3,'11'!$B$10:$D$45,3,FALSE) -> 0.0 | Q3: =VLOOKUP($A3,'12'!$B$10:$D$45,3,FALSE) -> 0.0 | R3: 0.0 | S3: =VLOOKUP(A3,Formelhilfe!$A$9:$O$44,15,FALSE) -> 0.0 | T3: 0.0 | U3: 314.2 | V3: =VLOOKUP(A3,Formelhilfe!$A$9:$P$44,16,FALSE) -> 6.0 | W3: 1,885.0
A4: Bernd Witting | B4: =VLOOKUP(A4,'Wettkampf 1'!$B$10:$C$45,2,FALSE) -> Neuvrees II | C4: =VLOOKUP(A4,'Wettkampf 1'!$B$10:$D$45,3,FALSE) -> 315.0 | D4: =VLOOKUP($A4,'2'!$B$10:$D$45,3,FALSE) -> 311.8 | E4: =VLOOKUP($A4,'3'!$B$10:$D$45,3,FALSE) -> 313.8 | F4: =VLOOKUP($A4,'4'!$B$10:$D$45,3,FALSE) -> 309.6 | G4: =VLOOKUP($A4,'5'!$B$10:$D$45,3,FALSE) -> 310.3 | H4: =VLOOKUP($A4,'6'!$B$10:$D$45,3,FALSE) -> 311.1 | I4: 311.9 | J4: =VLOOKUP(A4,Formelhilfe!$A$9:$H$44,8,FALSE) -> 6.0 | K4: 1,871.6 | L4: =VLOOKUP($A4,'7'!$B$10:$D$45,3,FALSE) -> 0.0 | M4: =VLOOKUP($A4,'8'!$B$10:$D$45,3,FALSE) -> 0.0 | N4: =VLOOKUP($A4,'9'!$B$10:$D$45,3,FALSE) -> 0.0 | O4: =VLOOKUP($A4,'10'!$B$10:$D$45,3,FALSE) -> 0.0 | P4: =VLOOKUP($A4,'11'!$B$10:$D$45,3,FALSE) -> 0.0 | Q4: =VLOOKUP($A4,'12'!$B$10:$D$45,3,FALSE) -> 0.0 | R4: 0.0 | S4: =VLOOKUP(A4,Formelhilfe!$A$9:$O$44,15,FALSE) -> 0.0 | T4: 0.0 | U4: 311.9 | V4: =VLOOKUP(A4,Formelhilfe!$A$9:$P$44,16,FALSE) -> 6.0 | W4: 1,871.6
A5: Dirk Thunert | B5: =VLOOKUP(A5,'Wettkampf 1'!$B$10:$C$45,2,FALSE) -> Neuvrees II | C5: =VLOOKUP(A5,'Wettkampf 1'!$B$10:$D$45,3,FALSE) -> 310.0 | D5: =VLOOKUP($A5,'2'!$B$10:$D$45,3,FALSE) -> 310.9 | E5: =VLOOKUP($A5,'3'!$B$10:$D$45,3,FALSE) -> 311.7 | F5: =VLOOKUP($A5,'4'!$B$10:$D$45,3,FALSE) -> 310.9 | G5: =VLOOKUP($A5,'5'!$B$10:$D$45,3,FALSE) -> 312.5 | H5: =VLOOKUP($A5,'6'!$B$10:$D$45,3,FALSE) -> 313.0 | I5: 311.5 | J5: =VLOOKUP(A5,Formelhilfe!$A$9:$H$44,8,FALSE) -> 6.0 | K5: 1,869.0 | L5: =VLOOKUP($A5,'7'!$B$10:$D$45,3,FALSE) -> 0.0 | M5: =VLOOKUP($A5,'8'!$B$10:$D$45,3,FALSE) -> 0.0 | N5: =VLOOKUP($A5,'9'!$B$10:$D$45,3,FALSE) -> 0.0 | O5: =VLOOKUP($A5,'10'!$B$10:$D$45,3,FALSE) -> 0.0 | P5: =VLOOKUP($A5,'11'!$B$10:$D$45,3,FALSE) -> 0.0 | Q5: =VLOOKUP($A5,'12'!$B$10:$D$45,3,FALSE) -> 0.0 | R5: 0.0 | S5: =VLOOKUP(A5,Formelhilfe!$A$9:$O$44,15,FALSE) -> 0.0 | T5: 0.0 | U5: 311.5 | V5: =VLOOKUP(A5,Formelhilfe!$A$9:$P$44,16,FALSE) -> 6.0 | W5: 1,869.0
A6: Simon Schutenbrock | B6: =VLOOKUP(A6,'Wettkampf 1'!$B$10:$C$45,2,FALSE) -> Börger III | C6: =VLOOKUP(A6,'Wettkampf 1'!$B$10:$D$45,3,FALSE) -> 313.8 | D6: =VLOOKUP($A6,'2'!$B$10:$D$45,3,FALSE) -> 311.1 | E6: =VLOOKUP($A6,'3'!$B$10:$D$45,3,FALSE) -> 307.6 | F6: =VLOOKUP($A6,'4'!$B$10:$D$45,3,FALSE) -> 314.4 | G6: =VLOOKUP($A6,'5'!$B$10:$D$45,3,FALSE) -> 309.6 | H6: =VLOOKUP($A6,'6'!$B$10:$D$45,3,FALSE) -> 311.0 | I6: 311.3 | J6: =VLOOKUP(A6,Formelhilfe!$A$9:$H$44,8,FALSE) -> 6.0 | K6: 1,867.5 | L6: =VLOOKUP($A6,'7'!$B$10:$D$45,3,FALSE) -> 0.0 | M6: =VLOOKUP($A6,'8'!$B$10:$D$45,3,FALSE) -> 0.0 | N6: =VLOOKUP($A6,'9'!$B$10:$D$45,3,FALSE) -> 0.0 | O6: =VLOOKUP($A6,'10'!$B$10:$D$45,3,FALSE) -> 0.0 | P6: =VLOOKUP($A6,'11'!$B$10:$D$45,3,FALSE) -> 0.0 | Q6: =VLOOKUP($A6,'12'!$B$10:$D$45,3,FALSE) -> 0.0 | R6: 0.0 | S6: =VLOOKUP(A6,Formelhilfe!$A$9:$O$44,15,FALSE) -> 0.0 | T6: 0.0 | U6: 311.3 | V6: =VLOOKUP(A6,Formelhilfe!$A$9:$P$44,16,FALSE) -> 6.0 | W6: 1,867.5
A7: Willi Rolfes | B7: =VLOOKUP(A7,'Wettkampf 1'!$B$10:$C$45,2,FALSE) -> Neuvrees I | C7: =VLOOKUP(A7,'Wettkampf 1'!$B$10:$D$45,3,FALSE) -> 310.7 | D7: =VLOOKUP($A7,'2'!$B$10:$D$45,3,FALSE) -> 312.8 | E7: =VLOOKUP($A7,'3'!$B$10:$D$45,3,FALSE) -> 308.5 | F7: =VLOOKUP($A7,'4'!$B$10:$D$45,3,FALSE) -> 311.1 | G7: =VLOOKUP($A7,'5'!$B$10:$D$45,3,FALSE) -> 309.9 | H7: =VLOOKUP($A7,'6'!$B$10:$D$45,3,FALSE) -> 313.8 | I7: 311.1 | J7: =VLOOKUP(A7,Formelhilfe!$A$9:$H$44,8,FALSE) -> 6.0 | K7: 1,866.8 | L7: =VLOOKUP($A7,'7'!$B$10:$D$45,3,FALSE) -> 0.0 | M7: =VLOOKUP($A7,'8'!$B$10:$D$45,3,FALSE) -> 0.0 | N7: =VLOOKUP($A7,'9'!$B$10:$D$45,3,FALSE) -> 0.0 | O7: =VLOOKUP($A7,'10'!$B$10:$D$45,3,FALSE) -> 0.0 | P7: =VLOOKUP($A7,'11'!$B$10:$D$45,3,FALSE) -> 0.0 | Q7: =VLOOKUP($A7,'12'!$B$10:$D$45,3,FALSE) -> 0.0 | R7: 0.0 | S7: =VLOOKUP(A7,Formelhilfe!$A$9:$O$44,15,FALSE) -> 0.0 | T7: 0.0 | U7: 311.1 | V7: =VLOOKUP(A7,Formelhilfe!$A$9:$P$44,16,FALSE) -> 6.0 | W7: 1,866.8
A8: Andre Hanenkamp | B8: =VLOOKUP(A8,'Wettkampf 1'!$B$10:$C$45,2,FALSE) -> Börgerwald II | C8: =VLOOKUP(A8,'Wettkampf 1'!$B$10:$D$45,3,FALSE) -> 306.5 | D8: =VLOOKUP($A8,'2'!$B$10:$D$45,3,FALSE) -> 311.8 | E8: =VLOOKUP($A8,'3'!$B$10:$D$45,3,FALSE) -> 307.1 | F8: =VLOOKUP($A8,'4'!$B$10:$D$45,3,FALSE) -> 311.4 | G8: =VLOOKUP($A8,'5'!$B$10:$D$45,3,FALSE) -> 314.9 | H8: =VLOOKUP($A8,'6'!$B$10:$D$45,3,FALSE) -> 310.8 | I8: 310.4 | J8: =VLOOKUP(A8,Formelhilfe!$A$9:$H$44,8,FALSE) -> 6.0 | K8: 1,862.5 | L8: =VLOOKUP($A8,'7'!$B$10:$D$45,3,FALSE) -> 0.0 | M8: =VLOOKUP($A8,'8'!$B$10:$D$45,3,FALSE) -> 0.0 | N8: =VLOOKUP($A8,'9'!$B$10:$D$45,3,FALSE) -> 0.0 | O8: =VLOOKUP($A8,'10'!$B$10:$D$45,3,FALSE) -> 0.0 | P8: =VLOOKUP($A8,'11'!$B$10:$D$45,3,FALSE) -> 0.0 | Q8: =VLOOKUP($A8,'12'!$B$10:$D$45,3,FALSE) -> 0.0 | R8: 0.0 | S8: =VLOOKUP(A8,Formelhilfe!$A$9:$O$44,15,FALSE) -> 0.0 | T8: 0.0 | U8: 310.4 | V8: =VLOOKUP(A8,Formelhilfe!$A$9:$P$44,16,FALSE) -> 6.0 | W8: 1,862.5
A9: Horst Sabel | B9: =VLOOKUP(A9,'Wettkampf 1'!$B$10:$C$45,2,FALSE) -> Börgerwald II | C9: =VLOOKUP(A9,'Wettkampf 1'!$B$10:$D$45,3,FALSE) -> 311.8 | D9: =VLOOKUP($A9,'2'!$B$10:$D$45,3,FALSE) -> 314.7 | E9: =VLOOKUP($A9,'3'!$B$10:$D$45,3,FALSE) -> 308.9 | F9: =VLOOKUP($A9,'4'!$B$10:$D$45,3,FALSE) -> 309.0 | G9: =VLOOKUP($A9,'5'!$B$10:$D$45,3,FALSE) -> 309.4 | H9: =VLOOKUP($A9,'6'!$B$10:$D$45,3,FALSE) -> 308.0 | I9: 310.3 | J9: =VLOOKUP(A9,Formelhilfe!$A$9:$H$44,8,FALSE) -> 6.0 | K9: 1,861.8 | L9: =VLOOKUP($A9,'7'!$B$10:$D$45,3,FALSE) -> 0.0 | M9: =VLOOKUP($A9,'8'!$B$10:$D$45,3,FALSE) -> 0.0 | N9: =VLOOKUP($A9,'9'!$B$10:$D$45,3,FALSE) -> 0.0 | O9: =VLOOKUP($A9,'10'!$B$10:$D$45,3,FALSE) -> 0.0 | P9: =VLOOKUP($A9,'11'!$B$10:$D$45,3,FALSE) -> 0.0 | Q9: =VLOOKUP($A9,'12'!$B$10:$D$45,3,FALSE) -> 0.0 | R9: 0.0 | S9: =VLOOKUP(A9,Formelhilfe!$A$9:$O$44,15,FALSE) -> 0.0 | T9: 0.0 | U9: 310.3 | V9: =VLOOKUP(A9,Formelhilfe!$A$9:$P$44,16,FALSE) -> 6.0 | W9: 1,861.8
A10: Markus Janßen | B10: =VLOOKUP(A10,'Wettkampf 1'!$B$10:$C$45,2,FALSE) -> Neuvrees I | C10: =VLOOKUP(A10,'Wettkampf 1'!$B$10:$D$45,3,FALSE) -> 310.0 | D10: =VLOOKUP($A10,'2'!$B$10:$D$45,3,FALSE) -> 311.6 | E10: =VLOOKUP($A10,'3'!$B$10:$D$45,3,FALSE) -> 308.0 | F10: =VLOOKUP($A10,'4'!$B$10:$D$45,3,FALSE) -> 309.9 | G10: =VLOOKUP($A10,'5'!$B$10:$D$45,3,FALSE) -> 310.2 | H10: =VLOOKUP($A10,'6'!$B$10:$D$45,3,FALSE) -> 310.9 | I10: 310.1 | J10: =VLOOKUP(A10,Formelhilfe!$A$9:$H$44,8,FALSE) -> 6.0 | K10: 1,860.6 | L10: =VLOOKUP($A10,'7'!$B$10:$D$45,3,FALSE) -> 0.0 | M10: =VLOOKUP($A10,'8'!$B$10:$D$45,3,FALSE) -> 0.0 | N10: =VLOOKUP($A10,'9'!$B$10:$D$45,3,FALSE) -> 0.0 | O10: =VLOOKUP($A10,'10'!$B$10:$D$45,3,FALSE) -> 0.0 | P10: =VLOOKUP($A10,'11'!$B$10:$D$45,3,FALSE) -> 0.0 | Q10: =VLOOKUP($A10,'12'!$B$10:$D$45,3,FALSE) -> 0.0 | R10: 0.0 | S10: =VLOOKUP(A10,Formelhilfe!$A$9:$O$44,15,FALSE) -> 0.0 | T10: 0.0 | U10: 310.1 | V10: =VLOOKUP(A10,Formelhilfe!$A$9:$P$44,16,FALSE) -> 6.0 | W10: 1,860.6
A11: Karl-Heinz Schrand | B11: =VLOOKUP(A11,'Wettkampf 1'!$B$10:$C$45,2,FALSE) -> Neuvrees II | C11: =VLOOKUP(A11,'Wettkampf 1'!$B$10:$D$45,3,FALSE) -> 307.5 | D11: =VLOOKUP($A11,'2'!$B$10:$D$45,3,FALSE) -> 308.7 | E11: =VLOOKUP($A11,'3'!$B$10:$D$45,3,FALSE) -> 312.5 | F11: =VLOOKUP($A11,'4'!$B$10:$D$45,3,FALSE) -> 311.1 | G11: =VLOOKUP($A11,'5'!$B$10:$D$45,3,FALSE) -> 313.1 | H11: =VLOOKUP($A11,'6'!$B$10:$D$45,3,FALSE) -> 307.6 | I11: 310.1 | J11: =VLOOKUP(A11,Formelhilfe!$A$9:$H$44,8,FALSE) -> 6.0 | K11: 1,860.5 | L11: =VLOOKUP($A11,'7'!$B$10:$D$45,3,FALSE) -> 0.0 | M11: =VLOOKUP($A11,'8'!$B$10:$D$45,3,FALSE) -> 0.0 | N11: =VLOOKUP($A11,'9'!$B$10:$D$45,3,FALSE) -> 0.0 | O11: =VLOOKUP($A11,'10'!$B$10:$D$45,3,FALSE) -> 0.0 | P11: =VLOOKUP($A11,'11'!$B$10:$D$45,3,FALSE) -> 0.0 | Q11: =VLOOKUP($A11,'12'!$B$10:$D$45,3,FALSE) -> 0.0 | R11: 0.0 | S11: =VLOOKUP(A11,Formelhilfe!$A$9:$O$44,15,FALSE) -> 0.0 | T11: 0.0 | U11: 310.1 | V11: =VLOOKUP(A11,Formelhilfe!$A$9:$P$44,16,FALSE) -> 6.0 | W11: 1,860.5
A12: Vitalij Schmidt | B12: =VLOOKUP(A12,'Wettkampf 1'!$B$10:$C$45,2,FALSE) -> Lahn IV | C12: =VLOOKUP(A12,'Wettkampf 1'!$B$10:$D$45,3,FALSE) -> 308.8 | D12: =VLOOKUP($A12,'2'!$B$10:$D$45,3,FALSE) -> 307.8 | E12: =VLOOKUP($A12,'3'!$B$10:$D$45,3,FALSE) -> 310.4 | F12: =VLOOKUP($A12,'4'!$B$10:$D$45,3,FALSE) -> 314.5 | G12: =VLOOKUP($A12,'5'!$B$10:$D$45,3,FALSE) -> 306.7 | H12: =VLOOKUP($A12,'6'!$B$10:$D$45,3,FALSE) -> 311.8 | I12: 310.0 | J12: =VLOOKUP(A12,Formelhilfe!$A$9:$H$44,8,FALSE) -> 6.0 | K12: 1,860.0 | L12: =VLOOKUP($A12,'7'!$B$10:$D$45,3,FALSE) -> 0.0 | M12: =VLOOKUP($A12,'8'!$B$10:$D$45,3,FALSE) -> 0.0 | N12: =VLOOKUP($A12,'9'!$B$10:$D$45,3,FALSE) -> 0.0 | O12: =VLOOKUP($A12,'10'!$B$10:$D$45,3,FALSE) -> 0.0 | P12: =VLOOKUP($A12,'11'!$B$10:$D$45,3,FALSE) -> 0.0 | Q12: =VLOOKUP($A12,'12'!$B$10:$D$45,3,FALSE) -> 0.0 | R12: 0.0 | S12: =VLOOKUP(A12,Formelhilfe!$A$9:$O$44,15,FALSE) -> 0.0 | T12: 0.0 | U12: 310.0 | V12: =VLOOKUP(A12,Formelhilfe!$A$9:$P$44,16,FALSE) -> 6.0 | W12: 1,860.0
A13: Jens Henzen | B13: =VLOOKUP(A13,'Wettkampf 1'!$B$10:$C$45,2,FALSE) -> Börger III | C13: =VLOOKUP(A13,'Wettkampf 1'!$B$10:$D$45,3,FALSE) -> 305.6 | D13: =VLOOKUP($A13,'2'!$B$10:$D$45,3,FALSE) -> 304.2 | E13: =VLOOKUP($A13,'3'!$B$10:$D$45,3,FALSE) -> 309.7 | F13: =VLOOKUP($A13,'4'!$B$10:$D$45,3,FALSE) -> 308.3 | G13: =VLOOKUP($A13,'5'!$B$10:$D$45,3,FALSE) -> 313.1 | H13: =VLOOKUP($A13,'6'!$B$10:$D$45,3,FALSE) -> 313.6 | I13: 309.1 | J13: =VLOOKUP(A13,Formelhilfe!$A$9:$H$44,8,FALSE) -> 6.0 | K13: 1,854.5 | L13: =VLOOKUP($A13,'7'!$B$10:$D$45,3,FALSE) -> 0.0 | M13: =VLOOKUP($A13,'8'!$B$10:$D$45,3,FALSE) -> 0.0 | N13: =VLOOKUP($A13,'9'!$B$10:$D$45,3,FALSE) -> 0.0 | O13: =VLOOKUP($A13,'10'!$B$10:$D$45,3,FALSE) -> 0.0 | P13: =VLOOKUP($A13,'11'!$B$10:$D$45,3,FALSE) -> 0.0 | Q13: =VLOOKUP($A13,'12'!$B$10:$D$45,3,FALSE) -> 0.0 | R13: 0.0 | S13: =VLOOKUP(A13,Formelhilfe!$A$9:$O$44,15,FALSE) -> 0.0 | T13: 0.0 | U13: 309.1 | V13: =VLOOKUP(A13,Formelhilfe!$A$9:$P$44,16,FALSE) -> 6.0 | W13: 1,854.5
A14: Hermann Benten | B14: =VLOOKUP(A14,'Wettkampf 1'!$B$10:$C$45,2,FALSE) -> Lahn IV | C14: =VLOOKUP(A14,'Wettkampf 1'!$B$10:$D$45,3,FALSE) -> 307.6 | D14: =VLOOKUP($A14,'2'!$B$10:$D$45,3,FALSE) -> 311.2 | E14: =VLOOKUP($A14,'3'!$B$10:$D$45,3,FALSE) -> 310.1 | F14: =VLOOKUP($A14,'4'!$B$10:$D$45,3,FALSE) -> 309.4 | G14: =VLOOKUP($A14,'5'!$B$10:$D$45,3,FALSE) -> 309.4 | H14: =VLOOKUP($A14,'6'!$B$10:$D$45,3,FALSE) -> 304.1 | I14: 308.6 | J14: =VLOOKUP(A14,Formelhilfe!$A$9:$H$44,8,FALSE) -> 6.0 | K14: 1,851.8 | L14: =VLOOKUP($A14,'7'!$B$10:$D$45,3,FALSE) -> 0.0 | M14: =VLOOKUP($A14,'8'!$B$10:$D$45,3,FALSE) -> 0.0 | N14: =VLOOKUP($A14,'9'!$B$10:$D$45,3,FALSE) -> 0.0 | O14: =VLOOKUP($A14,'10'!$B$10:$D$45,3,FALSE) -> 0.0 | P14: =VLOOKUP($A14,'11'!$B$10:$D$45,3,FALSE) -> 0.0 | Q14: =VLOOKUP($A14,'12'!$B$10:$D$45,3,FALSE) -> 0.0 | R14: 0.0 | S14: =VLOOKUP(A14,Formelhilfe!$A$9:$O$44,15,FALSE) -> 0.0 | T14: 0.0 | U14: 308.6 | V14: =VLOOKUP(A14,Formelhilfe!$A$9:$P$44,16,FALSE) -> 6.0 | W14: 1,851.8
A15: Friedhelm Schroer | B15: =VLOOKUP(A15,'Wettkampf 1'!$B$10:$C$45,2,FALSE) -> Börgerwald II | C15: =VLOOKUP(A15,'Wettkampf 1'!$B$10:$D$45,3,FALSE) -> 307.0 | D15: =VLOOKUP($A15,'2'!$B$10:$D$45,3,FALSE) -> 307.4 | E15: =VLOOKUP($A15,'3'!$B$10:$D$45,3,FALSE) -> 311.3 | F15: =VLOOKUP($A15,'4'!$B$10:$D$45,3,FALSE) -> 310.7 | G15: =VLOOKUP($A15,'5'!$B$10:$D$45,3,FALSE) -> 305.4 | H15: =VLOOKUP($A15,'6'!$B$10:$D$45,3,FALSE) -> 309.0 | I15: 308.5 | J15: =VLOOKUP(A15,Formelhilfe!$A$9:$H$44,8,FALSE) -> 6.0 | K15: 1,850.8 | L15: =VLOOKUP($A15,'7'!$B$10:$D$45,3,FALSE) -> 0.0 | M15: =VLOOKUP($A15,'8'!$B$10:$D$45,3,FALSE) -> 0.0 | N15: =VLOOKUP($A15,'9'!$B$10:$D$45,3,FALSE) -> 0.0 | O15: =VLOOKUP($A15,'10'!$B$10:$D$45,3,FALSE) -> 0.0 | P15: =VLOOKUP($A15,'11'!$B$10:$D$45,3,FALSE) -> 0.0 | Q15: =VLOOKUP($A15,'12'!$B$10:$D$45,3,FALSE) -> 0.0 | R15: 0.0 | S15: =VLOOKUP(A15,Formelhilfe!$A$9:$O$44,15,FALSE) -> 0.0 | T15: 0.0 | U15: 308.5 | V15: =VLOOKUP(A15,Formelhilfe!$A$9:$P$44,16,FALSE) -> 6.0 | W15: 1,850.8
A16: Holger Szczepanski | B16: =VLOOKUP(A16,'Wettkampf 1'!$B$10:$C$45,2,FALSE) -> Neuvrees II | C16: =VLOOKUP(A16,'Wettkampf 1'!$B$10:$D$45,3,FALSE) -> 303.2 | D16: =VLOOKUP($A16,'2'!$B$10:$D$45,3,FALSE) -> 311.6 | E16: =VLOOKUP($A16,'3'!$B$10:$D$45,3,FALSE) -> 305.9 | F16: =VLOOKUP($A16,'4'!$B$10:$D$45,3,FALSE) -> 309.2 | G16: =VLOOKUP($A16,'5'!$B$10:$D$45,3,FALSE) -> 310.2 | H16: =VLOOKUP($A16,'6'!$B$10:$D$45,3,FALSE) -> 309.6 | I16: 308.3 | J16: =VLOOKUP(A16,Formelhilfe!$A$9:$H$44,8,FALSE) -> 6.0 | K16: 1,849.7 | L16: =VLOOKUP($A16,'7'!$B$10:$D$45,3,FALSE) -> 0.0 | M16: =VLOOKUP($A16,'8'!$B$10:$D$45,3,FALSE) -> 0.0 | N16: =VLOOKUP($A16,'9'!$B$10:$D$45,3,FALSE) -> 0.0 | O16: =VLOOKUP($A16,'10'!$B$10:$D$45,3,FALSE) -> 0.0 | P16: =VLOOKUP($A16,'11'!$B$10:$D$45,3,FALSE) -> 0.0 | Q16: =VLOOKUP($A16,'12'!$B$10:$D$45,3,FALSE) -> 0.0 | R16: 0.0 | S16: =VLOOKUP(A16,Formelhilfe!$A$9:$O$44,15,FALSE) -> 0.0 | T16: 0.0 | U16: 308.3 | V16: =VLOOKUP(A16,Formelhilfe!$A$9:$P$44,16,FALSE) -> 6.0 | W16: 1,849.7
A17: Jürgen Schroer | B17: =VLOOKUP(A17,'Wettkampf 1'!$B$10:$C$45,2,FALSE) -> Börger III | C17: =VLOOKUP(A17,'Wettkampf 1'!$B$10:$D$45,3,FALSE) -> 307.2 | D17: =VLOOKUP($A17,'2'!$B$10:$D$45,3,FALSE) -> 310.3 | E17: =VLOOKUP($A17,'3'!$B$10:$D$45,3,FALSE) -> 307.6 | F17: =VLOOKUP($A17,'4'!$B$10:$D$45,3,FALSE) -> 307.1 | G17: =VLOOKUP($A17,'5'!$B$10:$D$45,3,FALSE) -> 314.1 | H17: =VLOOKUP($A17,'6'!$B$10:$D$45,3,FALSE) -> 303.3 | I17: 308.3 | J17: =VLOOKUP(A17,Formelhilfe!$A$9:$H$44,8,FALSE) -> 6.0 | K17: 1,849.6 | L17: =VLOOKUP($A17,'7'!$B$10:$D$45,3,FALSE) -> 0.0 | M17: =VLOOKUP($A17,'8'!$B$10:$D$45,3,FALSE) -> 0.0 | N17: =VLOOKUP($A17,'9'!$B$10:$D$45,3,FALSE) -> 0.0 | O17: =VLOOKUP($A17,'10'!$B$10:$D$45,3,FALSE) -> 0.0 | P17: =VLOOKUP($A17,'11'!$B$10:$D$45,3,FALSE) -> 0.0 | Q17: =VLOOKUP($A17,'12'!$B$10:$D$45,3,FALSE) -> 0.0 | R17: 0.0 | S17: =VLOOKUP(A17,Formelhilfe!$A$9:$O$44,15,FALSE) -> 0.0 | T17: 0.0 | U17: 308.3 | V17: =VLOOKUP(A17,Formelhilfe!$A$9:$P$44,16,FALSE) -> 6.0 | W17: 1,849.6
A18: Klaus Steenken | B18: =VLOOKUP(A18,'Wettkampf 1'!$B$10:$C$45,2,FALSE) -> Neuvrees I | C18: =VLOOKUP(A18,'Wettkampf 1'!$B$10:$D$45,3,FALSE) -> 308.9 | D18: =VLOOKUP($A18,'2'!$B$10:$D$45,3,FALSE) -> 305.0 | E18: =VLOOKUP($A18,'3'!$B$10:$D$45,3,FALSE) -> 308.3 | F18: =VLOOKUP($A18,'4'!$B$10:$D$45,3,FALSE) -> 309.2 | G18: =VLOOKUP($A18,'5'!$B$10:$D$45,3,FALSE) -> 309.4 | H18: =VLOOKUP($A18,'6'!$B$10:$D$45,3,FALSE) -> 308.2 | I18: 308.2 | J18: =VLOOKUP(A18,Formelhilfe!$A$9:$H$44,8,FALSE) -> 6.0 | K18: 1,849.0 | L18: =VLOOKUP($A18,'7'!$B$10:$D$45,3,FALSE) -> 0.0 | M18: =VLOOKUP($A18,'8'!$B$10:$D$45,3,FALSE) -> 0.0 | N18: =VLOOKUP($A18,'9'!$B$10:$D$45,3,FALSE) -> 0.0 | O18: =VLOOKUP($A18,'10'!$B$10:$D$45,3,FALSE) -> 0.0 | P18: =VLOOKUP($A18,'11'!$B$10:$D$45,3,FALSE) -> 0.0 | Q18: =VLOOKUP($A18,'12'!$B$10:$D$45,3,FALSE) -> 0.0 | R18: 0.0 | S18: =VLOOKUP(A18,Formelhilfe!$A$9:$O$44,15,FALSE) -> 0.0 | T18: 0.0 | U18: 308.2 | V18: =VLOOKUP(A18,Formelhilfe!$A$9:$P$44,16,FALSE) -> 6.0 | W18: 1,849.0
A19: Wilfried Breyer | B19: =VLOOKUP(A19,'Wettkampf 1'!$B$10:$C$45,2,FALSE) -> Neuvrees I | C19: =VLOOKUP(A19,'Wettkampf 1'!$B$10:$D$45,3,FALSE) -> 311.3 | D19: =VLOOKUP($A19,'2'!$B$10:$D$45,3,FALSE) -> 302.6 | E19: =VLOOKUP($A19,'3'!$B$10:$D$45,3,FALSE) -> 308.6 | F19: =VLOOKUP($A19,'4'!$B$10:$D$45,3,FALSE) -> 310.7 | G19: =VLOOKUP($A19,'5'!$B$10:$D$45,3,FALSE) -> 312.1 | H19: =VLOOKUP($A19,'6'!$B$10:$D$45,3,FALSE) -> 302.6 | I19: 308.0 | J19: =VLOOKUP(A19,Formelhilfe!$A$9:$H$44,8,FALSE) -> 6.0 | K19: 1,847.9 | L19: =VLOOKUP($A19,'7'!$B$10:$D$45,3,FALSE) -> 0.0 | M19: =VLOOKUP($A19,'8'!$B$10:$D$45,3,FALSE) -> 0.0 | N19: =VLOOKUP($A19,'9'!$B$10:$D$45,3,FALSE) -> 0.0 | O19: =VLOOKUP($A19,'10'!$B$10:$D$45,3,FALSE) -> 0.0 | P19: =VLOOKUP($A19,'11'!$B$10:$D$45,3,FALSE) -> 0.0 | Q19: =VLOOKUP($A19,'12'!$B$10:$D$45,3,FALSE) -> 0.0 | R19: 0.0 | S19: =VLOOKUP(A19,Formelhilfe!$A$9:$O$44,15,FALSE) -> 0.0 | T19: 0.0 | U19: 308.0 | V19: =VLOOKUP(A19,Formelhilfe!$A$9:$P$44,16,FALSE) -> 6.0 | W19: 1,847.9
A20: Markus Jungsthöfel | B20: =VLOOKUP(A20,'Wettkampf 1'!$B$10:$C$45,2,FALSE) -> Börger II | C20: =VLOOKUP(A20,'Wettkampf 1'!$B$10:$D$45,3,FALSE) -> 312.5 | D20: =VLOOKUP($A20,'2'!$B$10:$D$45,3,FALSE) -> 307.3 | E20: =VLOOKUP($A20,'3'!$B$10:$D$45,3,FALSE) -> 308.1 | F20: =VLOOKUP($A20,'4'!$B$10:$D$45,3,FALSE) -> 306.7 | G20: =VLOOKUP($A20,'5'!$B$10:$D$45,3,FALSE) -> 305.4 | H20: =VLOOKUP($A20,'6'!$B$10:$D$45,3,FALSE) -> 306.9 | I20: 307.8 | J20: =VLOOKUP(A20,Formelhilfe!$A$9:$H$44,8,FALSE) -> 6.0 | K20: 1,846.9 | L20: =VLOOKUP($A20,'7'!$B$10:$D$45,3,FALSE) -> 0.0 | M20: =VLOOKUP($A20,'8'!$B$10:$D$45,3,FALSE) -> 0.0 | N20: =VLOOKUP($A20,'9'!$B$10:$D$45,3,FALSE) -> 0.0 | O20: =VLOOKUP($A20,'10'!$B$10:$D$45,3,FALSE) -> 0.0 | P20: =VLOOKUP($A20,'11'!$B$10:$D$45,3,FALSE) -> 0.0 | Q20: =VLOOKUP($A20,'12'!$B$10:$D$45,3,FALSE) -> 0.0 | R20: 0.0 | S20: =VLOOKUP(A20,Formelhilfe!$A$9:$O$44,15,FALSE) -> 0.0 | T20: 0.0 | U20: 307.8 | V20: =VLOOKUP(A20,Formelhilfe!$A$9:$P$44,16,FALSE) -> 6.0 | W20: 1,846.9
A21: Daniel Sebers | B21: =VLOOKUP(A21,'Wettkampf 1'!$B$10:$C$45,2,FALSE) -> Börger III | C21: =VLOOKUP(A21,'Wettkampf 1'!$B$10:$D$45,3,FALSE) -> 303.3 | D21: =VLOOKUP($A21,'2'!$B$10:$D$45,3,FALSE) -> 307.4 | E21: =VLOOKUP($A21,'3'!$B$10:$D$45,3,FALSE) -> 309.5 | F21: =VLOOKUP($A21,'4'!$B$10:$D$45,3,FALSE) -> 312.0 | G21: =VLOOKUP($A21,'5'!$B$10:$D$45,3,FALSE) -> 307.2 | H21: =VLOOKUP($A21,'6'!$B$10:$D$45,3,FALSE) -> 306.4 | I21: 307.6 | J21: =VLOOKUP(A21,Formelhilfe!$A$9:$H$44,8,FALSE) -> 6.0 | K21: 1,845.8 | L21: =VLOOKUP($A21,'7'!$B$10:$D$45,3,FALSE) -> 0.0 | M21: =VLOOKUP($A21,'8'!$B$10:$D$45,3,FALSE) -> 0.0 | N21: =VLOOKUP($A21,'9'!$B$10:$D$45,3,FALSE) -> 0.0 | O21: =VLOOKUP($A21,'10'!$B$10:$D$45,3,FALSE) -> 0.0 | P21: =VLOOKUP($A21,'11'!$B$10:$D$45,3,FALSE) -> 0.0 | Q21: =VLOOKUP($A21,'12'!$B$10:$D$45,3,FALSE) -> 0.0 | R21: 0.0 | S21: =VLOOKUP(A21,Formelhilfe!$A$9:$O$44,15,FALSE) -> 0.0 | T21: 0.0 | U21: 307.6 | V21: =VLOOKUP(A21,Formelhilfe!$A$9:$P$44,16,FALSE) -> 6.0 | W21: 1,845.8
A22: Bernd Rode | B22: =VLOOKUP(A22,'Wettkampf 1'!$B$10:$C$45,2,FALSE) -> Börger III | C22: =VLOOKUP(A22,'Wettkampf 1'!$B$10:$D$45,3,FALSE) -> 304.2 | D22: =VLOOKUP($A22,'2'!$B$10:$D$45,3,FALSE) -> 304.9 | E22: =VLOOKUP($A22,'3'!$B$10:$D$45,3,FALSE) -> 308.0 | F22: =VLOOKUP($A22,'4'!$B$10:$D$45,3,FALSE) -> 308.2 | G22: =VLOOKUP($A22,'5'!$B$10:$D$45,3,FALSE) -> 309.2 | H22: =VLOOKUP($A22,'6'!$B$10:$D$45,3,FALSE) -> 308.7 | I22: 307.2 | J22: =VLOOKUP(A22,Formelhilfe!$A$9:$H$44,8,FALSE) -> 6.0 | K22: 1,843.2 | L22: =VLOOKUP($A22,'7'!$B$10:$D$45,3,FALSE) -> 0.0 | M22: =VLOOKUP($A22,'8'!$B$10:$D$45,3,FALSE) -> 0.0 | N22: =VLOOKUP($A22,'9'!$B$10:$D$45,3,FALSE) -> 0.0 | O22: =VLOOKUP($A22,'10'!$B$10:$D$45,3,FALSE) -> 0.0 | P22: =VLOOKUP($A22,'11'!$B$10:$D$45,3,FALSE) -> 0.0 | Q22: =VLOOKUP($A22,'12'!$B$10:$D$45,3,FALSE) -> 0.0 | R22: 0.0 | S22: =VLOOKUP(A22,Formelhilfe!$A$9:$O$44,15,FALSE) -> 0.0 | T22: 0.0 | U22: 307.2 | V22: =VLOOKUP(A22,Formelhilfe!$A$9:$P$44,16,FALSE) -> 6.0 | W22: 1,843.2
A23: Werner Thyen | B23: =VLOOKUP(A23,'Wettkampf 1'!$B$10:$C$45,2,FALSE) -> Neuvrees I | C23: =VLOOKUP(A23,'Wettkampf 1'!$B$10:$D$45,3,FALSE) -> 311.2 | D23: =VLOOKUP($A23,'2'!$B$10:$D$45,3,FALSE) -> 304.7 | E23: =VLOOKUP($A23,'3'!$B$10:$D$45,3,FALSE) -> 309.1 | F23: =VLOOKUP($A23,'4'!$B$10:$D$45,3,FALSE) -> 302.1 | G23: =VLOOKUP($A23,'5'!$B$10:$D$45,3,FALSE) -> 308.9 | H23: =VLOOKUP($A23,'6'!$B$10:$D$45,3,FALSE) -> 302.4 | I23: 306.4 | J23: =VLOOKUP(A23,Formelhilfe!$A$9:$H$44,8,FALSE) -> 6.0 | K23: 1,838.4 | L23: =VLOOKUP($A23,'7'!$B$10:$D$45,3,FALSE) -> 0.0 | M23: =VLOOKUP($A23,'8'!$B$10:$D$45,3,FALSE) -> 0.0 | N23: =VLOOKUP($A23,'9'!$B$10:$D$45,3,FALSE) -> 0.0 | O23: =VLOOKUP($A23,'10'!$B$10:$D$45,3,FALSE) -> 0.0 | P23: =VLOOKUP($A23,'11'!$B$10:$D$45,3,FALSE) -> 0.0 | Q23: =VLOOKUP($A23,'12'!$B$10:$D$45,3,FALSE) -> 0.0 | R23: 0.0 | S23: =VLOOKUP(A23,Formelhilfe!$A$9:$O$44,15,FALSE) -> 0.0 | T23: 0.0 | U23: 306.4 | V23: =VLOOKUP(A23,Formelhilfe!$A$9:$P$44,16,FALSE) -> 6.0 | W23: 1,838.4
A24: Oliver Reinelt | B24: =VLOOKUP(A24,'Wettkampf 1'!$B$10:$C$45,2,FALSE) -> Lahn IV | C24: =VLOOKUP(A24,'Wettkampf 1'!$B$10:$D$45,3,FALSE) -> 302.3 | D24: =VLOOKUP($A24,'2'!$B$10:$D$45,3,FALSE) -> 310.3 | E24: =VLOOKUP($A24,'3'!$B$10:$D$45,3,FALSE) -> 307.2 | F24: =VLOOKUP($A24,'4'!$B$10:$D$45,3,FALSE) -> 305.2 | G24: =VLOOKUP($A24,'5'!$B$10:$D$45,3,FALSE) -> 304.6 | H24: =VLOOKUP($A24,'6'!$B$10:$D$45,3,FALSE) -> 304.6 | I24: 305.7 | J24: =VLOOKUP(A24,Formelhilfe!$A$9:$H$44,8,FALSE) -> 6.0 | K24: 1,834.2 | L24: =VLOOKUP($A24,'7'!$B$10:$D$45,3,FALSE) -> 0.0 | M24: =VLOOKUP($A24,'8'!$B$10:$D$45,3,FALSE) -> 0.0 | N24: =VLOOKUP($A24,'9'!$B$10:$D$45,3,FALSE) -> 0.0 | O24: =VLOOKUP($A24,'10'!$B$10:$D$45,3,FALSE) -> 0.0 | P24: =VLOOKUP($A24,'11'!$B$10:$D$45,3,FALSE) -> 0.0 | Q24: =VLOOKUP($A24,'12'!$B$10:$D$45,3,FALSE) -> 0.0 | R24: 0.0 | S24: =VLOOKUP(A24,Formelhilfe!$A$9:$O$44,15,FALSE) -> 0.0 | T24: 0.0 | U24: 305.7 | V24: =VLOOKUP(A24,Formelhilfe!$A$9:$P$44,16,FALSE) -> 6.0 | W24: 1,834.2
A25: Uwe Goldenstein | B25: =VLOOKUP(A25,'Wettkampf 1'!$B$10:$C$45,2,FALSE) -> Börger II | C25: =VLOOKUP(A25,'Wettkampf 1'!$B$10:$D$45,3,FALSE) -> 304.5 | D25: =VLOOKUP($A25,'2'!$B$10:$D$45,3,FALSE) -> 304.0 | E25: =VLOOKUP($A25,'3'!$B$10:$D$45,3,FALSE) -> 304.6 | F25: =VLOOKUP($A25,'4'!$B$10:$D$45,3,FALSE) -> 302.8 | G25: =VLOOKUP($A25,'5'!$B$10:$D$45,3,FALSE) -> 306.2 | H25: =VLOOKUP($A25,'6'!$B$10:$D$45,3,FALSE) -> 299.0 | I25: 303.5 | J25: =VLOOKUP(A25,Formelhilfe!$A$9:$H$44,8,FALSE) -> 6.0 | K25: 1,821.1 | L25: =VLOOKUP($A25,'7'!$B$10:$D$45,3,FALSE) -> 0.0 | M25: =VLOOKUP($A25,'8'!$B$10:$D$45,3,FALSE) -> 0.0 | N25: =VLOOKUP($A25,'9'!$B$10:$D$45,3,FALSE) -> 0.0 | O25: =VLOOKUP($A25,'10'!$B$10:$D$45,3,FALSE) -> 0.0 | P25: =VLOOKUP($A25,'11'!$B$10:$D$45,3,FALSE) -> 0.0 | Q25: =VLOOKUP($A25,'12'!$B$10:$D$45,3,FALSE) -> 0.0 | R25: 0.0 | S25: =VLOOKUP(A25,Formelhilfe!$A$9:$O$44,15,FALSE) -> 0.0 | T25: 0.0 | U25: 303.5 | V25: =VLOOKUP(A25,Formelhilfe!$A$9:$P$44,16,FALSE) -> 6.0 | W25: 1,821.1
A26: Mathis Antons | B26: =VLOOKUP(A26,'Wettkampf 1'!$B$10:$C$45,2,FALSE) -> Börgerwald II | C26: =VLOOKUP(A26,'Wettkampf 1'!$B$10:$D$45,3,FALSE) -> 314.1 | D26: =VLOOKUP($A26,'2'!$B$10:$D$45,3,FALSE) -> 308.6 | E26: =VLOOKUP($A26,'3'!$B$10:$D$45,3,FALSE) -> 310.9 | F26: =VLOOKUP($A26,'4'!$B$10:$D$45,3,FALSE) -> 314.6 | G26: =VLOOKUP($A26,'5'!$B$10:$D$45,3,FALSE) -> 310.8 | H26: =VLOOKUP($A26,'6'!$B$10:$D$45,3,FALSE) -> 0.0 | I26: 311.8 | J26: =VLOOKUP(A26,Formelhilfe!$A$9:$H$44,8,FALSE) -> 5.0 | K26: 1,559.0 | L26: =VLOOKUP($A26,'7'!$B$10:$D$45,3,FALSE) -> 0.0 | M26: =VLOOKUP($A26,'8'!$B$10:$D$45,3,FALSE) -> 0.0 | N26: =VLOOKUP($A26,'9'!$B$10:$D$45,3,FALSE) -> 0.0 | O26: =VLOOKUP($A26,'10'!$B$10:$D$45,3,FALSE) -> 0.0 | P26: =VLOOKUP($A26,'11'!$B$10:$D$45,3,FALSE) -> 0.0 | Q26: =VLOOKUP($A26,'12'!$B$10:$D$45,3,FALSE) -> 0.0 | R26: 0.0 | S26: =VLOOKUP(A26,Formelhilfe!$A$9:$O$44,15,FALSE) -> 0.0 | T26: 0.0 | U26: 311.8 | V26: =VLOOKUP(A26,Formelhilfe!$A$9:$P$44,16,FALSE) -> 5.0 | W26: 1,559.0
A27: Hermann Schwarte | B27: =VLOOKUP(A27,'Wettkampf 1'!$B$10:$C$45,2,FALSE) -> Börger II | C27: =VLOOKUP(A27,'Wettkampf 1'!$B$10:$D$45,3,FALSE) -> 305.8 | D27: =VLOOKUP($A27,'2'!$B$10:$D$45,3,FALSE) -> 310.7 | E27: =VLOOKUP($A27,'3'!$B$10:$D$45,3,FALSE) -> 304.4 | F27: =VLOOKUP($A27,'4'!$B$10:$D$45,3,FALSE) -> 310.7 | G27: =VLOOKUP($A27,'5'!$B$10:$D$45,3,FALSE) -> 302.1 | H27: =VLOOKUP($A27,'6'!$B$10:$D$45,3,FALSE) -> 0.0 | I27: 306.7 | J27: =VLOOKUP(A27,Formelhilfe!$A$9:$H$44,8,FALSE) -> 5.0 | K27: 1,533.7 | L27: =VLOOKUP($A27,'7'!$B$10:$D$45,3,FALSE) -> 0.0 | M27: =VLOOKUP($A27,'8'!$B$10:$D$45,3,FALSE) -> 0.0 | N27: =VLOOKUP($A27,'9'!$B$10:$D$45,3,FALSE) -> 0.0 | O27: =VLOOKUP($A27,'10'!$B$10:$D$45,3,FALSE) -> 0.0 | P27: =VLOOKUP($A27,'11'!$B$10:$D$45,3,FALSE) -> 0.0 | Q27: =VLOOKUP($A27,'12'!$B$10:$D$45,3,FALSE) -> 0.0 | R27: 0.0 | S27: =VLOOKUP(A27,Formelhilfe!$A$9:$O$44,15,FALSE) -> 0.0 | T27: 0.0 | U27: 306.7 | V27: =VLOOKUP(A27,Formelhilfe!$A$9:$P$44,16,FALSE) -> 5.0 | W27: 1,533.7
A28: Marc Eckmann | B28: =VLOOKUP(A28,'Wettkampf 1'!$B$10:$C$45,2,FALSE) -> Börger II | C28: =VLOOKUP(A28,'Wettkampf 1'!$B$10:$D$45,3,FALSE) -> 290.2 | D28: =VLOOKUP($A28,'2'!$B$10:$D$45,3,FALSE) -> 303.8 | E28: =VLOOKUP($A28,'3'!$B$10:$D$45,3,FALSE) -> 0.0 | F28: =VLOOKUP($A28,'4'!$B$10:$D$45,3,FALSE) -> 304.4 | G28: =VLOOKUP($A28,'5'!$B$10:$D$45,3,FALSE) -> 299.4 | H28: =VLOOKUP($A28,'6'!$B$10:$D$45,3,FALSE) -> 304.5 | I28: 300.5 | J28: =VLOOKUP(A28,Formelhilfe!$A$9:$H$44,8,FALSE) -> 5.0 | K28: 1,502.3 | L28: =VLOOKUP($A28,'7'!$B$10:$D$45,3,FALSE) -> 0.0 | M28: =VLOOKUP($A28,'8'!$B$10:$D$45,3,FALSE) -> 0.0 | N28: =VLOOKUP($A28,'9'!$B$10:$D$45,3,FALSE) -> 0.0 | O28: =VLOOKUP($A28,'10'!$B$10:$D$45,3,FALSE) -> 0.0 | P28: =VLOOKUP($A28,'11'!$B$10:$D$45,3,FALSE) -> 0.0 | Q28: =VLOOKUP($A28,'12'!$B$10:$D$45,3,FALSE) -> 0.0 | R28: 0.0 | S28: =VLOOKUP(A28,Formelhilfe!$A$9:$O$44,15,FALSE) -> 0.0 | T28: 0.0 | U28: 300.5 | V28: =VLOOKUP(A28,Formelhilfe!$A$9:$P$44,16,FALSE) -> 5.0 | W28: 1,502.3
A29: Toni Stahl | B29: =VLOOKUP(A29,'Wettkampf 1'!$B$10:$C$45,2,FALSE) -> Börgerwald II | C29: =VLOOKUP(A29,'Wettkampf 1'!$B$10:$D$45,3,FALSE) -> 296.7 | D29: =VLOOKUP($A29,'2'!$B$10:$D$45,3,FALSE) -> 291.6 | E29: =VLOOKUP($A29,'3'!$B$10:$D$45,3,FALSE) -> 277.7 | F29: =VLOOKUP($A29,'4'!$B$10:$D$45,3,FALSE) -> 295.9 | G29: =VLOOKUP($A29,'5'!$B$10:$D$45,3,FALSE) -> 0.0 | H29: =VLOOKUP($A29,'6'!$B$10:$D$45,3,FALSE) -> 296.3 | I29: 291.6 | J29: =VLOOKUP(A29,Formelhilfe!$A$9:$H$44,8,FALSE) -> 5.0 | K29: 1,458.2 | L29: =VLOOKUP($A29,'7'!$B$10:$D$45,3,FALSE) -> 0.0 | M29: =VLOOKUP($A29,'8'!$B$10:$D$45,3,FALSE) -> 0.0 | N29: =VLOOKUP($A29,'9'!$B$10:$D$45,3,FALSE) -> 0.0 | O29: =VLOOKUP($A29,'10'!$B$10:$D$45,3,FALSE) -> 0.0 | P29: =VLOOKUP($A29,'11'!$B$10:$D$45,3,FALSE) -> 0.0 | Q29: =VLOOKUP($A29,'12'!$B$10:$D$45,3,FALSE) -> 0.0 | R29: 0.0 | S29: =VLOOKUP(A29,Formelhilfe!$A$9:$O$44,15,FALSE) -> 0.0 | T29: 0.0 | U29: 291.6 | V29: =VLOOKUP(A29,Formelhilfe!$A$9:$P$44,16,FALSE) -> 5.0 | W29: 1,458.2
A30: Carsten Peters | B30: =VLOOKUP(A30,'Wettkampf 1'!$B$10:$C$45,2,FALSE) -> Neuvrees I | C30: =VLOOKUP(A30,'Wettkampf 1'!$B$10:$D$45,3,FALSE) -> 0.0 | D30: =VLOOKUP($A30,'2'!$B$10:$D$45,3,FALSE) -> 307.9 | E30: =VLOOKUP($A30,'3'!$B$10:$D$45,3,FALSE) -> 0.0 | F30: =VLOOKUP($A30,'4'!$B$10:$D$45,3,FALSE) -> 308.3 | G30: =VLOOKUP($A30,'5'!$B$10:$D$45,3,FALSE) -> 304.1 | H30: =VLOOKUP($A30,'6'!$B$10:$D$45,3,FALSE) -> 299.1 | I30: 304.9 | J30: =VLOOKUP(A30,Formelhilfe!$A$9:$H$44,8,FALSE) -> 4.0 | K30: 1,219.4 | L30: =VLOOKUP($A30,'7'!$B$10:$D$45,3,FALSE) -> 0.0 | M30: =VLOOKUP($A30,'8'!$B$10:$D$45,3,FALSE) -> 0.0 | N30: =VLOOKUP($A30,'9'!$B$10:$D$45,3,FALSE) -> 0.0 | O30: =VLOOKUP($A30,'10'!$B$10:$D$45,3,FALSE) -> 0.0 | P30: =VLOOKUP($A30,'11'!$B$10:$D$45,3,FALSE) -> 0.0 | Q30: =VLOOKUP($A30,'12'!$B$10:$D$45,3,FALSE) -> 0.0 | R30: 0.0 | S30: =VLOOKUP(A30,Formelhilfe!$A$9:$O$44,15,FALSE) -> 0.0 | T30: 0.0 | U30: 304.9 | V30: =VLOOKUP(A30,Formelhilfe!$A$9:$P$44,16,FALSE) -> 4.0 | W30: 1,219.4
A31: Tobias Sebers | B31: =VLOOKUP(A31,'Wettkampf 1'!$B$10:$C$45,2,FALSE) -> Börgerwald II | C31: =VLOOKUP(A31,'Wettkampf 1'!$B$10:$D$45,3,FALSE) -> 0.0 | D31: =VLOOKUP($A31,'2'!$B$10:$D$45,3,FALSE) -> 300.8 | E31: =VLOOKUP($A31,'3'!$B$10:$D$45,3,FALSE) -> 295.0 | F31: =VLOOKUP($A31,'4'!$B$10:$D$45,3,FALSE) -> 0.0 | G31: =VLOOKUP($A31,'5'!$B$10:$D$45,3,FALSE) -> 304.6 | H31: =VLOOKUP($A31,'6'!$B$10:$D$45,3,FALSE) -> 298.6 | I31: 299.8 | J31: =VLOOKUP(A31,Formelhilfe!$A$9:$H$44,8,FALSE) -> 4.0 | K31: 1,199.0 | L31: =VLOOKUP($A31,'7'!$B$10:$D$45,3,FALSE) -> 0.0 | M31: =VLOOKUP($A31,'8'!$B$10:$D$45,3,FALSE) -> 0.0 | N31: =VLOOKUP($A31,'9'!$B$10:$D$45,3,FALSE) -> 0.0 | O31: =VLOOKUP($A31,'10'!$B$10:$D$45,3,FALSE) -> 0.0 | P31: =VLOOKUP($A31,'11'!$B$10:$D$45,3,FALSE) -> 0.0 | Q31: =VLOOKUP($A31,'12'!$B$10:$D$45,3,FALSE) -> 0.0 | R31: 0.0 | S31: =VLOOKUP(A31,Formelhilfe!$A$9:$O$44,15,FALSE) -> 0.0 | T31: 0.0 | U31: 299.8 | V31: =VLOOKUP(A31,Formelhilfe!$A$9:$P$44,16,FALSE) -> 4.0 | W31: 1,199.0
A32: Christian Robben | B32: =VLOOKUP(A32,'Wettkampf 1'!$B$10:$C$45,2,FALSE) -> Börgerwald II | C32: =VLOOKUP(A32,'Wettkampf 1'!$B$10:$D$45,3,FALSE) -> 282.8 | D32: =VLOOKUP($A32,'2'!$B$10:$D$45,3,FALSE) -> 0.0 | E32: =VLOOKUP($A32,'3'!$B$10:$D$45,3,FALSE) -> 0.0 | F32: =VLOOKUP($A32,'4'!$B$10:$D$45,3,FALSE) -> 296.8 | G32: =VLOOKUP($A32,'5'!$B$10:$D$45,3,FALSE) -> 296.6 | H32: =VLOOKUP($A32,'6'!$B$10:$D$45,3,FALSE) -> 301.6 | I32: 294.5 | J32: =VLOOKUP(A32,Formelhilfe!$A$9:$H$44,8,FALSE) -> 4.0 | K32: 1,177.8 | L32: =VLOOKUP($A32,'7'!$B$10:$D$45,3,FALSE) -> 0.0 | M32: =VLOOKUP($A32,'8'!$B$10:$D$45,3,FALSE) -> 0.0 | N32: =VLOOKUP($A32,'9'!$B$10:$D$45,3,FALSE) -> 0.0 | O32: =VLOOKUP($A32,'10'!$B$10:$D$45,3,FALSE) -> 0.0 | P32: =VLOOKUP($A32,'11'!$B$10:$D$45,3,FALSE) -> 0.0 | Q32: =VLOOKUP($A32,'12'!$B$10:$D$45,3,FALSE) -> 0.0 | R32: 0.0 | S32: =VLOOKUP(A32,Formelhilfe!$A$9:$O$44,15,FALSE) -> 0.0 | T32: 0.0 | U32: 294.5 | V32: =VLOOKUP(A32,Formelhilfe!$A$9:$P$44,16,FALSE) -> 4.0 | W32: 1,177.8
A33: Hans Preuth | B33: =VLOOKUP(A33,'Wettkampf 1'!$B$10:$C$45,2,FALSE) -> Neuvrees II | C33: =VLOOKUP(A33,'Wettkampf 1'!$B$10:$D$45,3,FALSE) -> 307.6 | D33: =VLOOKUP($A33,'2'!$B$10:$D$45,3,FALSE) -> 308.1 | E33: =VLOOKUP($A33,'3'!$B$10:$D$45,3,FALSE) -> 0.0 | F33: =VLOOKUP($A33,'4'!$B$10:$D$45,3,FALSE) -> 0.0 | G33: =VLOOKUP($A33,'5'!$B$10:$D$45,3,FALSE) -> 0.0 | H33: =VLOOKUP($A33,'6'!$B$10:$D$45,3,FALSE) -> 0.0 | I33: 307.9 | J33: =VLOOKUP(A33,Formelhilfe!$A$9:$H$44,8,FALSE) -> 2.0 | K33: 615.7 | L33: =VLOOKUP($A33,'7'!$B$10:$D$45,3,FALSE) -> 0.0 | M33: =VLOOKUP($A33,'8'!$B$10:$D$45,3,FALSE) -> 0.0 | N33: =VLOOKUP($A33,'9'!$B$10:$D$45,3,FALSE) -> 0.0 | O33: =VLOOKUP($A33,'10'!$B$10:$D$45,3,FALSE) -> 0.0 | P33: =VLOOKUP($A33,'11'!$B$10:$D$45,3,FALSE) -> 0.0 | Q33: =VLOOKUP($A33,'12'!$B$10:$D$45,3,FALSE) -> 0.0 | R33: 0.0 | S33: =VLOOKUP(A33,Formelhilfe!$A$9:$O$44,15,FALSE) -> 0.0 | T33: 0.0 | U33: 307.9 | V33: =VLOOKUP(A33,Formelhilfe!$A$9:$P$44,16,FALSE) -> 2.0 | W33: 615.7
A34: Dietmar Spekker | B34: =VLOOKUP(A34,'Wettkampf 1'!$B$10:$C$45,2,FALSE) -> Neuvrees I | C34: =VLOOKUP(A34,'Wettkampf 1'!$B$10:$D$45,3,FALSE) -> 0.0 | D34: =VLOOKUP($A34,'2'!$B$10:$D$45,3,FALSE) -> 0.0 | E34: =VLOOKUP($A34,'3'!$B$10:$D$45,3,FALSE) -> 293.4 | F34: =VLOOKUP($A34,'4'!$B$10:$D$45,3,FALSE) -> 300.4 | G34: =VLOOKUP($A34,'5'!$B$10:$D$45,3,FALSE) -> 0.0 | H34: =VLOOKUP($A34,'6'!$B$10:$D$45,3,FALSE) -> 0.0 | I34: 296.9 | J34: =VLOOKUP(A34,Formelhilfe!$A$9:$H$44,8,FALSE) -> 2.0 | K34: 593.8 | L34: =VLOOKUP($A34,'7'!$B$10:$D$45,3,FALSE) -> 0.0 | M34: =VLOOKUP($A34,'8'!$B$10:$D$45,3,FALSE) -> 0.0 | N34: =VLOOKUP($A34,'9'!$B$10:$D$45,3,FALSE) -> 0.0 | O34: =VLOOKUP($A34,'10'!$B$10:$D$45,3,FALSE) -> 0.0 | P34: =VLOOKUP($A34,'11'!$B$10:$D$45,3,FALSE) -> 0.0 | Q34: =VLOOKUP($A34,'12'!$B$10:$D$45,3,FALSE) -> 0.0 | R34: 0.0 | S34: =VLOOKUP(A34,Formelhilfe!$A$9:$O$44,15,FALSE) -> 0.0 | T34: 0.0 | U34: 296.9 | V34: =VLOOKUP(A34,Formelhilfe!$A$9:$P$44,16,FALSE) -> 2.0 | W34: 593.8
A35: Martin Hinrichs | B35: =VLOOKUP(A35,'Wettkampf 1'!$B$10:$C$45,2,FALSE) -> Börgerwald II | C35: =VLOOKUP(A35,'Wettkampf 1'!$B$10:$D$45,3,FALSE) -> 270.5 | D35: =VLOOKUP($A35,'2'!$B$10:$D$45,3,FALSE) -> 0.0 | E35: =VLOOKUP($A35,'3'!$B$10:$D$45,3,FALSE) -> 0.0 | F35: =VLOOKUP($A35,'4'!$B$10:$D$45,3,FALSE) -> 0.0 | G35: =VLOOKUP($A35,'5'!$B$10:$D$45,3,FALSE) -> 0.0 | H35: =VLOOKUP($A35,'6'!$B$10:$D$45,3,FALSE) -> 0.0 | I35: 270.5 | J35: =VLOOKUP(A35,Formelhilfe!$A$9:$H$44,8,FALSE) -> 1.0 | K35: 270.5 | L35: =VLOOKUP($A35,'7'!$B$10:$D$45,3,FALSE) -> 0.0 | M35: =VLOOKUP($A35,'8'!$B$10:$D$45,3,FALSE) -> 0.0 | N35: =VLOOKUP($A35,'9'!$B$10:$D$45,3,FALSE) -> 0.0 | O35: =VLOOKUP($A35,'10'!$B$10:$D$45,3,FALSE) -> 0.0 | P35: =VLOOKUP($A35,'11'!$B$10:$D$45,3,FALSE) -> 0.0 | Q35: =VLOOKUP($A35,'12'!$B$10:$D$45,3,FALSE) -> 0.0 | R35: 0.0 | S35: =VLOOKUP(A35,Formelhilfe!$A$9:$O$44,15,FALSE) -> 0.0 | T35: 0.0 | U35: 270.5 | V35: =VLOOKUP(A35,Formelhilfe!$A$9:$P$44,16,FALSE) -> 1.0 | W35: 270.5
A36: Schütze 24 | B36: =VLOOKUP(A36,'Wettkampf 1'!$B$10:$C$45,2,FALSE) -> Börger II | C36: =VLOOKUP(A36,'Wettkampf 1'!$B$10:$D$45,3,FALSE) -> 0.0 | D36: =VLOOKUP($A36,'2'!$B$10:$D$45,3,FALSE) -> 0.0 | E36: =VLOOKUP($A36,'3'!$B$10:$D$45,3,FALSE) -> 0.0 | F36: =VLOOKUP($A36,'4'!$B$10:$D$45,3,FALSE) -> 0.0 | G36: =VLOOKUP($A36,'5'!$B$10:$D$45,3,FALSE) -> 0.0 | H36: =VLOOKUP($A36,'6'!$B$10:$D$45,3,FALSE) -> 0.0 | I36: 0.0 | J36: =VLOOKUP(A36,Formelhilfe!$A$9:$H$44,8,FALSE) -> 0.0 | K36: 0.0 | L36: =VLOOKUP($A36,'7'!$B$10:$D$45,3,FALSE) -> 0.0 | M36: =VLOOKUP($A36,'8'!$B$10:$D$45,3,FALSE) -> 0.0 | N36: =VLOOKUP($A36,'9'!$B$10:$D$45,3,FALSE) -> 0.0 | O36: =VLOOKUP($A36,'10'!$B$10:$D$45,3,FALSE) -> 0.0 | P36: =VLOOKUP($A36,'11'!$B$10:$D$45,3,FALSE) -> 0.0 | Q36: =VLOOKUP($A36,'12'!$B$10:$D$45,3,FALSE) -> 0.0 | R36: 0.0 | S36: =VLOOKUP(A36,Formelhilfe!$A$9:$O$44,15,FALSE) -> 0.0 | T36: 0.0 | U36: 0.0 | V36: =VLOOKUP(A36,Formelhilfe!$A$9:$P$44,16,FALSE) -> 0.0 | W36: 0.0
A37: Schütze 29 | B37: =VLOOKUP(A37,'Wettkampf 1'!$B$10:$C$45,2,FALSE) -> Lahn IV | C37: =VLOOKUP(A37,'Wettkampf 1'!$B$10:$D$45,3,FALSE) -> 0.0 | D37: =VLOOKUP($A37,'2'!$B$10:$D$45,3,FALSE) -> 0.0 | E37: =VLOOKUP($A37,'3'!$B$10:$D$45,3,FALSE) -> 0.0 | F37: =VLOOKUP($A37,'4'!$B$10:$D$45,3,FALSE) -> 0.0 | G37: =VLOOKUP($A37,'5'!$B$10:$D$45,3,FALSE) -> 0.0 | H37: =VLOOKUP($A37,'6'!$B$10:$D$45,3,FALSE) -> 0.0 | I37: 0.0 | J37: =VLOOKUP(A37,Formelhilfe!$A$9:$H$44,8,FALSE) -> 0.0 | K37: 0.0 | L37: =VLOOKUP($A37,'7'!$B$10:$D$45,3,FALSE) -> 0.0 | M37: =VLOOKUP($A37,'8'!$B$10:$D$45,3,FALSE) -> 0.0 | N37: =VLOOKUP($A37,'9'!$B$10:$D$45,3,FALSE) -> 0.0 | O37: =VLOOKUP($A37,'10'!$B$10:$D$45,3,FALSE) -> 0.0 | P37: =VLOOKUP($A37,'11'!$B$10:$D$45,3,FALSE) -> 0.0 | Q37: =VLOOKUP($A37,'12'!$B$10:$D$45,3,FALSE) -> 0.0 | R37: 0.0 | S37: =VLOOKUP(A37,Formelhilfe!$A$9:$O$44,15,FALSE) -> 0.0 | T37: 0.0 | U37: 0.0 | V37: =VLOOKUP(A37,Formelhilfe!$A$9:$P$44,16,FALSE) -> 0.0 | W37: 0.0

Sheet Formelhilfe (hidden)
B1: 1 | C1: 2 | D1: 3 | E1: 4 | F1: 5 | G1: 6 | H1: Hinrunde Schnitt | I1: 7 | J1: 8 | K1: 9 | L1: 10 | M1: 11 | N1: 12 | O1: Rückrunde Schnitt | P1: Gesamt Schnitt | S1: Kreisoberliga | T1: Schützen | U1: 2023/2024
A2: ='Wettkampf 1'!B2 -> Börgerwald II | B2: =IF('Wettkampf 1'!D2>0,1,0) -> 1 | C2: =IF('2'!$D2>0,1,0) -> 1 | D2: =IF('3'!$D2>0,1,0) -> 1 | E2: =IF('4'!$D2>0,1,0) -> 1 | F2: =IF('5'!$D2>0,1,0) -> 1 | G2: =IF('6'!$D2>0,1,0) -> 1 | H2: =SUM(B2:G2) -> 6 | I2: =IF('7'!$D2>0,1,0) -> 0 | J2: =IF('8'!$D2>0,1,0) -> 0 | K2: =IF('9'!$D2>0,1,0) -> 0 | L2: =IF('10'!$D2>0,1,0) -> 0 | M2: =IF('11'!$D2>0,1,0) -> 0 | N2: =IF('12'!$D2>0,1,0) -> 0 | O2: =SUM(I2:N2) -> 0 | P2: =O2+H2 -> 6 | S2: 1. Kreisliga | T2: Damen | U2: 2024/2025
A3: ='Wettkampf 1'!B3 -> Neuvrees II | B3: =IF('Wettkampf 1'!D3>0,1,0) -> 1 | C3: =IF('2'!$D3>0,1,0) -> 1 | D3: =IF('3'!$D3>0,1,0) -> 1 | E3: =IF('4'!$D3>0,1,0) -> 1 | F3: =IF('5'!$D3>0,1,0) -> 1 | G3: =IF('6'!$D3>0,1,0) -> 1 | H3: =SUM(B3:G3) -> 6 | I3: =IF('7'!$D3>0,1,0) -> 0 | J3: =IF('8'!$D3>0,1,0) -> 0 | K3: =IF('9'!$D3>0,1,0) -> 0 | L3: =IF('10'!$D3>0,1,0) -> 0 | M3: =IF('11'!$D3>0,1,0) -> 0 | N3: =IF('12'!$D3>0,1,0) -> 0 | O3: =SUM(I3:N3) -> 0 | P3: =O3+H3 -> 6 | S3: 2. Kreisliga | T3: Altersgruppe | U3: 2025/2026
A4: ='Wettkampf 1'!B4 -> Börger III | B4: =IF('Wettkampf 1'!D4>0,1,0) -> 1 | C4: =IF('2'!$D4>0,1,0) -> 1 | D4: =IF('3'!$D4>0,1,0) -> 1 | E4: =IF('4'!$D4>0,1,0) -> 1 | F4: =IF('5'!$D4>0,1,0) -> 1 | G4: =IF('6'!$D4>0,1,0) -> 1 | H4: 6 | I4: =IF('7'!$D4>0,1,0) -> 0 | J4: =IF('8'!$D4>0,1,0) -> 0 | K4: =IF('9'!$D4>0,1,0) -> 0 | L4: =IF('10'!$D4>0,1,0) -> 0 | M4: =IF('11'!$D4>0,1,0) -> 0 | N4: =IF('12'!$D4>0,1,0) -> 0 | O4: 0 | P4: 6 | S4: 1. Kreisklasse | T4: Senioren | U4: 2026/2027
A5: ='Wettkampf 1'!B5 -> Börger II | B5: =IF('Wettkampf 1'!D5>0,1,0) -> 1 | C5: =IF('2'!$D5>0,1,0) -> 1 | D5: =IF('3'!$D5>0,1,0) -> 1 | E5: =IF('4'!$D5>0,1,0) -> 1 | F5: =IF('5'!$D5>0,1,0) -> 1 | G5: =IF('6'!$D5>0,1,0) -> 1 | H5: 6 | I5: =IF('7'!$D5>0,1,0) -> 0 | J5: =IF('8'!$D5>0,1,0) -> 0 | K5: =IF('9'!$D5>0,1,0) -> 0 | L5: =IF('10'!$D5>0,1,0) -> 0 | M5: =IF('11'!$D5>0,1,0) -> 0 | N5: =IF('12'!$D5>0,1,0) -> 0 | O5: 0 | P5: 6 | S5: 2. Kreisklasse | T5: Jugend | U5: 2027/2028
A6: ='Wettkampf 1'!B6 -> Lahn IV | B6: =IF('Wettkampf 1'!D6>0,1,0) -> 1 | C6: =IF('2'!$D6>0,1,0) -> 1 | D6: =IF('3'!$D6>0,1,0) -> 1 | E6: =IF('4'!$D6>0,1,0) -> 1 | F6: =IF('5'!$D6>0,1,0) -> 1 | G6: =IF('6'!$D6>0,1,0) -> 1 | H6: 6 | I6: =IF('7'!$D6>0,1,0) -> 0 | J6: =IF('8'!$D6>0,1,0) -> 0 | K6: =IF('9'!$D6>0,1,0) -> 0 | L6: =IF('10'!$D6>0,1,0) -> 0 | M6: =IF('11'!$D6>0,1,0) -> 0 | N6: =IF('12'!$D6>0,1,0) -> 0 | O6: 0 | P6: 6 | S6: 3. Kreisklasse | T6: Schüler | U6: 2028/2029
A7: ='Wettkampf 1'!B7 -> Neuvrees I | B7: =IF('Wettkampf 1'!D7>0,1,0) -> 1 | C7: =IF('2'!$D7>0,1,0) -> 1 | D7: =IF('3'!$D7>0,1,0) -> 1 | E7: =IF('4'!$D7>0,1,0) -> 1 | F7: =IF('5'!$D7>0,1,0) -> 1 | G7: =IF('6'!$D7>0,1,0) -> 1 | H7: 6 | I7: =IF('7'!$D7>0,1,0) -> 0 | J7: =IF('8'!$D7>0,1,0) -> 0 | K7: =IF('9'!$D7>0,1,0) -> 0 | L7: =IF('10'!$D7>0,1,0) -> 0 | M7: =IF('11'!$D7>0,1,0) -> 0 | N7: =IF('12'!$D7>0,1,0) -> 0 | O7: 0 | P7: 6 | S7: 4. Kreisklasse | T7: offene Klasse FHLG | U7: 2039/2030
S8: 5. Kreisklasse | T8: Luftpistole
A9: Andre Hanenkamp | B9: =IF('Wettkampf 1'!D10>0,1,0) -> 1 | C9: =IF('2'!$D10>0,1,0) -> 1 | D9: =IF('3'!$D10>0,1,0) -> 1 | E9: =IF('4'!$D10>0,1,0) -> 1 | F9: =IF('5'!$D10>0,1,0) -> 1 | G9: =IF('6'!$D10>0,1,0) -> 1 | H9: 6 | I9: =IF('7'!$D10>0,1,0) -> 0 | J9: =IF('8'!$D10>0,1,0) -> 0 | K9: =IF('9'!$D10>0,1,0) -> 0 | L9: =IF('10'!$D10>0,1,0) -> 0 | M9: =IF('11'!$D10>0,1,0) -> 0 | N9: =IF('12'!$D10>0,1,0) -> 0 | O9: 0 | P9: =O9+H9 -> 6 | S9: 6. Kreisklasse
A10: Horst Sabel | B10: =IF('Wettkampf 1'!D11>0,1,0) -> 1 | C10: =IF('2'!$D11>0,1,0) -> 1 | D10: =IF('3'!$D11>0,1,0) -> 1 | E10: =IF('4'!$D11>0,1,0) -> 1 | F10: =IF('5'!$D11>0,1,0) -> 1 | G10: =IF('6'!$D11>0,1,0) -> 1 | H10: 6 | I10: =IF('7'!$D11>0,1,0) -> 0 | J10: =IF('8'!$D11>0,1,0) -> 0 | K10: =IF('9'!$D11>0,1,0) -> 0 | L10: =IF('10'!$D11>0,1,0) -> 0 | M10: =IF('11'!$D11>0,1,0) -> 0 | N10: =IF('12'!$D11>0,1,0) -> 0 | O10: 0 | P10: =O10+H10 -> 6 | S10: 7. Kreisklasse
A11: Christian Robben | B11: =IF('Wettkampf 1'!D12>0,1,0) -> 1 | C11: =IF('2'!$D12>0,1,0) -> 0 | D11: =IF('3'!$D12>0,1,0) -> 0 | E11: =IF('4'!$D12>0,1,0) -> 1 | F11: =IF('5'!$D12>0,1,0) -> 1 | G11: =IF('6'!$D12>0,1,0) -> 1 | H11: 4 | I11: =IF('7'!$D12>0,1,0) -> 0 | J11: =IF('8'!$D12>0,1,0) -> 0 | K11: =IF('9'!$D12>0,1,0) -> 0 | L11: =IF('10'!$D12>0,1,0) -> 0 | M11: =IF('11'!$D12>0,1,0) -> 0 | N11: =IF('12'!$D12>0,1,0) -> 0 | O11: 0 | P11: 4
A12: Mathis Antons | B12: =IF('Wettkampf 1'!D13>0,1,0) -> 1 | C12: =IF('2'!$D13>0,1,0) -> 1 | D12: =IF('3'!$D13>0,1,0) -> 1 | E12: =IF('4'!$D13>0,1,0) -> 1 | F12: =IF('5'!$D13>0,1,0) -> 1 | G12: =IF('6'!$D13>0,1,0) -> 0 | H12: 5 | I12: =IF('7'!$D13>0,1,0) -> 0 | J12: =IF('8'!$D13>0,1,0) -> 0 | K12: =IF('9'!$D13>0,1,0) -> 0 | L12: =IF('10'!$D13>0,1,0) -> 0 | M12: =IF('11'!$D13>0,1,0) -> 0 | N12: =IF('12'!$D13>0,1,0) -> 0 | O12: 0 | P12: 5
A13: Tobias Sebers | B13: =IF('Wettkampf 1'!D14>0,1,0) -> 0 | C13: =IF('2'!$D14>0,1,0) -> 1 | D13: =IF('3'!$D14>0,1,0) -> 1 | E13: =IF('4'!$D14>0,1,0) -> 0 | F13: =IF('5'!$D14>0,1,0) -> 1 | G13: =IF('6'!$D14>0,1,0) -> 1 | H13: 4 | I13: =IF('7'!$D14>0,1,0) -> 0 | J13: =IF('8'!$D14>0,1,0) -> 0 | K13: =IF('9'!$D14>0,1,0) -> 0 | L13: =IF('10'!$D14>0,1,0) -> 0 | M13: =IF('11'!$D14>0,1,0) -> 0 | N13: =IF('12'!$D14>0,1,0) -> 0 | O13: 0 | P13: 4
A14: Friedhelm Schroer | B14: =IF('Wettkampf 1'!D15>0,1,0) -> 1 | C14: =IF('2'!$D15>0,1,0) -> 1 | D14: =IF('3'!$D15>0,1,0) -> 1 | E14: =IF('4'!$D15>0,1,0) -> 1 | F14: =IF('5'!$D15>0,1,0) -> 1 | G14: =IF('6'!$D15>0,1,0) -> 1 | H14: 6 | I14: =IF('7'!$D15>0,1,0) -> 0 | J14: =IF('8'!$D15>0,1,0) -> 0 | K14: =IF('9'!$D15>0,1,0) -> 0 | L14: =IF('10'!$D15>0,1,0) -> 0 | M14: =IF('11'!$D15>0,1,0) -> 0 | N14: =IF('12'!$D15>0,1,0) -> 0 | O14: 0 | P14: 6
A15: Toni Stahl | B15: =IF('Wettkampf 1'!D16>0,1,0) -> 1 | C15: =IF('2'!$D16>0,1,0) -> 1 | D15: =IF('3'!$D16>0,1,0) -> 1 | E15: =IF('4'!$D16>0,1,0) -> 1 | F15: =IF('5'!$D16>0,1,0) -> 0 | G15: =IF('6'!$D16>0,1,0) -> 1 | H15: 5 | I15: =IF('7'!$D16>0,1,0) -> 0 | J15: =IF('8'!$D16>0,1,0) -> 0 | K15: =IF('9'!$D16>0,1,0) -> 0 | L15: =IF('10'!$D16>0,1,0) -> 0 | M15: =IF('11'!$D16>0,1,0) -> 0 | N15: =IF('12'!$D16>0,1,0) -> 0 | O15: 0 | P15: 5
A16: Martin Hinrichs | B16: =IF('Wettkampf 1'!D17>0,1,0) -> 1 | C16: =IF('2'!$D17>0,1,0) -> 0 | D16: =IF('3'!$D17>0,1,0) -> 0 | E16: =IF('4'!$D17>0,1,0) -> 0 | F16: =IF('5'!$D17>0,1,0) -> 0 | G16: =IF('6'!$D17>0,1,0) -> 0 | H16: 1 | I16: =IF('7'!$D17>0,1,0) -> 0 | J16: =IF('8'!$D17>0,1,0) -> 0 | K16: =IF('9'!$D17>0,1,0) -> 0 | L16: =IF('10'!$D17>0,1,0) -> 0 | M16: =IF('11'!$D17>0,1,0) -> 0 | N16: =IF('12'!$D17>0,1,0) -> 0 | O16: 0 | P16: 1
A17: Dirk Thunert | B17: =IF('Wettkampf 1'!D18>0,1,0) -> 1 | C17: =IF('2'!$D18>0,1,0) -> 1 | D17: =IF('3'!$D18>0,1,0) -> 1 | E17: =IF('4'!$D18>0,1,0) -> 1 | F17: =IF('5'!$D18>0,1,0) -> 1 | G17: =IF('6'!$D18>0,1,0) -> 1 | H17: 6 | I17: =IF('7'!$D18>0,1,0) -> 0 | J17: =IF('8'!$D18>0,1,0) -> 0 | K17: =IF('9'!$D18>0,1,0) -> 0 | L17: =IF('10'!$D18>0,1,0) -> 0 | M17: =IF('11'!$D18>0,1,0) -> 0 | N17: =IF('12'!$D18>0,1,0) -> 0 | O17: 0 | P17: 6
A18: Hans Preuth | B18: =IF('Wettkampf 1'!D19>0,1,0) -> 1 | C18: =IF('2'!$D19>0,1,0) -> 1 | D18: =IF('3'!$D19>0,1,0) -> 0 | E18: =IF('4'!$D19>0,1,0) -> 0 | F18: =IF('5'!$D19>0,1,0) -> 0 | G18: =IF('6'!$D19>0,1,0) -> 0 | H18: 2 | I18: =IF('7'!$D19>0,1,0) -> 0 | J18: =IF('8'!$D19>0,1,0) -> 0 | K18: =IF('9'!$D19>0,1,0) -> 0 | L18: =IF('10'!$D19>0,1,0) -> 0 | M18: =IF('11'!$D19>0,1,0) -> 0 | N18: =IF('12'!$D19>0,1,0) -> 0 | O18: 0 | P18: 2
A19: Karl-Heinz Schrand | B19: =IF('Wettkampf 1'!D20>0,1,0) -> 1 | C19: =IF('2'!$D20>0,1,0) -> 1 | D19: =IF('3'!$D20>0,1,0) -> 1 | E19: =IF('4'!$D20>0,1,0) -> 1 | F19: =IF('5'!$D20>0,1,0) -> 1 | G19: =IF('6'!$D20>0,1,0) -> 1 | H19: 6 | I19: =IF('7'!$D20>0,1,0) -> 0 | J19: =IF('8'!$D20>0,1,0) -> 0 | K19: =IF('9'!$D20>0,1,0) -> 0 | L19: =IF('10'!$D20>0,1,0) -> 0 | M19: =IF('11'!$D20>0,1,0) -> 0 | N19: =IF('12'!$D20>0,1,0) -> 0 | O19: 0 | P19: 6
A20: Holger Szczepanski | B20: =IF('Wettkampf 1'!D21>0,1,0) -> 1 | C20: =IF('2'!$D21>0,1,0) -> 1 | D20: =IF('3'!$D21>0,1,0) -> 1 | E20: =IF('4'!$D21>0,1,0) -> 1 | F20: =IF('5'!$D21>0,1,0) -> 1 | G20: =IF('6'!$D21>0,1,0) -> 1 | H20: 6 | I20: =IF('7'!$D21>0,1,0) -> 0 | J20: =IF('8'!$D21>0,1,0) -> 0 | K20: =IF('9'!$D21>0,1,0) -> 0 | L20: =IF('10'!$D21>0,1,0) -> 0 | M20: =IF('11'!$D21>0,1,0) -> 0 | N20: =IF('12'!$D21>0,1,0) -> 0 | O20: 0 | P20: 6
A21: Bernd Witting | B21: =IF('Wettkampf 1'!D22>0,1,0) -> 1 | C21: =IF('2'!$D22>0,1,0) -> 1 | D21: =IF('3'!$D22>0,1,0) -> 1 | E21: =IF('4'!$D22>0,1,0) -> 1 | F21: =IF('5'!$D22>0,1,0) -> 1 | G21: =IF('6'!$D22>0,1,0) -> 1 | H21: 6 | I21: =IF('7'!$D22>0,1,0) -> 0 | J21: =IF('8'!$D22>0,1,0) -> 0 | K21: =IF('9'!$D22>0,1,0) -> 0 | L21: =IF('10'!$D22>0,1,0) -> 0 | M21: =IF('11'!$D22>0,1,0) -> 0 | N21: =IF('12'!$D22>0,1,0) -> 0 | O21: 0 | P21: 6
A22: Hermann Schwarte | B22: =IF('Wettkampf 1'!D23>0,1,0) -> 1 | C22: =IF('2'!$D23>0,1,0) -> 1 | D22: =IF('3'!$D23>0,1,0) -> 1 | E22: =IF('4'!$D23>0,1,0) -> 1 | F22: =IF('5'!$D23>0,1,0) -> 1 | G22: =IF('6'!$D23>0,1,0) -> 0 | H22: 5 | I22: =IF('7'!$D23>0,1,0) -> 0 | J22: =IF('8'!$D23>0,1,0) -> 0 | K22: =IF('9'!$D23>0,1,0) -> 0 | L22: =IF('10'!$D23>0,1,0) -> 0 | M22: =IF('11'!$D23>0,1,0) -> 0 | N22: =IF('12'!$D23>0,1,0) -> 0 | O22: 0 | P22: 5
A23: Bernd Rode | B23: =IF('Wettkampf 1'!D24>0,1,0) -> 1 | C23: =IF('2'!$D24>0,1,0) -> 1 | D23: =IF('3'!$D24>0,1,0) -> 1 | E23: =IF('4'!$D24>0,1,0) -> 1 | F23: =IF('5'!$D24>0,1,0) -> 1 | G23: =IF('6'!$D24>0,1,0) -> 1 | H23: 6 | I23: =IF('7'!$D24>0,1,0) -> 0 | J23: =IF('8'!$D24>0,1,0) -> 0 | K23: =IF('9'!$D24>0,1,0) -> 0 | L23: =IF('10'!$D24>0,1,0) -> 0 | M23: =IF('11'!$D24>0,1,0) -> 0 | N23: =IF('12'!$D24>0,1,0) -> 0 | O23: 0 | P23: 6
A24: Daniel Sebers | B24: =IF('Wettkampf 1'!D25>0,1,0) -> 1 | C24: =IF('2'!$D25>0,1,0) -> 1 | D24: =IF('3'!$D25>0,1,0) -> 1 | E24: =IF('4'!$D25>0,1,0) -> 1 | F24: =IF('5'!$D25>0,1,0) -> 1 | G24: =IF('6'!$D25>0,1,0) -> 1 | H24: 6 | I24: =IF('7'!$D25>0,1,0) -> 0 | J24: =IF('8'!$D25>0,1,0) -> 0 | K24: =IF('9'!$D25>0,1,0) -> 0 | L24: =IF('10'!$D25>0,1,0) -> 0 | M24: =IF('11'!$D25>0,1,0) -> 0 | N24: =IF('12'!$D25>0,1,0) -> 0 | O24: 0 | P24: 6
A25: Simon Schutenbrock | B25: =IF('Wettkampf 1'!D26>0,1,0) -> 1 | C25: =IF('2'!$D26>0,1,0) -> 1 | D25: =IF('3'!$D26>0,1,0) -> 1 | E25: =IF('4'!$D26>0,1,0) -> 1 | F25: =IF('5'!$D26>0,1,0) -> 1 | G25: =IF('6'!$D26>0,1,0) -> 1 | H25: 6 | I25: =IF('7'!$D26>0,1,0) -> 0 | J25: =IF('8'!$D26>0,1,0) -> 0 | K25: =IF('9'!$D26>0,1,0) -> 0 | L25: =IF('10'!$D26>0,1,0) -> 0 | M25: =IF('11'!$D26>0,1,0) -> 0 | N25: =IF('12'!$D26>0,1,0) -> 0 | O25: 0 | P25: 6
A26: Jürgen Schroer | B26: =IF('Wettkampf 1'!D27>0,1,0) -> 1 | C26: =IF('2'!$D27>0,1,0) -> 1 | D26: =IF('3'!$D27>0,1,0) -> 1 | E26: =IF('4'!$D27>0,1,0) -> 1 | F26: =IF('5'!$D27>0,1,0) -> 1 | G26: =IF('6'!$D27>0,1,0) -> 1 | H26: 6 | I26: =IF('7'!$D27>0,1,0) -> 0 | J26: =IF('8'!$D27>0,1,0) -> 0 | K26: =IF('9'!$D27>0,1,0) -> 0 | L26: =IF('10'!$D27>0,1,0) -> 0 | M26: =IF('11'!$D27>0,1,0) -> 0 | N26: =IF('12'!$D27>0,1,0) -> 0 | O26: 0 | P26: 6
A27: Marc Eckmann | B27: =IF('Wettkampf 1'!D28>0,1,0) -> 1 | C27: =IF('2'!$D28>0,1,0) -> 1 | D27: =IF('3'!$D28>0,1,0) -> 0 | E27: =IF('4'!$D28>0,1,0) -> 1 | F27: =IF('5'!$D28>0,1,0) -> 1 | G27: =IF('6'!$D28>0,1,0) -> 1 | H27: 5 | I27: =IF('7'!$D28>0,1,0) -> 0 | J27: =IF('8'!$D28>0,1,0) -> 0 | K27: =IF('9'!$D28>0,1,0) -> 0 | L27: =IF('10'!$D28>0,1,0) -> 0 | M27: =IF('11'!$D28>0,1,0) -> 0 | N27: =IF('12'!$D28>0,1,0) -> 0 | O27: 0 | P27: 5
A28: Markus Jungsthöfel | B28: =IF('Wettkampf 1'!D29>0,1,0) -> 1 | C28: =IF('2'!$D29>0,1,0) -> 1 | D28: =IF('3'!$D29>0,1,0) -> 1 | E28: =IF('4'!$D29>0,1,0) -> 1 | F28: =IF('5'!$D29>0,1,0) -> 1 | G28: =IF('6'!$D29>0,1,0) -> 1 | H28: 6 | I28: =IF('7'!$D29>0,1,0) -> 0 | J28: =IF('8'!$D29>0,1,0) -> 0 | K28: =IF('9'!$D29>0,1,0) -> 0 | L28: =IF('10'!$D29>0,1,0) -> 0 | M28: =IF('11'!$D29>0,1,0) -> 0 | N28: =IF('12'!$D29>0,1,0) -> 0 | O28: 0 | P28: 6
A29: Jens Henzen | B29: =IF('Wettkampf 1'!D30>0,1,0) -> 1 | C29: =IF('2'!$D30>0,1,0) -> 1 | D29: =IF('3'!$D30>0,1,0) -> 1 | E29: =IF('4'!$D30>0,1,0) -> 1 | F29: =IF('5'!$D30>0,1,0) -> 1 | G29: =IF('6'!$D30>0,1,0) -> 1 | H29: 6 | I29: =IF('7'!$D30>0,1,0) -> 0 | J29: =IF('8'!$D30>0,1,0) -> 0 | K29: =IF('9'!$D30>0,1,0) -> 0 | L29: =IF('10'!$D30>0,1,0) -> 0 | M29: =IF('11'!$D30>0,1,0) -> 0 | N29: =IF('12'!$D30>0,1,0) -> 0 | O29: 0 | P29: 6
A30: Uwe Goldenstein | B30: =IF('Wettkampf 1'!D31>0,1,0) -> 1 | C30: =IF('2'!$D31>0,1,0) -> 1 | D30: =IF('3'!$D31>0,1,0) -> 1 | E30: =IF('4'!$D31>0,1,0) -> 1 | F30: =IF('5'!$D31>0,1,0) -> 1 | G30: =IF('6'!$D31>0,1,0) -> 1 | H30: 6 | I30: =IF('7'!$D31>0,1,0) -> 0 | J30: =IF('8'!$D31>0,1,0) -> 0 | K30: =IF('9'!$D31>0,1,0) -> 0 | L30: =IF('10'!$D31>0,1,0) -> 0 | M30: =IF('11'!$D31>0,1,0) -> 0 | N30: =IF('12'!$D31>0,1,0) -> 0 | O30: 0 | P30: 6
A31: Ingo Zdralik | B31: =IF('Wettkampf 1'!D32>0,1,0) -> 1 | C31: =IF('2'!$D32>0,1,0) -> 1 | D31: =IF('3'!$D32>0,1,0) -> 1 | E31: =IF('4'!$D32>0,1,0) -> 1 | F31: =IF('5'!$D32>0,1,0) -> 1 | G31: =IF('6'!$D32>0,1,0) -> 1 | H31: 6 | I31: =IF('7'!$D32>0,1,0) -> 0 | J31: =IF('8'!$D32>0,1,0) -> 0 | K31: =IF('9'!$D32>0,1,0) -> 0 | L31: =IF('10'!$D32>0,1,0) -> 0 | M31: =IF('11'!$D32>0,1,0) -> 0 | N31: =IF('12'!$D32>0,1,0) -> 0 | O31: 0 | P31: 6
A32: Schütze 24 | B32: =IF('Wettkampf 1'!D33>0,1,0) -> 0 | C32: =IF('2'!$D33>0,1,0) -> 0 | D32: =IF('3'!$D33>0,1,0) -> 0 | E32: =IF('4'!$D33>0,1,0) -> 0 | F32: =IF('5'!$D33>0,1,0) -> 0 | G32: =IF('6'!$D33>0,1,0) -> 0 | H32: 0 | I32: =IF('7'!$D33>0,1,0) -> 0 | J32: =IF('8'!$D33>0,1,0) -> 0 | K32: =IF('9'!$D33>0,1,0) -> 0 | L32: =IF('10'!$D33>0,1,0) -> 0 | M32: =IF('11'!$D33>0,1,0) -> 0 | N32: =IF('12'!$D33>0,1,0) -> 0 | O32: 0 | P32: 0
A33: Oliver Reinelt | B33: =IF('Wettkampf 1'!D34>0,1,0) -> 1 | C33: =IF('2'!$D34>0,1,0) -> 1 | D33: =IF('3'!$D34>0,1,0) -> 1 | E33: =IF('4'!$D34>0,1,0) -> 1 | F33: =IF('5'!$D34>0,1,0) -> 1 | G33: =IF('6'!$D34>0,1,0) -> 1 | H33: 6 | I33: =IF('7'!$D34>0,1,0) -> 0 | J33: =IF('8'!$D34>0,1,0) -> 0 | K33: =IF('9'!$D34>0,1,0) -> 0 | L33: =IF('10'!$D34>0,1,0) -> 0 | M33: =IF('11'!$D34>0,1,0) -> 0 | N33: =IF('12'!$D34>0,1,0) -> 0 | O33: 0 | P33: 6
A34: Vitalij Schmidt | B34: =IF('Wettkampf 1'!D35>0,1,0) -> 1 | C34: =IF('2'!$D35>0,1,0) -> 1 | D34: =IF('3'!$D35>0,1,0) -> 1 | E34: =IF('4'!$D35>0,1,0) -> 1 | F34: =IF('5'!$D35>0,1,0) -> 1 | G34: =IF('6'!$D35>0,1,0) -> 1 | H34: 6 | I34: =IF('7'!$D35>0,1,0) -> 0 | J34: =IF('8'!$D35>0,1,0) -> 0 | K34: =IF('9'!$D35>0,1,0) -> 0 | L34: =IF('10'!$D35>0,1,0) -> 0 | M34: =IF('11'!$D35>0,1,0) -> 0 | N34: =IF('12'!$D35>0,1,0) -> 0 | O34: 0 | P34: 6
A35: Hermann Benten | B35: =IF('Wettkampf 1'!D36>0,1,0) -> 1 | C35: =IF('2'!$D36>0,1,0) -> 1 | D35: =IF('3'!$D36>0,1,0) -> 1 | E35: =IF('4'!$D36>0,1,0) -> 1 | F35: =IF('5'!$D36>0,1,0) -> 1 | G35: =IF('6'!$D36>0,1,0) -> 1 | H35: 6 | I35: =IF('7'!$D36>0,1,0) -> 0 | J35: =IF('8'!$D36>0,1,0) -> 0 | K35: =IF('9'!$D36>0,1,0) -> 0 | L35: =IF('10'!$D36>0,1,0) -> 0 | M35: =IF('11'!$D36>0,1,0) -> 0 | N35: =IF('12'!$D36>0,1,0) -> 0 | O35: 0 | P35: 6
A36: Johannes Thesing | B36: =IF('Wettkampf 1'!D37>0,1,0) -> 1 | C36: =IF('2'!$D37>0,1,0) -> 1 | D36: =IF('3'!$D37>0,1,0) -> 1 | E36: =IF('4'!$D37>0,1,0) -> 1 | F36: =IF('5'!$D37>0,1,0) -> 1 | G36: =IF('6'!$D37>0,1,0) -> 1 | H36: 6 | I36: =IF('7'!$D37>0,1,0) -> 0 | J36: =IF('8'!$D37>0,1,0) -> 0 | K36: =IF('9'!$D37>0,1,0) -> 0 | L36: =IF('10'!$D37>0,1,0) -> 0 | M36: =IF('11'!$D37>0,1,0) -> 0 | N36: =IF('12'!$D37>0,1,0) -> 0 | O36: 0 | P36: 6
A37: Schütze 29 | B37: =IF('Wettkampf 1'!D38>0,1,0) -> 0 | C37: =IF('2'!$D38>0,1,0) -> 0 | D37: =IF('3'!$D38>0,1,0) -> 0 | E37: =IF('4'!$D38>0,1,0) -> 0 | F37: =IF('5'!$D38>0,1,0) -> 0 | G37: =IF('6'!$D38>0,1,0) -> 0 | H37: 0 | I37: =IF('7'!$D38>0,1,0) -> 0 | J37: =IF('8'!$D38>0,1,0) -> 0 | K37: =IF('9'!$D38>0,1,0) -> 0 | L37: =IF('10'!$D38>0,1,0) -> 0 | M37: =IF('11'!$D38>0,1,0) -> 0 | N37: =IF('12'!$D38>0,1,0) -> 0 | O37: 0 | P37: 0
A38: Willi Rolfes | B38: =IF('Wettkampf 1'!D39>0,1,0) -> 1 | C38: =IF('2'!$D39>0,1,0) -> 1 | D38: =IF('3'!$D39>0,1,0) -> 1 | E38: =IF('4'!$D39>0,1,0) -> 1 | F38: =IF('5'!$D39>0,1,0) -> 1 | G38: =IF('6'!$D39>0,1,0) -> 1 | H38: 6 | I38: =IF('7'!$D39>0,1,0) -> 0 | J38: =IF('8'!$D39>0,1,0) -> 0 | K38: =IF('9'!$D39>0,1,0) -> 0 | L38: =IF('10'!$D39>0,1,0) -> 0 | M38: =IF('11'!$D39>0,1,0) -> 0 | N38: =IF('12'!$D39>0,1,0) -> 0 | O38: 0 | P38: 6
A39: Werner Thyen | B39: =IF('Wettkampf 1'!D40>0,1,0) -> 1 | C39: =IF('2'!$D40>0,1,0) -> 1 | D39: =IF('3'!$D40>0,1,0) -> 1 | E39: =IF('4'!$D40>0,1,0) -> 1 | F39: =IF('5'!$D40>0,1,0) -> 1 | G39: =IF('6'!$D40>0,1,0) -> 1 | H39: 6 | I39: =IF('7'!$D40>0,1,0) -> 0 | J39: =IF('8'!$D40>0,1,0) -> 0 | K39: =IF('9'!$D40>0,1,0) -> 0 | L39: =IF('10'!$D40>0,1,0) -> 0 | M39: =IF('11'!$D40>0,1,0) -> 0 | N39: =IF('12'!$D40>0,1,0) -> 0 | O39: 0 | P39: =O39+H39 -> 6
A40: Wilfried Breyer | B40: =IF('Wettkampf 1'!D41>0,1,0) -> 1 | C40: =IF('2'!$D41>0,1,0) -> 1 | D40: =IF('3'!$D41>0,1,0) -> 1 | E40: =IF('4'!$D41>0,1,0) -> 1 | F40: =IF('5'!$D41>0,1,0) -> 1 | G40: =IF('6'!$D41>0,1,0) -> 1 | H40: 6 | I40: =IF('7'!$D41>0,1,0) -> 0 | J40: =IF('8'!$D41>0,1,0) -> 0 | K40: =IF('9'!$D41>0,1,0) -> 0 | L40: =IF('10'!$D41>0,1,0) -> 0 | M40: =IF('11'!$D41>0,1,0) -> 0 | N40: =IF('12'!$D41>0,1,0) -> 0 | O40: 0 | P40: 6
A41: Klaus Steenken | B41: =IF('Wettkampf 1'!D42>0,1,0) -> 1 | C41: =IF('2'!$D42>0,1,0) -> 1 | D41: =IF('3'!$D42>0,1,0) -> 1 | E41: =IF('4'!$D42>0,1,0) -> 1 | F41: =IF('5'!$D42>0,1,0) -> 1 | G41: =IF('6'!$D42>0,1,0) -> 1 | H41: 6 | I41: =IF('7'!$D42>0,1,0) -> 0 | J41: =IF('8'!$D42>0,1,0) -> 0 | K41: =IF('9'!$D42>0,1,0) -> 0 | L41: =IF('10'!$D42>0,1,0) -> 0 | M41: =IF('11'!$D42>0,1,0) -> 0 | N41: =IF('12'!$D42>0,1,0) -> 0 | O41: 0 | P41: 6
A42: Markus Janßen | B42: =IF('Wettkampf 1'!D43>0,1,0) -> 1 | C42: =IF('2'!$D43>0,1,0) -> 1 | D42: =IF('3'!$D43>0,1,0) -> 1 | E42: =IF('4'!$D43>0,1,0) -> 1 | F42: =IF('5'!$D43>0,1,0) -> 1 | G42: =IF('6'!$D43>0,1,0) -> 1 | H42: 6 | I42: =IF('7'!$D43>0,1,0) -> 0 | J42: =IF('8'!$D43>0,1,0) -> 0 | K42: =IF('9'!$D43>0,1,0) -> 0 | L42: =IF('10'!$D43>0,1,0) -> 0 | M42: =IF('11'!$D43>0,1,0) -> 0 | N42: =IF('12'!$D43>0,1,0) -> 0 | O42: 0 | P42: 6
A43: Carsten Peters | B43: =IF('Wettkampf 1'!D44>0,1,0) -> 0 | C43: =IF('2'!$D44>0,1,0) -> 1 | D43: =IF('3'!$D44>0,1,0) -> 0 | E43: =IF('4'!$D44>0,1,0) -> 1 | F43: =IF('5'!$D44>0,1,0) -> 1 | G43: =IF('6'!$D44>0,1,0) -> 1 | H43: 4 | I43: =IF('7'!$D44>0,1,0) -> 0 | J43: =IF('8'!$D44>0,1,0) -> 0 | K43: =IF('9'!$D44>0,1,0) -> 0 | L43: =IF('10'!$D44>0,1,0) -> 0 | M43: =IF('11'!$D44>0,1,0) -> 0 | N43: =IF('12'!$D44>0,1,0) -> 0 | O43: 0 | P43: 4
A44: Dietmar Spekker | B44: =IF('Wettkampf 1'!D45>0,1,0) -> 0 | C44: =IF('2'!$D45>0,1,0) -> 0 | D44: =IF('3'!$D45>0,1,0) -> 1 | E44: =IF('4'!$D45>0,1,0) -> 1 | F44: =IF('5'!$D45>0,1,0) -> 0 | G44: =IF('6'!$D45>0,1,0) -> 0 | H44: 2 | I44: =IF('7'!$D45>0,1,0) -> 0 | J44: =IF('8'!$D45>0,1,0) -> 0 | K44: =IF('9'!$D45>0,1,0) -> 0 | L44: =IF('10'!$D45>0,1,0) -> 0 | M44: =IF('11'!$D45>0,1,0) -> 0 | N44: =IF('12'!$D45>0,1,0) -> 0 | O44: 0 | P44: 2
B45: =SUM(B9:B44) -> 31.00 | C45: =SUM(C9:C44) -> 31.00 | D45: 29.00 | E45: 31.00 | F45: 30.00 | G45: 29.00 | H45: =SUM(H9:H44) -> 181.00 | I45: =SUM(I9:I44) -> 0.00 | J45: =SUM(J9:J44) -> 0.00 | K45: 0.00 | L45: 0.00 | M45: 0.00 | N45: 0.00 | O45: =SUM(O9:O44) -> 0.00 | P45: =SUM(P9:P44) -> 181.00

Sheet Übersicht Gruppen (hidden)
B2: Neuvrees II | C2: =VLOOKUP($B$2:$B$7,'Wettkampf 1'!$B$2:$D$7,3,FALSE) -> 932.5 | D2: =VLOOKUP($B$2:$B$7,'2'!$B$2:$D$7,3,FALSE) -> 931.4 | E2: =VLOOKUP($B$2:$B$7,'3'!$B$2:$D$7,3,FALSE) -> 938.0 | F2: =VLOOKUP($B$2:$B$7,'4'!$B$2:$D$7,3,FALSE) -> 931.6 | G2: =VLOOKUP($B$2:$B$7,'5'!$B$2:$D$7,3,FALSE) -> 935.9 | H2: =VLOOKUP($B$2:$B$7,'6'!$B$2:$D$7,3,FALSE) -> 933.7 | I2: =IF(Formelhilfe!H3 > 0,J2/Formelhilfe!H3,0) -> 933.9 | J2: =SUM(C2:H2) -> 5,603.1 | K2: =VLOOKUP($B$2:$B$7,'7'!$B$2:$D$7,3,FALSE) -> 0.0 | L2: =VLOOKUP($B$2:$B$7,'8'!$B$2:$D$7,3,FALSE) -> 0.0 | M2: =VLOOKUP($B$2:$B$7,'9'!$B$2:$D$7,3,FALSE) -> 0.0 | N2: =VLOOKUP($B$2:$B$7,'10'!$B$2:$D$7,3,FALSE) -> 0.0 | O2: =VLOOKUP($B$2:$B$7,'11'!$B$2:$D$7,3,FALSE) -> 0.0 | P2: =VLOOKUP($B$2:$B$7,'12'!$B$2:$D$7,3,FALSE) -> 0.0 | Q2: =IF(Formelhilfe!O3>0,R2/Formelhilfe!O3,0) -> 0.0 | R2: =SUM(K2:P2) -> 0.0 | S2: =IF(Formelhilfe!P3>0,T2/Formelhilfe!P3,0) -> 933.9 | T2: =SUM(C2:H2,K2:P2) -> 5,603.1
B3: Lahn IV | C3: =VLOOKUP($B$2:$B$7,'Wettkampf 1'!$B$2:$D$7,3,FALSE) -> 929.5 | D3: =VLOOKUP($B$2:$B$7,'2'!$B$2:$D$7,3,FALSE) -> 935.3 | E3: =VLOOKUP($B$2:$B$7,'3'!$B$2:$D$7,3,FALSE) -> 933.0 | F3: =VLOOKUP($B$2:$B$7,'4'!$B$2:$D$7,3,FALSE) -> 940.1 | G3: =VLOOKUP($B$2:$B$7,'5'!$B$2:$D$7,3,FALSE) -> 933.4 | H3: =VLOOKUP($B$2:$B$7,'6'!$B$2:$D$7,3,FALSE) -> 928.5 | I3: =IF(Formelhilfe!H6 > 0,J3/Formelhilfe!H6,0) -> 933.3 | J3: 5,599.8 | K3: =VLOOKUP($B$2:$B$7,'7'!$B$2:$D$7,3,FALSE) -> 0.0 | L3: =VLOOKUP($B$2:$B$7,'8'!$B$2:$D$7,3,FALSE) -> 0.0 | M3: =VLOOKUP($B$2:$B$7,'9'!$B$2:$D$7,3,FALSE) -> 0.0 | N3: =VLOOKUP($B$2:$B$7,'10'!$B$2:$D$7,3,FALSE) -> 0.0 | O3: =VLOOKUP($B$2:$B$7,'11'!$B$2:$D$7,3,FALSE) -> 0.0 | P3: =VLOOKUP($B$2:$B$7,'12'!$B$2:$D$7,3,FALSE) -> 0.0 | Q3: =IF(Formelhilfe!O6>0,R3/Formelhilfe!O6,0) -> 0.0 | R3: 0.0 | S3: =IF(Formelhilfe!P6>0,T3/Formelhilfe!P6,0) -> 933.3 | T3: 5,599.8
B4: Börgerwald II | C4: =VLOOKUP($B$2:$B$7,'Wettkampf 1'!$B$2:$D$7,3,FALSE) -> 932.9 | D4: =VLOOKUP($B$2:$B$7,'2'!$B$2:$D$7,3,FALSE) -> 935.1 | E4: =VLOOKUP($B$2:$B$7,'3'!$B$2:$D$7,3,FALSE) -> 931.1 | F4: =VLOOKUP($B$2:$B$7,'4'!$B$2:$D$7,3,FALSE) -> 936.7 | G4: =VLOOKUP($B$2:$B$7,'5'!$B$2:$D$7,3,FALSE) -> 935.1 | H4: =VLOOKUP($B$2:$B$7,'6'!$B$2:$D$7,3,FALSE) -> 927.8 | I4: =IF(Formelhilfe!H4 > 0,J4/Formelhilfe!H4,0) -> 933.1 | J4: 5,598.7 | K4: =VLOOKUP($B$2:$B$7,'7'!$B$2:$D$7,3,FALSE) -> 0.0 | L4: =VLOOKUP($B$2:$B$7,'8'!$B$2:$D$7,3,FALSE) -> 0.0 | M4: =VLOOKUP($B$2:$B$7,'9'!$B$2:$D$7,3,FALSE) -> 0.0 | N4: =VLOOKUP($B$2:$B$7,'10'!$B$2:$D$7,3,FALSE) -> 0.0 | O4: =VLOOKUP($B$2:$B$7,'11'!$B$2:$D$7,3,FALSE) -> 0.0 | P4: =VLOOKUP($B$2:$B$7,'12'!$B$2:$D$7,3,FALSE) -> 0.0 | Q4: =IF(Formelhilfe!O4>0,R4/Formelhilfe!O4,0) -> 0.0 | R4: 0.0 | S4: =IF(Formelhilfe!P4>0,T4/Formelhilfe!P4,0) -> 933.1 | T4: 5,598.7
B5: Neuvrees I | C5: =VLOOKUP($B$2:$B$7,'Wettkampf 1'!$B$2:$D$7,3,FALSE) -> 933.2 | D5: =VLOOKUP($B$2:$B$7,'2'!$B$2:$D$7,3,FALSE) -> 929.1 | E5: =VLOOKUP($B$2:$B$7,'3'!$B$2:$D$7,3,FALSE) -> 926.2 | F5: =VLOOKUP($B$2:$B$7,'4'!$B$2:$D$7,3,FALSE) -> 931.7 | G5: =VLOOKUP($B$2:$B$7,'5'!$B$2:$D$7,3,FALSE) -> 932.2 | H5: =VLOOKUP($B$2:$B$7,'6'!$B$2:$D$7,3,FALSE) -> 932.9 | I5: =IF(Formelhilfe!H7 > 0,J5/Formelhilfe!H7,0) -> 930.9 | J5: 5,585.3 | K5: =VLOOKUP($B$2:$B$7,'7'!$B$2:$D$7,3,FALSE) -> 0.0 | L5: =VLOOKUP($B$2:$B$7,'8'!$B$2:$D$7,3,FALSE) -> 0.0 | M5: =VLOOKUP($B$2:$B$7,'9'!$B$2:$D$7,3,FALSE) -> 0.0 | N5: =VLOOKUP($B$2:$B$7,'10'!$B$2:$D$7,3,FALSE) -> 0.0 | O5: =VLOOKUP($B$2:$B$7,'11'!$B$2:$D$7,3,FALSE) -> 0.0 | P5: =VLOOKUP($B$2:$B$7,'12'!$B$2:$D$7,3,FALSE) -> 0.0 | Q5: =IF(Formelhilfe!O7>0,R5/Formelhilfe!O7,0) -> 0.0 | R5: 0.0 | S5: =IF(Formelhilfe!P7>0,T5/Formelhilfe!P7,0) -> 930.9 | T5: 5,585.3
B6: Börger II | C6: =VLOOKUP($B$2:$B$7,'Wettkampf 1'!$B$2:$D$7,3,FALSE) -> 934.4 | D6: =VLOOKUP($B$2:$B$7,'2'!$B$2:$D$7,3,FALSE) -> 934.2 | E6: =VLOOKUP($B$2:$B$7,'3'!$B$2:$D$7,3,FALSE) -> 925.6 | F6: =VLOOKUP($B$2:$B$7,'4'!$B$2:$D$7,3,FALSE) -> 934.0 | G6: =VLOOKUP($B$2:$B$7,'5'!$B$2:$D$7,3,FALSE) -> 921.6 | H6: =VLOOKUP($B$2:$B$7,'6'!$B$2:$D$7,3,FALSE) -> 929.2 | I6: =IF(Formelhilfe!H2 > 0,J6/Formelhilfe!H2,0) -> 929.8 | J6: 5,579.0 | K6: =VLOOKUP($B$2:$B$7,'7'!$B$2:$D$7,3,FALSE) -> 0.0 | L6: =VLOOKUP($B$2:$B$7,'8'!$B$2:$D$7,3,FALSE) -> 0.0 | M6: =VLOOKUP($B$2:$B$7,'9'!$B$2:$D$7,3,FALSE) -> 0.0 | N6: =VLOOKUP($B$2:$B$7,'10'!$B$2:$D$7,3,FALSE) -> 0.0 | O6: =VLOOKUP($B$2:$B$7,'11'!$B$2:$D$7,3,FALSE) -> 0.0 | P6: =VLOOKUP($B$2:$B$7,'12'!$B$2:$D$7,3,FALSE) -> 0.0 | Q6: =IF(Formelhilfe!O2>0,R6/Formelhilfe!O2,0) -> 0.0 | R6: 0.0 | S6: =IF(Formelhilfe!P2>0,T6/Formelhilfe!P2,0) -> 929.8 | T6: 5,579.0
B7: Börger III | C7: =VLOOKUP($B$2:$B$7,'Wettkampf 1'!$B$2:$D$7,3,FALSE) -> 923.6 | D7: =VLOOKUP($B$2:$B$7,'2'!$B$2:$D$7,3,FALSE) -> 926.3 | E7: =VLOOKUP($B$2:$B$7,'3'!$B$2:$D$7,3,FALSE) -> 927.2 | F7: =VLOOKUP($B$2:$B$7,'4'!$B$2:$D$7,3,FALSE) -> 934.7 | G7: =VLOOKUP($B$2:$B$7,'5'!$B$2:$D$7,3,FALSE) -> 931.9 | H7: =VLOOKUP($B$2:$B$7,'6'!$B$2:$D$7,3,FALSE) -> 933.3 | I7: =IF(Formelhilfe!H5 > 0,J7/Formelhilfe!H5,0) -> 929.5 | J7: 5,577.0 | K7: =VLOOKUP($B$2:$B$7,'7'!$B$2:$D$7,3,FALSE) -> 0.0 | L7: =VLOOKUP($B$2:$B$7,'8'!$B$2:$D$7,3,FALSE) -> 0.0 | M7: =VLOOKUP($B$2:$B$7,'9'!$B$2:$D$7,3,FALSE) -> 0.0 | N7: =VLOOKUP($B$2:$B$7,'10'!$B$2:$D$7,3,FALSE) -> 0.0 | O7: =VLOOKUP($B$2:$B$7,'11'!$B$2:$D$7,3,FALSE) -> 0.0 | P7: =VLOOKUP($B$2:$B$7,'12'!$B$2:$D$7,3,FALSE) -> 0.0 | Q7: =IF(Formelhilfe!O5>0,R7/Formelhilfe!O5,0) -> 0.0 | R7: 0.0 | S7: =IF(Formelhilfe!P5>0,T7/Formelhilfe!P5,0) -> 929.5 | T7: 5,577.0
